Workbook

Sheet ID_パスワード
B5: メッシュ農業気象データを取得するための IDとパスワードを入力してください。
C7: ID
C8: Password1
C9: Password2

Sheet 表示
A2: 有効積算気温を使用した牧草夏季播種晩限日計算プログラム「農研機構メッシュ農業気象データ」版（ver.2018/10/31)
H3: 農研機構北海道農業研究センター 井上 聡
A5: 入力
B6: 緯度 | C6: 経度 | G6: 試験地 | H6: 牧草種組み合わせ | J6: 必要有効
A7: 対象地点 | B7: 43.01246123 | C7: 141.4054585 | D7: ←地点の位置を入力する | G7: (グループ） | H7: イネ科 | I7: マメ科 | J7: 積算気温
G8: 北農研 | H8: オーチャードグラス | I8: アルファルファ | J8: 615
A9: 確率を求める20年（最終年を指定） | G9: （グループB：□） | H9: オーチャードグラス | I9: アカクローバ | J9: 516
A10: =C10-19 -> 1999 | B10: - | C10: =D10 -> 2018 | D10: 2018 | H10: チモシー | I10: アルファルファ | J10: 480
H11: チモシー | I11: アカクローバ | J11: 354
B12: ℃・日 | G12: 北見農試 | H12: チモシー | I12: アルファルファ | J12: 564
A13: 必要有効 積算気温 | B13: 480 | C13: ←右表より必要有効積算気温を入力する | G13: （グループC：○） | H13: チモシー | I13: アカクローバ | J13: 531
G14: 根釧農試 | H14: チモシー | I14: アカクローバ | J14: 629
G15: （グループD：◆）
A16: 出力 | G16: 有効積算気温は、播種翌日から播種当年10月31日までの有効積算気温（基準温度＝5℃）。
A17: 年 | B17: 晩限日 | C17: ％確率日 | D17: 遅い順 | G17: 晩限推奨日は、1994〜2013年の各年の必要有効積算気温を満たす日の90％確率日。
A18: =A19-1 -> 1999 | B18: =超える日計算!B217-1 -> 2014-08-23 | D18: =LARGE($B$18:$B$37,1) -> 2014-08-31 | G18: 目標収量はチモシー混播630kg/10a（根釧は540kg/10a）、オーチャードグラス混播480kg/10a。
A19: 2000 | B19: =超える日計算!C217-1 -> 2014-08-24 | C19: 0.1 | D19: =LARGE($B$18:$B$37,2) -> 2014-08-27
A20: 2001 | B20: =超える日計算!D217-1 -> 2014-08-18 | D20: =LARGE($B$18:$B$37,3) -> 2014-08-24
A21: 2002 | B21: =超える日計算!E217-1 -> 2014-08-18 | C21: 0.2 | D21: =LARGE($B$18:$B$37,4) -> 2014-08-23
A22: 2003 | B22: =超える日計算!F217-1 -> 2014-08-18 | D22: =LARGE($B$18:$B$37,5) -> 2014-08-23
A23: 2004 | B23: =超える日計算!G217-1 -> 2014-08-20 | C23: 0.3 | D23: =LARGE($B$18:$B$37,6) -> 2014-08-23
A24: 2005 | B24: =超える日計算!H217-1 -> 2014-08-23 | D24: =LARGE($B$18:$B$37,7) -> 2014-08-23
A25: 2006 | B25: =超える日計算!I217-1 -> 2014-08-22 | C25: 0.4 | D25: =LARGE($B$18:$B$37,8) -> 2014-08-22
A26: 2007 | B26: =超える日計算!J217-1 -> 2014-08-20 | D26: =LARGE($B$18:$B$37,9) -> 2014-08-22
A27: 2008 | B27: =超える日計算!K217-1 -> 2014-08-23 | C27: 0.5 | D27: =LARGE($B$18:$B$37,10) -> 2014-08-22
A28: 2009 | B28: =超える日計算!L217-1 -> 2014-08-17 | D28: =LARGE($B$18:$B$37,11) -> 2014-08-20
A29: 2010 | B29: =超える日計算!M217-1 -> 2014-08-27 | C29: 0.6 | D29: =LARGE($B$18:$B$37,12) -> 2014-08-20
A30: 2011 | B30: =超える日計算!N217-1 -> 2014-08-23 | D30: =LARGE($B$18:$B$37,13) -> 2014-08-20
A31: 2012 | B31: =超える日計算!O217-1 -> 2014-08-31 | C31: 0.7 | D31: =LARGE($B$18:$B$37,14) -> 2014-08-18
A32: 2013 | B32: =超える日計算!P217-1 -> 2014-08-22 | D32: =LARGE($B$18:$B$37,15) -> 2014-08-18 | G32: 上図のマーカーは、各グループに区分した位置を示す。
A33: 2014 | B33: =超える日計算!Q217-1 -> 2014-08-16 | C33: 0.8 | D33: =LARGE($B$18:$B$37,16) -> 2014-08-18 | G33: □はグループＢ（北農研）の値を参照する地点であり
A34: 2015 | B34: =超える日計算!R217-1 -> 2014-08-16 | D34: =LARGE($B$18:$B$37,17) -> 2014-08-17 | G34: ○はグループＣ（北見農試）の値を参照する地点であり
A35: 2016 | B35: =超える日計算!S217-1 -> 2014-08-22 | C35: 0.9 | D35: =LARGE($B$18:$B$37,18) -> 2014-08-16 | E35: →晩限日 | G35: ◆はグループＤ（根釧農試）の値を参照する地点である。
A36: =A37-1 -> 2017 | B36: =超える日計算!T217-1 -> 2014-08-16 | D36: =LARGE($B$18:$B$37,19) -> 2014-08-16 | G36: それぞれの試験地は☆の位置にある
A37: =C10 -> 2018 | B37: =超える日計算!U217-1 -> 2014-08-20 | C37: 1 | D37: =LARGE($B$18:$B$37,20) -> 2014-08-16 | G37: 希望する地点の区分選定にあたっては、最近傍地点のみ
A38: 90%とは、過去20年間*において18年は有効積算気温が | G38: ではなく、周辺の複数地点から総合的に判断してください。
A39: 確保できる（目標収量が確保できる）と推定される日である。 | G39: ※試験時の機関名は「根釧農業試験場」
A40: *本成績では1994年から2013年までの期間を想定している。
A42: 参考出力
A43: 予報による晩限日
A44: =TODAY() -> 2018-11-05 | B44: =超える日計算!Z217-1 -> 2014-08-20
A46: 予報による 明日以降の 有効積算気温 | B46: =VLOOKUP(TODAY()+1,有効積算気温!Y2:Z216,2) -> 0
A47: 平年値による 明日以降の 有効積算気温 | B47: =VLOOKUP(TODAY()+1,有効積算気温!Y2:AA216,3) -> 0

Sheet データ整理 (hidden)
B1: =表示!$A$10 -> 1999 | C1: =B1+1 -> 2000 | D1: =C1+1 -> 2001 | E1: 2002 | F1: 2003 | G1: 2004 | H1: 2005 | I1: 2006 | J1: 2007 | K1: 2008 | L1: 2009 | M1: 2010 | N1: 2011 | O1: 2012 | P1: 2013 | Q1: 2014 | R1: 2015 | S1: 2016 | T1: 2017 | U1: 2018 | Z1: =YEAR(TODAY()) -> 2018 | AA1: 平年値
A2: 2014-04-01 | B2: 0.978505 | C2: -0.877165 | D2: -1.70022 | E2: 4.92075 | F2: 0.712327 | G2: -3.04742 | H2: -3.75234 | I2: -0.484791 | J2: -0.183122 | K2: -1.98202 | L2: -1.25012 | M2: 4.54105 | N2: 2.3024 | O2: -6.4588 | P2: -0.491901 | Q2: -0.282163 | R2: 0.330624 | S2: 1.48596 | T2: -2.88269 | U2: 2.06466 | Z2: 2.06466 | AA2: -0.362237
A3: 2014-04-02 | B3: -1.96231 | C3: -1.47354 | D3: 1.55623 | E3: 3.7761 | F3: 2.1612 | G3: -5.38116 | H3: -0.617759 | I3: 0.19874 | J3: 0.0245887 | K3: -0.670642 | L3: -1.06606 | M3: 1.91337 | N3: -1.54593 | O3: -5.81116 | P3: 0.701949 | Q3: -0.232507 | R3: 0.750072 | S3: 1.86854 | T3: -0.782145 | U3: 3.41739 | Z3: 3.41739 | AA3: -0.117505
A4: 2014-04-03 | B4: -5.72339 | C4: 1.41349 | D4: 0.530544 | E4: 2.45748 | F4: 0.340068 | G4: -4.19013 | H4: 0.0563313 | I4: -2.54041 | J4: -1.84665 | K4: -0.0787171 | L4: 0.555722 | M4: 0.417441 | N4: -3.50701 | O4: -2.89405 | P4: 1.30996 | Q4: 1.89883 | R4: 1.10869 | S4: 3.96269 | T4: 1.19725 | U4: 3.18888 | Z4: 3.18888 | AA4: 0.120458
A5: 2014-04-04 | B5: -3.28273 | C5: 4.64942 | D5: -1.30894 | E5: 0.976939 | F5: 1.4463 | G5: -0.268167 | H5: -0.098699 | I5: -1.75524 | J5: -1.32586 | K5: 1.15861 | L5: 1.64708 | M5: 1.92707 | N5: -5.05351 | O5: -2.9372 | P5: 2.44345 | Q5: -1.82106 | R5: 2.45185 | S5: 2.37236 | T5: 2.61923 | U5: 0.291339 | Z5: 0.291339 | AA5: 0.34787
A6: 2014-04-05 | B6: -2.38974 | C6: 4.90967 | D6: 0.20845 | E6: -0.622667 | F6: 0.922026 | G6: 0.486526 | H6: 0.0984675 | I6: -2.12406 | J6: -1.75314 | K6: 1.94274 | L6: 3.32631 | M6: 2.92618 | N6: 3.0009 | O6: -2.6908 | P6: 1.38547 | Q6: -2.29237 | R6: 2.33775 | S6: 1.76342 | T6: 4.42731 | U6: -1.46735 | Z6: -1.46735 | AA6: 0.564495
A7: 2014-04-06 | B7: -5.5225 | C7: 0.989349 | D7: 0.815539 | E7: 0.657803 | F7: 0.0838601 | G7: 4.21367 | H7: 3.95161 | I7: -3.63849 | J7: -0.810895 | K7: 3.61051 | L7: 0.695388 | M7: 0.571112 | N7: 4.9633 | O7: -3.66981 | P7: 2.5888 | Q7: -1.70604 | R7: 2.29578 | S7: 3.66254 | T7: 6.75683 | U7: -0.261041 | Z7: -0.261041 | AA7: 0.769308
A8: 2014-04-07 | B8: -5.61108 | C8: 4.09081 | D8: -0.421364 | E8: 0.555484 | F8: 2.03421 | G8: 2.28683 | H8: 2.841 | I8: -3.97396 | J8: 1.55634 | K8: 2.90951 | L8: -0.984614 | M8: -1.72431 | N8: 6.60384 | O8: -5.64339 | P8: 3.5264 | Q8: -0.646016 | R8: -2.33254 | S8: 3.1977 | T8: 3.62207 | U8: -0.538413 | Z8: -0.538413 | AA8: 0.960482
A9: 2014-04-08 | B9: -4.50155 | C9: 1.91851 | D9: 1.86397 | E9: 0.224075 | F9: 1.79444 | G9: -0.44039 | H9: 0.595392 | I9: -3.74057 | J9: 1.57168 | K9: 3.74234 | L9: -0.145079 | M9: -2.35966 | N9: 3.40386 | O9: -3.7829 | P9: 0.914295 | Q9: -2.74126 | R9: -3.05752 | S9: 2.31692 | T9: 0.115028 | U9: -0.167094 | Z9: -0.167094 | AA9: 1.13862
A10: 2014-04-09 | B10: 0.722922 | C10: 2.69087 | D10: 5.83548 | E10: 3.33743 | F10: -3.70537 | G10: 1.00933 | H10: 0.310541 | I10: -2.61575 | J10: 2.66607 | K10: 3.89005 | L10: 3.43514 | M10: 2.81961 | N10: 1.47196 | O10: -2.20836 | P10: 2.54122 | Q10: 0.119055 | R10: -0.454452 | S10: 0.694727 | T10: 2.57556 | U10: 0.563884 | Z10: 0.563884 | AA10: 1.30698
A11: 2014-04-10 | B11: 2.34496 | C11: 4.47502 | D11: 4.30451 | E11: 2.30149 | F11: -0.974997 | G11: 0.305874 | H11: -1.14617 | I11: -0.181919 | J11: 0.918348 | K11: 4.32721 | L11: 6.36756 | M11: 5.25243 | N11: 2.69059 | O11: 0.554849 | P11: 0.797954 | Q11: -1.22384 | R11: 1.51143 | S11: -0.262508 | T11: 1.11299 | U11: 1.04572 | Z11: 1.04572 | AA11: 1.46966
A12: 2014-04-11 | B12: 4.08646 | C12: 2.18973 | D12: 5.11518 | E12: 3.71478 | F12: 3.59649 | G12: 0.26075 | H12: 1.7086 | I12: 1.0128 | J12: -0.943822 | K12: 1.00724 | L12: 1.32024 | M12: 1.86719 | N12: 0.818787 | O12: 5.41556 | P12: 0.75855 | Q12: -2.96126 | R12: 3.39662 | S12: -1.94511 | T12: 3.33172 | U12: 4.1063 | Z12: 4.1063 | AA12: 1.63033
A13: 2014-04-12 | B13: 7.3566 | C13: 0.115882 | D13: 3.2958 | E13: 3.14533 | F13: 3.31903 | G13: 2.16373 | H13: 2.78047 | I13: 4.0201 | J13: -1.82199 | K13: -0.542298 | L13: 2.88524 | M13: 0.685604 | N13: -1.02412 | O13: 2.31785 | P13: 1.19153 | Q13: -0.614035 | R13: 1.1835 | S13: 1.48596 | T13: 0.243849 | U13: 2.28771 | Z13: 2.28771 | AA13: 1.7913
A14: 2014-04-13 | B14: 2.60203 | C14: 2.4029 | D14: 3.11209 | E14: 3.305 | F14: 2.64884 | G14: 2.21707 | H14: 1.43934 | I14: 1.9589 | J14: -0.49314 | K14: 1.10883 | L14: 6.43459 | M14: 1.02635 | N14: 1.70436 | O14: 1.76588 | P14: 2.57948 | Q14: -0.179372 | R14: 0.578143 | S14: 2.52576 | T14: -1.34489 | U14: -0.314922 | Z14: -0.314922 | AA14: 1.95411
A15: 2014-04-14 | B15: 2.09971 | C15: 3.42669 | D15: 5.70231 | E15: 3.80237 | F15: 2.39246 | G15: 4.33674 | H15: 2.48406 | I15: 1.44033 | J15: -0.758286 | K15: 2.37026 | L15: 3.74912 | M15: -0.124974 | N15: 3.52724 | O15: 2.2692 | P15: 4.80518 | Q15: 0.989369 | R15: 4.08637 | S15: 3.74503 | T15: 6.54573 | U15: 1.67642 | Z15: 1.67642 | AA15: 2.11781
A16: 2014-04-15 | B16: 0.302466 | C16: 0.773362 | D16: 2.69906 | E16: 7.35906 | F16: 4.93516 | G16: 1.69165 | H16: 1.02259 | I16: 0.723232 | J16: -1.26107 | K16: 4.55614 | L16: 1.87862 | M16: -1.08549 | N16: 6.15415 | O16: 2.87395 | P16: 0.857584 | Q16: 3.2522 | R16: 3.73928 | S16: 0.57316 | T16: 9.72101 | U16: 0.757855 | Z16: 0.757855 | AA16: 2.28474
A17: 2014-04-16 | B17: 2.2946 | C17: -0.41626 | D17: 5.00628 | E17: 7.82557 | F17: 6.15487 | G17: -0.0719619 | H17: 2.51273 | I17: 1.57214 | J17: -1.63547 | K17: 2.62481 | L17: 1.13784 | M17: 0.457338 | N17: 4.39984 | O17: 3.15393 | P17: 1.78956 | Q17: 0.158655 | R17: 0.861154 | S17: 2.47312 | T17: 5.88756 | U17: 0.970166 | Z17: 0.970166 | AA17: 2.45761
A18: 2014-04-17 | B18: 2.89837 | C18: 0.364484 | D18: 5.0971 | E18: 7.85151 | F18: 9.73554 | G18: 0.705618 | H18: 1.10106 | I18: 0.485738 | J18: -2.04835 | K18: 3.85175 | L18: 3.18159 | M18: 2.67445 | N18: -0.050108 | O18: 1.75978 | P18: 0.778684 | Q18: 0.363809 | R18: 3.08117 | S18: 2.24639 | T18: 3.08375 | U18: 4.88511 | Z18: 4.88511 | AA18: 2.6371
A19: 2014-04-18 | B19: 4.1351 | C19: 1.08989 | D19: 7.11624 | E19: 4.52 | F19: 5.59434 | G19: 4.31363 | H19: -0.324008 | I19: -0.0405412 | J19: -0.859128 | K19: 5.15779 | L19: 3.51857 | M19: 0.657061 | N19: 1.22607 | O19: 2.96465 | P19: 1.56145 | Q19: 0.0802505 | R19: 3.98981 | S19: -0.451729 | T19: 2.3688 | U19: 4.73251 | Z19: 4.73251 | AA19: 2.82098
A20: 2014-04-19 | B20: 6.5488 | C20: 1.85296 | D20: 8.99891 | E20: 3.26268 | F20: 1.0707 | G20: 6.3073 | H20: 0.00627446 | I20: 0.941156 | J20: 2.53155 | K20: 7.13202 | L20: 3.6388 | M20: 0.861263 | N20: 0.500298 | O20: 3.73877 | P20: 0.582683 | Q20: -0.387914 | R20: 2.37362 | S20: -0.390736 | T20: 1.97828 | U20: 4.87993 | Z20: 4.87993 | AA20: 3.00783
A21: 2014-04-20 | B21: 3.19836 | C21: 1.56104 | D21: 0.490607 | E21: 7.61998 | F21: 3.77173 | G21: 3.30455 | H21: 2.81565 | I21: 3.91973 | J21: 3.40406 | K21: 7.1894 | L21: 3.02642 | M21: -0.846217 | N21: 0.625678 | O21: 2.62294 | P21: 1.72844 | Q21: 1.08634 | R21: 1.87475 | S21: 4.64104 | T21: 0.487359 | U21: 5.79753 | Z21: 5.79753 | AA21: 3.19629
A22: 2014-04-21 | B22: 1.60253 | C22: 3.21473 | D22: 1.46295 | E22: 8.89427 | F22: 1.49995 | G22: 1.14324 | H22: 1.09829 | I22: 3.29558 | J22: 5.49023 | K22: 7.85477 | L22: 1.86635 | M22: 0.709843 | N22: -0.0280204 | O22: 2.80694 | P22: 2.81285 | Q22: 2.75607 | R22: 3.30276 | S22: 7.11417 | T22: 1.63125 | U22: 7.78452 | Z22: 7.78452 | AA22: 3.38677
A23: 2014-04-22 | B23: 2.87838 | C23: 5.33724 | D23: 0.616899 | E23: 10.6438 | F23: 2.9765 | G23: 0.363676 | H23: -0.564256 | I23: 2.03127 | J23: 3.77633 | K23: 7.77391 | L23: 3.5813 | M23: 0.790438 | N23: 2.27157 | O23: 4.32665 | P23: 3.33419 | Q23: 3.28516 | R23: 4.74925 | S23: 5.24608 | T23: 0.22941 | U23: 4.21429 | Z23: 4.21429 | AA23: 3.58014
A24: 2014-04-23 | B24: 6.37273 | C24: 3.81357 | D24: 1.62537 | E24: 11.7794 | F24: 6.19835 | G24: 0.255966 | H24: 0.158304 | I24: 2.20505 | J24: 2.367 | K24: 8.40483 | L24: -0.222385 | M24: 1.86493 | N24: 3.89936 | O24: 5.53053 | P24: 4.37902 | Q24: 3.07469 | R24: 6.67343 | S24: 3.25857 | T24: 0.60548 | U24: 3.03358 | Z24: 3.03358 | AA24: 3.77706
A25: 2014-04-24 | B25: 5.87668 | C25: 2.95098 | D25: 1.8389 | E25: 10.6724 | F25: 3.83441 | G25: -0.785062 | H25: 1.73232 | I25: 1.72474 | J25: 5.33456 | K25: 8.62023 | L25: 0.249042 | M25: 2.31812 | N25: 4.38318 | O25: 3.98939 | P25: 5.02995 | Q25: 6.46813 | R25: 6.34374 | S25: 4.29078 | T25: 2.92193 | U25: 3.87318 | Z25: 3.87318 | AA25: 3.9762
A26: 2014-04-25 | B26: 6.47017 | C26: 2.70039 | D26: 0.888618 | E26: 5.12784 | F26: 6.4297 | G26: -0.358893 | H26: 4.10917 | I26: 3.06731 | J26: 5.52991 | K26: 4.84468 | L26: 2.5099 | M26: 0.410156 | N26: 4.18004 | O26: 6.11546 | P26: 3.13895 | Q26: 6.9098 | R26: 6.37548 | S26: 4.39916 | T26: 6.93788 | U26: 5.51147 | Z26: 5.51147 | AA26: 4.17638
A27: 2014-04-26 | B27: 6.39923 | C27: 1.79377 | D27: 3.62829 | E27: 4.29636 | F27: 5.0035 | G27: 2.71073 | H27: 6.34374 | I27: 2.40791 | J27: 1.42838 | K27: 4.6177 | L27: 1.84827 | M27: 0.376724 | N27: 4.93569 | O27: 8.46511 | P27: 3.8226 | Q27: 7.07989 | R27: 10.2384 | S27: 2.78068 | T27: 6.18728 | U27: 5.19814 | Z27: 5.19814 | AA27: 4.37552
A28: 2014-04-27 | B28: 5.44533 | C28: 0.75821 | D28: 6.5195 | E28: 5.21711 | F28: 6.58129 | G28: 5.99839 | H28: 7.30881 | I28: 4.06137 | J28: 2.64142 | K28: 4.94111 | L28: 2.03686 | M28: 2.32523 | N28: 5.69479 | O28: 8.26422 | P28: 2.75307 | Q28: 8.91945 | R28: 10.1689 | S28: 1.99434 | T28: 3.39375 | U28: 4.30356 | Z28: 4.30356 | AA28: 4.57522
A29: 2014-04-28 | B29: 0.28702 | C29: 0.619643 | D29: 7.10675 | E29: 6.33662 | F29: 7.98248 | G29: 4.29379 | H29: 7.79444 | I29: 2.33705 | J29: 7.10354 | K29: 3.71121 | L29: 2.65528 | M29: 3.08439 | N29: 2.49762 | O29: 6.4899 | P29: 1.78565 | Q29: 3.67778 | R29: 7.44926 | S29: 3.44933 | T29: 4.44756 | U29: 2.82922 | Z29: 2.82922 | AA29: 4.77505
A30: 2014-04-29 | B30: 0.839308 | C30: 2.41054 | D30: 5.54995 | E30: 7.97535 | F30: 4.01807 | G30: 5.5091 | H30: 5.96806 | I30: 4.66296 | J30: 4.18626 | K30: 5.49586 | L30: 3.66972 | M30: 4.31577 | N30: 3.87942 | O30: 7.51753 | P30: 2.32568 | Q30: 3.23362 | R30: 9.4541 | S30: 0.814275 | T30: 5.13678 | U30: 8.89318 | Z30: 8.89318 | AA30: 4.97575
A31: 2014-04-30 | B31: 4.98528 | C31: 2.99177 | D31: 1.81007 | E31: 7.03908 | F31: 2.5412 | G31: 5.97585 | H31: 2.84421 | I31: 4.31233 | J31: 2.20828 | K31: 7.27161 | L31: 10.2383 | M31: 3.72858 | N31: 7.37839 | O31: 7.63602 | P31: 1.31308 | Q31: 6.40105 | R31: 12.2166 | S31: 0.670114 | T31: 4.51642 | U31: 9.86231 | Z31: 9.86231 | AA31: 5.17658
A32: 2014-05-01 | B32: 7.59305 | C32: 4.70968 | D32: 0.379206 | E32: 6.11954 | F32: 4.14251 | G32: 3.8268 | H32: 2.85041 | I32: 2.85912 | J32: 5.69324 | K32: 13.5553 | L32: 7.86567 | M32: 4.21802 | N32: 3.78761 | O32: 10.2426 | P32: 1.24373 | Q32: 7.92447 | R32: 10.6197 | S32: 2.12716 | T32: 4.0685 | U32: 6.25507 | Z32: 6.25507 | AA32: 5.37683
A33: 2014-05-02 | B33: 5.61786 | C33: 6.40426 | D33: 1.42409 | E33: 6.0444 | F33: 11.4214 | G33: 5.09495 | H33: 5.44993 | I33: 0.11877 | J33: 5.59735 | K33: 12.4152 | L33: 7.89983 | M33: 6.0313 | N33: 1.60062 | O33: 9.47983 | P33: 0.176364 | Q33: 7.23296 | R33: 9.91767 | S33: 3.82593 | T33: 5.89279 | U33: 5.28584 | Z33: 5.28584 | AA33: 5.57658
A34: 2014-05-03 | B34: 6.6916 | C34: 6.79181 | D34: 2.73844 | E34: 8.82795 | F34: 9.36471 | G34: 4.86018 | H34: 6.36198 | I34: 2.77818 | J34: 6.13166 | K34: 9.7402 | L34: 11.4736 | M34: 7.39547 | N34: 2.34206 | O34: 8.30336 | P34: 1.08183 | Q34: 7.42842 | R34: 11.7773 | S34: 9.9228 | T34: 10.1157 | U34: 5.34077 | Z34: 5.34077 | AA34: 5.7744
A35: 2014-05-04 | B35: 5.75374 | C35: 6.89512 | D35: 4.09027 | E35: 7.35226 | F35: 6.04417 | G35: 5.37226 | H35: 4.64986 | I35: 5.78105 | J35: 8.25331 | K35: 9.82439 | L35: 11.6114 | M35: 7.43868 | N35: 1.07782 | O35: 9.19386 | P35: 2.70693 | Q35: 4.81607 | R35: 12.6132 | S35: 6.60275 | T35: 10.3653 | U35: 5.96414 | Z35: 5.96414 | AA35: 5.97004
A36: 2014-05-05 | B36: 3.71361 | C36: 6.36048 | D36: 5.10366 | E36: 7.68018 | F36: 4.85236 | G36: 6.14326 | H36: 3.3462 | I36: 4.42331 | J36: 6.27319 | K36: 11.5143 | L36: 7.98903 | M36: 6.75782 | N36: 2.8632 | O36: 6.41043 | P36: 2.90665 | Q36: 7.27009 | R36: 10.8431 | S36: 5.54255 | T36: 10.6183 | U36: 3.96138 | Z36: 3.96138 | AA36: 6.16642
A37: 2014-05-06 | B37: 5.04184 | C37: 7.40474 | D37: 6.26076 | E37: 5.87499 | F37: 7.98798 | G37: 8.13827 | H37: 2.13346 | I37: 7.0408 | J37: 8.98312 | K37: 8.9457 | L37: 8.78161 | M37: 6.10689 | N37: 6.7733 | O37: 8.81252 | P37: 2.10949 | Q37: 7.22101 | R37: 11.7225 | S37: 6.08263 | T37: 7.17581 | U37: 4.97311 | Z37: 4.97311 | AA37: 6.363
A38: 2014-05-07 | B38: 5.17878 | C38: 8.44294 | D38: 7.55289 | E38: 8.29854 | F38: 7.0014 | G38: 6.66005 | H38: 0.525208 | I38: 4.9462 | J38: 4.34222 | K38: 8.1477 | L38: 12.6027 | M38: 4.9931 | N38: 9.89148 | O38: 7.16418 | P38: -0.261653 | Q38: 7.34891 | R38: 9.94267 | S38: 6.18637 | T38: 6.39237 | U38: 4.8374 | Z38: 4.8374 | AA38: 6.56282
A39: 2014-05-08 | B39: 5.98753 | C39: 6.41515 | D39: 5.61301 | E39: 9.75702 | F39: 3.17388 | G39: 7.39473 | H39: 3.08144 | I39: 5.85226 | J39: 4.79709 | K39: 6.08148 | L39: 8.89055 | M39: 4.69267 | N39: 5.65594 | O39: 7.47583 | P39: 3.02412 | Q39: 8.23304 | R39: 8.05024 | S39: 7.24955 | T39: 4.43573 | U39: 3.46327 | Z39: 3.46327 | AA39: 6.76764
A40: 2014-05-09 | B40: 6.51513 | C40: 7.78952 | D40: 5.95237 | E40: 10.8489 | F40: 3.2469 | G40: 10.7406 | H40: 2.43909 | I40: 7.74272 | J40: 7.21855 | K40: 1.53541 | L40: 9.73571 | M40: 4.69447 | N40: 4.78954 | O40: 6.46622 | P40: 3.92181 | Q40: 6.00577 | R40: 6.05096 | S40: 7.16819 | T40: 7.91311 | U40: 2.98054 | Z40: 2.98054 | AA40: 6.9776
A41: 2014-05-10 | B41: 5.71991 | C41: 7.15393 | D41: 4.43204 | E41: 11.9228 | F41: 3.34864 | G41: 12.4473 | H41: 1.31271 | I41: 7.80717 | J41: 7.72873 | K41: 1.22284 | L41: 9.28924 | M41: 3.56404 | N41: 4.42892 | O41: 4.96033 | P41: 6.1669 | Q41: 7.75864 | R41: 6.36511 | S41: 8.87161 | T41: 10.9267 | U41: 5.43344 | Z41: 5.43344 | AA41: 7.19304
A42: 2014-05-11 | B42: 5.19539 | C42: 6.96928 | D42: 5.15476 | E42: 10.9825 | F42: 4.94383 | G42: 9.01056 | H42: 2.88394 | I42: 7.2831 | J42: 5.52094 | K42: 2.18055 | L42: 8.96804 | M42: 4.57271 | N42: 4.46808 | O42: 2.08694 | P42: 4.83618 | Q42: 9.93723 | R42: 10.2566 | S42: 7.29345 | T42: 9.79473 | U42: 6.73788 | Z42: 6.73788 | AA42: 7.41492
A43: 2014-05-12 | B43: 5.61412 | C43: 8.25768 | D43: 10.3739 | E43: 10.6197 | F43: 7.90479 | G43: 10.8701 | H43: 3.29555 | I43: 6.91041 | J43: 6.80881 | K43: 3.73375 | L43: 9.91629 | M43: 3.39053 | N43: 7.60167 | O43: 2.09848 | P43: 3.60199 | Q43: 12.2906 | R43: 12.5567 | S43: 5.75713 | T43: 9.69994 | U43: 10.33 | Z43: 10.33 | AA43: 7.6469
A44: 2014-05-13 | B44: 5.08804 | C44: 9.26664 | D44: 12.7299 | E44: 8.70901 | F44: 10.2349 | G44: 9.71831 | H44: 4.34207 | I44: 7.30343 | J44: 4.81543 | K44: 5.44329 | L44: 7.99359 | M44: 2.46996 | N44: 5.71542 | O44: 5.74768 | P44: 4.29072 | Q44: 11.1633 | R44: 10.0722 | S44: 10.6198 | T44: 9.63573 | U44: 6.7684 | Z44: 6.7684 | AA44: 7.88877
A45: 2014-05-14 | B45: 3.78146 | C45: 9.208 | D45: 13.8244 | E45: 7.84465 | F45: 8.58676 | G45: 12.4527 | H45: 5.17664 | I45: 7.43014 | J45: 6.85528 | K45: 6.4321 | L45: 3.16759 | M45: 3.87585 | N45: 3.11594 | O45: 7.84892 | P45: 4.42996 | Q45: 11.0474 | R45: 4.00588 | S45: 9.49587 | T45: 8.48916 | U45: 7.40633 | Z45: 7.40633 | AA45: 8.13681
A46: 2014-05-15 | B46: 4.0756 | C46: 8.28558 | D46: 14.9222 | E46: 9.92519 | F46: 7.61636 | G46: 14.1437 | H46: 2.82073 | I46: 10.1263 | J46: 8.65829 | K46: 7.58527 | L46: 3.8763 | M46: 6.73016 | N46: 3.14685 | O46: 6.75034 | P46: 3.94299 | Q46: 10.5195 | R46: 6.10125 | S46: 10.1438 | T46: 6.5438 | U46: 10.4491 | Z46: 10.4491 | AA46: 8.38806
A47: 2014-05-16 | B47: 4.94202 | C47: 7.75721 | D47: 10.4891 | E47: 10.3099 | F47: 6.50254 | G47: 9.69594 | H47: 6.08737 | I47: 10.9635 | J47: 10.4544 | K47: 10.2112 | L47: 8.44147 | M47: 8.81424 | N47: 8.22366 | O47: 7.50305 | P47: 5.34482 | Q47: 4.2205 | R47: 7.19965 | S47: 12.7189 | T47: 8.28216 | U47: 12.5445 | Z47: 12.5445 | AA47: 8.63696
A48: 2014-05-17 | B48: 6.04002 | C48: 9.07823 | D48: 9.59318 | E48: 11.2895 | F48: 7.88723 | G48: 10.4437 | H48: 6.79143 | I48: 11.5069 | J48: 11.2425 | K48: 8.88132 | L48: 11.0712 | M48: 9.39692 | N48: 6.86105 | O48: 7.41683 | P48: 6.45663 | Q48: 3.69837 | R48: 7.05738 | S48: 12.9062 | T48: 10.401 | U48: 10.74 | Z48: 10.74 | AA48: 8.8796
A49: 2014-05-18 | B49: 5.30776 | C49: 10.6548 | D49: 14.7785 | E49: 11.4483 | F49: 10.0728 | G49: 9.67191 | H49: 6.30078 | I49: 12.4226 | J49: 8.91791 | K49: 10.2569 | L49: 10.1691 | M49: 9.51349 | N49: 9.59157 | O49: 7.35832 | P49: 7.04545 | Q49: 4.21428 | R49: 9.93324 | S49: 11.8607 | T49: 12.7319 | U49: 7.87402 | Z49: 7.87402 | AA49: 9.11499
A50: 2014-05-19 | B50: 6.80929 | C50: 12.823 | D50: 13.1826 | E50: 12.3404 | F50: 11.6189 | G50: 11.7511 | H50: 6.04311 | I50: 13.3599 | J50: 4.33416 | K50: 13.107 | L50: 12.726 | M50: 11.0073 | N50: 10.8261 | O50: 7.10203 | P50: 7.09393 | Q50: 7.17691 | R50: 7.85285 | S50: 13.0585 | T50: 15.3775 | U50: 7.5599 | Z50: 7.5599 | AA50: 9.34046
A51: 2014-05-20 | B51: 10.6803 | C51: 12.9624 | D51: 10.5647 | E51: 10.8973 | F51: 11.2466 | G51: 16.2856 | H51: 9.14168 | I51: 10.8185 | J51: 5.98914 | K51: 12.6379 | L51: 11.949 | M51: 7.37711 | N51: 9.39347 | O51: 9.43468 | P51: 7.73028 | Q51: 9.40801 | R51: 9.87943 | S51: 14.6728 | T51: 14.097 | U51: 7.74483 | Z51: 7.74483 | AA51: 9.55392
A52: 2014-05-21 | B52: 10.1103 | C52: 12.386 | D52: 9.4928 | E52: 10.066 | F52: 8.91675 | G52: 9.69448 | H52: 11.8602 | I52: 10.5077 | J52: 9.80788 | K52: 9.18406 | L52: 14.122 | M52: 9.11062 | N52: 9.57466 | O52: 11.4075 | P52: 8.10769 | Q52: 10.6238 | R52: 8.24929 | S52: 15.6698 | T52: 12.7867 | U52: 10.4532 | Z52: 10.4532 | AA52: 9.75195
A53: 2014-05-22 | B53: 15.7916 | C53: 11.066 | D53: 9.94118 | E53: 12.0358 | F53: 8.25842 | G53: 8.33527 | H53: 11.7687 | I53: 10.263 | J53: 15.3798 | K53: 11.9426 | L53: 13.5945 | M53: 10.6262 | N53: 6.82015 | O53: 14.1198 | P53: 7.85329 | Q53: 5.07389 | R53: 10.7557 | S53: 15.3075 | T53: 11.6629 | U53: 13.4175 | Z53: 13.4175 | AA53: 9.93634
A54: 2014-05-23 | B54: 11.6132 | C54: 12.9479 | D54: 9.62179 | E54: 12.1443 | F54: 10.6296 | G54: 11.6676 | H54: 8.08534 | I54: 9.89727 | J54: 9.74017 | K54: 10.1467 | L54: 12.3143 | M54: 12.6779 | N54: 4.16987 | O54: 12.6809 | P54: 5.26604 | Q54: 8.20012 | R54: 12.1049 | S54: 13.7994 | T54: 10.495 | U54: 14.4473 | Z54: 14.4473 | AA54: 10.1102
A55: 2014-05-24 | B55: 9.71645 | C55: 12.2972 | D55: 12.1265 | E55: 11.1284 | F55: 12.4885 | G55: 11.9035 | H55: 6.46224 | I55: 6.32421 | J55: 7.01795 | K55: 12.6116 | L55: 10.5169 | M55: 12.3013 | N55: 8.37286 | O55: 13.5029 | P55: 7.09231 | Q55: 9.16986 | R55: 9.80423 | S55: 13.7646 | T55: 10.5746 | U55: 11.4442 | Z55: 11.4442 | AA55: 10.2783
A56: 2014-05-25 | B56: 9.22082 | C56: 13.7218 | D56: 10.981 | E56: 8.39673 | F56: 12.3663 | G56: 9.72277 | H56: 7.10847 | I56: 7.32631 | J56: 7.53866 | K56: 12.8205 | L56: 8.86773 | M56: 8.59327 | N56: 10.473 | O56: 14.014 | P56: 8.07006 | Q56: 8.21619 | R56: 10.0596 | S56: 14.1394 | T56: 12.5497 | U56: 8.97064 | Z56: 8.97064 | AA56: 10.4455
A57: 2014-05-26 | B57: 10.1856 | C57: 15.3309 | D57: 10.0268 | E57: 8.01184 | F57: 13.1426 | G57: 13.4478 | H57: 7.64757 | I57: 10.8885 | J57: 8.11375 | K57: 11.9125 | L57: 10.6072 | M57: 5.88018 | N57: 11.2825 | O57: 9.13439 | P57: 11.1299 | Q57: 9.73376 | R57: 9.37423 | S57: 15.9512 | T57: 12.7727 | U57: 7.57242 | Z57: 7.57242 | AA57: 10.613
A58: 2014-05-27 | B58: 9.93619 | C58: 17.4286 | D58: 9.60387 | E58: 10.9059 | F58: 11.1522 | G58: 16.6849 | H58: 8.36689 | I58: 15.5022 | J58: 5.08823 | K58: 7.42492 | L58: 10.6384 | M58: 3.79197 | N58: 12.9594 | O58: 6.0238 | P58: 15.2003 | Q58: 13.9167 | R58: 10.113 | S58: 12.5538 | T58: 10.9394 | U58: 8.8166 | Z58: 8.8166 | AA58: 10.781
A59: 2014-05-28 | B59: 10.1979 | C59: 14.1561 | D59: 11.4973 | E59: 13.6189 | F59: 14.6813 | G59: 17.7383 | H59: 12.0699 | I59: 12.6631 | J59: 7.57108 | K59: 7.72383 | L59: 9.71537 | M59: 3.95075 | N59: 14.0941 | O59: 9.36053 | P59: 15.8249 | Q59: 14.9992 | R59: 13.0497 | S59: 11.4938 | T59: 11.9405 | U59: 10.0733 | Z59: 10.0733 | AA59: 10.9523
A60: 2014-05-29 | B60: 8.97457 | C60: 13.6838 | D60: 14.6174 | E60: 14.4745 | F60: 15.3965 | G60: 15.2042 | H60: 13.3464 | I60: 11.9776 | J60: 10.095 | K60: 8.21418 | L60: 11.7201 | M60: 7.41384 | N60: 11.7289 | O60: 10.4114 | P60: 16.0417 | Q60: 17.994 | R60: 16.2428 | S60: 10.436 | T60: 14.2828 | U60: 12.1583 | Z60: 12.1583 | AA60: 11.1288
A61: 2014-05-30 | B61: 11.1185 | C61: 12.5609 | D61: 15.341 | E61: 15.4881 | F61: 18.7129 | G61: 14.3142 | H61: 14.6173 | I61: 12.9325 | J61: 12.5389 | K61: 7.0962 | L61: 13.2812 | M61: 8.77977 | N61: 9.39704 | O61: 11.049 | P61: 14.9691 | Q61: 16.1342 | R61: 17.3459 | S61: 12.0097 | T61: 14.7347 | U61: 15.8781 | Z61: 15.8781 | AA61: 11.3137
A62: 2014-05-31 | B62: 15.6251 | C62: 11.769 | D62: 12.1468 | E62: 12.6968 | F62: 14.9793 | G62: 11.264 | H62: 15.0248 | I62: 9.22765 | J62: 11.2593 | K62: 9.4867 | L62: 10.7035 | M62: 10.8428 | N62: 7.8963 | O62: 11.3292 | P62: 15.3491 | Q62: 16.048 | R62: 12.5756 | S62: 13.0963 | T62: 12.374 | U62: 14.0592 | Z62: 14.0592 | AA62: 11.5053
A63: 2014-06-01 | B63: 15.2587 | C63: 11.5312 | D63: 10.8841 | E63: 13.2022 | F63: 13.3622 | G63: 12.9296 | H63: 12.3875 | I63: 9.4339 | J63: 11.3488 | K63: 8.4568 | L63: 11.0398 | M63: 9.24425 | N63: 9.58045 | O63: 12.3524 | P63: 16.065 | Q63: 14.0287 | R63: 15.0379 | S63: 7.45293 | T63: 9.21617 | U63: 11.9122 | Z63: 11.9122 | AA63: 11.7016
A64: 2014-06-02 | B64: 14.8603 | C64: 9.77987 | D64: 10.982 | E64: 8.88151 | F64: 10.7284 | G64: 11.419 | H64: 16.5967 | I64: 8.19811 | J64: 11.6129 | K64: 10.8221 | L64: 9.81035 | M64: 10.3106 | N64: 9.86766 | O64: 11.5856 | P64: 12.2705 | Q64: 16.424 | R64: 13.302 | S64: 5.74398 | T64: 7.21055 | U64: 12.8958 | Z64: 12.8958 | AA64: 11.899
A65: 2014-06-03 | B65: 12.6227 | C65: 10.3263 | D65: 10.7006 | E65: 10.9131 | F65: 15.4212 | G65: 12.4021 | H65: 13.79 | I65: 9.33755 | J65: 13.4176 | K65: 12.6532 | L65: 14.41 | M65: 9.26487 | N65: 12.0201 | O65: 13.3088 | P65: 8.61309 | Q65: 19.2145 | R65: 11.1268 | S65: 6.39111 | T65: 4.84166 | U65: 16.3206 | Z65: 16.3206 | AA65: 12.0931
A66: 2014-06-04 | B66: 15.7952 | C66: 10.104 | D66: 11.9465 | E66: 11.8697 | F66: 9.91447 | G66: 15.0078 | H66: 12.5808 | I66: 12.1999 | J66: 14.932 | K66: 14.9225 | L66: 14.5272 | M66: 10.081 | N66: 12.9329 | O66: 14.2446 | P66: 11.0356 | Q66: 20.3692 | R66: 8.77909 | S66: 5.08287 | T66: 5.03343 | U66: 17.158 | Z66: 17.158 | AA66: 12.2845
A67: 2014-06-05 | B67: 13.661 | C67: 12.6314 | D67: 16.2209 | E67: 11.9306 | F67: 10.0968 | G67: 11.9826 | H67: 10.6891 | I67: 12.5087 | J67: 16.4341 | K67: 15.6875 | L67: 14.4376 | M67: 11.5457 | N67: 12.6693 | O67: 14.4488 | P67: 12.2236 | Q67: 19.8052 | R67: 6.60504 | S67: 8.74378 | T67: 9.01587 | U67: 17.8866 | Z67: 17.8866 | AA67: 12.4733
A68: 2014-06-06 | B68: 11.7341 | C68: 12.4664 | D68: 19.1296 | E68: 15.0509 | F68: 12.0056 | G68: 15.1533 | H68: 10.1595 | I68: 12.5241 | J68: 17.9687 | K68: 12.8023 | L68: 15.179 | M68: 13.573 | N68: 13.241 | O68: 13.6818 | P68: 13.1266 | Q68: 17.0257 | R68: 6.12335 | S68: 11.4119 | T68: 11.1081 | U68: 17.7732 | Z68: 17.7732 | AA68: 12.659
A69: 2014-06-07 | B69: 11.4581 | C69: 9.70438 | D69: 16.678 | E69: 17.2858 | F69: 12.911 | G69: 13.8866 | H69: 12.9364 | I69: 13.7529 | J69: 15.962 | K69: 12.5932 | L69: 13.2466 | M69: 15.6138 | N69: 15.0812 | O69: 14.3593 | P69: 14.3148 | Q69: 16.9846 | R69: 7.80896 | S69: 14.1381 | T69: 12.3782 | U69: 16.3953 | Z69: 16.3953 | AA69: 12.8392
A70: 2014-06-08 | B70: 11.9646 | C70: 7.78537 | D70: 15.6394 | E70: 19.2477 | F70: 13.6914 | G70: 12.4108 | H70: 16.3929 | I70: 10.3298 | J70: 17.032 | K70: 13.8188 | L70: 14.0419 | M70: 15.6062 | N70: 16.9784 | O70: 15.77 | P70: 15.81 | Q70: 15.9445 | R70: 12.267 | S70: 12.2649 | T70: 12.9974 | U70: 8.78581 | Z70: 8.78581 | AA70: 13.009
A71: 2014-06-09 | B71: 12.8591 | C71: 9.11943 | D71: 15.6412 | E71: 11.7488 | F71: 14.5491 | G71: 12.5929 | H71: 16.4945 | I71: 13.089 | J71: 17.3381 | K71: 15.5946 | L71: 13.2748 | M71: 14.3364 | N71: 15.9459 | O71: 16.4636 | P71: 15.438 | Q71: 17.2178 | R71: 13.3142 | S71: 14.6351 | T71: 16.0853 | U71: 6.60319 | Z71: 6.60319 | AA71: 13.1666
A72: 2014-06-10 | B72: 15.3832 | C72: 8.81811 | D72: 10.5687 | E72: 8.15405 | F72: 15.8082 | G72: 12.7445 | H72: 18.3138 | I72: 10.9021 | J72: 16.3419 | K72: 14.7759 | L72: 16.1813 | M72: 15.6848 | N72: 15.6965 | O72: 15.1954 | P72: 17.399 | Q72: 18.0191 | R72: 11.5066 | S72: 11.9927 | T72: 12.7853 | U72: 9.19834 | Z72: 9.19834 | AA72: 13.3139
A73: 2014-06-11 | B73: 13.9075 | C73: 11.4182 | D73: 9.84741 | E73: 9.53431 | F73: 16.0685 | G73: 14.5584 | H73: 18.1139 | I73: 12.9564 | J73: 17.1245 | K73: 13.6252 | L73: 13.1015 | M73: 15.4112 | N73: 15.6869 | O73: 9.51938 | P73: 18.966 | Q73: 18.3321 | R73: 10.9808 | S73: 12.8827 | T73: 7.22654 | U73: 12.1158 | Z73: 12.1158 | AA73: 13.4526
A74: 2014-06-12 | B74: 16.482 | C74: 12.9668 | D74: 8.108 | E74: 10.9964 | F74: 17.497 | G74: 12.4993 | H74: 11.6994 | I74: 14.2144 | J74: 17.7737 | K74: 11.4831 | L74: 15.3038 | M74: 16.2916 | N74: 14.1072 | O74: 9.7536 | P74: 19.1981 | Q74: 16.7865 | R74: 13.2927 | S74: 14.614 | T74: 8.12056 | U74: 7.92522 | Z74: 7.92522 | AA74: 13.5862
A75: 2014-06-13 | B75: 17.9523 | C75: 14.952 | D75: 8.52815 | E75: 12.1046 | F75: 15.6861 | G75: 12.7389 | H75: 14.3417 | I75: 14.4587 | J75: 18.4726 | K75: 10.7851 | L75: 12.9675 | M75: 18.6023 | N75: 12.6416 | O75: 10.8265 | P75: 19.0286 | Q75: 14.8801 | R75: 14.3556 | S75: 13.5604 | T75: 10.4439 | U75: 6.39387 | Z75: 6.39387 | AA75: 13.7158
A76: 2014-06-14 | B76: 17.0266 | C76: 13.1904 | D76: 8.22903 | E76: 13.162 | F76: 11.7821 | G76: 13.9884 | H76: 16.2734 | I76: 16.2363 | J76: 18.4814 | K76: 9.73395 | L76: 9.14837 | M76: 17.8727 | N76: 11.814 | O76: 11.4722 | P76: 19.1531 | Q76: 11.3118 | R76: 14.2449 | S76: 12.9843 | T76: 13.3837 | U76: 5.94624 | Z76: 5.94624 | AA76: 13.8438
A77: 2014-06-15 | B77: 18.8538 | C77: 13.8179 | D77: 11.3532 | E77: 13.264 | F77: 12.2805 | G77: 11.8276 | H77: 18.1994 | I77: 17.3914 | J77: 15.4668 | K77: 10.0533 | L77: 10.0336 | M77: 18.6658 | N77: 12.0536 | O77: 13.9191 | P77: 19.1925 | Q77: 12.8756 | R77: 15.0251 | S77: 14.5538 | T77: 12.0331 | U77: 7.04741 | Z77: 7.04741 | AA77: 13.9687
A78: 2014-06-16 | B78: 17.734 | C78: 15.6612 | D78: 13.7776 | E78: 16.0222 | F78: 15.4964 | G78: 11.7192 | H78: 17.7243 | I78: 17.0667 | J78: 14.693 | K78: 11.5821 | L78: 10.5307 | M78: 16.9358 | N78: 13.2027 | O78: 14.0651 | P78: 17.459 | Q78: 13.3035 | R78: 17.0194 | S78: 14.0556 | T78: 13.1156 | U78: 10.5975 | Z78: 10.5975 | AA78: 14.0927
A79: 2014-06-17 | B79: 14.8532 | C79: 16.7941 | D79: 14.8432 | E79: 14.7817 | F79: 18.0068 | G79: 14.276 | H79: 16.1095 | I79: 17.2351 | J79: 15.7941 | K79: 13.6897 | L79: 11.3862 | M79: 14.6409 | N79: 15.7518 | O79: 14.2735 | P79: 17.4714 | Q79: 14.0542 | R79: 17.6721 | S79: 13.2523 | T79: 12.9086 | U79: 11.11 | Z79: 11.11 | AA79: 14.2204
A80: 2014-06-18 | B80: 13.0404 | C80: 16.818 | D80: 16.5923 | E80: 16.2649 | F80: 16.6689 | G80: 16.534 | H80: 15.5422 | I80: 18.3971 | J80: 12.9519 | K80: 16.4724 | L80: 12.7456 | M80: 17.7718 | N80: 14.6806 | O80: 15.2773 | P80: 15.7886 | Q80: 14.4573 | R80: 18.0366 | S80: 12.5624 | T80: 16.4273 | U80: 12.1723 | Z80: 12.1723 | AA80: 14.3541
A81: 2014-06-19 | B81: 10.6358 | C81: 12.8669 | D81: 13.1398 | E81: 13.2007 | F81: 19.1655 | G81: 17.956 | H81: 16.9243 | I81: 13.9002 | J81: 12.8659 | K81: 17.3025 | L81: 13.2608 | M81: 19.6042 | N81: 16.2526 | O81: 16.422 | P81: 16.4203 | Q81: 14.8103 | R81: 16.9373 | S81: 15.0695 | T81: 16.0114 | U81: 16.9633 | Z81: 16.9633 | AA81: 14.4904
A82: 2014-06-20 | B82: 10.222 | C82: 16.7353 | D82: 8.16011 | E82: 11.8391 | F82: 18.9314 | G82: 20.6337 | H82: 17.7655 | I82: 13.9279 | J82: 14.7223 | K82: 15.2765 | L82: 13.7541 | M82: 18.6251 | N82: 15.7416 | O82: 13.4215 | P82: 12.5006 | Q82: 13.5439 | R82: 15.0487 | S82: 16.3121 | T82: 15.8074 | U82: 17.0704 | Z82: 17.0704 | AA82: 14.6286
A83: 2014-06-21 | B83: 13.0637 | C83: 16.3919 | D83: 8.15514 | E83: 7.50113 | F83: 18.8953 | G83: 19.7126 | H83: 19.306 | I83: 13.8689 | J83: 16.0902 | K83: 10.7391 | L83: 17.1483 | M83: 18.669 | N83: 18.9825 | O83: 10.9146 | P83: 13.1123 | Q83: 12.9047 | R83: 15.2725 | S83: 18.4046 | T83: 17.9991 | U83: 16.5092 | Z83: 16.5092 | AA83: 14.7679
A84: 2014-06-22 | B84: 17.3771 | C84: 17.4741 | D84: 10.8232 | E84: 8.64532 | F84: 18.2281 | G84: 16.8205 | H84: 20.8273 | I84: 15.5605 | J84: 18.0927 | K84: 13.4253 | L84: 18.9221 | M84: 19.7118 | N84: 16.7782 | O84: 11.7017 | P84: 12.905 | Q84: 13.3209 | R84: 13.7396 | S84: 16.8574 | T84: 14.7104 | U84: 14.5414 | Z84: 14.5414 | AA84: 14.9074
A85: 2014-06-23 | B85: 17.2379 | C85: 16.7773 | D85: 14.057 | E85: 7.97326 | F85: 18.8765 | G85: 15.4832 | H85: 21.4624 | I85: 14.6858 | J85: 15.7065 | K85: 13.7359 | L85: 17.326 | M85: 18.9877 | N85: 11.8817 | O85: 12.8733 | P85: 15.3312 | Q85: 13.5874 | R85: 11.419 | S85: 16.6981 | T85: 14.5652 | U85: 16.9338 | Z85: 16.9338 | AA85: 15.0444
A86: 2014-06-24 | B86: 14.1183 | C86: 16.0943 | D86: 15.2823 | E86: 6.74546 | F86: 18.0576 | G86: 16.6819 | H86: 17.4666 | I86: 15.0151 | J86: 14.8966 | K86: 13.3225 | L86: 17.7314 | M86: 16.1414 | N86: 8.20955 | O86: 14.6385 | P86: 15.4972 | Q86: 14.6281 | R86: 13.6215 | S86: 15.4217 | T86: 15.1899 | U86: 13.1473 | Z86: 13.1473 | AA86: 15.1794
A87: 2014-06-25 | B87: 12.9752 | C87: 16.2177 | D87: 17.9001 | E87: 8.49734 | F87: 16.9613 | G87: 16.7778 | H87: 17.2685 | I87: 14.5351 | J87: 14.8265 | K87: 12.1696 | L87: 19.3326 | M87: 18.2464 | N87: 8.85299 | O87: 14.3571 | P87: 16.5641 | Q87: 16.889 | R87: 13.6827 | S87: 11.258 | T87: 12.4974 | U87: 10.8222 | Z87: 10.8222 | AA87: 15.3117
A88: 2014-06-26 | B88: 15.0269 | C88: 16.4546 | D88: 19.1107 | E88: 11.7213 | F88: 17.0593 | G88: 18.1342 | H88: 19.179 | I88: 17.2548 | J88: 15.9177 | K88: 12.7992 | L88: 19.3974 | M88: 19.3883 | N88: 12.0038 | O88: 15.7547 | P88: 13.3408 | Q88: 17.5572 | R88: 12.1657 | S88: 9.97299 | T88: 9.37765 | U88: 13.4666 | Z88: 13.4666 | AA88: 15.4402
A89: 2014-06-27 | B89: 17.0673 | C89: 16.0873 | D89: 20.0829 | E89: 13.1001 | F89: 16.8336 | G89: 19.1562 | H89: 17.409 | I89: 17.7155 | J89: 15.6023 | K89: 13.7453 | L89: 16.9248 | M89: 20.7687 | N89: 14.7563 | O89: 16.6396 | P89: 10.8084 | Q89: 19.1417 | R89: 9.51766 | S89: 12.0597 | T89: 11.5154 | U89: 14.7137 | Z89: 14.7137 | AA89: 15.5659
A90: 2014-06-28 | B90: 18.0348 | C90: 15.8764 | D90: 18.5568 | E90: 16.0823 | F90: 15.371 | G90: 18.7039 | H90: 16.8488 | I90: 18.9572 | J90: 16.441 | K90: 15.8501 | L90: 14.652 | M90: 22.3098 | N90: 17.6826 | O90: 16.623 | P90: 11.66 | Q90: 19.8073 | R90: 11.061 | S90: 16.2508 | T90: 14.6712 | U90: 15.3252 | Z90: 15.3252 | AA90: 15.6939
A91: 2014-06-29 | B91: 18.8284 | C91: 15.3313 | D91: 18.1452 | E91: 17.0527 | F91: 11.0239 | G91: 18.843 | H91: 15.4944 | I91: 14.2982 | J91: 13.5636 | K91: 13.9286 | L91: 18.5142 | M91: 22.8654 | N91: 17.5323 | O91: 18.1723 | P91: 14.1546 | Q91: 19.2548 | R91: 12.4438 | S91: 16.7725 | T91: 14.8635 | U91: 18.316 | Z91: 18.316 | AA91: 15.8232
A92: 2014-06-30 | B92: 17.5291 | C92: 18.4326 | D92: 17.0596 | E92: 17.9868 | F92: 10.8273 | G92: 16.2727 | H92: 13.2024 | I92: 15.8298 | J92: 11.4528 | K92: 14.0859 | L92: 16.1882 | M92: 21.6763 | N92: 17.0063 | O92: 19.6315 | P92: 15.5719 | Q92: 17.9793 | R92: 13.8594 | S92: 17.8844 | T92: 18.4606 | U92: 18.4742 | Z92: 18.4742 | AA92: 15.9513
A93: 2014-07-01 | B93: 12.3769 | C93: 18.495 | D93: 14.1539 | E93: 18.8645 | F93: 13.8139 | G93: 11.7969 | H93: 15.7889 | I93: 16.0598 | J93: 12.0335 | K93: 15.0016 | L93: 15.8159 | M93: 20.8972 | N93: 18.536 | O93: 19.6452 | P93: 18.2492 | Q93: 17.4624 | R93: 14.7749 | S93: 18.051 | T93: 18.2377 | U93: 19.0101 | Z93: 19.0101 | AA93: 16.0766
A94: 2014-07-02 | B94: 15.4709 | C94: 19.2542 | D94: 14.4649 | E94: 19.1108 | F94: 14.802 | G94: 15.1535 | H94: 18.2872 | I94: 17.5212 | J94: 14.7802 | K94: 16.2981 | L94: 17.1607 | M94: 21.8174 | N94: 18.4992 | O94: 17.454 | P94: 20.7659 | Q94: 18.8646 | R94: 15.2803 | S94: 17.4573 | T94: 17.0243 | U94: 19.7923 | Z94: 19.7923 | AA94: 16.1998
A95: 2014-07-03 | B95: 17.6596 | C95: 18.5814 | D95: 16.0152 | E95: 18.971 | F95: 16.2267 | G95: 16.4488 | H95: 17.6715 | I95: 18.5168 | J95: 17.7876 | K95: 18.3602 | L95: 16.0676 | M95: 20.9066 | N95: 19.5566 | O95: 19.5405 | P95: 18.8953 | Q95: 19.6619 | R95: 13.6326 | S95: 15.8842 | T95: 16.1498 | U95: 18.5065 | Z95: 18.5065 | AA95: 16.3218
A96: 2014-07-04 | B96: 14.0924 | C96: 18.8972 | D96: 18.8908 | E96: 19.3262 | F96: 15.9732 | G96: 15.8634 | H96: 18.1248 | I96: 18.2169 | J96: 18.9613 | K96: 19.6129 | L96: 16.5683 | M96: 20.9448 | N96: 18.4002 | O96: 18.88 | P96: 20.4976 | Q96: 16.9862 | R96: 12.6667 | S96: 11.1116 | T96: 17.9237 | U96: 12.1373 | Z96: 12.1373 | AA96: 16.4433
A97: 2014-07-05 | B97: 14.758 | C97: 18.1051 | D97: 18.1794 | E97: 17.8247 | F97: 17.5722 | G97: 14.6704 | H97: 15.2752 | I97: 19.2289 | J97: 18.1767 | K97: 21.3681 | L97: 17.3975 | M97: 20.0586 | N97: 16.6513 | O97: 18.9386 | P97: 20.8501 | Q97: 15.9981 | R97: 13.2896 | S97: 14.3913 | T97: 18.5108 | U97: 8.11261 | Z97: 8.11261 | AA97: 16.563
A98: 2014-07-06 | B98: 15.9414 | C98: 18.4856 | D98: 13.168 | E98: 17.3042 | F98: 16.3027 | G98: 15.5536 | H98: 12.7011 | I98: 17.0567 | J98: 16.0927 | K98: 22.4344 | L98: 17.507 | M98: 18.0888 | N98: 17.1634 | O98: 18.4431 | P98: 21.2375 | Q98: 15.3561 | R98: 16.3875 | S98: 16.2514 | T98: 18.6696 | U98: 9.93658 | Z98: 9.93658 | AA98: 16.6776
A99: 2014-07-07 | B99: 18.3292 | C99: 18.8476 | D99: 13.9872 | E99: 17.2366 | F99: 17.6191 | G99: 16.7667 | H99: 12.7332 | I99: 17.933 | J99: 16.5697 | K99: 21.2637 | L99: 19.3913 | M99: 18.3593 | N99: 20.3676 | O99: 17.6838 | P99: 19.3422 | Q99: 18.9928 | R99: 12.3435 | S99: 16.0267 | T99: 20.5603 | U99: 10.6561 | Z99: 10.6561 | AA99: 16.7838
A100: 2014-07-08 | B100: 17.8889 | C100: 18.8517 | D100: 13.6824 | E100: 16.2147 | F100: 17.4429 | G100: 19.0344 | H100: 14.0085 | I100: 19.4923 | J100: 16.2879 | K100: 21.4681 | L100: 16.9984 | M100: 17.0475 | N100: 19.5788 | O100: 17.213 | P100: 21.7127 | Q100: 18.4181 | R100: 11.4544 | S100: 17.1762 | T100: 19.9931 | U100: 15.1405 | Z100: 15.1405 | AA100: 16.884
A101: 2014-07-09 | B101: 17.699 | C101: 16.8847 | D101: 17.6309 | E101: 15.3796 | F101: 17.5685 | G101: 17.1084 | H101: 15.7907 | I101: 20.0582 | J101: 14.0249 | K101: 19.2235 | L101: 17.1241 | M101: 18.8211 | N101: 19.9116 | O101: 16.0897 | P101: 21.5319 | Q101: 19.3273 | R101: 13.3164 | S101: 17.4224 | T101: 21.7775 | U101: 16.6223 | Z101: 16.6223 | AA101: 16.9824
A102: 2014-07-10 | B102: 17.6504 | C102: 16.9012 | D102: 18.885 | E102: 14.8101 | F102: 15.2149 | G102: 15.9036 | H102: 16.5149 | I102: 19.5011 | J102: 12.5177 | K102: 19.2715 | L102: 11.1664 | M102: 17.8016 | N102: 19.3419 | O102: 16.3806 | P102: 19.6319 | Q102: 17.159 | R102: 15.7137 | S102: 16.2997 | T102: 23.0837 | U102: 18.6844 | Z102: 18.6844 | AA102: 17.0814
A103: 2014-07-11 | B103: 18.4835 | C103: 19.4244 | D103: 20.6829 | E103: 13.2555 | F103: 18.1675 | G103: 12.9755 | H103: 15.7216 | I103: 21.5762 | J103: 12.1978 | K103: 17.5658 | L103: 12.716 | M103: 18.569 | N103: 20.8463 | O103: 16.7422 | P103: 19.7452 | Q103: 18.8592 | R103: 19.3939 | S103: 15.9594 | T103: 22.5586 | U103: 17.7726 | Z103: 17.7726 | AA103: 17.1814
A104: 2014-07-12 | B104: 19.9018 | C104: 21.3443 | D104: 21.6159 | E104: 13.9072 | F104: 18.7117 | G104: 14.1775 | H104: 17.7227 | I104: 18.94 | J104: 12.2374 | K104: 17.3714 | L104: 16.4837 | M104: 13.2749 | N104: 20.189 | O104: 14.1254 | P104: 19.3392 | Q104: 15.9893 | R104: 19.5941 | S104: 17.2344 | T104: 21.0827 | U104: 17.9928 | Z104: 17.9928 | AA104: 17.2825
A105: 2014-07-13 | B105: 20.7877 | C105: 20.0423 | D105: 21.4074 | E105: 19.161 | F105: 14.032 | G105: 16.1944 | H105: 18.5106 | I105: 20.6287 | J105: 14.5043 | K105: 16.7687 | L105: 15.2964 | M105: 14.9247 | N105: 20.2535 | O105: 12.1367 | P105: 18.6585 | Q105: 18.6198 | R105: 17.6676 | S105: 18.8312 | T105: 21.5123 | U105: 19.0579 | Z105: 19.0579 | AA105: 17.3844
A106: 2014-07-14 | B106: 20.1641 | C106: 22.1991 | D106: 20.7944 | E106: 20.6454 | F106: 12.0108 | G106: 16.9742 | H106: 19.3314 | I106: 20.0695 | J106: 15.851 | K106: 19.1828 | L106: 16.7361 | M106: 17.3022 | N106: 16.4365 | O106: 12.874 | P106: 18.8745 | Q106: 19.6107 | R106: 21.2 | S106: 19.0265 | T106: 21.8252 | U106: 20.5314 | Z106: 20.5314 | AA106: 17.4886
A107: 2014-07-15 | B107: 23.1617 | C107: 19.623 | D107: 20.3888 | E107: 18.0134 | F107: 12.6545 | G107: 18.6398 | H107: 18.3985 | I107: 18.6656 | J107: 17.8235 | K107: 18.9879 | L107: 17.6357 | M107: 18.5871 | N107: 15.6313 | O107: 14.5692 | P107: 19.9821 | Q107: 20.2707 | R107: 13.163 | S107: 17.2146 | T107: 22.3343 | U107: 18.0068 | Z107: 18.0068 | AA107: 17.5986
A108: 2014-07-16 | B108: 23.6534 | C108: 19.5322 | D108: 17.9854 | E108: 18.5551 | F108: 13.4487 | G108: 20.6939 | H108: 19.8116 | I108: 19.4054 | J108: 18.691 | K108: 17.8463 | L108: 14.0317 | M108: 20.7812 | N108: 17.7098 | O108: 16.8339 | P108: 19.2584 | Q108: 21.4341 | R108: 12.151 | S108: 17.3234 | T108: 20.6176 | U108: 15.8688 | Z108: 15.8688 | AA108: 17.7163
A109: 2014-07-17 | B109: 18.8031 | C109: 18.87 | D109: 18.147 | E109: 17.4443 | F109: 14.8401 | G109: 21.1738 | H109: 20.2363 | I109: 18.4625 | J109: 16.7186 | K109: 15.0992 | L109: 13.4944 | M109: 20.9896 | N109: 18.624 | O109: 17.3536 | P109: 18.637 | Q109: 20.9648 | R109: 15.3003 | S109: 18.5461 | T109: 15.0954 | U109: 16.312 | Z109: 16.312 | AA109: 17.8404
A110: 2014-07-18 | B110: 16.1658 | C110: 14.4783 | D110: 18.8439 | E110: 20.0388 | F110: 16.7641 | G110: 19.1203 | H110: 19.7419 | I110: 17.3477 | J110: 17.4413 | K110: 15.3886 | L110: 15.6636 | M110: 21.0433 | N110: 19.6295 | O110: 18.4853 | P110: 18.4228 | Q110: 20.4505 | R110: 18.0367 | S110: 17.6981 | T110: 15.8803 | U110: 17.4047 | Z110: 17.4047 | AA110: 17.9693
A111: 2014-07-19 | B111: 19.4169 | C111: 15.3585 | D111: 19.1403 | E111: 21.9843 | F111: 15.5534 | G111: 19.7784 | H111: 17.4859 | I111: 18.2775 | J111: 17.779 | K111: 16.7059 | L111: 12.8535 | M111: 20.5724 | N111: 18.8067 | O111: 13.0513 | P111: 17.9021 | Q111: 20.4225 | R111: 19.8744 | S111: 16.4367 | T111: 18.7621 | U111: 19.4853 | Z111: 19.4853 | AA111: 18.1028
A112: 2014-07-20 | B112: 19.9295 | C112: 18.5112 | D112: 17.8854 | E112: 19.4637 | F112: 16.3254 | G112: 19.9485 | H112: 16.6045 | I112: 17.4488 | J112: 18.2213 | K112: 16.8966 | L112: 12.5709 | M112: 20.4581 | N112: 13.6359 | O112: 14.2029 | P112: 18.339 | Q112: 19.5038 | R112: 19.2848 | S112: 17.2314 | T112: 19.4463 | U112: 21.636 | Z112: 21.636 | AA112: 18.2417
A113: 2014-07-21 | B113: 19.957 | C113: 18.4021 | D113: 19.8184 | E113: 19.7109 | F113: 15.808 | G113: 16.8936 | H113: 18.3509 | I113: 16.9417 | J113: 19.6447 | K113: 17.5934 | L113: 14.1409 | M113: 21.1191 | N113: 14.7014 | O113: 15.6479 | P113: 19.1107 | Q113: 19.4888 | R113: 19.9494 | S113: 18.4147 | T113: 23.753 | U113: 20.1218 | Z113: 20.1218 | AA113: 18.383
A114: 2014-07-22 | B114: 20.8689 | C114: 22.9244 | D114: 21.5764 | E114: 17.4821 | F114: 15.4903 | G114: 16.2556 | H114: 18.6682 | I114: 16.2899 | J114: 20.7217 | K114: 17.5413 | L114: 13.4516 | M114: 20.2161 | N114: 17.2997 | O114: 16.8155 | P114: 19.8725 | Q114: 20.5428 | R114: 19.8684 | S114: 18.6685 | T114: 20.9716 | U114: 18.0075 | Z114: 18.0075 | AA114: 18.5263
A115: 2014-07-23 | B115: 22.0241 | C115: 21.759 | D115: 19.8666 | E115: 15.1295 | F115: 16.9499 | G115: 21.0097 | H115: 17.0139 | I115: 17.0519 | J115: 18.609 | K115: 18.3106 | L115: 16.5366 | M115: 19.0657 | N115: 17.3147 | O115: 18.2082 | P115: 21.6115 | Q115: 20.4759 | R115: 21.8781 | S115: 19.4891 | T115: 19.2034 | U115: 17.014 | Z115: 17.014 | AA115: 18.6692
A116: 2014-07-24 | B116: 21.3561 | C116: 22.9149 | D116: 19.7037 | E116: 15.9254 | F116: 15.5752 | G116: 25.0796 | H116: 18.9668 | I116: 18.2297 | J116: 17.6103 | K116: 19.7064 | L116: 20.0517 | M116: 18.7759 | N116: 19.4621 | O116: 19.3202 | P116: 22.3137 | Q116: 21.4191 | R116: 21.2099 | S116: 20.2021 | T116: 17.9345 | U116: 18.2425 | Z116: 18.2425 | AA116: 18.8087
A117: 2014-07-25 | B117: 20.2657 | C117: 20.439 | D117: 18.4906 | E117: 18.7624 | F117: 14.9691 | G117: 21.3958 | H117: 19.1593 | I117: 17.3787 | J117: 18.047 | K117: 17.8812 | L117: 19.1485 | M117: 18.6465 | N117: 19.0824 | O117: 20.0484 | P117: 18.661 | Q117: 20.1799 | R117: 21.2606 | S117: 19.0561 | T117: 17.6529 | U117: 20.5115 | Z117: 20.5115 | AA117: 18.9423
A118: 2014-07-26 | B118: 20.3634 | C118: 20.6939 | D118: 18.24 | E118: 19.8706 | F118: 15.3956 | G118: 22.3125 | H118: 20.8777 | I118: 17.8779 | J118: 18.3216 | K118: 16.1773 | L118: 19.5585 | M118: 18.2349 | N118: 19.3501 | O118: 22.1996 | P118: 19.2363 | Q118: 17.2612 | R118: 21.4344 | S118: 19.8568 | T118: 17.09 | U118: 22.9655 | Z118: 22.9655 | AA118: 19.0699
A119: 2014-07-27 | B119: 22.1432 | C119: 20.595 | D119: 18.0927 | E119: 16.4397 | F119: 13.2628 | G119: 19.7886 | H119: 16.9709 | I119: 18.9436 | J119: 18.6617 | K119: 17.1719 | L119: 18.1196 | M119: 20.724 | N119: 19.6124 | O119: 22.8652 | P119: 19.6194 | Q119: 15.3822 | R119: 21.9591 | S119: 17.9016 | T119: 16.8477 | U119: 22.9405 | Z119: 22.9405 | AA119: 19.1894
A120: 2014-07-28 | B120: 22.8415 | C120: 21.0277 | D120: 17.6639 | E120: 17.2726 | F120: 14.834 | G120: 20.4599 | H120: 17.2397 | I120: 19.1754 | J120: 16.3761 | K120: 19.4504 | L120: 18.6274 | M120: 22.2513 | N120: 21.4744 | O120: 22.5579 | P120: 20.8044 | Q120: 17.2286 | R120: 22.7966 | S120: 19.9475 | T120: 16.9962 | U120: 23.4778 | Z120: 23.4778 | AA120: 19.2981
A121: 2014-07-29 | B121: 16.1198 | C121: 20.3474 | D121: 17.7365 | E121: 19.6844 | F121: 15.5685 | G121: 22.8709 | H121: 16.9852 | I121: 19.6451 | J121: 13.9418 | K121: 19.5984 | L121: 19.2167 | M121: 20.0359 | N121: 21.8544 | O121: 20.9677 | P121: 21.409 | Q121: 18.5444 | R121: 22.2645 | S121: 21.8026 | T121: 17.3986 | U121: 25.4769 | Z121: 25.4769 | AA121: 19.3935
A122: 2014-07-30 | B122: 18.4204 | C122: 23.0978 | D122: 16.3175 | E122: 20.8323 | F122: 13.9828 | G122: 24.1573 | H122: 21.8016 | I122: 19.6287 | J122: 16.0372 | K122: 20.1206 | L122: 18.7092 | M122: 20.6321 | N122: 17.7809 | O122: 22.1853 | P122: 21.2234 | Q122: 19.3976 | R122: 20.9962 | S122: 22.4686 | T122: 18.8531 | U122: 24.5447 | Z122: 24.5447 | AA122: 19.4767
A123: 2014-07-31 | B123: 22.4327 | C123: 24.7853 | D123: 17.5935 | E123: 20.5778 | F123: 15.0868 | G123: 24.8432 | H123: 21.5304 | I123: 18.9882 | J123: 17.578 | K123: 19.0259 | L123: 19.1383 | M123: 21.8192 | N123: 18.2651 | O123: 21.1055 | P123: 21.1236 | Q123: 19.0879 | R123: 20.8076 | S123: 23.186 | T123: 19.1616 | U123: 24.7936 | Z123: 24.7936 | AA123: 19.5462
A124: 2014-08-01 | B124: 22.9131 | C124: 25.2781 | D124: 16.4818 | E124: 20.0339 | F124: 16.9334 | G124: 23.66 | H124: 23.1415 | I124: 20.2109 | J124: 18.4719 | K124: 21.3231 | L124: 19.7575 | M124: 20.2193 | N124: 18.7984 | O124: 18.5673 | P124: 17.5082 | Q124: 21.8747 | R124: 20.2409 | S124: 21.7363 | T124: 19.439 | U124: 20.9979 | Z124: 20.9979 | AA124: 19.6023
A125: 2014-08-02 | B125: 20.6816 | C125: 22.1394 | D125: 17.2771 | E125: 16.8904 | F125: 18.1962 | G125: 22.5385 | H125: 22.9659 | I125: 20.0985 | J125: 20.2259 | K125: 19.8457 | L125: 17.272 | M125: 19.726 | N125: 18.8039 | O125: 16.502 | P125: 16.3135 | Q125: 20.8334 | R125: 19.1639 | S125: 22.0173 | T125: 18.9648 | U125: 19.343 | Z125: 19.343 | AA125: 19.646
A126: 2014-08-03 | B126: 23.6941 | C126: 20.5618 | D126: 15.4393 | E126: 15.6938 | F126: 18.515 | G126: 22.7548 | H126: 22.496 | I126: 22.0948 | J126: 19.5608 | K126: 19.9323 | L126: 17.7179 | M126: 19.6277 | N126: 19.3356 | O126: 18.0742 | P126: 16.9306 | Q126: 21.5368 | R126: 20.0766 | S126: 22.4796 | T126: 19.137 | U126: 17.9793 | Z126: 17.9793 | AA126: 19.6769
A127: 2014-08-04 | B127: 24.618 | C127: 21.6029 | D127: 15.8396 | E127: 19.9726 | F127: 20.0185 | G127: 22.6902 | H127: 23.7151 | I127: 19.9683 | J127: 19.5492 | K127: 18.7726 | L127: 18.9134 | M127: 20.0207 | N127: 20.9483 | O127: 18.9855 | P127: 18.6582 | Q127: 23.3251 | R127: 23.3625 | S127: 20.7287 | T127: 19.3741 | U127: 16.4341 | Z127: 16.4341 | AA127: 19.6925
A128: 2014-08-05 | B128: 23.8651 | C128: 20.3688 | D128: 15.7451 | E128: 20.7828 | F128: 20.4384 | G128: 23.2188 | H128: 22.6113 | I128: 20.8146 | J128: 19.1083 | K128: 19.0288 | L128: 20.0079 | M128: 21.8327 | N128: 22.0254 | O128: 18.4347 | P128: 20.4262 | Q128: 21.6126 | R128: 21.8613 | S128: 19.0165 | T128: 19.5083 | U128: 16.1388 | Z128: 16.1388 | AA128: 19.6928
A129: 2014-08-06 | B129: 21.0471 | C129: 22.0084 | D129: 16.5113 | E129: 18.775 | F129: 19.6019 | G129: 23.7536 | H129: 21.6231 | I129: 22.3631 | J129: 19.479 | K129: 19.6355 | L129: 20.0195 | M129: 26.3903 | N129: 23.2211 | O129: 16.8899 | P129: 22.833 | Q129: 20.6561 | R129: 20.8356 | S129: 18.0038 | T129: 20.722 | U129: 16.4816 | Z129: 16.4816 | AA129: 19.6789
A130: 2014-08-07 | B130: 23.4147 | C130: 21.6044 | D130: 17.6671 | E130: 17.5889 | F130: 20.8723 | G130: 22.7281 | H130: 20.0591 | I130: 22.2026 | J130: 21.8577 | K130: 19.9863 | L130: 20.2763 | M130: 23.0235 | N130: 22.9874 | O130: 14.872 | P130: 23.0794 | Q130: 19.4986 | R130: 19.7435 | S130: 21.0185 | T130: 19.5338 | U130: 16.9081 | Z130: 16.9081 | AA130: 19.6524
A131: 2014-08-08 | B131: 24.8216 | C131: 21.9924 | D131: 17.5116 | E131: 13.0569 | F131: 19.9064 | G131: 23.9923 | H131: 19.9874 | I131: 23.5321 | J131: 22.047 | K131: 18.2856 | L131: 20.4112 | M131: 22.7151 | N131: 22.4178 | O131: 16.0875 | P131: 22.3989 | Q131: 19.3049 | R131: 20.4263 | S131: 22.8999 | T131: 18.1622 | U131: 18.3595 | Z131: 18.3595 | AA131: 19.6139
A132: 2014-08-09 | B132: 24.7907 | C132: 20.8177 | D132: 17.6877 | E132: 13.9624 | F132: 19.3369 | G132: 22.4837 | H132: 19.7908 | I132: 23.689 | J132: 22.0335 | K132: 15.6742 | L132: 20.4835 | M132: 23.2058 | N132: 22.6855 | O132: 19.515 | P132: 20.9379 | Q132: 19.1052 | R132: 20.8425 | S132: 18.6121 | T132: 16.8944 | U132: 18.176 | Z132: 18.176 | AA132: 19.5661
A133: 2014-08-10 | B133: 24.1002 | C133: 21.1468 | D133: 19.0235 | E133: 14.5062 | F133: 17.7755 | G133: 19.7964 | H133: 20.6996 | I133: 23.5342 | J133: 21.11 | K133: 15.4189 | L133: 21.3074 | M133: 23.5223 | N133: 23.7711 | O133: 21.3651 | P133: 20.4635 | Q133: 19.3326 | R133: 21.5259 | S133: 17.0517 | T133: 16.7511 | U133: 19.0352 | Z133: 19.0352 | AA133: 19.51
A134: 2014-08-11 | B134: 23.6304 | C134: 19.8831 | D134: 17.7866 | E134: 15.3802 | F134: 19.2437 | G134: 18.6011 | H134: 22.4021 | I134: 22.6792 | J134: 22.0766 | K134: 17.7655 | L134: 22.007 | M134: 20.8708 | N134: 23.3416 | O134: 20.0564 | P134: 20.2951 | Q134: 20.3586 | R134: 20.411 | S134: 18.9115 | T134: 16.7509 | U134: 17.9095 | Z134: 17.9095 | AA134: 19.4441
A135: 2014-08-12 | B135: 22.1484 | C135: 18.1607 | D135: 17.407 | E135: 15.0655 | F135: 19.0085 | G135: 18.9383 | H135: 22.428 | I135: 22.3222 | J135: 23.6583 | K135: 20.1063 | L135: 20.0152 | M135: 20.8935 | N135: 19.7982 | O135: 20.5437 | P135: 20.6259 | Q135: 20.7267 | R135: 19.3922 | S135: 19.3832 | T135: 14.4001 | U135: 18.862 | Z135: 18.862 | AA135: 19.3679
A136: 2014-08-13 | B136: 21.5826 | C136: 18.8969 | D136: 18.0103 | E136: 15.0812 | F136: 17.1673 | G136: 15.7103 | H136: 22.5133 | I136: 22.2627 | J136: 22.8334 | K136: 21.191 | L136: 19.228 | M136: 21.201 | N136: 18.9777 | O136: 18.9856 | P136: 20.1869 | Q136: 17.4977 | R136: 19.9707 | S136: 20.2577 | T136: 15.336 | U136: 19.7732 | Z136: 19.7732 | AA136: 19.2844
A137: 2014-08-14 | B137: 22.8562 | C137: 20.5832 | D137: 18.9902 | E137: 17.8169 | F137: 16.8101 | G137: 16.7048 | H137: 22.3972 | I137: 21.6399 | J137: 23.6886 | K137: 20.3991 | L137: 18.8535 | M137: 20.785 | N137: 20.1667 | O137: 17.8467 | P137: 20.481 | Q137: 17.0484 | R137: 19.7663 | S137: 21.4582 | T137: 17.3526 | U137: 18.2741 | Z137: 18.2741 | AA137: 19.1949
A138: 2014-08-15 | B138: 21.301 | C138: 20.4549 | D138: 20.5888 | E138: 17.295 | F138: 18.5344 | G138: 14.6702 | H138: 21.3229 | I138: 22.5354 | J138: 23.7944 | K138: 18.8443 | L138: 18.7904 | M138: 20.4155 | N138: 20.0006 | O138: 17.3314 | P138: 23.5174 | Q138: 16.624 | R138: 19.738 | S138: 21.2529 | T138: 17.7055 | U138: 16.3167 | Z138: 16.3167 | AA138: 19.1
A139: 2014-08-16 | B139: 22.6812 | C139: 22.3972 | D139: 21.5553 | E139: 17.744 | F139: 18.3999 | G139: 14.1389 | H139: 18.3494 | I139: 22.4921 | J139: 16.2221 | K139: 16.2049 | L139: 19.0951 | M139: 22.4192 | N139: 17.9546 | O139: 19.1997 | P139: 22.8219 | Q139: 18.4963 | R139: 19.1842 | S139: 21.9376 | T139: 16.7917 | U139: 12.9962 | Z139: 12.9962 | AA139: 18.9992
A140: 2014-08-17 | B140: 24.2583 | C140: 21.3974 | D140: 18.9857 | E140: 16.5358 | F140: 18.4103 | G140: 14.6415 | H140: 19.8191 | I140: 24.0928 | J140: 16.1261 | K140: 14.2015 | L140: 17.2497 | M140: 20.0726 | N140: 18.3717 | O140: 18.4907 | P140: 22.4918 | Q140: 19.1379 | R140: 17.8404 | S140: 19.5853 | T140: 17.4367 | U140: 11.9995 | Z140: 11.9995 | AA140: 18.8927
A141: 2014-08-18 | B141: 18.0189 | C141: 19.4375 | D141: 16.0533 | E141: 18.2934 | F141: 18.489 | G141: 17.7212 | H141: 21.5832 | I141: 21.1393 | J141: 17.1809 | K141: 15.9641 | L141: 18.4822 | M141: 19.0785 | N141: 17.5156 | O141: 19.5143 | P141: 23.4355 | Q141: 20.2873 | R141: 15.1767 | S141: 21.1084 | T141: 18.3349 | U141: 13.4595 | Z141: 13.4595 | AA141: 18.7798
A142: 2014-08-19 | B142: 20.429 | C142: 20.0333 | D142: 17.2802 | E142: 17.2475 | F142: 17.7699 | G142: 19.0472 | H142: 21.1382 | I142: 19.485 | J142: 17.8477 | K142: 15.6977 | L142: 17.352 | M142: 18.9805 | N142: 18.0673 | O142: 21.3653 | P142: 22.2109 | Q142: 18.4698 | R142: 14.6815 | S142: 20.4866 | T142: 18.5801 | U142: 15.2053 | Z142: 15.2053 | AA142: 18.6617
A143: 2014-08-20 | B143: 22.6112 | C143: 19.7594 | D143: 16.9733 | E143: 14.4412 | F143: 17.9221 | G143: 13.5561 | H143: 18.2089 | I143: 20.7714 | J143: 20.7262 | K143: 13.899 | L143: 19.2084 | M143: 20.2608 | N143: 17.0147 | O143: 22.1777 | P143: 19.8556 | Q143: 18.6523 | R143: 15.9217 | S143: 19.7875 | T143: 17.9253 | U143: 19.6062 | Z143: 19.6062 | AA143: 18.5432
A144: 2014-08-21 | B144: 22.6637 | C144: 21.782 | D144: 17.9897 | E144: 11.7651 | F144: 19.6523 | G144: 11.4437 | H144: 17.2548 | I144: 24.4 | J144: 21.3347 | K144: 12.1499 | L144: 20.3669 | M144: 21.2911 | N144: 17.8648 | O144: 24.0274 | P144: 19.0149 | Q144: 19.1958 | R144: 17.5556 | S144: 21.37 | T144: 19.8257 | U144: 18.724 | Z144: 18.724 | AA144: 18.4279
A145: 2014-08-22 | B145: 22.4153 | C145: 22.0407 | D145: 18.2837 | E145: 12.3935 | F145: 20.2257 | G145: 14.5521 | H145: 17.4733 | I145: 21.8161 | J145: 19.2238 | K145: 11.46 | L145: 18.6443 | M145: 21.6529 | N145: 18.2796 | O145: 24.0839 | P145: 19.1639 | Q145: 20.0235 | R145: 16.8621 | S145: 21.0536 | T145: 18.6913 | U145: 21.9532 | Z145: 21.9532 | AA145: 18.3153
A146: 2014-08-23 | B146: 20.1906 | C146: 22.3097 | D146: 19.8422 | E146: 14.3835 | F146: 18.0436 | G146: 15.7533 | H146: 16.0793 | I146: 21.0546 | J146: 17.07 | K146: 12.7957 | L146: 15.9375 | M146: 18.4948 | N146: 16.8672 | O146: 19.9762 | P146: 19.0085 | Q146: 20.4702 | R146: 15.1304 | S146: 19.7155 | T146: 20.853 | U146: 19.0982 | Z146: 19.0982 | AA146: 18.2042
A147: 2014-08-24 | B147: 17.39 | C147: 22.0445 | D147: 20.4743 | E147: 15.5095 | F147: 15.4446 | G147: 17.6249 | H147: 15.842 | I147: 19.6177 | J147: 16.3691 | K147: 11.9023 | L147: 15.0043 | M147: 19.8104 | N147: 18.3413 | O147: 19 | P147: 18.3934 | Q147: 18.564 | R147: 13.9043 | S147: 18.9191 | T147: 19.8356 | U147: 17.768 | Z147: 17.768 | AA147: 18.0936
A148: 2014-08-25 | B148: 17.4265 | C148: 21.4213 | D148: 20.3777 | E148: 16.0605 | F148: 16.4794 | G148: 13.8203 | H148: 15.382 | I148: 18.634 | J148: 18.8884 | K148: 15.9788 | L148: 14.9312 | M148: 19.5437 | N148: 17.4518 | O148: 21.4048 | P148: 17.551 | Q148: 14.0373 | R148: 13.3047 | S148: 20.5643 | T148: 18.9667 | U148: 15.4615 | Z148: 15.4615 | AA148: 17.9841
A149: 2014-08-26 | B149: 17.6985 | C149: 19.1216 | D149: 20.5859 | E149: 15.7637 | F149: 16.9664 | G149: 13.2993 | H149: 15.409 | I149: 18.8421 | J149: 19.9315 | K149: 18.1915 | L149: 15.0125 | M149: 17.5504 | N149: 17.1674 | O149: 21.4818 | P149: 16.8879 | Q149: 12.7037 | R149: 13.927 | S149: 16.8061 | T149: 17.289 | U149: 16.7611 | Z149: 16.7611 | AA149: 17.8752
A150: 2014-08-27 | B150: 18.4575 | C150: 18.4292 | D150: 15.4009 | E150: 18.342 | F150: 15.8314 | G150: 14.1126 | H150: 19.2417 | I150: 19.3272 | J150: 17.8494 | K150: 15.5577 | L150: 17.3399 | M150: 16.8318 | N150: 18.0447 | O150: 21.2553 | P150: 17.4892 | Q150: 13.1832 | R150: 15.9357 | S150: 14.1244 | T150: 16.9111 | U150: 15.4943 | Z150: 15.4943 | AA150: 17.7648
A151: 2014-08-28 | B151: 19.3451 | C151: 17.7726 | D151: 13.0354 | E151: 21.6161 | F151: 16.1549 | G151: 13.2839 | H151: 18.7721 | I151: 19.3678 | J151: 17.1909 | K151: 18.9957 | L151: 18.9458 | M151: 19.3356 | N151: 19.4824 | O151: 20.9715 | P151: 15.1944 | Q151: 14.8261 | R151: 15.2689 | S151: 14.642 | T151: 15.7674 | U151: 14.8443 | Z151: 14.8443 | AA151: 17.6488
A152: 2014-08-29 | B152: 16.176 | C152: 18.3518 | D152: 15.5851 | E152: 18.6371 | F152: 16.7803 | G152: 14.6305 | H152: 17.8681 | I152: 21.0494 | J152: 17.4755 | K152: 19.6256 | L152: 16.1197 | M152: 19.4546 | N152: 19.1088 | O152: 23.1579 | P152: 15.6207 | Q152: 16.1412 | R152: 15.6063 | S152: 21.0723 | T152: 14.9716 | U152: 15.7226 | Z152: 15.7226 | AA152: 17.5216
A153: 2014-08-30 | B153: 17.7841 | C153: 19.0957 | D153: 17.3084 | E153: 17.7773 | F153: 15.1817 | G153: 15.256 | H153: 20.0049 | I153: 19.3482 | J153: 16.7594 | K153: 19.2942 | L153: 13.5285 | M153: 24.2457 | N153: 19.445 | O153: 23.3742 | P153: 14.4844 | Q153: 16.474 | R153: 16.7818 | S153: 22.5239 | T153: 13.1133 | U153: 15.4133 | Z153: 15.4133 | AA153: 17.3798
A154: 2014-08-31 | B154: 17.1361 | C154: 19.5521 | D154: 17.3319 | E154: 18.8365 | F154: 17.8528 | G154: 18.0967 | H154: 18.8216 | I154: 17.6434 | J154: 15.0189 | K154: 17.3045 | L154: 14.2758 | M154: 24.0491 | N154: 20.3329 | O154: 20.7104 | P154: 13.9098 | Q154: 16.0511 | R154: 18.4468 | S154: 22.1369 | T154: 13.6763 | U154: 18.3207 | Z154: 18.3207 | AA154: 17.2247
A155: 2014-09-01 | B155: 18.4204 | C155: 19.8615 | D155: 16.8549 | E155: 19.84 | F155: 17.8203 | G155: 19.2032 | H155: 19.325 | I155: 16.7915 | J155: 15.7812 | K155: 19.5913 | L155: 13.3893 | M155: 23.1109 | N155: 22.1453 | O155: 18.7138 | P155: 15.7579 | Q155: 16.0989 | R155: 17.9318 | S155: 21.2105 | T155: 14.1416 | U155: 14.8142 | Z155: 14.8142 | AA155: 17.0585
A156: 2014-09-02 | B156: 14.6512 | C156: 17.0378 | D156: 13.4742 | E156: 23.2121 | F156: 17.2719 | G156: 18.6755 | H156: 19.9654 | I156: 16.3001 | J156: 17.0213 | K156: 20.7618 | L156: 13.6229 | M156: 21.1866 | N156: 19.2692 | O156: 21.6037 | P156: 17.3365 | Q156: 16.9486 | R156: 16.2647 | S156: 20.9383 | T156: 12.6754 | U156: 12.8685 | Z156: 12.8685 | AA156: 16.8824
A157: 2014-09-03 | B157: 16.7884 | C157: 15.752 | D157: 12.0489 | E157: 19.3662 | F157: 17.4847 | G157: 16.5972 | H157: 14.159 | I157: 17.2379 | J157: 15.3657 | K157: 19.67 | L157: 15.431 | M157: 18.5486 | N157: 20.3 | O157: 21.9288 | P157: 17.3972 | Q157: 16.5349 | R157: 18.1006 | S157: 20.2424 | T157: 10.6215 | U157: 15.8204 | Z157: 15.8204 | AA157: 16.695
A158: 2014-09-04 | B158: 19.9619 | C158: 16.4273 | D158: 13.6354 | E158: 14.5294 | F158: 15.5477 | G158: 15.3273 | H158: 11.9785 | I158: 17.9912 | J158: 18.6184 | K158: 19.0272 | L158: 13.3532 | M158: 19.123 | N158: 18.8112 | O158: 21.1095 | P158: 16.8872 | Q158: 14.9447 | R158: 16.3557 | S158: 20 | T158: 13.2087 | U158: 19.633 | Z158: 19.633 | AA158: 16.4957
A159: 2014-09-05 | B159: 20.8186 | C159: 16.4421 | D159: 15.0188 | E159: 13.841 | F159: 13.22 | G159: 14.752 | H159: 12.824 | I159: 13.8752 | J159: 16.8778 | K159: 18.9686 | L159: 16.6374 | M159: 19.8393 | N159: 19.2193 | O159: 21.5149 | P159: 16.7363 | Q159: 18.071 | R159: 12.2379 | S159: 21.2364 | T159: 16.9187 | U159: 20.894 | Z159: 20.894 | AA159: 16.2866
A160: 2014-09-06 | B160: 21.2294 | C160: 15.0468 | D160: 13.6041 | E160: 14.4778 | F160: 13.5736 | G160: 15.3509 | H160: 13.5251 | I160: 13.6766 | J160: 15.5703 | K160: 20.6104 | L160: 17.8421 | M160: 22.0937 | N160: 18.4021 | O160: 20.2142 | P160: 14.1343 | Q160: 16.9021 | R160: 11.8519 | S160: 20.0212 | T160: 15.7655 | U160: 19.9074 | Z160: 19.9074 | AA160: 16.0714
A161: 2014-09-07 | B161: 19.488 | C161: 17.4875 | D161: 14.1662 | E161: 15.3144 | F161: 13.6993 | G161: 16.8604 | H161: 15.0649 | I161: 15.1184 | J161: 15.4026 | K161: 18.9877 | L161: 16.9926 | M161: 18.4319 | N161: 16.6021 | O161: 19.0949 | P161: 14.2972 | Q161: 15.7011 | R161: 13.16 | S161: 17.2873 | T161: 17.2285 | U161: 18.6368 | Z161: 18.6368 | AA161: 15.8542
A162: 2014-09-08 | B162: 20.6292 | C162: 15.6615 | D162: 15.6156 | E162: 16.1418 | F162: 13.4606 | G162: 17.6909 | H162: 16.894 | I162: 17.2079 | J162: 15.2815 | K162: 16.9388 | L162: 13.9352 | M162: 14.2791 | N162: 18.519 | O162: 17.8898 | P162: 16.5392 | Q162: 15.4449 | R162: 13.5699 | S162: 13.9773 | T162: 16.3283 | U162: 17.0353 | Z162: 17.0353 | AA162: 15.6357
A163: 2014-09-09 | B163: 20.8327 | C163: 14.5046 | D163: 16.3365 | E163: 16.1822 | F163: 15.1876 | G163: 15.5106 | H163: 17.462 | I163: 18.3492 | J163: 17.1547 | K163: 15.2285 | L163: 12.3458 | M163: 13.9383 | N163: 17.1158 | O163: 17.2411 | P163: 15.0708 | Q163: 16.5444 | R163: 14.711 | S163: 14.8975 | T163: 15.9535 | U163: 14.1433 | Z163: 14.1433 | AA163: 15.4142
A164: 2014-09-10 | B164: 18.8107 | C164: 15.6485 | D164: 16.6968 | E164: 13.5341 | F164: 15.41 | G164: 12.0666 | H164: 16.1099 | I164: 19.6848 | J164: 14.8129 | K164: 14.6733 | L164: 12.1396 | M164: 17.6894 | N164: 15.6967 | O164: 19.6417 | P164: 15.1807 | Q164: 15.9452 | R164: 15.7382 | S164: 14.2841 | T164: 12.4681 | U164: 10.5537 | Z164: 10.5537 | AA164: 15.1881
A165: 2014-09-11 | B165: 20.3942 | C165: 16.7141 | D165: 13.3707 | E165: 16.7147 | F165: 18.5535 | G165: 13.1577 | H165: 17.7498 | I165: 13.9042 | J165: 17.3495 | K165: 15.2007 | L165: 13.4012 | M165: 17.7986 | N165: 13.7769 | O165: 19.1708 | P165: 17.1056 | Q165: 14.7331 | R165: 16.8094 | S165: 13.1787 | T165: 12.3579 | U165: 9.61618 | Z165: 9.61618 | AA165: 14.9576
A166: 2014-09-12 | B166: 19.3777 | C166: 16.4674 | D166: 13.022 | E166: 12.7738 | F166: 17.676 | G166: 14.7013 | H166: 19.5506 | I166: 12.2091 | J166: 16.8319 | K166: 15.3225 | L166: 15.0669 | M166: 16.8536 | N166: 15.4914 | O166: 19.87 | P166: 17.2814 | Q166: 14.7781 | R166: 15.7538 | S166: 12.1634 | T166: 13.2411 | U166: 11.4025 | Z166: 11.4025 | AA166: 14.7255
A167: 2014-09-13 | B167: 17.9398 | C167: 14.5301 | D167: 14.9157 | E167: 11.2482 | F167: 15.8313 | G167: 12.3167 | H167: 15.7067 | I167: 11.8298 | J167: 17.4952 | K167: 17.5875 | L167: 13.5334 | M167: 16.9457 | N167: 15.4897 | O167: 19.8434 | P167: 17.2294 | Q167: 12.3323 | R167: 13.0909 | S167: 13.8923 | T167: 14.2363 | U167: 14.1241 | Z167: 14.1241 | AA167: 14.4938
A168: 2014-09-14 | B168: 16.4322 | C168: 14.3943 | D168: 16.4875 | E168: 11.1958 | F168: 17.0449 | G168: 13.1868 | H168: 9.54154 | I168: 14.0099 | J168: 18.2421 | K168: 14.7124 | L168: 14.408 | M168: 16.5204 | N168: 16.532 | O168: 20.7323 | P168: 18.36 | Q168: 11.0592 | R168: 12.422 | S168: 15.459 | T168: 13.7056 | U168: 16.5034 | Z168: 16.5034 | AA168: 14.2625
A169: 2014-09-15 | B169: 13.7098 | C169: 15.2825 | D169: 16.6136 | E169: 10.129 | F169: 11.3807 | G169: 10.4274 | H169: 12.8228 | I169: 14.0926 | J169: 15.8821 | K169: 12.6264 | L169: 13.8155 | M169: 17.6392 | N169: 18.1646 | O169: 21.2803 | P169: 18.3349 | Q169: 12.3571 | R169: 11.9779 | S169: 16.6404 | T169: 11.2827 | U169: 16.2341 | Z169: 16.2341 | AA169: 14.0289
A170: 2014-09-16 | B170: 11.5743 | C170: 20.035 | D170: 15.7589 | E170: 10.2161 | F170: 11.5825 | G170: 12.4128 | H170: 16.7053 | I170: 15.0657 | J170: 15.4822 | K170: 14.6236 | L170: 14.0804 | M170: 17.0021 | N170: 19.2471 | O170: 17.5994 | P170: 15.7564 | Q170: 12.005 | R170: 12.7218 | S170: 16.5381 | T170: 9.48701 | U170: 16.715 | Z170: 16.715 | AA170: 13.7898
A171: 2014-09-17 | B171: 11.4152 | C171: 20.9573 | D171: 15.597 | E171: 11.3623 | F171: 16.1114 | G171: 12.7465 | H171: 15.1937 | I171: 14.6709 | J171: 13.7635 | K171: 15.2423 | L171: 12.6403 | M171: 16.2857 | N171: 17.1571 | O171: 18.1952 | P171: 12.8085 | Q171: 9.59393 | R171: 12.4935 | S171: 12.3849 | T171: 12.1232 | U171: 16.5438 | Z171: 16.5438 | AA171: 13.5466
A172: 2014-09-18 | B172: 10.4987 | C172: 18.2528 | D172: 14.1676 | E172: 12.2898 | F172: 16.6886 | G172: 17.2546 | H172: 17.8244 | I172: 14.4108 | J172: 13.8568 | K172: 15.8813 | L172: 12.5528 | M172: 13.6819 | N172: 13.2137 | O172: 22.458 | P172: 11.496 | Q172: 9.46562 | R172: 12.3734 | S172: 10.2054 | T172: 12.8 | U172: 12.5948 | Z172: 12.5948 | AA172: 13.302
A173: 2014-09-19 | B173: 11.3397 | C173: 15.6804 | D173: 11.9671 | E173: 14.3114 | F173: 9.94668 | G173: 16.4886 | H173: 16.9006 | I173: 16.0697 | J173: 14.8724 | K173: 14.1845 | L173: 12.4772 | M173: 13.9449 | N173: 10.1685 | O173: 21.4134 | P173: 11.7109 | Q173: 11.0243 | R173: 13.5249 | S173: 9.56048 | T173: 15.3708 | U173: 11.7049 | Z173: 11.7049 | AA173: 13.058
A174: 2014-09-20 | B174: 9.01024 | C174: 15.345 | D174: 11.253 | E174: 14.3798 | F174: 7.71363 | G174: 14.9522 | H174: 12.5016 | I174: 15.3624 | J174: 17.9272 | K174: 10.0411 | L174: 8.00957 | M174: 15.045 | N174: 9.20045 | O174: 17.5929 | P174: 15.8102 | Q174: 11.4333 | R174: 14.7352 | S174: 9.52695 | T174: 15.515 | U174: 10.8207 | Z174: 10.8207 | AA174: 12.8152
A175: 2014-09-21 | B175: 8.21629 | C175: 16.1521 | D175: 6.67464 | E175: 9.845 | F175: 8.27089 | G175: 12.9583 | H175: 10.4231 | I175: 13.7136 | J175: 19.5583 | K175: 12.3737 | L175: 7.87412 | M175: 15.4793 | N175: 10.5859 | O175: 14.9694 | P175: 14.5062 | Q175: 11.3455 | R175: 15.6706 | S175: 9.61388 | T175: 12.4085 | U175: 10.531 | Z175: 10.531 | AA175: 12.5724
A176: 2014-09-22 | B176: 8.77102 | C176: 12.5088 | D176: 6.48948 | E176: 8.79253 | F176: 9.05889 | G176: 10.9373 | H176: 9.72148 | I176: 12.1854 | J176: 13.4028 | K176: 15.6828 | L176: 14.0032 | M176: 10.8757 | N176: 10.7987 | O176: 15.1766 | P176: 10.3146 | Q176: 11.1911 | R176: 15.2768 | S176: 10.9275 | T176: 12.4557 | U176: 11.3398 | Z176: 11.3398 | AA176: 12.3279
A177: 2014-09-23 | B177: 10.5872 | C177: 12.4887 | D177: 10.9081 | E177: 8.19319 | F177: 8.35706 | G177: 14.6007 | H177: 13.6024 | I177: 10.7506 | J177: 8.098 | K177: 13.1908 | L177: 14.5291 | M177: 8.70234 | N177: 10.1655 | O177: 14.6721 | P177: 11.2363 | Q177: 12.1727 | R177: 14.8423 | S177: 12.4543 | T177: 13.7323 | U177: 13.205 | Z177: 13.205 | AA177: 12.0824
A178: 2014-09-24 | B178: 14.1797 | C178: 13.925 | D178: 13.6009 | E178: 7.88883 | F178: 9.13737 | G178: 12.2462 | H178: 11.2332 | I178: 11.816 | J178: 9.4283 | K178: 9.63622 | L178: 13.6504 | M178: 7.2773 | N178: 9.92937 | O178: 14.3294 | P178: 14.3989 | Q178: 13.8168 | R178: 15.1757 | S178: 14.3528 | T178: 13.9381 | U178: 14.51 | Z178: 14.51 | AA178: 11.8394
A179: 2014-09-25 | B179: 16.5724 | C179: 12.9178 | D179: 12.014 | E179: 8.26405 | F179: 10.8122 | G179: 13.3273 | H179: 10.1233 | I179: 8.49468 | J179: 10.1803 | K179: 9.66718 | L179: 14.135 | M179: 6.40043 | N179: 11.1127 | O179: 11.9604 | P179: 9.72826 | Q179: 13.8022 | R179: 13.4963 | S179: 16.0186 | T179: 12.4656 | U179: 12.4833 | Z179: 12.4833 | AA179: 11.6034
A180: 2014-09-26 | B180: 13.6247 | C180: 12.4862 | D180: 10.524 | E180: 9.2807 | F180: 14.3283 | G180: 11.7039 | H180: 9.29607 | I180: 10.2878 | J180: 7.54876 | K180: 9.03366 | L180: 11.536 | M180: 7.58116 | N180: 12.4902 | O180: 13.5016 | P180: 6.4501 | Q180: 9.43769 | R180: 14.8733 | S180: 15.5048 | T180: 10.9849 | U180: 9.14542 | Z180: 9.14542 | AA180: 11.3752
A181: 2014-09-27 | B181: 14.6966 | C181: 12.1004 | D181: 11.5626 | E181: 11.1224 | F181: 11.9301 | G181: 13.0349 | H181: 10.029 | I181: 11.5526 | J181: 11.5274 | K181: 7.61352 | L181: 8.78325 | M181: 11.223 | N181: 12.6043 | O181: 15.2216 | P181: 6.55815 | Q181: 10.8274 | R181: 13.5942 | S181: 14.3478 | T181: 12.9192 | U181: 9.51466 | Z181: 9.51466 | AA181: 11.1506
A182: 2014-09-28 | B182: 14.0601 | C182: 10.9685 | D182: 7.11755 | E182: 12.0389 | F182: 11.3518 | G182: 12.715 | H182: 11.7629 | I182: 10.3843 | J182: 12.3361 | K182: 8.0634 | L182: 10.4601 | M182: 14.4392 | N182: 10.9707 | O182: 13.9775 | P182: 11.9305 | Q182: 12.9518 | R182: 9.82937 | S182: 15.0925 | T182: 8.08293 | U182: 9.54664 | Z182: 9.54664 | AA182: 10.9262
A183: 2014-09-29 | B183: 14.4381 | C183: 10.2013 | D183: 6.4526 | E183: 13.5773 | F183: 11.4864 | G183: 14.3935 | H183: 11.4653 | I183: 11.9072 | J183: 8.9058 | K183: 7.61482 | L183: 12.4139 | M183: 10.8764 | N183: 12.378 | O183: 15.8939 | P183: 12.9228 | Q183: 10.4057 | R183: 9.10667 | S183: 11.3409 | T183: 6.04346 | U183: 9.38818 | Z183: 9.38818 | AA183: 10.7019
A184: 2014-09-30 | B184: 14.8306 | C184: 10.1368 | D184: 9.53169 | E184: 12.1621 | F184: 11.5707 | G184: 12.9683 | H184: 12.8138 | I184: 11.8205 | J184: 8.83702 | K184: 10.5716 | L184: 11.5613 | M184: 11.8848 | N184: 12.831 | O184: 15.8231 | P184: 13.6297 | Q184: 7.9648 | R184: 8.03249 | S184: 11.8026 | T184: 8.80334 | U184: 11.5688 | Z184: 11.5688 | AA184: 10.4801
A185: 2014-10-01 | B185: 9.38739 | C185: 12.8124 | D185: 10.6377 | E185: 13.9382 | F185: 11.2451 | G185: 11.8501 | H185: 14.5096 | I185: 12.4096 | J185: 10.9156 | K185: 9.40235 | L185: 10.5848 | M185: 10.9085 | N185: 6.06305 | O185: 14.1433 | P185: 13.8132 | Q185: 6.95419 | R185: 9.4667 | S185: 12.5053 | T185: 12.3735 | U185: 13.0478 | Z185: 13.0478 | AA185: 10.2628
A186: 2014-10-02 | B186: 7.28464 | C186: 12.4745 | D186: 9.11952 | E186: 16.0035 | F186: 10.906 | G186: 9.10663 | H186: 12.9647 | I186: 11.9128 | J186: 11.1112 | K186: 5.75057 | L186: 12.4493 | M186: 7.64614 | N186: 3.35467 | O186: 11.947 | P186: 15.376 | Q186: 8.43058 | R186: 10.9422 | S186: 14.1893 | T186: 13.6009 | U186: 9.95457 | Z186: 9.95457 | AA186: 10.0508
A187: 2014-10-03 | B187: 8.1386 | C187: 12.427 | D187: 8.56835 | E187: 14.6803 | F187: 6.33285 | G187: 6.55484 | H187: 8.88419 | I187: 13.6609 | J187: 8.29961 | K187: 7.13713 | L187: 13.3641 | M187: 8.18415 | N187: 2.47934 | O187: 11.5961 | P187: 11.5376 | Q187: 9.20817 | R187: 9.50209 | S187: 14.748 | T187: 7.22333 | U187: 9.91795 | Z187: 9.91795 | AA187: 9.84445
A188: 2014-10-04 | B188: 7.51894 | C188: 12.6486 | D188: 9.01188 | E188: 10.6838 | F188: 5.62734 | G188: 7.2348 | H188: 11.5641 | I188: 14.6574 | J188: 9.48047 | K188: 10.4045 | L188: 11.1125 | M188: 11.2871 | N188: 6.51558 | O188: 11.9858 | P188: 9.783 | Q188: 8.1717 | R188: 7.00714 | S188: 10.0938 | T188: 4.64342 | U188: 7.80377 | Z188: 7.80377 | AA188: 9.64113
A189: 2014-10-05 | B189: 8.03637 | C189: 10.7144 | D189: 10.8425 | E189: 10.1415 | F189: 5.64576 | G189: 8.89559 | H189: 8.08465 | I189: 11.8488 | J189: 8.49626 | K189: 7.74721 | L189: 7.78342 | M189: 12.2434 | N189: 9.67776 | O189: 11.8863 | P189: 12.2798 | Q189: 6.45202 | R189: 6.90407 | S189: 7.26906 | T189: 5.90332 | U189: 7.68064 | Z189: 7.68064 | AA189: 9.43895
A190: 2014-10-06 | B190: 8.77204 | C190: 9.323 | D190: 11.6789 | E190: 8.69483 | F190: 6.6842 | G190: 9.87862 | H190: 8.50772 | I190: 9.47165 | J190: 8.32197 | K190: 7.54617 | L190: 9.6039 | M190: 12.1837 | N190: 9.11112 | O190: 11.4177 | P190: 10.9649 | Q190: 4.5613 | R190: 7.21485 | S190: 7.06947 | T190: 9.60938 | U190: 11.7494 | Z190: 11.7494 | AA190: 9.24237
A191: 2014-10-07 | B191: 10.8414 | C191: 8.48087 | D191: 8.31227 | E191: 11.1445 | F191: 6.50941 | G191: 13.7015 | H191: 9.70325 | I191: 9.80052 | J191: 10.9889 | K191: 8.40674 | L191: 6.7436 | M191: 10.7977 | N191: 8.59763 | O191: 9.60097 | P191: 12.8365 | Q191: 4.19716 | R191: 8.59599 | S191: 5.62888 | T191: 11.2525 | U191: 10.7527 | Z191: 10.7527 | AA191: 9.05412
A192: 2014-10-08 | B192: 9.35801 | C192: 11.6667 | D192: 6.48982 | E192: 9.75367 | F192: 7.63112 | G192: 15.0577 | H192: 10.9294 | I192: 7.95307 | J192: 9.65427 | K192: 5.98227 | L192: 5.87975 | M192: 11.027 | N192: 7.78045 | O192: 7.36775 | P192: 12.8294 | Q192: 5.57348 | R192: 7.81496 | S192: 8.99228 | T192: 14.0162 | U192: 11.5722 | Z192: 11.5722 | AA192: 8.87074
A193: 2014-10-09 | B193: 6.12814 | C193: 14.0774 | D193: 6.60891 | E193: 7.91768 | F193: 10.3226 | G193: 12.3725 | H193: 7.97117 | I193: 9.23549 | J193: 7.85111 | K193: 7.86853 | L193: 6.09453 | M193: 12.5236 | N193: 9.85952 | O193: 8.52282 | P193: 7.81198 | Q193: 8.14608 | R193: 8.99607 | S193: 8.50643 | T193: 12.3303 | U193: 9.65054 | Z193: 9.65054 | AA193: 8.68677
A194: 2014-10-10 | B194: 7.39657 | C194: 9.55965 | D194: 7.74726 | E194: 6.47101 | F194: 12.141 | G194: 9.87776 | H194: 7.72202 | I194: 11.864 | J194: 7.70936 | K194: 12.6855 | L194: 5.74956 | M194: 12.8394 | N194: 10.6434 | O194: 7.52292 | P194: 8.38209 | Q194: 9.01889 | R194: 10.3424 | S194: 4.12554 | T194: 8.28631 | U194: 7.96537 | Z194: 7.96537 | AA194: 8.49962
A195: 2014-10-11 | B195: 9.51852 | C195: 9.19929 | D195: 7.55571 | E195: 9.03266 | F195: 12.5551 | G195: 11.239 | H195: 9.8149 | I195: 11.5952 | J195: 7.8753 | K195: 10.7764 | L195: 5.53334 | M195: 13.8724 | N195: 6.10922 | O195: 8.24976 | P195: 9.76893 | Q195: 7.63413 | R195: 9.74741 | S195: 6.13277 | T195: 5.5671 | U195: 12.3856 | Z195: 12.3856 | AA195: 8.30667
A196: 2014-10-12 | B196: 12.4364 | C196: 6.76959 | D196: 11.2826 | E196: 12.342 | F196: 10.0336 | G196: 14.1 | H196: 9.36313 | I196: 7.2661 | J196: 4.29224 | K196: 9.64567 | L196: 7.37421 | M196: 14.323 | N196: 5.51801 | O196: 9.15842 | P196: 11.8449 | Q196: 8.46119 | R196: 8.59582 | S196: 4.15334 | T196: 5.6703 | U196: 9.90559 | Z196: 9.90559 | AA196: 8.10462
A197: 2014-10-13 | B197: 9.24555 | C197: 5.75546 | D197: 11.3288 | E197: 11.0029 | F197: 6.29747 | G197: 9.11052 | H197: 10.9815 | I197: 3.55168 | J197: 4.4885 | K197: 13.3211 | L197: 5.4208 | M197: 9.73377 | N197: 8.36876 | O197: 8.18677 | P197: 7.63776 | Q197: 8.01183 | R197: 4.73421 | S197: 4.34099 | T197: 4.21657 | U197: 7.11351 | Z197: 7.11351 | AA197: 7.89328
A198: 2014-10-14 | B198: 6.3007 | C198: 6.88829 | D198: 10.1286 | E198: 8.05973 | F198: 4.13506 | G198: 5.61722 | H198: 13.7093 | I198: 5.91021 | J198: 4.10456 | K198: 14.7287 | L198: 4.21811 | M198: 6.02175 | N198: 9.40376 | O198: 10.3113 | P198: 9.16539 | Q198: 4.74948 | R198: 3.34998 | S198: 3.46843 | T198: 6.35467 | U198: 8.14386 | Z198: 8.14386 | AA198: 7.67366
A199: 2014-10-15 | B199: 5.59293 | C199: 7.63568 | D199: 6.39365 | E199: 8.37174 | F199: 5.89492 | G199: 9.95838 | H199: 10.6367 | I199: 8.47297 | J199: 3.11088 | K199: 11.373 | L199: 4.13186 | M199: 6.7835 | N199: 11.2698 | O199: 7.91305 | P199: 7.29382 | Q199: 3.09286 | R199: 4.36095 | S199: 7.5856 | T199: 4.56067 | U199: 9.51191 | Z199: 9.51191 | AA199: 7.44462
A200: 2014-10-16 | B200: 4.87189 | C200: 4.75072 | D200: 10.148 | E200: 10.2003 | F200: 6.68687 | G200: 6.656 | H200: 8.55953 | I200: 4.90614 | J200: 2.76032 | K200: 4.13973 | L200: 4.52821 | M200: 10.1114 | N200: 13.9501 | O200: 8.52173 | P200: 2.61159 | Q200: 5.02447 | R200: 6.98766 | S200: 14.1537 | T200: 3.59843 | U200: 8.83845 | Z200: 8.83845 | AA200: 7.20647
... 16 more rows

Sheet 有効積算気温 (hidden)
B1: =データ整理!B1 -> 1999 | C1: =データ整理!C1 -> 2000 | D1: =データ整理!D1 -> 2001 | E1: =データ整理!E1 -> 2002 | F1: =データ整理!F1 -> 2003 | G1: =データ整理!G1 -> 2004 | H1: =データ整理!H1 -> 2005 | I1: =データ整理!I1 -> 2006 | J1: =データ整理!J1 -> 2007 | K1: =データ整理!K1 -> 2008 | L1: =データ整理!L1 -> 2009 | M1: =データ整理!M1 -> 2010 | N1: =データ整理!N1 -> 2011 | O1: =データ整理!O1 -> 2012 | P1: =データ整理!P1 -> 2013 | Q1: =データ整理!Q1 -> 2014 | R1: =データ整理!R1 -> 2015 | S1: =データ整理!S1 -> 2016 | T1: =データ整理!T1 -> 2017 | U1: =データ整理!U1 -> 2018 | Z1: =データ整理!Z1 -> 2018 | AA1: =データ整理!AA1 -> 平年値
A2: 2014-04-01 | B2: =B3+IF(データ整理!B2>5,データ整理!B2-5,0) -> 1722.38699 | C2: =C3+IF(データ整理!C2>5,データ整理!C2-5,0) -> 1753.25965 | D2: =D3+IF(データ整理!D2>5,データ整理!D2-5,0) -> 1534.68388 | E2: =E3+IF(データ整理!E2>5,データ整理!E2-5,0) -> 1532.43882 | F2: =F3+IF(データ整理!F2>5,データ整理!F2-5,0) -> 1513.99429 | G2: =G3+IF(データ整理!G2>5,データ整理!G2-5,0) -> 1669.70015 | H2: =H3+IF(データ整理!H2>5,データ整理!H2-5,0) -> 1657.09605 | I2: =I3+IF(データ整理!I2>5,データ整理!I2-5,0) -> 1682.47608 | J2: =J3+IF(データ整理!J2>5,データ整理!J2-5,0) -> 1555.74059 | K2: =K3+IF(データ整理!K2>5,データ整理!K2-5,0) -> 1573.42708 | L2: =L3+IF(データ整理!L2>5,データ整理!L2-5,0) -> 1540.08195 | M2: =M3+IF(データ整理!M2>5,データ整理!M2-5,0) -> 1776.93635 | N2: =N3+IF(データ整理!N2>5,データ整理!N2-5,0) -> 1610.94724 | O2: =O3+IF(データ整理!O2>5,データ整理!O2-5,0) -> 1752.5484 | P2: =P3+IF(データ整理!P2>5,データ整理!P2-5,0) -> 1666.16646 | Q2: =Q3+IF(データ整理!Q2>5,データ整理!Q2-5,0) -> 1632.88477 | R2: =R3+IF(データ整理!R2>5,データ整理!R2-5,0) -> 1553.17924 | S2: =S3+IF(データ整理!S2>5,データ整理!S2-5,0) -> 1645.07661 | T2: =T3+IF(データ整理!T2>5,データ整理!T2-5,0) -> 1534.03215 | U2: =U3+IF(データ整理!U2>5,データ整理!U2-5,0) -> 1515.61604 | Y2: =DATE($Z$1,4,1) -> 2018-04-01 | Z2: =Z3+IF(データ整理!Z2>5,データ整理!Z2-5,0) -> 1515.61604 | AA2: =AA3+IF(データ整理!AA2>5,データ整理!AA2-5,0) -> 1540.00982
A3: 2014-04-02 | B3: =B4+IF(データ整理!B3>5,データ整理!B3-5,0) -> 1722.38699 | C3: =C4+IF(データ整理!C3>5,データ整理!C3-5,0) -> 1753.25965 | D3: =D4+IF(データ整理!D3>5,データ整理!D3-5,0) -> 1534.68388 | E3: =E4+IF(データ整理!E3>5,データ整理!E3-5,0) -> 1532.43882 | F3: =F4+IF(データ整理!F3>5,データ整理!F3-5,0) -> 1513.99429 | G3: =G4+IF(データ整理!G3>5,データ整理!G3-5,0) -> 1669.70015 | H3: =H4+IF(データ整理!H3>5,データ整理!H3-5,0) -> 1657.09605 | I3: =I4+IF(データ整理!I3>5,データ整理!I3-5,0) -> 1682.47608 | J3: =J4+IF(データ整理!J3>5,データ整理!J3-5,0) -> 1555.74059 | K3: =K4+IF(データ整理!K3>5,データ整理!K3-5,0) -> 1573.42708 | L3: =L4+IF(データ整理!L3>5,データ整理!L3-5,0) -> 1540.08195 | M3: =M4+IF(データ整理!M3>5,データ整理!M3-5,0) -> 1776.93635 | N3: =N4+IF(データ整理!N3>5,データ整理!N3-5,0) -> 1610.94724 | O3: =O4+IF(データ整理!O3>5,データ整理!O3-5,0) -> 1752.5484 | P3: =P4+IF(データ整理!P3>5,データ整理!P3-5,0) -> 1666.16646 | Q3: =Q4+IF(データ整理!Q3>5,データ整理!Q3-5,0) -> 1632.88477 | R3: =R4+IF(データ整理!R3>5,データ整理!R3-5,0) -> 1553.17924 | S3: =S4+IF(データ整理!S3>5,データ整理!S3-5,0) -> 1645.07661 | T3: =T4+IF(データ整理!T3>5,データ整理!T3-5,0) -> 1534.03215 | U3: =U4+IF(データ整理!U3>5,データ整理!U3-5,0) -> 1515.61604 | Y3: =Y2+1 -> 2018-04-02 | Z3: =Z4+IF(データ整理!Z3>5,データ整理!Z3-5,0) -> 1515.61604 | AA3: =AA4+IF(データ整理!AA3>5,データ整理!AA3-5,0) -> 1540.00982
A4: 2014-04-03 | B4: =B5+IF(データ整理!B4>5,データ整理!B4-5,0) -> 1722.38699 | C4: =C5+IF(データ整理!C4>5,データ整理!C4-5,0) -> 1753.25965 | D4: =D5+IF(データ整理!D4>5,データ整理!D4-5,0) -> 1534.68388 | E4: =E5+IF(データ整理!E4>5,データ整理!E4-5,0) -> 1532.43882 | F4: =F5+IF(データ整理!F4>5,データ整理!F4-5,0) -> 1513.99429 | G4: =G5+IF(データ整理!G4>5,データ整理!G4-5,0) -> 1669.70015 | H4: =H5+IF(データ整理!H4>5,データ整理!H4-5,0) -> 1657.09605 | I4: =I5+IF(データ整理!I4>5,データ整理!I4-5,0) -> 1682.47608 | J4: =J5+IF(データ整理!J4>5,データ整理!J4-5,0) -> 1555.74059 | K4: =K5+IF(データ整理!K4>5,データ整理!K4-5,0) -> 1573.42708 | L4: =L5+IF(データ整理!L4>5,データ整理!L4-5,0) -> 1540.08195 | M4: =M5+IF(データ整理!M4>5,データ整理!M4-5,0) -> 1776.93635 | N4: =N5+IF(データ整理!N4>5,データ整理!N4-5,0) -> 1610.94724 | O4: =O5+IF(データ整理!O4>5,データ整理!O4-5,0) -> 1752.5484 | P4: =P5+IF(データ整理!P4>5,データ整理!P4-5,0) -> 1666.16646 | Q4: =Q5+IF(データ整理!Q4>5,データ整理!Q4-5,0) -> 1632.88477 | R4: =R5+IF(データ整理!R4>5,データ整理!R4-5,0) -> 1553.17924 | S4: =S5+IF(データ整理!S4>5,データ整理!S4-5,0) -> 1645.07661 | T4: =T5+IF(データ整理!T4>5,データ整理!T4-5,0) -> 1534.03215 | U4: =U5+IF(データ整理!U4>5,データ整理!U4-5,0) -> 1515.61604 | Y4: =Y3+1 -> 2018-04-03 | Z4: =Z5+IF(データ整理!Z4>5,データ整理!Z4-5,0) -> 1515.61604 | AA4: =AA5+IF(データ整理!AA4>5,データ整理!AA4-5,0) -> 1540.00982
A5: 2014-04-04 | B5: =B6+IF(データ整理!B5>5,データ整理!B5-5,0) -> 1722.38699 | C5: =C6+IF(データ整理!C5>5,データ整理!C5-5,0) -> 1753.25965 | D5: =D6+IF(データ整理!D5>5,データ整理!D5-5,0) -> 1534.68388 | E5: =E6+IF(データ整理!E5>5,データ整理!E5-5,0) -> 1532.43882 | F5: =F6+IF(データ整理!F5>5,データ整理!F5-5,0) -> 1513.99429 | G5: =G6+IF(データ整理!G5>5,データ整理!G5-5,0) -> 1669.70015 | H5: =H6+IF(データ整理!H5>5,データ整理!H5-5,0) -> 1657.09605 | I5: =I6+IF(データ整理!I5>5,データ整理!I5-5,0) -> 1682.47608 | J5: =J6+IF(データ整理!J5>5,データ整理!J5-5,0) -> 1555.74059 | K5: =K6+IF(データ整理!K5>5,データ整理!K5-5,0) -> 1573.42708 | L5: =L6+IF(データ整理!L5>5,データ整理!L5-5,0) -> 1540.08195 | M5: =M6+IF(データ整理!M5>5,データ整理!M5-5,0) -> 1776.93635 | N5: =N6+IF(データ整理!N5>5,データ整理!N5-5,0) -> 1610.94724 | O5: =O6+IF(データ整理!O5>5,データ整理!O5-5,0) -> 1752.5484 | P5: =P6+IF(データ整理!P5>5,データ整理!P5-5,0) -> 1666.16646 | Q5: =Q6+IF(データ整理!Q5>5,データ整理!Q5-5,0) -> 1632.88477 | R5: =R6+IF(データ整理!R5>5,データ整理!R5-5,0) -> 1553.17924 | S5: =S6+IF(データ整理!S5>5,データ整理!S5-5,0) -> 1645.07661 | T5: =T6+IF(データ整理!T5>5,データ整理!T5-5,0) -> 1534.03215 | U5: =U6+IF(データ整理!U5>5,データ整理!U5-5,0) -> 1515.61604 | Y5: 2018-04-04 | Z5: =Z6+IF(データ整理!Z5>5,データ整理!Z5-5,0) -> 1515.61604 | AA5: =AA6+IF(データ整理!AA5>5,データ整理!AA5-5,0) -> 1540.00982
A6: 2014-04-05 | B6: =B7+IF(データ整理!B6>5,データ整理!B6-5,0) -> 1722.38699 | C6: =C7+IF(データ整理!C6>5,データ整理!C6-5,0) -> 1753.25965 | D6: =D7+IF(データ整理!D6>5,データ整理!D6-5,0) -> 1534.68388 | E6: =E7+IF(データ整理!E6>5,データ整理!E6-5,0) -> 1532.43882 | F6: =F7+IF(データ整理!F6>5,データ整理!F6-5,0) -> 1513.99429 | G6: =G7+IF(データ整理!G6>5,データ整理!G6-5,0) -> 1669.70015 | H6: =H7+IF(データ整理!H6>5,データ整理!H6-5,0) -> 1657.09605 | I6: =I7+IF(データ整理!I6>5,データ整理!I6-5,0) -> 1682.47608 | J6: =J7+IF(データ整理!J6>5,データ整理!J6-5,0) -> 1555.74059 | K6: =K7+IF(データ整理!K6>5,データ整理!K6-5,0) -> 1573.42708 | L6: =L7+IF(データ整理!L6>5,データ整理!L6-5,0) -> 1540.08195 | M6: =M7+IF(データ整理!M6>5,データ整理!M6-5,0) -> 1776.93635 | N6: =N7+IF(データ整理!N6>5,データ整理!N6-5,0) -> 1610.94724 | O6: =O7+IF(データ整理!O6>5,データ整理!O6-5,0) -> 1752.5484 | P6: =P7+IF(データ整理!P6>5,データ整理!P6-5,0) -> 1666.16646 | Q6: =Q7+IF(データ整理!Q6>5,データ整理!Q6-5,0) -> 1632.88477 | R6: =R7+IF(データ整理!R6>5,データ整理!R6-5,0) -> 1553.17924 | S6: =S7+IF(データ整理!S6>5,データ整理!S6-5,0) -> 1645.07661 | T6: =T7+IF(データ整理!T6>5,データ整理!T6-5,0) -> 1534.03215 | U6: =U7+IF(データ整理!U6>5,データ整理!U6-5,0) -> 1515.61604 | Y6: 2018-04-05 | Z6: =Z7+IF(データ整理!Z6>5,データ整理!Z6-5,0) -> 1515.61604 | AA6: =AA7+IF(データ整理!AA6>5,データ整理!AA6-5,0) -> 1540.00982
A7: 2014-04-06 | B7: =B8+IF(データ整理!B7>5,データ整理!B7-5,0) -> 1722.38699 | C7: =C8+IF(データ整理!C7>5,データ整理!C7-5,0) -> 1753.25965 | D7: =D8+IF(データ整理!D7>5,データ整理!D7-5,0) -> 1534.68388 | E7: =E8+IF(データ整理!E7>5,データ整理!E7-5,0) -> 1532.43882 | F7: =F8+IF(データ整理!F7>5,データ整理!F7-5,0) -> 1513.99429 | G7: =G8+IF(データ整理!G7>5,データ整理!G7-5,0) -> 1669.70015 | H7: =H8+IF(データ整理!H7>5,データ整理!H7-5,0) -> 1657.09605 | I7: =I8+IF(データ整理!I7>5,データ整理!I7-5,0) -> 1682.47608 | J7: =J8+IF(データ整理!J7>5,データ整理!J7-5,0) -> 1555.74059 | K7: =K8+IF(データ整理!K7>5,データ整理!K7-5,0) -> 1573.42708 | L7: =L8+IF(データ整理!L7>5,データ整理!L7-5,0) -> 1540.08195 | M7: =M8+IF(データ整理!M7>5,データ整理!M7-5,0) -> 1776.93635 | N7: =N8+IF(データ整理!N7>5,データ整理!N7-5,0) -> 1610.94724 | O7: =O8+IF(データ整理!O7>5,データ整理!O7-5,0) -> 1752.5484 | P7: =P8+IF(データ整理!P7>5,データ整理!P7-5,0) -> 1666.16646 | Q7: =Q8+IF(データ整理!Q7>5,データ整理!Q7-5,0) -> 1632.88477 | R7: =R8+IF(データ整理!R7>5,データ整理!R7-5,0) -> 1553.17924 | S7: =S8+IF(データ整理!S7>5,データ整理!S7-5,0) -> 1645.07661 | T7: =T8+IF(データ整理!T7>5,データ整理!T7-5,0) -> 1534.03215 | U7: =U8+IF(データ整理!U7>5,データ整理!U7-5,0) -> 1515.61604 | Y7: 2018-04-06 | Z7: =Z8+IF(データ整理!Z7>5,データ整理!Z7-5,0) -> 1515.61604 | AA7: =AA8+IF(データ整理!AA7>5,データ整理!AA7-5,0) -> 1540.00982
A8: 2014-04-07 | B8: =B9+IF(データ整理!B8>5,データ整理!B8-5,0) -> 1722.38699 | C8: =C9+IF(データ整理!C8>5,データ整理!C8-5,0) -> 1753.25965 | D8: =D9+IF(データ整理!D8>5,データ整理!D8-5,0) -> 1534.68388 | E8: =E9+IF(データ整理!E8>5,データ整理!E8-5,0) -> 1532.43882 | F8: =F9+IF(データ整理!F8>5,データ整理!F8-5,0) -> 1513.99429 | G8: =G9+IF(データ整理!G8>5,データ整理!G8-5,0) -> 1669.70015 | H8: =H9+IF(データ整理!H8>5,データ整理!H8-5,0) -> 1657.09605 | I8: =I9+IF(データ整理!I8>5,データ整理!I8-5,0) -> 1682.47608 | J8: =J9+IF(データ整理!J8>5,データ整理!J8-5,0) -> 1555.74059 | K8: =K9+IF(データ整理!K8>5,データ整理!K8-5,0) -> 1573.42708 | L8: =L9+IF(データ整理!L8>5,データ整理!L8-5,0) -> 1540.08195 | M8: =M9+IF(データ整理!M8>5,データ整理!M8-5,0) -> 1776.93635 | N8: =N9+IF(データ整理!N8>5,データ整理!N8-5,0) -> 1610.94724 | O8: =O9+IF(データ整理!O8>5,データ整理!O8-5,0) -> 1752.5484 | P8: =P9+IF(データ整理!P8>5,データ整理!P8-5,0) -> 1666.16646 | Q8: =Q9+IF(データ整理!Q8>5,データ整理!Q8-5,0) -> 1632.88477 | R8: =R9+IF(データ整理!R8>5,データ整理!R8-5,0) -> 1553.17924 | S8: =S9+IF(データ整理!S8>5,データ整理!S8-5,0) -> 1645.07661 | T8: =T9+IF(データ整理!T8>5,データ整理!T8-5,0) -> 1532.27532 | U8: =U9+IF(データ整理!U8>5,データ整理!U8-5,0) -> 1515.61604 | Y8: 2018-04-07 | Z8: =Z9+IF(データ整理!Z8>5,データ整理!Z8-5,0) -> 1515.61604 | AA8: =AA9+IF(データ整理!AA8>5,データ整理!AA8-5,0) -> 1540.00982
A9: 2014-04-08 | B9: =B10+IF(データ整理!B9>5,データ整理!B9-5,0) -> 1722.38699 | C9: =C10+IF(データ整理!C9>5,データ整理!C9-5,0) -> 1753.25965 | D9: =D10+IF(データ整理!D9>5,データ整理!D9-5,0) -> 1534.68388 | E9: =E10+IF(データ整理!E9>5,データ整理!E9-5,0) -> 1532.43882 | F9: =F10+IF(データ整理!F9>5,データ整理!F9-5,0) -> 1513.99429 | G9: =G10+IF(データ整理!G9>5,データ整理!G9-5,0) -> 1669.70015 | H9: =H10+IF(データ整理!H9>5,データ整理!H9-5,0) -> 1657.09605 | I9: =I10+IF(データ整理!I9>5,データ整理!I9-5,0) -> 1682.47608 | J9: =J10+IF(データ整理!J9>5,データ整理!J9-5,0) -> 1555.74059 | K9: =K10+IF(データ整理!K9>5,データ整理!K9-5,0) -> 1573.42708 | L9: =L10+IF(データ整理!L9>5,データ整理!L9-5,0) -> 1540.08195 | M9: =M10+IF(データ整理!M9>5,データ整理!M9-5,0) -> 1776.93635 | N9: =N10+IF(データ整理!N9>5,データ整理!N9-5,0) -> 1609.3434 | O9: =O10+IF(データ整理!O9>5,データ整理!O9-5,0) -> 1752.5484 | P9: =P10+IF(データ整理!P9>5,データ整理!P9-5,0) -> 1666.16646 | Q9: =Q10+IF(データ整理!Q9>5,データ整理!Q9-5,0) -> 1632.88477 | R9: =R10+IF(データ整理!R9>5,データ整理!R9-5,0) -> 1553.17924 | S9: =S10+IF(データ整理!S9>5,データ整理!S9-5,0) -> 1645.07661 | T9: =T10+IF(データ整理!T9>5,データ整理!T9-5,0) -> 1532.27532 | U9: =U10+IF(データ整理!U9>5,データ整理!U9-5,0) -> 1515.61604 | Y9: 2018-04-08 | Z9: =Z10+IF(データ整理!Z9>5,データ整理!Z9-5,0) -> 1515.61604 | AA9: =AA10+IF(データ整理!AA9>5,データ整理!AA9-5,0) -> 1540.00982
A10: 2014-04-09 | B10: =B11+IF(データ整理!B10>5,データ整理!B10-5,0) -> 1722.38699 | C10: =C11+IF(データ整理!C10>5,データ整理!C10-5,0) -> 1753.25965 | D10: =D11+IF(データ整理!D10>5,データ整理!D10-5,0) -> 1534.68388 | E10: =E11+IF(データ整理!E10>5,データ整理!E10-5,0) -> 1532.43882 | F10: =F11+IF(データ整理!F10>5,データ整理!F10-5,0) -> 1513.99429 | G10: =G11+IF(データ整理!G10>5,データ整理!G10-5,0) -> 1669.70015 | H10: =H11+IF(データ整理!H10>5,データ整理!H10-5,0) -> 1657.09605 | I10: =I11+IF(データ整理!I10>5,データ整理!I10-5,0) -> 1682.47608 | J10: =J11+IF(データ整理!J10>5,データ整理!J10-5,0) -> 1555.74059 | K10: =K11+IF(データ整理!K10>5,データ整理!K10-5,0) -> 1573.42708 | L10: =L11+IF(データ整理!L10>5,データ整理!L10-5,0) -> 1540.08195 | M10: =M11+IF(データ整理!M10>5,データ整理!M10-5,0) -> 1776.93635 | N10: =N11+IF(データ整理!N10>5,データ整理!N10-5,0) -> 1609.3434 | O10: =O11+IF(データ整理!O10>5,データ整理!O10-5,0) -> 1752.5484 | P10: =P11+IF(データ整理!P10>5,データ整理!P10-5,0) -> 1666.16646 | Q10: =Q11+IF(データ整理!Q10>5,データ整理!Q10-5,0) -> 1632.88477 | R10: =R11+IF(データ整理!R10>5,データ整理!R10-5,0) -> 1553.17924 | S10: =S11+IF(データ整理!S10>5,データ整理!S10-5,0) -> 1645.07661 | T10: =T11+IF(データ整理!T10>5,データ整理!T10-5,0) -> 1532.27532 | U10: =U11+IF(データ整理!U10>5,データ整理!U10-5,0) -> 1515.61604 | Y10: 2018-04-09 | Z10: =Z11+IF(データ整理!Z10>5,データ整理!Z10-5,0) -> 1515.61604 | AA10: =AA11+IF(データ整理!AA10>5,データ整理!AA10-5,0) -> 1540.00982
A11: 2014-04-10 | B11: =B12+IF(データ整理!B11>5,データ整理!B11-5,0) -> 1722.38699 | C11: =C12+IF(データ整理!C11>5,データ整理!C11-5,0) -> 1753.25965 | D11: =D12+IF(データ整理!D11>5,データ整理!D11-5,0) -> 1533.8484 | E11: =E12+IF(データ整理!E11>5,データ整理!E11-5,0) -> 1532.43882 | F11: =F12+IF(データ整理!F11>5,データ整理!F11-5,0) -> 1513.99429 | G11: =G12+IF(データ整理!G11>5,データ整理!G11-5,0) -> 1669.70015 | H11: =H12+IF(データ整理!H11>5,データ整理!H11-5,0) -> 1657.09605 | I11: =I12+IF(データ整理!I11>5,データ整理!I11-5,0) -> 1682.47608 | J11: =J12+IF(データ整理!J11>5,データ整理!J11-5,0) -> 1555.74059 | K11: =K12+IF(データ整理!K11>5,データ整理!K11-5,0) -> 1573.42708 | L11: =L12+IF(データ整理!L11>5,データ整理!L11-5,0) -> 1540.08195 | M11: =M12+IF(データ整理!M11>5,データ整理!M11-5,0) -> 1776.93635 | N11: =N12+IF(データ整理!N11>5,データ整理!N11-5,0) -> 1609.3434 | O11: =O12+IF(データ整理!O11>5,データ整理!O11-5,0) -> 1752.5484 | P11: =P12+IF(データ整理!P11>5,データ整理!P11-5,0) -> 1666.16646 | Q11: =Q12+IF(データ整理!Q11>5,データ整理!Q11-5,0) -> 1632.88477 | R11: =R12+IF(データ整理!R11>5,データ整理!R11-5,0) -> 1553.17924 | S11: =S12+IF(データ整理!S11>5,データ整理!S11-5,0) -> 1645.07661 | T11: =T12+IF(データ整理!T11>5,データ整理!T11-5,0) -> 1532.27532 | U11: =U12+IF(データ整理!U11>5,データ整理!U11-5,0) -> 1515.61604 | Y11: 2018-04-10 | Z11: =Z12+IF(データ整理!Z11>5,データ整理!Z11-5,0) -> 1515.61604 | AA11: =AA12+IF(データ整理!AA11>5,データ整理!AA11-5,0) -> 1540.00982
A12: 2014-04-11 | B12: =B13+IF(データ整理!B12>5,データ整理!B12-5,0) -> 1722.38699 | C12: =C13+IF(データ整理!C12>5,データ整理!C12-5,0) -> 1753.25965 | D12: =D13+IF(データ整理!D12>5,データ整理!D12-5,0) -> 1533.8484 | E12: =E13+IF(データ整理!E12>5,データ整理!E12-5,0) -> 1532.43882 | F12: =F13+IF(データ整理!F12>5,データ整理!F12-5,0) -> 1513.99429 | G12: =G13+IF(データ整理!G12>5,データ整理!G12-5,0) -> 1669.70015 | H12: =H13+IF(データ整理!H12>5,データ整理!H12-5,0) -> 1657.09605 | I12: =I13+IF(データ整理!I12>5,データ整理!I12-5,0) -> 1682.47608 | J12: =J13+IF(データ整理!J12>5,データ整理!J12-5,0) -> 1555.74059 | K12: =K13+IF(データ整理!K12>5,データ整理!K12-5,0) -> 1573.42708 | L12: =L13+IF(データ整理!L12>5,データ整理!L12-5,0) -> 1538.71439 | M12: =M13+IF(データ整理!M12>5,データ整理!M12-5,0) -> 1776.68392 | N12: =N13+IF(データ整理!N12>5,データ整理!N12-5,0) -> 1609.3434 | O12: =O13+IF(データ整理!O12>5,データ整理!O12-5,0) -> 1752.5484 | P12: =P13+IF(データ整理!P12>5,データ整理!P12-5,0) -> 1666.16646 | Q12: =Q13+IF(データ整理!Q12>5,データ整理!Q12-5,0) -> 1632.88477 | R12: =R13+IF(データ整理!R12>5,データ整理!R12-5,0) -> 1553.17924 | S12: =S13+IF(データ整理!S12>5,データ整理!S12-5,0) -> 1645.07661 | T12: =T13+IF(データ整理!T12>5,データ整理!T12-5,0) -> 1532.27532 | U12: =U13+IF(データ整理!U12>5,データ整理!U12-5,0) -> 1515.61604 | Y12: 2018-04-11 | Z12: =Z13+IF(データ整理!Z12>5,データ整理!Z12-5,0) -> 1515.61604 | AA12: =AA13+IF(データ整理!AA12>5,データ整理!AA12-5,0) -> 1540.00982
A13: 2014-04-12 | B13: =B14+IF(データ整理!B13>5,データ整理!B13-5,0) -> 1722.38699 | C13: =C14+IF(データ整理!C13>5,データ整理!C13-5,0) -> 1753.25965 | D13: =D14+IF(データ整理!D13>5,データ整理!D13-5,0) -> 1533.73322 | E13: =E14+IF(データ整理!E13>5,データ整理!E13-5,0) -> 1532.43882 | F13: =F14+IF(データ整理!F13>5,データ整理!F13-5,0) -> 1513.99429 | G13: =G14+IF(データ整理!G13>5,データ整理!G13-5,0) -> 1669.70015 | H13: =H14+IF(データ整理!H13>5,データ整理!H13-5,0) -> 1657.09605 | I13: =I14+IF(データ整理!I13>5,データ整理!I13-5,0) -> 1682.47608 | J13: =J14+IF(データ整理!J13>5,データ整理!J13-5,0) -> 1555.74059 | K13: =K14+IF(データ整理!K13>5,データ整理!K13-5,0) -> 1573.42708 | L13: =L14+IF(データ整理!L13>5,データ整理!L13-5,0) -> 1538.71439 | M13: =M14+IF(データ整理!M13>5,データ整理!M13-5,0) -> 1776.68392 | N13: =N14+IF(データ整理!N13>5,データ整理!N13-5,0) -> 1609.3434 | O13: =O14+IF(データ整理!O13>5,データ整理!O13-5,0) -> 1752.13284 | P13: =P14+IF(データ整理!P13>5,データ整理!P13-5,0) -> 1666.16646 | Q13: =Q14+IF(データ整理!Q13>5,データ整理!Q13-5,0) -> 1632.88477 | R13: =R14+IF(データ整理!R13>5,データ整理!R13-5,0) -> 1553.17924 | S13: =S14+IF(データ整理!S13>5,データ整理!S13-5,0) -> 1645.07661 | T13: =T14+IF(データ整理!T13>5,データ整理!T13-5,0) -> 1532.27532 | U13: =U14+IF(データ整理!U13>5,データ整理!U13-5,0) -> 1515.61604 | Y13: 2018-04-12 | Z13: =Z14+IF(データ整理!Z13>5,データ整理!Z13-5,0) -> 1515.61604 | AA13: =AA14+IF(データ整理!AA13>5,データ整理!AA13-5,0) -> 1540.00982
A14: 2014-04-13 | B14: =B15+IF(データ整理!B14>5,データ整理!B14-5,0) -> 1720.03039 | C14: =C15+IF(データ整理!C14>5,データ整理!C14-5,0) -> 1753.25965 | D14: =D15+IF(データ整理!D14>5,データ整理!D14-5,0) -> 1533.73322 | E14: =E15+IF(データ整理!E14>5,データ整理!E14-5,0) -> 1532.43882 | F14: =F15+IF(データ整理!F14>5,データ整理!F14-5,0) -> 1513.99429 | G14: =G15+IF(データ整理!G14>5,データ整理!G14-5,0) -> 1669.70015 | H14: =H15+IF(データ整理!H14>5,データ整理!H14-5,0) -> 1657.09605 | I14: =I15+IF(データ整理!I14>5,データ整理!I14-5,0) -> 1682.47608 | J14: =J15+IF(データ整理!J14>5,データ整理!J14-5,0) -> 1555.74059 | K14: =K15+IF(データ整理!K14>5,データ整理!K14-5,0) -> 1573.42708 | L14: =L15+IF(データ整理!L14>5,データ整理!L14-5,0) -> 1538.71439 | M14: =M15+IF(データ整理!M14>5,データ整理!M14-5,0) -> 1776.68392 | N14: =N15+IF(データ整理!N14>5,データ整理!N14-5,0) -> 1609.3434 | O14: =O15+IF(データ整理!O14>5,データ整理!O14-5,0) -> 1752.13284 | P14: =P15+IF(データ整理!P14>5,データ整理!P14-5,0) -> 1666.16646 | Q14: =Q15+IF(データ整理!Q14>5,データ整理!Q14-5,0) -> 1632.88477 | R14: =R15+IF(データ整理!R14>5,データ整理!R14-5,0) -> 1553.17924 | S14: =S15+IF(データ整理!S14>5,データ整理!S14-5,0) -> 1645.07661 | T14: =T15+IF(データ整理!T14>5,データ整理!T14-5,0) -> 1532.27532 | U14: =U15+IF(データ整理!U14>5,データ整理!U14-5,0) -> 1515.61604 | Y14: 2018-04-13 | Z14: =Z15+IF(データ整理!Z14>5,データ整理!Z14-5,0) -> 1515.61604 | AA14: =AA15+IF(データ整理!AA14>5,データ整理!AA14-5,0) -> 1540.00982
A15: 2014-04-14 | B15: =B16+IF(データ整理!B15>5,データ整理!B15-5,0) -> 1720.03039 | C15: =C16+IF(データ整理!C15>5,データ整理!C15-5,0) -> 1753.25965 | D15: =D16+IF(データ整理!D15>5,データ整理!D15-5,0) -> 1533.73322 | E15: =E16+IF(データ整理!E15>5,データ整理!E15-5,0) -> 1532.43882 | F15: =F16+IF(データ整理!F15>5,データ整理!F15-5,0) -> 1513.99429 | G15: =G16+IF(データ整理!G15>5,データ整理!G15-5,0) -> 1669.70015 | H15: =H16+IF(データ整理!H15>5,データ整理!H15-5,0) -> 1657.09605 | I15: =I16+IF(データ整理!I15>5,データ整理!I15-5,0) -> 1682.47608 | J15: =J16+IF(データ整理!J15>5,データ整理!J15-5,0) -> 1555.74059 | K15: =K16+IF(データ整理!K15>5,データ整理!K15-5,0) -> 1573.42708 | L15: =L16+IF(データ整理!L15>5,データ整理!L15-5,0) -> 1537.2798 | M15: =M16+IF(データ整理!M15>5,データ整理!M15-5,0) -> 1776.68392 | N15: =N16+IF(データ整理!N15>5,データ整理!N15-5,0) -> 1609.3434 | O15: =O16+IF(データ整理!O15>5,データ整理!O15-5,0) -> 1752.13284 | P15: =P16+IF(データ整理!P15>5,データ整理!P15-5,0) -> 1666.16646 | Q15: =Q16+IF(データ整理!Q15>5,データ整理!Q15-5,0) -> 1632.88477 | R15: =R16+IF(データ整理!R15>5,データ整理!R15-5,0) -> 1553.17924 | S15: =S16+IF(データ整理!S15>5,データ整理!S15-5,0) -> 1645.07661 | T15: =T16+IF(データ整理!T15>5,データ整理!T15-5,0) -> 1532.27532 | U15: =U16+IF(データ整理!U15>5,データ整理!U15-5,0) -> 1515.61604 | Y15: 2018-04-14 | Z15: =Z16+IF(データ整理!Z15>5,データ整理!Z15-5,0) -> 1515.61604 | AA15: =AA16+IF(データ整理!AA15>5,データ整理!AA15-5,0) -> 1540.00982
A16: 2014-04-15 | B16: =B17+IF(データ整理!B16>5,データ整理!B16-5,0) -> 1720.03039 | C16: =C17+IF(データ整理!C16>5,データ整理!C16-5,0) -> 1753.25965 | D16: =D17+IF(データ整理!D16>5,データ整理!D16-5,0) -> 1533.03091 | E16: =E17+IF(データ整理!E16>5,データ整理!E16-5,0) -> 1532.43882 | F16: =F17+IF(データ整理!F16>5,データ整理!F16-5,0) -> 1513.99429 | G16: =G17+IF(データ整理!G16>5,データ整理!G16-5,0) -> 1669.70015 | H16: =H17+IF(データ整理!H16>5,データ整理!H16-5,0) -> 1657.09605 | I16: =I17+IF(データ整理!I16>5,データ整理!I16-5,0) -> 1682.47608 | J16: =J17+IF(データ整理!J16>5,データ整理!J16-5,0) -> 1555.74059 | K16: =K17+IF(データ整理!K16>5,データ整理!K16-5,0) -> 1573.42708 | L16: =L17+IF(データ整理!L16>5,データ整理!L16-5,0) -> 1537.2798 | M16: =M17+IF(データ整理!M16>5,データ整理!M16-5,0) -> 1776.68392 | N16: =N17+IF(データ整理!N16>5,データ整理!N16-5,0) -> 1609.3434 | O16: =O17+IF(データ整理!O16>5,データ整理!O16-5,0) -> 1752.13284 | P16: =P17+IF(データ整理!P16>5,データ整理!P16-5,0) -> 1666.16646 | Q16: =Q17+IF(データ整理!Q16>5,データ整理!Q16-5,0) -> 1632.88477 | R16: =R17+IF(データ整理!R16>5,データ整理!R16-5,0) -> 1553.17924 | S16: =S17+IF(データ整理!S16>5,データ整理!S16-5,0) -> 1645.07661 | T16: =T17+IF(データ整理!T16>5,データ整理!T16-5,0) -> 1530.72959 | U16: =U17+IF(データ整理!U16>5,データ整理!U16-5,0) -> 1515.61604 | Y16: 2018-04-15 | Z16: =Z17+IF(データ整理!Z16>5,データ整理!Z16-5,0) -> 1515.61604 | AA16: =AA17+IF(データ整理!AA16>5,データ整理!AA16-5,0) -> 1540.00982
A17: 2014-04-16 | B17: =B18+IF(データ整理!B17>5,データ整理!B17-5,0) -> 1720.03039 | C17: =C18+IF(データ整理!C17>5,データ整理!C17-5,0) -> 1753.25965 | D17: =D18+IF(データ整理!D17>5,データ整理!D17-5,0) -> 1533.03091 | E17: =E18+IF(データ整理!E17>5,データ整理!E17-5,0) -> 1530.07976 | F17: =F18+IF(データ整理!F17>5,データ整理!F17-5,0) -> 1513.99429 | G17: =G18+IF(データ整理!G17>5,データ整理!G17-5,0) -> 1669.70015 | H17: =H18+IF(データ整理!H17>5,データ整理!H17-5,0) -> 1657.09605 | I17: =I18+IF(データ整理!I17>5,データ整理!I17-5,0) -> 1682.47608 | J17: =J18+IF(データ整理!J17>5,データ整理!J17-5,0) -> 1555.74059 | K17: =K18+IF(データ整理!K17>5,データ整理!K17-5,0) -> 1573.42708 | L17: =L18+IF(データ整理!L17>5,データ整理!L17-5,0) -> 1537.2798 | M17: =M18+IF(データ整理!M17>5,データ整理!M17-5,0) -> 1776.68392 | N17: =N18+IF(データ整理!N17>5,データ整理!N17-5,0) -> 1608.18925 | O17: =O18+IF(データ整理!O17>5,データ整理!O17-5,0) -> 1752.13284 | P17: =P18+IF(データ整理!P17>5,データ整理!P17-5,0) -> 1666.16646 | Q17: =Q18+IF(データ整理!Q17>5,データ整理!Q17-5,0) -> 1632.88477 | R17: =R18+IF(データ整理!R17>5,データ整理!R17-5,0) -> 1553.17924 | S17: =S18+IF(データ整理!S17>5,データ整理!S17-5,0) -> 1645.07661 | T17: =T18+IF(データ整理!T17>5,データ整理!T17-5,0) -> 1526.00858 | U17: =U18+IF(データ整理!U17>5,データ整理!U17-5,0) -> 1515.61604 | Y17: 2018-04-16 | Z17: =Z18+IF(データ整理!Z17>5,データ整理!Z17-5,0) -> 1515.61604 | AA17: =AA18+IF(データ整理!AA17>5,データ整理!AA17-5,0) -> 1540.00982
A18: 2014-04-17 | B18: =B19+IF(データ整理!B18>5,データ整理!B18-5,0) -> 1720.03039 | C18: =C19+IF(データ整理!C18>5,データ整理!C18-5,0) -> 1753.25965 | D18: =D19+IF(データ整理!D18>5,データ整理!D18-5,0) -> 1533.02463 | E18: =E19+IF(データ整理!E18>5,データ整理!E18-5,0) -> 1527.25419 | F18: =F19+IF(データ整理!F18>5,データ整理!F18-5,0) -> 1512.83942 | G18: =G19+IF(データ整理!G18>5,データ整理!G18-5,0) -> 1669.70015 | H18: =H19+IF(データ整理!H18>5,データ整理!H18-5,0) -> 1657.09605 | I18: =I19+IF(データ整理!I18>5,データ整理!I18-5,0) -> 1682.47608 | J18: =J19+IF(データ整理!J18>5,データ整理!J18-5,0) -> 1555.74059 | K18: =K19+IF(データ整理!K18>5,データ整理!K18-5,0) -> 1573.42708 | L18: =L19+IF(データ整理!L18>5,データ整理!L18-5,0) -> 1537.2798 | M18: =M19+IF(データ整理!M18>5,データ整理!M18-5,0) -> 1776.68392 | N18: =N19+IF(データ整理!N18>5,データ整理!N18-5,0) -> 1608.18925 | O18: =O19+IF(データ整理!O18>5,データ整理!O18-5,0) -> 1752.13284 | P18: =P19+IF(データ整理!P18>5,データ整理!P18-5,0) -> 1666.16646 | Q18: =Q19+IF(データ整理!Q18>5,データ整理!Q18-5,0) -> 1632.88477 | R18: =R19+IF(データ整理!R18>5,データ整理!R18-5,0) -> 1553.17924 | S18: =S19+IF(データ整理!S18>5,データ整理!S18-5,0) -> 1645.07661 | T18: =T19+IF(データ整理!T18>5,データ整理!T18-5,0) -> 1525.12102 | U18: =U19+IF(データ整理!U18>5,データ整理!U18-5,0) -> 1515.61604 | Y18: 2018-04-17 | Z18: =Z19+IF(データ整理!Z18>5,データ整理!Z18-5,0) -> 1515.61604 | AA18: =AA19+IF(データ整理!AA18>5,データ整理!AA18-5,0) -> 1540.00982
A19: 2014-04-18 | B19: =B20+IF(データ整理!B19>5,データ整理!B19-5,0) -> 1720.03039 | C19: =C20+IF(データ整理!C19>5,データ整理!C19-5,0) -> 1753.25965 | D19: =D20+IF(データ整理!D19>5,データ整理!D19-5,0) -> 1532.92753 | E19: =E20+IF(データ整理!E19>5,データ整理!E19-5,0) -> 1524.40268 | F19: =F20+IF(データ整理!F19>5,データ整理!F19-5,0) -> 1508.10388 | G19: =G20+IF(データ整理!G19>5,データ整理!G19-5,0) -> 1669.70015 | H19: =H20+IF(データ整理!H19>5,データ整理!H19-5,0) -> 1657.09605 | I19: =I20+IF(データ整理!I19>5,データ整理!I19-5,0) -> 1682.47608 | J19: =J20+IF(データ整理!J19>5,データ整理!J19-5,0) -> 1555.74059 | K19: =K20+IF(データ整理!K19>5,データ整理!K19-5,0) -> 1573.42708 | L19: =L20+IF(データ整理!L19>5,データ整理!L19-5,0) -> 1537.2798 | M19: =M20+IF(データ整理!M19>5,データ整理!M19-5,0) -> 1776.68392 | N19: =N20+IF(データ整理!N19>5,データ整理!N19-5,0) -> 1608.18925 | O19: =O20+IF(データ整理!O19>5,データ整理!O19-5,0) -> 1752.13284 | P19: =P20+IF(データ整理!P19>5,データ整理!P19-5,0) -> 1666.16646 | Q19: =Q20+IF(データ整理!Q19>5,データ整理!Q19-5,0) -> 1632.88477 | R19: =R20+IF(データ整理!R19>5,データ整理!R19-5,0) -> 1553.17924 | S19: =S20+IF(データ整理!S19>5,データ整理!S19-5,0) -> 1645.07661 | T19: =T20+IF(データ整理!T19>5,データ整理!T19-5,0) -> 1525.12102 | U19: =U20+IF(データ整理!U19>5,データ整理!U19-5,0) -> 1515.61604 | Y19: 2018-04-18 | Z19: =Z20+IF(データ整理!Z19>5,データ整理!Z19-5,0) -> 1515.61604 | AA19: =AA20+IF(データ整理!AA19>5,データ整理!AA19-5,0) -> 1540.00982
A20: 2014-04-19 | B20: =B21+IF(データ整理!B20>5,データ整理!B20-5,0) -> 1720.03039 | C20: =C21+IF(データ整理!C20>5,データ整理!C20-5,0) -> 1753.25965 | D20: =D21+IF(データ整理!D20>5,データ整理!D20-5,0) -> 1530.81129 | E20: =E21+IF(データ整理!E20>5,データ整理!E20-5,0) -> 1524.40268 | F20: =F21+IF(データ整理!F20>5,データ整理!F20-5,0) -> 1507.50954 | G20: =G21+IF(データ整理!G20>5,データ整理!G20-5,0) -> 1669.70015 | H20: =H21+IF(データ整理!H20>5,データ整理!H20-5,0) -> 1657.09605 | I20: =I21+IF(データ整理!I20>5,データ整理!I20-5,0) -> 1682.47608 | J20: =J21+IF(データ整理!J20>5,データ整理!J20-5,0) -> 1555.74059 | K20: =K21+IF(データ整理!K20>5,データ整理!K20-5,0) -> 1573.26929 | L20: =L21+IF(データ整理!L20>5,データ整理!L20-5,0) -> 1537.2798 | M20: =M21+IF(データ整理!M20>5,データ整理!M20-5,0) -> 1776.68392 | N20: =N21+IF(データ整理!N20>5,データ整理!N20-5,0) -> 1608.18925 | O20: =O21+IF(データ整理!O20>5,データ整理!O20-5,0) -> 1752.13284 | P20: =P21+IF(データ整理!P20>5,データ整理!P20-5,0) -> 1666.16646 | Q20: =Q21+IF(データ整理!Q20>5,データ整理!Q20-5,0) -> 1632.88477 | R20: =R21+IF(データ整理!R20>5,データ整理!R20-5,0) -> 1553.17924 | S20: =S21+IF(データ整理!S20>5,データ整理!S20-5,0) -> 1645.07661 | T20: =T21+IF(データ整理!T20>5,データ整理!T20-5,0) -> 1525.12102 | U20: =U21+IF(データ整理!U20>5,データ整理!U20-5,0) -> 1515.61604 | Y20: 2018-04-19 | Z20: =Z21+IF(データ整理!Z20>5,データ整理!Z20-5,0) -> 1515.61604 | AA20: =AA21+IF(データ整理!AA20>5,データ整理!AA20-5,0) -> 1540.00982
A21: 2014-04-20 | B21: =B22+IF(データ整理!B21>5,データ整理!B21-5,0) -> 1718.48159 | C21: =C22+IF(データ整理!C21>5,データ整理!C21-5,0) -> 1753.25965 | D21: =D22+IF(データ整理!D21>5,データ整理!D21-5,0) -> 1526.81238 | E21: =E22+IF(データ整理!E21>5,データ整理!E21-5,0) -> 1524.40268 | F21: =F22+IF(データ整理!F21>5,データ整理!F21-5,0) -> 1507.50954 | G21: =G22+IF(データ整理!G21>5,データ整理!G21-5,0) -> 1668.39285 | H21: =H22+IF(データ整理!H21>5,データ整理!H21-5,0) -> 1657.09605 | I21: =I22+IF(データ整理!I21>5,データ整理!I21-5,0) -> 1682.47608 | J21: =J22+IF(データ整理!J21>5,データ整理!J21-5,0) -> 1555.74059 | K21: =K22+IF(データ整理!K21>5,データ整理!K21-5,0) -> 1571.13727 | L21: =L22+IF(データ整理!L21>5,データ整理!L21-5,0) -> 1537.2798 | M21: =M22+IF(データ整理!M21>5,データ整理!M21-5,0) -> 1776.68392 | N21: =N22+IF(データ整理!N21>5,データ整理!N21-5,0) -> 1608.18925 | O21: =O22+IF(データ整理!O21>5,データ整理!O21-5,0) -> 1752.13284 | P21: =P22+IF(データ整理!P21>5,データ整理!P21-5,0) -> 1666.16646 | Q21: =Q22+IF(データ整理!Q21>5,データ整理!Q21-5,0) -> 1632.88477 | R21: =R22+IF(データ整理!R21>5,データ整理!R21-5,0) -> 1553.17924 | S21: =S22+IF(データ整理!S21>5,データ整理!S21-5,0) -> 1645.07661 | T21: =T22+IF(データ整理!T21>5,データ整理!T21-5,0) -> 1525.12102 | U21: =U22+IF(データ整理!U21>5,データ整理!U21-5,0) -> 1515.61604 | Y21: 2018-04-20 | Z21: =Z22+IF(データ整理!Z21>5,データ整理!Z21-5,0) -> 1515.61604 | AA21: =AA22+IF(データ整理!AA21>5,データ整理!AA21-5,0) -> 1540.00982
A22: 2014-04-21 | B22: =B23+IF(データ整理!B22>5,データ整理!B22-5,0) -> 1718.48159 | C22: =C23+IF(データ整理!C22>5,データ整理!C22-5,0) -> 1753.25965 | D22: =D23+IF(データ整理!D22>5,データ整理!D22-5,0) -> 1526.81238 | E22: =E23+IF(データ整理!E22>5,データ整理!E22-5,0) -> 1521.7827 | F22: =F23+IF(データ整理!F22>5,データ整理!F22-5,0) -> 1507.50954 | G22: =G23+IF(データ整理!G22>5,データ整理!G22-5,0) -> 1668.39285 | H22: =H23+IF(データ整理!H22>5,データ整理!H22-5,0) -> 1657.09605 | I22: =I23+IF(データ整理!I22>5,データ整理!I22-5,0) -> 1682.47608 | J22: =J23+IF(データ整理!J22>5,データ整理!J22-5,0) -> 1555.74059 | K22: =K23+IF(データ整理!K22>5,データ整理!K22-5,0) -> 1568.94787 | L22: =L23+IF(データ整理!L22>5,データ整理!L22-5,0) -> 1537.2798 | M22: =M23+IF(データ整理!M22>5,データ整理!M22-5,0) -> 1776.68392 | N22: =N23+IF(データ整理!N22>5,データ整理!N22-5,0) -> 1608.18925 | O22: =O23+IF(データ整理!O22>5,データ整理!O22-5,0) -> 1752.13284 | P22: =P23+IF(データ整理!P22>5,データ整理!P22-5,0) -> 1666.16646 | Q22: =Q23+IF(データ整理!Q22>5,データ整理!Q22-5,0) -> 1632.88477 | R22: =R23+IF(データ整理!R22>5,データ整理!R22-5,0) -> 1553.17924 | S22: =S23+IF(データ整理!S22>5,データ整理!S22-5,0) -> 1645.07661 | T22: =T23+IF(データ整理!T22>5,データ整理!T22-5,0) -> 1525.12102 | U22: =U23+IF(データ整理!U22>5,データ整理!U22-5,0) -> 1514.81851 | Y22: 2018-04-21 | Z22: =Z23+IF(データ整理!Z22>5,データ整理!Z22-5,0) -> 1514.81851 | AA22: =AA23+IF(データ整理!AA22>5,データ整理!AA22-5,0) -> 1540.00982
A23: 2014-04-22 | B23: =B24+IF(データ整理!B23>5,データ整理!B23-5,0) -> 1718.48159 | C23: =C24+IF(データ整理!C23>5,データ整理!C23-5,0) -> 1753.25965 | D23: =D24+IF(データ整理!D23>5,データ整理!D23-5,0) -> 1526.81238 | E23: =E24+IF(データ整理!E23>5,データ整理!E23-5,0) -> 1517.88843 | F23: =F24+IF(データ整理!F23>5,データ整理!F23-5,0) -> 1507.50954 | G23: =G24+IF(データ整理!G23>5,データ整理!G23-5,0) -> 1668.39285 | H23: =H24+IF(データ整理!H23>5,データ整理!H23-5,0) -> 1657.09605 | I23: =I24+IF(データ整理!I23>5,データ整理!I23-5,0) -> 1682.47608 | J23: =J24+IF(データ整理!J23>5,データ整理!J23-5,0) -> 1555.25036 | K23: =K24+IF(データ整理!K23>5,データ整理!K23-5,0) -> 1566.0931 | L23: =L24+IF(データ整理!L23>5,データ整理!L23-5,0) -> 1537.2798 | M23: =M24+IF(データ整理!M23>5,データ整理!M23-5,0) -> 1776.68392 | N23: =N24+IF(データ整理!N23>5,データ整理!N23-5,0) -> 1608.18925 | O23: =O24+IF(データ整理!O23>5,データ整理!O23-5,0) -> 1752.13284 | P23: =P24+IF(データ整理!P23>5,データ整理!P23-5,0) -> 1666.16646 | Q23: =Q24+IF(データ整理!Q23>5,データ整理!Q23-5,0) -> 1632.88477 | R23: =R24+IF(データ整理!R23>5,データ整理!R23-5,0) -> 1553.17924 | S23: =S24+IF(データ整理!S23>5,データ整理!S23-5,0) -> 1642.96244 | T23: =T24+IF(データ整理!T23>5,データ整理!T23-5,0) -> 1525.12102 | U23: =U24+IF(データ整理!U23>5,データ整理!U23-5,0) -> 1512.03399 | Y23: 2018-04-22 | Z23: =Z24+IF(データ整理!Z23>5,データ整理!Z23-5,0) -> 1512.03399 | AA23: =AA24+IF(データ整理!AA23>5,データ整理!AA23-5,0) -> 1540.00982
A24: 2014-04-23 | B24: =B25+IF(データ整理!B24>5,データ整理!B24-5,0) -> 1718.48159 | C24: =C25+IF(データ整理!C24>5,データ整理!C24-5,0) -> 1752.92241 | D24: =D25+IF(データ整理!D24>5,データ整理!D24-5,0) -> 1526.81238 | E24: =E25+IF(データ整理!E24>5,データ整理!E24-5,0) -> 1512.24463 | F24: =F25+IF(データ整理!F24>5,データ整理!F24-5,0) -> 1507.50954 | G24: =G25+IF(データ整理!G24>5,データ整理!G24-5,0) -> 1668.39285 | H24: =H25+IF(データ整理!H24>5,データ整理!H24-5,0) -> 1657.09605 | I24: =I25+IF(データ整理!I24>5,データ整理!I24-5,0) -> 1682.47608 | J24: =J25+IF(データ整理!J24>5,データ整理!J24-5,0) -> 1555.25036 | K24: =K25+IF(データ整理!K24>5,データ整理!K24-5,0) -> 1563.31919 | L24: =L25+IF(データ整理!L24>5,データ整理!L24-5,0) -> 1537.2798 | M24: =M25+IF(データ整理!M24>5,データ整理!M24-5,0) -> 1776.68392 | N24: =N25+IF(データ整理!N24>5,データ整理!N24-5,0) -> 1608.18925 | O24: =O25+IF(データ整理!O24>5,データ整理!O24-5,0) -> 1752.13284 | P24: =P25+IF(データ整理!P24>5,データ整理!P24-5,0) -> 1666.16646 | Q24: =Q25+IF(データ整理!Q24>5,データ整理!Q24-5,0) -> 1632.88477 | R24: =R25+IF(データ整理!R24>5,データ整理!R24-5,0) -> 1553.17924 | S24: =S25+IF(データ整理!S24>5,データ整理!S24-5,0) -> 1642.71636 | T24: =T25+IF(データ整理!T24>5,データ整理!T24-5,0) -> 1525.12102 | U24: =U25+IF(データ整理!U24>5,データ整理!U24-5,0) -> 1512.03399 | Y24: 2018-04-23 | Z24: =Z25+IF(データ整理!Z24>5,データ整理!Z24-5,0) -> 1512.03399 | AA24: =AA25+IF(データ整理!AA24>5,データ整理!AA24-5,0) -> 1540.00982
A25: 2014-04-24 | B25: =B26+IF(データ整理!B25>5,データ整理!B25-5,0) -> 1717.10886 | C25: =C26+IF(データ整理!C25>5,データ整理!C25-5,0) -> 1752.92241 | D25: =D26+IF(データ整理!D25>5,データ整理!D25-5,0) -> 1526.81238 | E25: =E26+IF(データ整理!E25>5,データ整理!E25-5,0) -> 1505.46523 | F25: =F26+IF(データ整理!F25>5,データ整理!F25-5,0) -> 1506.31119 | G25: =G26+IF(データ整理!G25>5,データ整理!G25-5,0) -> 1668.39285 | H25: =H26+IF(データ整理!H25>5,データ整理!H25-5,0) -> 1657.09605 | I25: =I26+IF(データ整理!I25>5,データ整理!I25-5,0) -> 1682.47608 | J25: =J26+IF(データ整理!J25>5,データ整理!J25-5,0) -> 1555.25036 | K25: =K26+IF(データ整理!K25>5,データ整理!K25-5,0) -> 1559.91436 | L25: =L26+IF(データ整理!L25>5,データ整理!L25-5,0) -> 1537.2798 | M25: =M26+IF(データ整理!M25>5,データ整理!M25-5,0) -> 1776.68392 | N25: =N26+IF(データ整理!N25>5,データ整理!N25-5,0) -> 1608.18925 | O25: =O26+IF(データ整理!O25>5,データ整理!O25-5,0) -> 1751.60231 | P25: =P26+IF(データ整理!P25>5,データ整理!P25-5,0) -> 1666.16646 | Q25: =Q26+IF(データ整理!Q25>5,データ整理!Q25-5,0) -> 1632.88477 | R25: =R26+IF(データ整理!R25>5,データ整理!R25-5,0) -> 1551.50581 | S25: =S26+IF(データ整理!S25>5,データ整理!S25-5,0) -> 1642.71636 | T25: =T26+IF(データ整理!T25>5,データ整理!T25-5,0) -> 1525.12102 | U25: =U26+IF(データ整理!U25>5,データ整理!U25-5,0) -> 1512.03399 | Y25: 2018-04-24 | Z25: =Z26+IF(データ整理!Z25>5,データ整理!Z25-5,0) -> 1512.03399 | AA25: =AA26+IF(データ整理!AA25>5,データ整理!AA25-5,0) -> 1540.00982
A26: 2014-04-25 | B26: =B27+IF(データ整理!B26>5,データ整理!B26-5,0) -> 1716.23218 | C26: =C27+IF(データ整理!C26>5,データ整理!C26-5,0) -> 1752.92241 | D26: =D27+IF(データ整理!D26>5,データ整理!D26-5,0) -> 1526.81238 | E26: =E27+IF(データ整理!E26>5,データ整理!E26-5,0) -> 1499.79283 | F26: =F27+IF(データ整理!F26>5,データ整理!F26-5,0) -> 1506.31119 | G26: =G27+IF(データ整理!G26>5,データ整理!G26-5,0) -> 1668.39285 | H26: =H27+IF(データ整理!H26>5,データ整理!H26-5,0) -> 1657.09605 | I26: =I27+IF(データ整理!I26>5,データ整理!I26-5,0) -> 1682.47608 | J26: =J27+IF(データ整理!J26>5,データ整理!J26-5,0) -> 1554.9158 | K26: =K27+IF(データ整理!K26>5,データ整理!K26-5,0) -> 1556.29413 | L26: =L27+IF(データ整理!L26>5,データ整理!L26-5,0) -> 1537.2798 | M26: =M27+IF(データ整理!M26>5,データ整理!M26-5,0) -> 1776.68392 | N26: =N27+IF(データ整理!N26>5,データ整理!N26-5,0) -> 1608.18925 | O26: =O27+IF(データ整理!O26>5,データ整理!O26-5,0) -> 1751.60231 | P26: =P27+IF(データ整理!P26>5,データ整理!P26-5,0) -> 1666.13651 | Q26: =Q27+IF(データ整理!Q26>5,データ整理!Q26-5,0) -> 1631.41664 | R26: =R27+IF(データ整理!R26>5,データ整理!R26-5,0) -> 1550.16207 | S26: =S27+IF(データ整理!S26>5,データ整理!S26-5,0) -> 1642.71636 | T26: =T27+IF(データ整理!T26>5,データ整理!T26-5,0) -> 1525.12102 | U26: =U27+IF(データ整理!U26>5,データ整理!U26-5,0) -> 1512.03399 | Y26: 2018-04-25 | Z26: =Z27+IF(データ整理!Z26>5,データ整理!Z26-5,0) -> 1512.03399 | AA26: =AA27+IF(データ整理!AA26>5,データ整理!AA26-5,0) -> 1540.00982
A27: 2014-04-26 | B27: =B28+IF(データ整理!B27>5,データ整理!B27-5,0) -> 1714.76201 | C27: =C28+IF(データ整理!C27>5,データ整理!C27-5,0) -> 1752.92241 | D27: =D28+IF(データ整理!D27>5,データ整理!D27-5,0) -> 1526.81238 | E27: =E28+IF(データ整理!E27>5,データ整理!E27-5,0) -> 1499.66499 | F27: =F28+IF(データ整理!F27>5,データ整理!F27-5,0) -> 1504.88149 | G27: =G28+IF(データ整理!G27>5,データ整理!G27-5,0) -> 1668.39285 | H27: =H28+IF(データ整理!H27>5,データ整理!H27-5,0) -> 1657.09605 | I27: =I28+IF(データ整理!I27>5,データ整理!I27-5,0) -> 1682.47608 | J27: =J28+IF(データ整理!J27>5,データ整理!J27-5,0) -> 1554.38589 | K27: =K28+IF(データ整理!K27>5,データ整理!K27-5,0) -> 1556.29413 | L27: =L28+IF(データ整理!L27>5,データ整理!L27-5,0) -> 1537.2798 | M27: =M28+IF(データ整理!M27>5,データ整理!M27-5,0) -> 1776.68392 | N27: =N28+IF(データ整理!N27>5,データ整理!N27-5,0) -> 1608.18925 | O27: =O28+IF(データ整理!O27>5,データ整理!O27-5,0) -> 1750.48685 | P27: =P28+IF(データ整理!P27>5,データ整理!P27-5,0) -> 1666.13651 | Q27: =Q28+IF(データ整理!Q27>5,データ整理!Q27-5,0) -> 1629.50684 | R27: =R28+IF(データ整理!R27>5,データ整理!R27-5,0) -> 1548.78659 | S27: =S28+IF(データ整理!S27>5,データ整理!S27-5,0) -> 1642.71636 | T27: =T28+IF(データ整理!T27>5,データ整理!T27-5,0) -> 1523.18314 | U27: =U28+IF(データ整理!U27>5,データ整理!U27-5,0) -> 1511.52252 | Y27: 2018-04-26 | Z27: =Z28+IF(データ整理!Z27>5,データ整理!Z27-5,0) -> 1511.52252 | AA27: =AA28+IF(データ整理!AA27>5,データ整理!AA27-5,0) -> 1540.00982
A28: 2014-04-27 | B28: =B29+IF(データ整理!B28>5,データ整理!B28-5,0) -> 1713.36278 | C28: =C29+IF(データ整理!C28>5,データ整理!C28-5,0) -> 1752.92241 | D28: =D29+IF(データ整理!D28>5,データ整理!D28-5,0) -> 1526.81238 | E28: =E29+IF(データ整理!E28>5,データ整理!E28-5,0) -> 1499.66499 | F28: =F29+IF(データ整理!F28>5,データ整理!F28-5,0) -> 1504.87799 | G28: =G29+IF(データ整理!G28>5,データ整理!G28-5,0) -> 1668.39285 | H28: =H29+IF(データ整理!H28>5,データ整理!H28-5,0) -> 1655.75231 | I28: =I29+IF(データ整理!I28>5,データ整理!I28-5,0) -> 1682.47608 | J28: =J29+IF(データ整理!J28>5,データ整理!J28-5,0) -> 1554.38589 | K28: =K29+IF(データ整理!K28>5,データ整理!K28-5,0) -> 1556.29413 | L28: =L29+IF(データ整理!L28>5,データ整理!L28-5,0) -> 1537.2798 | M28: =M29+IF(データ整理!M28>5,データ整理!M28-5,0) -> 1776.68392 | N28: =N29+IF(データ整理!N28>5,データ整理!N28-5,0) -> 1608.18925 | O28: =O29+IF(データ整理!O28>5,データ整理!O28-5,0) -> 1747.02174 | P28: =P29+IF(データ整理!P28>5,データ整理!P28-5,0) -> 1666.13651 | Q28: =Q29+IF(データ整理!Q28>5,データ整理!Q28-5,0) -> 1627.42695 | R28: =R29+IF(データ整理!R28>5,データ整理!R28-5,0) -> 1543.54819 | S28: =S29+IF(データ整理!S28>5,データ整理!S28-5,0) -> 1642.71636 | T28: =T29+IF(データ整理!T28>5,データ整理!T28-5,0) -> 1521.99586 | U28: =U29+IF(データ整理!U28>5,データ整理!U28-5,0) -> 1511.32438 | Y28: 2018-04-27 | Z28: =Z29+IF(データ整理!Z28>5,データ整理!Z28-5,0) -> 1511.32438 | AA28: =AA29+IF(データ整理!AA28>5,データ整理!AA28-5,0) -> 1540.00982
A29: 2014-04-28 | B29: =B30+IF(データ整理!B29>5,データ整理!B29-5,0) -> 1712.91745 | C29: =C30+IF(データ整理!C29>5,データ整理!C29-5,0) -> 1752.92241 | D29: =D30+IF(データ整理!D29>5,データ整理!D29-5,0) -> 1525.29288 | E29: =E30+IF(データ整理!E29>5,データ整理!E29-5,0) -> 1499.44788 | F29: =F30+IF(データ整理!F29>5,データ整理!F29-5,0) -> 1503.2967 | G29: =G30+IF(データ整理!G29>5,データ整理!G29-5,0) -> 1667.39446 | H29: =H30+IF(データ整理!H29>5,データ整理!H29-5,0) -> 1653.4435 | I29: =I30+IF(データ整理!I29>5,データ整理!I29-5,0) -> 1682.47608 | J29: =J30+IF(データ整理!J29>5,データ整理!J29-5,0) -> 1554.38589 | K29: =K30+IF(データ整理!K29>5,データ整理!K29-5,0) -> 1556.29413 | L29: =L30+IF(データ整理!L29>5,データ整理!L29-5,0) -> 1537.2798 | M29: =M30+IF(データ整理!M29>5,データ整理!M29-5,0) -> 1776.68392 | N29: =N30+IF(データ整理!N29>5,データ整理!N29-5,0) -> 1607.49446 | O29: =O30+IF(データ整理!O29>5,データ整理!O29-5,0) -> 1743.75752 | P29: =P30+IF(データ整理!P29>5,データ整理!P29-5,0) -> 1666.13651 | Q29: =Q30+IF(データ整理!Q29>5,データ整理!Q29-5,0) -> 1623.5075 | R29: =R30+IF(データ整理!R29>5,データ整理!R29-5,0) -> 1538.37929 | S29: =S30+IF(データ整理!S29>5,データ整理!S29-5,0) -> 1642.71636 | T29: =T30+IF(データ整理!T29>5,データ整理!T29-5,0) -> 1521.99586 | U29: =U30+IF(データ整理!U29>5,データ整理!U29-5,0) -> 1511.32438 | Y29: 2018-04-28 | Z29: =Z30+IF(データ整理!Z29>5,データ整理!Z29-5,0) -> 1511.32438 | AA29: =AA30+IF(データ整理!AA29>5,データ整理!AA29-5,0) -> 1540.00982
A30: 2014-04-29 | B30: =B31+IF(データ整理!B30>5,データ整理!B30-5,0) -> 1712.91745 | C30: =C31+IF(データ整理!C30>5,データ整理!C30-5,0) -> 1752.92241 | D30: =D31+IF(データ整理!D30>5,データ整理!D30-5,0) -> 1523.18613 | E30: =E31+IF(データ整理!E30>5,データ整理!E30-5,0) -> 1498.11126 | F30: =F31+IF(データ整理!F30>5,データ整理!F30-5,0) -> 1500.31422 | G30: =G31+IF(データ整理!G30>5,データ整理!G30-5,0) -> 1667.39446 | H30: =H31+IF(データ整理!H30>5,データ整理!H30-5,0) -> 1650.64906 | I30: =I31+IF(データ整理!I30>5,データ整理!I30-5,0) -> 1682.47608 | J30: =J31+IF(データ整理!J30>5,データ整理!J30-5,0) -> 1552.28235 | K30: =K31+IF(データ整理!K30>5,データ整理!K30-5,0) -> 1556.29413 | L30: =L31+IF(データ整理!L30>5,データ整理!L30-5,0) -> 1537.2798 | M30: =M31+IF(データ整理!M30>5,データ整理!M30-5,0) -> 1776.68392 | N30: =N31+IF(データ整理!N30>5,データ整理!N30-5,0) -> 1607.49446 | O30: =O31+IF(データ整理!O30>5,データ整理!O30-5,0) -> 1742.26762 | P30: =P31+IF(データ整理!P30>5,データ整理!P30-5,0) -> 1666.13651 | Q30: =Q31+IF(データ整理!Q30>5,データ整理!Q30-5,0) -> 1623.5075 | R30: =R31+IF(データ整理!R30>5,データ整理!R30-5,0) -> 1535.93003 | S30: =S31+IF(データ整理!S30>5,データ整理!S30-5,0) -> 1642.71636 | T30: =T31+IF(データ整理!T30>5,データ整理!T30-5,0) -> 1521.99586 | U30: =U31+IF(データ整理!U30>5,データ整理!U30-5,0) -> 1511.32438 | Y30: 2018-04-29 | Z30: =Z31+IF(データ整理!Z30>5,データ整理!Z30-5,0) -> 1511.32438 | AA30: =AA31+IF(データ整理!AA30>5,データ整理!AA30-5,0) -> 1540.00982
A31: 2014-04-30 | B31: =B32+IF(データ整理!B31>5,データ整理!B31-5,0) -> 1712.91745 | C31: =C32+IF(データ整理!C31>5,データ整理!C31-5,0) -> 1752.92241 | D31: =D32+IF(データ整理!D31>5,データ整理!D31-5,0) -> 1522.63618 | E31: =E32+IF(データ整理!E31>5,データ整理!E31-5,0) -> 1495.13591 | F31: =F32+IF(データ整理!F31>5,データ整理!F31-5,0) -> 1500.31422 | G31: =G32+IF(データ整理!G31>5,データ整理!G31-5,0) -> 1666.88536 | H31: =H32+IF(データ整理!H31>5,データ整理!H31-5,0) -> 1649.681 | I31: =I32+IF(データ整理!I31>5,データ整理!I31-5,0) -> 1682.47608 | J31: =J32+IF(データ整理!J31>5,データ整理!J31-5,0) -> 1552.28235 | K31: =K32+IF(データ整理!K31>5,データ整理!K31-5,0) -> 1555.79827 | L31: =L32+IF(データ整理!L31>5,データ整理!L31-5,0) -> 1537.2798 | M31: =M32+IF(データ整理!M31>5,データ整理!M31-5,0) -> 1776.68392 | N31: =N32+IF(データ整理!N31>5,データ整理!N31-5,0) -> 1607.49446 | O31: =O32+IF(データ整理!O31>5,データ整理!O31-5,0) -> 1739.75009 | P31: =P32+IF(データ整理!P31>5,データ整理!P31-5,0) -> 1666.13651 | Q31: =Q32+IF(データ整理!Q31>5,データ整理!Q31-5,0) -> 1623.5075 | R31: =R32+IF(データ整理!R31>5,データ整理!R31-5,0) -> 1531.47593 | S31: =S32+IF(データ整理!S31>5,データ整理!S31-5,0) -> 1642.71636 | T31: =T32+IF(データ整理!T31>5,データ整理!T31-5,0) -> 1521.85908 | U31: =U32+IF(データ整理!U31>5,データ整理!U31-5,0) -> 1507.4312 | Y31: 2018-04-30 | Z31: =Z32+IF(データ整理!Z31>5,データ整理!Z31-5,0) -> 1507.4312 | AA31: =AA32+IF(データ整理!AA31>5,データ整理!AA31-5,0) -> 1540.00982
A32: 2014-05-01 | B32: =B33+IF(データ整理!B32>5,データ整理!B32-5,0) -> 1712.91745 | C32: =C33+IF(データ整理!C32>5,データ整理!C32-5,0) -> 1752.92241 | D32: =D33+IF(データ整理!D32>5,データ整理!D32-5,0) -> 1522.63618 | E32: =E33+IF(データ整理!E32>5,データ整理!E32-5,0) -> 1493.09683 | F32: =F33+IF(データ整理!F32>5,データ整理!F32-5,0) -> 1500.31422 | G32: =G33+IF(データ整理!G32>5,データ整理!G32-5,0) -> 1665.90951 | H32: =H33+IF(データ整理!H32>5,データ整理!H32-5,0) -> 1649.681 | I32: =I33+IF(データ整理!I32>5,データ整理!I32-5,0) -> 1682.47608 | J32: =J33+IF(データ整理!J32>5,データ整理!J32-5,0) -> 1552.28235 | K32: =K33+IF(データ整理!K32>5,データ整理!K32-5,0) -> 1553.52666 | L32: =L33+IF(データ整理!L32>5,データ整理!L32-5,0) -> 1532.0415 | M32: =M33+IF(データ整理!M32>5,データ整理!M32-5,0) -> 1776.68392 | N32: =N33+IF(データ整理!N32>5,データ整理!N32-5,0) -> 1605.11607 | O32: =O33+IF(データ整理!O32>5,データ整理!O32-5,0) -> 1737.11407 | P32: =P33+IF(データ整理!P32>5,データ整理!P32-5,0) -> 1666.13651 | Q32: =Q33+IF(データ整理!Q32>5,データ整理!Q32-5,0) -> 1622.10645 | R32: =R33+IF(データ整理!R32>5,データ整理!R32-5,0) -> 1524.25933 | S32: =S33+IF(データ整理!S32>5,データ整理!S32-5,0) -> 1642.71636 | T32: =T33+IF(データ整理!T32>5,データ整理!T32-5,0) -> 1521.85908 | U32: =U33+IF(データ整理!U32>5,データ整理!U32-5,0) -> 1502.56889 | Y32: 2018-05-01 | Z32: =Z33+IF(データ整理!Z32>5,データ整理!Z32-5,0) -> 1502.56889 | AA32: =AA33+IF(データ整理!AA32>5,データ整理!AA32-5,0) -> 1539.83324
A33: 2014-05-02 | B33: =B34+IF(データ整理!B33>5,データ整理!B33-5,0) -> 1710.3244 | C33: =C34+IF(データ整理!C33>5,データ整理!C33-5,0) -> 1752.92241 | D33: =D34+IF(データ整理!D33>5,データ整理!D33-5,0) -> 1522.63618 | E33: =E34+IF(データ整理!E33>5,データ整理!E33-5,0) -> 1491.97729 | F33: =F34+IF(データ整理!F33>5,データ整理!F33-5,0) -> 1500.31422 | G33: =G34+IF(データ整理!G33>5,データ整理!G33-5,0) -> 1665.90951 | H33: =H34+IF(データ整理!H33>5,データ整理!H33-5,0) -> 1649.681 | I33: =I34+IF(データ整理!I33>5,データ整理!I33-5,0) -> 1682.47608 | J33: =J34+IF(データ整理!J33>5,データ整理!J33-5,0) -> 1551.58911 | K33: =K34+IF(データ整理!K33>5,データ整理!K33-5,0) -> 1544.97136 | L33: =L34+IF(データ整理!L33>5,データ整理!L33-5,0) -> 1529.17583 | M33: =M34+IF(データ整理!M33>5,データ整理!M33-5,0) -> 1776.68392 | N33: =N34+IF(データ整理!N33>5,データ整理!N33-5,0) -> 1605.11607 | O33: =O34+IF(データ整理!O33>5,データ整理!O33-5,0) -> 1731.87147 | P33: =P34+IF(データ整理!P33>5,データ整理!P33-5,0) -> 1666.13651 | Q33: =Q34+IF(データ整理!Q33>5,データ整理!Q33-5,0) -> 1619.18198 | R33: =R34+IF(データ整理!R33>5,データ整理!R33-5,0) -> 1518.63963 | S33: =S34+IF(データ整理!S33>5,データ整理!S33-5,0) -> 1642.71636 | T33: =T34+IF(データ整理!T33>5,データ整理!T33-5,0) -> 1521.85908 | U33: =U34+IF(データ整理!U33>5,データ整理!U33-5,0) -> 1501.31382 | Y33: 2018-05-02 | Z33: =Z34+IF(データ整理!Z33>5,データ整理!Z33-5,0) -> 1501.31382 | AA33: =AA34+IF(データ整理!AA33>5,データ整理!AA33-5,0) -> 1539.45641
A34: 2014-05-03 | B34: =B35+IF(データ整理!B34>5,データ整理!B34-5,0) -> 1709.70654 | C34: =C35+IF(データ整理!C34>5,データ整理!C34-5,0) -> 1751.51815 | D34: =D35+IF(データ整理!D34>5,データ整理!D34-5,0) -> 1522.63618 | E34: =E35+IF(データ整理!E34>5,データ整理!E34-5,0) -> 1490.93289 | F34: =F35+IF(データ整理!F34>5,データ整理!F34-5,0) -> 1493.89282 | G34: =G35+IF(データ整理!G34>5,データ整理!G34-5,0) -> 1665.81456 | H34: =H35+IF(データ整理!H34>5,データ整理!H34-5,0) -> 1649.23107 | I34: =I35+IF(データ整理!I34>5,データ整理!I34-5,0) -> 1682.47608 | J34: =J35+IF(データ整理!J34>5,データ整理!J34-5,0) -> 1550.99176 | K34: =K35+IF(データ整理!K34>5,データ整理!K34-5,0) -> 1537.55616 | L34: =L35+IF(データ整理!L34>5,データ整理!L34-5,0) -> 1526.276 | M34: =M35+IF(データ整理!M34>5,データ整理!M34-5,0) -> 1775.65262 | N34: =N35+IF(データ整理!N34>5,データ整理!N34-5,0) -> 1605.11607 | O34: =O35+IF(データ整理!O34>5,データ整理!O34-5,0) -> 1727.39164 | P34: =P35+IF(データ整理!P34>5,データ整理!P34-5,0) -> 1666.13651 | Q34: =Q35+IF(データ整理!Q34>5,データ整理!Q34-5,0) -> 1616.94902 | R34: =R35+IF(データ整理!R34>5,データ整理!R34-5,0) -> 1513.72196 | S34: =S35+IF(データ整理!S34>5,データ整理!S34-5,0) -> 1642.71636 | T34: =T35+IF(データ整理!T34>5,データ整理!T34-5,0) -> 1520.96629 | U34: =U35+IF(データ整理!U34>5,データ整理!U34-5,0) -> 1501.02798 | Y34: 2018-05-03 | Z34: =Z35+IF(データ整理!Z34>5,データ整理!Z34-5,0) -> 1501.02798 | AA34: =AA35+IF(データ整理!AA34>5,データ整理!AA34-5,0) -> 1538.87983
A35: 2014-05-04 | B35: =B36+IF(データ整理!B35>5,データ整理!B35-5,0) -> 1708.01494 | C35: =C36+IF(データ整理!C35>5,データ整理!C35-5,0) -> 1749.72634 | D35: =D36+IF(データ整理!D35>5,データ整理!D35-5,0) -> 1522.63618 | E35: =E36+IF(データ整理!E35>5,データ整理!E35-5,0) -> 1487.10494 | F35: =F36+IF(データ整理!F35>5,データ整理!F35-5,0) -> 1489.52811 | G35: =G36+IF(データ整理!G35>5,データ整理!G35-5,0) -> 1665.81456 | H35: =H36+IF(データ整理!H35>5,データ整理!H35-5,0) -> 1647.86909 | I35: =I36+IF(データ整理!I35>5,データ整理!I35-5,0) -> 1682.47608 | J35: =J36+IF(データ整理!J35>5,データ整理!J35-5,0) -> 1549.8601 | K35: =K36+IF(データ整理!K35>5,データ整理!K35-5,0) -> 1532.81596 | L35: =L36+IF(データ整理!L35>5,データ整理!L35-5,0) -> 1519.8024 | M35: =M36+IF(データ整理!M35>5,データ整理!M35-5,0) -> 1773.25715 | N35: =N36+IF(データ整理!N35>5,データ整理!N35-5,0) -> 1605.11607 | O35: =O36+IF(データ整理!O35>5,データ整理!O35-5,0) -> 1724.08828 | P35: =P36+IF(データ整理!P35>5,データ整理!P35-5,0) -> 1666.13651 | Q35: =Q36+IF(データ整理!Q35>5,データ整理!Q35-5,0) -> 1614.5206 | R35: =R36+IF(データ整理!R35>5,データ整理!R35-5,0) -> 1506.94466 | S35: =S36+IF(データ整理!S35>5,データ整理!S35-5,0) -> 1637.79356 | T35: =T36+IF(データ整理!T35>5,データ整理!T35-5,0) -> 1515.85059 | U35: =U36+IF(データ整理!U35>5,データ整理!U35-5,0) -> 1500.68721 | Y35: 2018-05-04 | Z35: =Z36+IF(データ整理!Z35>5,データ整理!Z35-5,0) -> 1500.68721 | AA35: =AA36+IF(データ整理!AA35>5,データ整理!AA35-5,0) -> 1538.10543
A36: 2014-05-05 | B36: =B37+IF(データ整理!B36>5,データ整理!B36-5,0) -> 1707.2612 | C36: =C37+IF(データ整理!C36>5,データ整理!C36-5,0) -> 1747.83122 | D36: =D37+IF(データ整理!D36>5,データ整理!D36-5,0) -> 1522.63618 | E36: =E37+IF(データ整理!E36>5,データ整理!E36-5,0) -> 1484.75268 | F36: =F37+IF(データ整理!F36>5,データ整理!F36-5,0) -> 1488.48394 | G36: =G37+IF(データ整理!G36>5,データ整理!G36-5,0) -> 1665.4423 | H36: =H37+IF(データ整理!H36>5,データ整理!H36-5,0) -> 1647.86909 | I36: =I37+IF(データ整理!I36>5,データ整理!I36-5,0) -> 1681.69503 | J36: =J37+IF(データ整理!J36>5,データ整理!J36-5,0) -> 1546.60679 | K36: =K37+IF(データ整理!K36>5,データ整理!K36-5,0) -> 1527.99157 | L36: =L37+IF(データ整理!L36>5,データ整理!L36-5,0) -> 1513.191 | M36: =M37+IF(データ整理!M36>5,データ整理!M36-5,0) -> 1770.81847 | N36: =N37+IF(データ整理!N36>5,データ整理!N36-5,0) -> 1605.11607 | O36: =O37+IF(データ整理!O36>5,データ整理!O36-5,0) -> 1719.89442 | P36: =P37+IF(データ整理!P36>5,データ整理!P36-5,0) -> 1666.13651 | Q36: =Q37+IF(データ整理!Q36>5,データ整理!Q36-5,0) -> 1614.5206 | R36: =R37+IF(データ整理!R36>5,データ整理!R36-5,0) -> 1499.33146 | S36: =S37+IF(データ整理!S36>5,データ整理!S36-5,0) -> 1636.19081 | T36: =T37+IF(データ整理!T36>5,データ整理!T36-5,0) -> 1510.48529 | U36: =U37+IF(データ整理!U36>5,データ整理!U36-5,0) -> 1499.72307 | Y36: 2018-05-05 | Z36: =Z37+IF(データ整理!Z36>5,データ整理!Z36-5,0) -> 1499.72307 | AA36: =AA37+IF(データ整理!AA36>5,データ整理!AA36-5,0) -> 1537.13539
A37: 2014-05-06 | B37: =B38+IF(データ整理!B37>5,データ整理!B37-5,0) -> 1707.2612 | C37: =C38+IF(データ整理!C37>5,データ整理!C37-5,0) -> 1746.47074 | D37: =D38+IF(データ整理!D37>5,データ整理!D37-5,0) -> 1522.53252 | E37: =E38+IF(データ整理!E37>5,データ整理!E37-5,0) -> 1482.0725 | F37: =F38+IF(データ整理!F37>5,データ整理!F37-5,0) -> 1488.48394 | G37: =G38+IF(データ整理!G37>5,データ整理!G37-5,0) -> 1664.29904 | H37: =H38+IF(データ整理!H37>5,データ整理!H37-5,0) -> 1647.86909 | I37: =I38+IF(データ整理!I37>5,データ整理!I37-5,0) -> 1681.69503 | J37: =J38+IF(データ整理!J37>5,データ整理!J37-5,0) -> 1545.3336 | K37: =K38+IF(データ整理!K37>5,データ整理!K37-5,0) -> 1521.47727 | L37: =L38+IF(データ整理!L37>5,データ整理!L37-5,0) -> 1510.20197 | M37: =M38+IF(データ整理!M37>5,データ整理!M37-5,0) -> 1769.06065 | N37: =N38+IF(データ整理!N37>5,データ整理!N37-5,0) -> 1605.11607 | O37: =O38+IF(データ整理!O37>5,データ整理!O37-5,0) -> 1718.48399 | P37: =P38+IF(データ整理!P37>5,データ整理!P37-5,0) -> 1666.13651 | Q37: =Q38+IF(データ整理!Q37>5,データ整理!Q37-5,0) -> 1612.25051 | R37: =R38+IF(データ整理!R37>5,データ整理!R37-5,0) -> 1493.48836 | S37: =S38+IF(データ整理!S37>5,データ整理!S37-5,0) -> 1635.64826 | T37: =T38+IF(データ整理!T37>5,データ整理!T37-5,0) -> 1504.86699 | U37: =U38+IF(データ整理!U37>5,データ整理!U37-5,0) -> 1499.72307 | Y37: 2018-05-06 | Z37: =Z38+IF(データ整理!Z37>5,データ整理!Z37-5,0) -> 1499.72307 | AA37: =AA38+IF(データ整理!AA37>5,データ整理!AA37-5,0) -> 1535.96897
A38: 2014-05-07 | B38: =B39+IF(データ整理!B38>5,データ整理!B38-5,0) -> 1707.21936 | C38: =C39+IF(データ整理!C38>5,データ整理!C38-5,0) -> 1744.066 | D38: =D39+IF(データ整理!D38>5,データ整理!D38-5,0) -> 1521.27176 | E38: =E39+IF(データ整理!E38>5,データ整理!E38-5,0) -> 1481.19751 | F38: =F39+IF(データ整理!F38>5,データ整理!F38-5,0) -> 1485.49596 | G38: =G39+IF(データ整理!G38>5,データ整理!G38-5,0) -> 1661.16077 | H38: =H39+IF(データ整理!H38>5,データ整理!H38-5,0) -> 1647.86909 | I38: =I39+IF(データ整理!I38>5,データ整理!I38-5,0) -> 1679.65423 | J38: =J39+IF(データ整理!J38>5,データ整理!J38-5,0) -> 1541.35048 | K38: =K39+IF(データ整理!K38>5,データ整理!K38-5,0) -> 1517.53157 | L38: =L39+IF(データ整理!L38>5,データ整理!L38-5,0) -> 1506.42036 | M38: =M39+IF(データ整理!M38>5,データ整理!M38-5,0) -> 1767.95376 | N38: =N39+IF(データ整理!N38>5,データ整理!N38-5,0) -> 1603.34277 | O38: =O39+IF(データ整理!O38>5,データ整理!O38-5,0) -> 1714.67147 | P38: =P39+IF(データ整理!P38>5,データ整理!P38-5,0) -> 1666.13651 | Q38: =Q39+IF(データ整理!Q38>5,データ整理!Q38-5,0) -> 1610.0295 | R38: =R39+IF(データ整理!R38>5,データ整理!R38-5,0) -> 1486.76586 | S38: =S39+IF(データ整理!S38>5,データ整理!S38-5,0) -> 1634.56563 | T38: =T39+IF(データ整理!T38>5,データ整理!T38-5,0) -> 1502.69118 | U38: =U39+IF(データ整理!U38>5,データ整理!U38-5,0) -> 1499.72307 | Y38: 2018-05-07 | Z38: =Z39+IF(データ整理!Z38>5,データ整理!Z38-5,0) -> 1499.72307 | AA38: =AA39+IF(データ整理!AA38>5,データ整理!AA38-5,0) -> 1534.60597
A39: 2014-05-08 | B39: =B40+IF(データ整理!B39>5,データ整理!B39-5,0) -> 1707.04058 | C39: =C40+IF(データ整理!C39>5,データ整理!C39-5,0) -> 1740.62306 | D39: =D40+IF(データ整理!D39>5,データ整理!D39-5,0) -> 1518.71887 | E39: =E40+IF(データ整理!E39>5,データ整理!E39-5,0) -> 1477.89897 | F39: =F40+IF(データ整理!F39>5,データ整理!F39-5,0) -> 1483.49456 | G39: =G40+IF(データ整理!G39>5,データ整理!G39-5,0) -> 1659.50072 | H39: =H40+IF(データ整理!H39>5,データ整理!H39-5,0) -> 1647.86909 | I39: =I40+IF(データ整理!I39>5,データ整理!I39-5,0) -> 1679.65423 | J39: =J40+IF(データ整理!J39>5,データ整理!J39-5,0) -> 1541.35048 | K39: =K40+IF(データ整理!K39>5,データ整理!K39-5,0) -> 1514.38387 | L39: =L40+IF(データ整理!L39>5,データ整理!L39-5,0) -> 1498.81766 | M39: =M40+IF(データ整理!M39>5,データ整理!M39-5,0) -> 1767.95376 | N39: =N40+IF(データ整理!N39>5,データ整理!N39-5,0) -> 1598.45129 | O39: =O40+IF(データ整理!O39>5,データ整理!O39-5,0) -> 1712.50729 | P39: =P40+IF(データ整理!P39>5,データ整理!P39-5,0) -> 1666.13651 | Q39: =Q40+IF(データ整理!Q39>5,データ整理!Q39-5,0) -> 1607.68059 | R39: =R40+IF(データ整理!R39>5,データ整理!R39-5,0) -> 1481.82319 | S39: =S40+IF(データ整理!S39>5,データ整理!S39-5,0) -> 1633.37926 | T39: =T40+IF(データ整理!T39>5,データ整理!T39-5,0) -> 1501.29881 | U39: =U40+IF(データ整理!U39>5,データ整理!U39-5,0) -> 1499.72307 | Y39: 2018-05-08 | Z39: =Z40+IF(データ整理!Z39>5,データ整理!Z39-5,0) -> 1499.72307 | AA39: =AA40+IF(データ整理!AA39>5,データ整理!AA39-5,0) -> 1533.04315
A40: 2014-05-09 | B40: =B41+IF(データ整理!B40>5,データ整理!B40-5,0) -> 1706.05305 | C40: =C41+IF(データ整理!C40>5,データ整理!C40-5,0) -> 1739.20791 | D40: =D41+IF(データ整理!D40>5,データ整理!D40-5,0) -> 1518.10586 | E40: =E41+IF(データ整理!E40>5,データ整理!E40-5,0) -> 1473.14195 | F40: =F41+IF(データ整理!F40>5,データ整理!F40-5,0) -> 1483.49456 | G40: =G41+IF(データ整理!G40>5,データ整理!G40-5,0) -> 1657.10599 | H40: =H41+IF(データ整理!H40>5,データ整理!H40-5,0) -> 1647.86909 | I40: =I41+IF(データ整理!I40>5,データ整理!I40-5,0) -> 1678.80197 | J40: =J41+IF(データ整理!J40>5,データ整理!J40-5,0) -> 1541.35048 | K40: =K41+IF(データ整理!K40>5,データ整理!K40-5,0) -> 1513.30239 | L40: =L41+IF(データ整理!L40>5,データ整理!L40-5,0) -> 1494.92711 | M40: =M41+IF(データ整理!M40>5,データ整理!M40-5,0) -> 1767.95376 | N40: =N41+IF(データ整理!N40>5,データ整理!N40-5,0) -> 1597.79535 | O40: =O41+IF(データ整理!O40>5,データ整理!O40-5,0) -> 1710.03146 | P40: =P41+IF(データ整理!P40>5,データ整理!P40-5,0) -> 1666.13651 | Q40: =Q41+IF(データ整理!Q40>5,データ整理!Q40-5,0) -> 1604.44755 | R40: =R41+IF(データ整理!R40>5,データ整理!R40-5,0) -> 1478.77295 | S40: =S41+IF(データ整理!S40>5,データ整理!S40-5,0) -> 1631.12971 | T40: =T41+IF(データ整理!T40>5,データ整理!T40-5,0) -> 1501.29881 | U40: =U41+IF(データ整理!U40>5,データ整理!U40-5,0) -> 1499.72307 | Y40: 2018-05-09 | Z40: =Z41+IF(データ整理!Z40>5,データ整理!Z40-5,0) -> 1499.72307 | AA40: =AA41+IF(データ整理!AA40>5,データ整理!AA40-5,0) -> 1531.27551
A41: 2014-05-10 | B41: =B42+IF(データ整理!B41>5,データ整理!B41-5,0) -> 1704.53792 | C41: =C42+IF(データ整理!C41>5,データ整理!C41-5,0) -> 1736.41839 | D41: =D42+IF(データ整理!D41>5,データ整理!D41-5,0) -> 1517.15349 | E41: =E42+IF(データ整理!E41>5,データ整理!E41-5,0) -> 1467.29305 | F41: =F42+IF(データ整理!F41>5,データ整理!F41-5,0) -> 1483.49456 | G41: =G42+IF(データ整理!G41>5,データ整理!G41-5,0) -> 1651.36539 | H41: =H42+IF(データ整理!H41>5,データ整理!H41-5,0) -> 1647.86909 | I41: =I42+IF(データ整理!I41>5,データ整理!I41-5,0) -> 1676.05925 | J41: =J42+IF(データ整理!J41>5,データ整理!J41-5,0) -> 1539.13193 | K41: =K42+IF(データ整理!K41>5,データ整理!K41-5,0) -> 1513.30239 | L41: =L42+IF(データ整理!L41>5,データ整理!L41-5,0) -> 1490.1914 | M41: =M42+IF(データ整理!M41>5,データ整理!M41-5,0) -> 1767.95376 | N41: =N42+IF(データ整理!N41>5,データ整理!N41-5,0) -> 1597.79535 | O41: =O42+IF(データ整理!O41>5,データ整理!O41-5,0) -> 1708.56524 | P41: =P42+IF(データ整理!P41>5,データ整理!P41-5,0) -> 1666.13651 | Q41: =Q42+IF(データ整理!Q41>5,データ整理!Q41-5,0) -> 1603.44178 | R41: =R42+IF(データ整理!R41>5,データ整理!R41-5,0) -> 1477.72199 | S41: =S42+IF(データ整理!S41>5,データ整理!S41-5,0) -> 1628.96152 | T41: =T42+IF(データ整理!T41>5,データ整理!T41-5,0) -> 1498.3857 | U41: =U42+IF(データ整理!U41>5,データ整理!U41-5,0) -> 1499.72307 | Y41: 2018-05-10 | Z41: =Z42+IF(データ整理!Z41>5,データ整理!Z41-5,0) -> 1499.72307 | AA41: =AA42+IF(データ整理!AA41>5,データ整理!AA41-5,0) -> 1529.29791
A42: 2014-05-11 | B42: =B43+IF(データ整理!B42>5,データ整理!B42-5,0) -> 1703.81801 | C42: =C43+IF(データ整理!C42>5,データ整理!C42-5,0) -> 1734.26446 | D42: =D43+IF(データ整理!D42>5,データ整理!D42-5,0) -> 1517.15349 | E42: =E43+IF(データ整理!E42>5,データ整理!E42-5,0) -> 1460.37025 | F42: =F43+IF(データ整理!F42>5,データ整理!F42-5,0) -> 1483.49456 | G42: =G43+IF(データ整理!G42>5,データ整理!G42-5,0) -> 1643.91809 | H42: =H43+IF(データ整理!H42>5,データ整理!H42-5,0) -> 1647.86909 | I42: =I43+IF(データ整理!I42>5,データ整理!I42-5,0) -> 1673.25208 | J42: =J43+IF(データ整理!J42>5,データ整理!J42-5,0) -> 1536.4032 | K42: =K43+IF(データ整理!K42>5,データ整理!K42-5,0) -> 1513.30239 | L42: =L43+IF(データ整理!L42>5,データ整理!L42-5,0) -> 1485.90216 | M42: =M43+IF(データ整理!M42>5,データ整理!M42-5,0) -> 1767.95376 | N42: =N43+IF(データ整理!N42>5,データ整理!N42-5,0) -> 1597.79535 | O42: =O43+IF(データ整理!O42>5,データ整理!O42-5,0) -> 1708.56524 | P42: =P43+IF(データ整理!P42>5,データ整理!P42-5,0) -> 1664.96961 | Q42: =Q43+IF(データ整理!Q42>5,データ整理!Q42-5,0) -> 1600.68314 | R42: =R43+IF(データ整理!R42>5,データ整理!R42-5,0) -> 1476.35688 | S42: =S43+IF(データ整理!S42>5,データ整理!S42-5,0) -> 1625.08991 | T42: =T43+IF(データ整理!T42>5,データ整理!T42-5,0) -> 1492.459 | U42: =U43+IF(データ整理!U42>5,データ整理!U42-5,0) -> 1499.28963 | Y42: 2018-05-11 | Z42: =Z43+IF(データ整理!Z42>5,データ整理!Z42-5,0) -> 1499.28963 | AA42: =AA43+IF(データ整理!AA42>5,データ整理!AA42-5,0) -> 1527.10487
A43: 2014-05-12 | B43: =B44+IF(データ整理!B43>5,データ整理!B43-5,0) -> 1703.62262 | C43: =C44+IF(データ整理!C43>5,データ整理!C43-5,0) -> 1732.29518 | D43: =D44+IF(データ整理!D43>5,データ整理!D43-5,0) -> 1516.99873 | E43: =E44+IF(データ整理!E43>5,データ整理!E43-5,0) -> 1454.38775 | F43: =F44+IF(データ整理!F43>5,データ整理!F43-5,0) -> 1483.49456 | G43: =G44+IF(データ整理!G43>5,データ整理!G43-5,0) -> 1639.90753 | H43: =H44+IF(データ整理!H43>5,データ整理!H43-5,0) -> 1647.86909 | I43: =I44+IF(データ整理!I43>5,データ整理!I43-5,0) -> 1670.96898 | J43: =J44+IF(データ整理!J43>5,データ整理!J43-5,0) -> 1535.88226 | K43: =K44+IF(データ整理!K43>5,データ整理!K43-5,0) -> 1513.30239 | L43: =L44+IF(データ整理!L43>5,データ整理!L43-5,0) -> 1481.93412 | M43: =M44+IF(データ整理!M43>5,データ整理!M43-5,0) -> 1767.95376 | N43: =N44+IF(データ整理!N43>5,データ整理!N43-5,0) -> 1597.79535 | O43: =O44+IF(データ整理!O43>5,データ整理!O43-5,0) -> 1708.56524 | P43: =P44+IF(データ整理!P43>5,データ整理!P43-5,0) -> 1664.96961 | Q43: =Q44+IF(データ整理!Q43>5,データ整理!Q43-5,0) -> 1595.74591 | R43: =R44+IF(データ整理!R43>5,データ整理!R43-5,0) -> 1471.10028 | S43: =S44+IF(データ整理!S43>5,データ整理!S43-5,0) -> 1622.79646 | T43: =T44+IF(データ整理!T43>5,データ整理!T43-5,0) -> 1487.66427 | U43: =U44+IF(データ整理!U43>5,データ整理!U43-5,0) -> 1497.55175 | Y43: 2018-05-12 | Z43: =Z44+IF(データ整理!Z43>5,データ整理!Z43-5,0) -> 1497.55175 | AA43: =AA44+IF(データ整理!AA43>5,データ整理!AA43-5,0) -> 1524.68995
A44: 2014-05-13 | B44: =B45+IF(データ整理!B44>5,データ整理!B44-5,0) -> 1703.0085 | C44: =C45+IF(データ整理!C44>5,データ整理!C44-5,0) -> 1729.0375 | D44: =D45+IF(データ整理!D44>5,データ整理!D44-5,0) -> 1511.62483 | E44: =E45+IF(データ整理!E44>5,データ整理!E44-5,0) -> 1448.76805 | F44: =F45+IF(データ整理!F44>5,データ整理!F44-5,0) -> 1480.58977 | G44: =G45+IF(データ整理!G44>5,データ整理!G44-5,0) -> 1634.03743 | H44: =H45+IF(データ整理!H44>5,データ整理!H44-5,0) -> 1647.86909 | I44: =I45+IF(データ整理!I44>5,データ整理!I44-5,0) -> 1669.05857 | J44: =J45+IF(データ整理!J44>5,データ整理!J44-5,0) -> 1534.07345 | K44: =K45+IF(データ整理!K44>5,データ整理!K44-5,0) -> 1513.30239 | L44: =L45+IF(データ整理!L44>5,データ整理!L44-5,0) -> 1477.01783 | M44: =M45+IF(データ整理!M44>5,データ整理!M44-5,0) -> 1767.95376 | N44: =N45+IF(データ整理!N44>5,データ整理!N44-5,0) -> 1595.19368 | O44: =O45+IF(データ整理!O44>5,データ整理!O44-5,0) -> 1708.56524 | P44: =P45+IF(データ整理!P44>5,データ整理!P44-5,0) -> 1664.96961 | Q44: =Q45+IF(データ整理!Q44>5,データ整理!Q44-5,0) -> 1588.45531 | R44: =R45+IF(データ整理!R44>5,データ整理!R44-5,0) -> 1463.54358 | S44: =S45+IF(データ整理!S44>5,データ整理!S44-5,0) -> 1622.03933 | T44: =T45+IF(データ整理!T44>5,データ整理!T44-5,0) -> 1482.96433 | U44: =U45+IF(データ整理!U44>5,データ整理!U44-5,0) -> 1492.22175 | Y44: 2018-05-13 | Z44: =Z45+IF(データ整理!Z44>5,データ整理!Z44-5,0) -> 1492.22175 | AA44: =AA45+IF(データ整理!AA44>5,データ整理!AA44-5,0) -> 1522.04305
A45: 2014-05-14 | B45: =B46+IF(データ整理!B45>5,データ整理!B45-5,0) -> 1702.92046 | C45: =C46+IF(データ整理!C45>5,データ整理!C45-5,0) -> 1724.77086 | D45: =D46+IF(データ整理!D45>5,データ整理!D45-5,0) -> 1503.89493 | E45: =E46+IF(データ整理!E45>5,データ整理!E45-5,0) -> 1445.05904 | F45: =F46+IF(データ整理!F45>5,データ整理!F45-5,0) -> 1475.35487 | G45: =G46+IF(データ整理!G45>5,データ整理!G45-5,0) -> 1629.31912 | H45: =H46+IF(データ整理!H45>5,データ整理!H45-5,0) -> 1647.86909 | I45: =I46+IF(データ整理!I45>5,データ整理!I45-5,0) -> 1666.75514 | J45: =J46+IF(データ整理!J45>5,データ整理!J45-5,0) -> 1534.07345 | K45: =K46+IF(データ整理!K45>5,データ整理!K45-5,0) -> 1512.8591 | L45: =L46+IF(データ整理!L45>5,データ整理!L45-5,0) -> 1474.02424 | M45: =M46+IF(データ整理!M45>5,データ整理!M45-5,0) -> 1767.95376 | N45: =N46+IF(データ整理!N45>5,データ整理!N45-5,0) -> 1594.47826 | O45: =O46+IF(データ整理!O45>5,データ整理!O45-5,0) -> 1707.81756 | P45: =P46+IF(データ整理!P45>5,データ整理!P45-5,0) -> 1664.96961 | Q45: =Q46+IF(データ整理!Q45>5,データ整理!Q45-5,0) -> 1582.29201 | R45: =R46+IF(データ整理!R45>5,データ整理!R45-5,0) -> 1458.47138 | S45: =S46+IF(データ整理!S45>5,データ整理!S45-5,0) -> 1616.41953 | T45: =T46+IF(データ整理!T45>5,データ整理!T45-5,0) -> 1478.3286 | U45: =U46+IF(データ整理!U45>5,データ整理!U45-5,0) -> 1490.45335 | Y45: 2018-05-14 | Z45: =Z46+IF(データ整理!Z45>5,データ整理!Z45-5,0) -> 1490.45335 | AA45: =AA46+IF(データ整理!AA45>5,データ整理!AA45-5,0) -> 1519.15428
A46: 2014-05-15 | B46: =B47+IF(データ整理!B46>5,データ整理!B46-5,0) -> 1702.92046 | C46: =C47+IF(データ整理!C46>5,データ整理!C46-5,0) -> 1720.56286 | D46: =D47+IF(データ整理!D46>5,データ整理!D46-5,0) -> 1495.07053 | E46: =E47+IF(データ整理!E46>5,データ整理!E46-5,0) -> 1442.21439 | F46: =F47+IF(データ整理!F46>5,データ整理!F46-5,0) -> 1471.76811 | G46: =G47+IF(データ整理!G46>5,データ整理!G46-5,0) -> 1621.86642 | H46: =H47+IF(データ整理!H46>5,データ整理!H46-5,0) -> 1647.69245 | I46: =I47+IF(データ整理!I46>5,データ整理!I46-5,0) -> 1664.325 | J46: =J47+IF(データ整理!J46>5,データ整理!J46-5,0) -> 1532.21817 | K46: =K47+IF(データ整理!K46>5,データ整理!K46-5,0) -> 1511.427 | L46: =L47+IF(データ整理!L46>5,データ整理!L46-5,0) -> 1474.02424 | M46: =M47+IF(データ整理!M46>5,データ整理!M46-5,0) -> 1767.95376 | N46: =N47+IF(データ整理!N46>5,データ整理!N46-5,0) -> 1594.47826 | O46: =O47+IF(データ整理!O46>5,データ整理!O46-5,0) -> 1704.96864 | P46: =P47+IF(データ整理!P46>5,データ整理!P46-5,0) -> 1664.96961 | Q46: =Q47+IF(データ整理!Q46>5,データ整理!Q46-5,0) -> 1576.24461 | R46: =R47+IF(データ整理!R46>5,データ整理!R46-5,0) -> 1458.47138 | S46: =S47+IF(データ整理!S46>5,データ整理!S46-5,0) -> 1611.92366 | T46: =T47+IF(データ整理!T46>5,データ整理!T46-5,0) -> 1474.83944 | U46: =U47+IF(データ整理!U46>5,データ整理!U46-5,0) -> 1488.04702 | Y46: 2018-05-15 | Z46: =Z47+IF(データ整理!Z46>5,データ整理!Z46-5,0) -> 1488.04702 | AA46: =AA47+IF(データ整理!AA46>5,データ整理!AA46-5,0) -> 1516.01747
A47: 2014-05-16 | B47: =B48+IF(データ整理!B47>5,データ整理!B47-5,0) -> 1702.92046 | C47: =C48+IF(データ整理!C47>5,データ整理!C47-5,0) -> 1717.27728 | D47: =D48+IF(データ整理!D47>5,データ整理!D47-5,0) -> 1485.14833 | E47: =E48+IF(データ整理!E47>5,データ整理!E47-5,0) -> 1437.2892 | F47: =F48+IF(データ整理!F47>5,データ整理!F47-5,0) -> 1469.15175 | G47: =G48+IF(データ整理!G47>5,データ整理!G47-5,0) -> 1612.72272 | H47: =H48+IF(データ整理!H47>5,データ整理!H47-5,0) -> 1647.69245 | I47: =I48+IF(データ整理!I47>5,データ整理!I47-5,0) -> 1659.1987 | J47: =J48+IF(データ整理!J47>5,データ整理!J47-5,0) -> 1528.55988 | K47: =K48+IF(データ整理!K47>5,データ整理!K47-5,0) -> 1508.84173 | L47: =L48+IF(データ整理!L47>5,データ整理!L47-5,0) -> 1474.02424 | M47: =M48+IF(データ整理!M47>5,データ整理!M47-5,0) -> 1766.2236 | N47: =N48+IF(データ整理!N47>5,データ整理!N47-5,0) -> 1594.47826 | O47: =O48+IF(データ整理!O47>5,データ整理!O47-5,0) -> 1703.2183 | P47: =P48+IF(データ整理!P47>5,データ整理!P47-5,0) -> 1664.96961 | Q47: =Q48+IF(データ整理!Q47>5,データ整理!Q47-5,0) -> 1570.72511 | R47: =R48+IF(データ整理!R47>5,データ整理!R47-5,0) -> 1457.37013 | S47: =S48+IF(データ整理!S47>5,データ整理!S47-5,0) -> 1606.77986 | T47: =T48+IF(データ整理!T47>5,データ整理!T47-5,0) -> 1473.29564 | U47: =U48+IF(データ整理!U47>5,データ整理!U47-5,0) -> 1482.59792 | Y47: 2018-05-16 | Z47: =Z48+IF(データ整理!Z47>5,データ整理!Z47-5,0) -> 1482.59792 | AA47: =AA48+IF(データ整理!AA47>5,データ整理!AA47-5,0) -> 1512.62941
A48: 2014-05-17 | B48: =B49+IF(データ整理!B48>5,データ整理!B48-5,0) -> 1702.92046 | C48: =C49+IF(データ整理!C48>5,データ整理!C48-5,0) -> 1714.52007 | D48: =D49+IF(データ整理!D48>5,データ整理!D48-5,0) -> 1479.65923 | E48: =E49+IF(データ整理!E48>5,データ整理!E48-5,0) -> 1431.9793 | F48: =F49+IF(データ整理!F48>5,データ整理!F48-5,0) -> 1467.64921 | G48: =G49+IF(データ整理!G48>5,データ整理!G48-5,0) -> 1608.02678 | H48: =H49+IF(データ整理!H48>5,データ整理!H48-5,0) -> 1646.60508 | I48: =I49+IF(データ整理!I48>5,データ整理!I48-5,0) -> 1653.2352 | J48: =J49+IF(データ整理!J48>5,データ整理!J48-5,0) -> 1523.10548 | K48: =K49+IF(データ整理!K48>5,データ整理!K48-5,0) -> 1503.63053 | L48: =L49+IF(データ整理!L48>5,データ整理!L48-5,0) -> 1470.58277 | M48: =M49+IF(データ整理!M48>5,データ整理!M48-5,0) -> 1762.40936 | N48: =N49+IF(データ整理!N48>5,データ整理!N48-5,0) -> 1591.2546 | O48: =O49+IF(データ整理!O48>5,データ整理!O48-5,0) -> 1700.71525 | P48: =P49+IF(データ整理!P48>5,データ整理!P48-5,0) -> 1664.62479 | Q48: =Q49+IF(データ整理!Q48>5,データ整理!Q48-5,0) -> 1570.72511 | R48: =R49+IF(データ整理!R48>5,データ整理!R48-5,0) -> 1455.17048 | S48: =S49+IF(データ整理!S48>5,データ整理!S48-5,0) -> 1599.06096 | T48: =T49+IF(データ整理!T48>5,データ整理!T48-5,0) -> 1470.01348 | U48: =U49+IF(データ整理!U48>5,データ整理!U48-5,0) -> 1475.05342 | Y48: 2018-05-17 | Z48: =Z49+IF(データ整理!Z48>5,データ整理!Z48-5,0) -> 1475.05342 | AA48: =AA49+IF(データ整理!AA48>5,データ整理!AA48-5,0) -> 1508.99245
A49: 2014-05-18 | B49: =B50+IF(データ整理!B49>5,データ整理!B49-5,0) -> 1701.88044 | C49: =C50+IF(データ整理!C49>5,データ整理!C49-5,0) -> 1710.44184 | D49: =D50+IF(データ整理!D49>5,データ整理!D49-5,0) -> 1475.06605 | E49: =E50+IF(データ整理!E49>5,データ整理!E49-5,0) -> 1425.6898 | F49: =F50+IF(データ整理!F49>5,データ整理!F49-5,0) -> 1464.76198 | G49: =G50+IF(データ整理!G49>5,データ整理!G49-5,0) -> 1602.58308 | H49: =H50+IF(データ整理!H49>5,データ整理!H49-5,0) -> 1644.81365 | I49: =I50+IF(データ整理!I49>5,データ整理!I49-5,0) -> 1646.7283 | J49: =J50+IF(データ整理!J49>5,データ整理!J49-5,0) -> 1516.86298 | K49: =K50+IF(データ整理!K49>5,データ整理!K49-5,0) -> 1499.74921 | L49: =L50+IF(データ整理!L49>5,データ整理!L49-5,0) -> 1464.51157 | M49: =M50+IF(データ整理!M49>5,データ整理!M49-5,0) -> 1758.01244 | N49: =N50+IF(データ整理!N49>5,データ整理!N49-5,0) -> 1589.39355 | O49: =O50+IF(データ整理!O49>5,データ整理!O49-5,0) -> 1698.29842 | P49: =P50+IF(データ整理!P49>5,データ整理!P49-5,0) -> 1663.16816 | Q49: =Q50+IF(データ整理!Q49>5,データ整理!Q49-5,0) -> 1570.72511 | R49: =R50+IF(データ整理!R49>5,データ整理!R49-5,0) -> 1453.1131 | S49: =S50+IF(データ整理!S49>5,データ整理!S49-5,0) -> 1591.15476 | T49: =T50+IF(データ整理!T49>5,データ整理!T49-5,0) -> 1464.61248 | U49: =U50+IF(データ整理!U49>5,データ整理!U49-5,0) -> 1469.31342 | Y49: 2018-05-18 | Z49: =Z50+IF(データ整理!Z49>5,データ整理!Z49-5,0) -> 1469.31342 | AA49: =AA50+IF(データ整理!AA49>5,データ整理!AA49-5,0) -> 1505.11285
A50: 2014-05-19 | B50: =B51+IF(データ整理!B50>5,データ整理!B50-5,0) -> 1701.57268 | C50: =C51+IF(データ整理!C50>5,データ整理!C50-5,0) -> 1704.78704 | D50: =D51+IF(データ整理!D50>5,データ整理!D50-5,0) -> 1465.28755 | E50: =E51+IF(データ整理!E50>5,データ整理!E50-5,0) -> 1419.2415 | F50: =F51+IF(データ整理!F50>5,データ整理!F50-5,0) -> 1459.68918 | G50: =G51+IF(データ整理!G50>5,データ整理!G50-5,0) -> 1597.91117 | H50: =H51+IF(データ整理!H50>5,データ整理!H50-5,0) -> 1643.51287 | I50: =I51+IF(データ整理!I50>5,データ整理!I50-5,0) -> 1639.3057 | J50: =J51+IF(データ整理!J50>5,データ整理!J50-5,0) -> 1512.94507 | K50: =K51+IF(データ整理!K50>5,データ整理!K50-5,0) -> 1494.49231 | L50: =L51+IF(データ整理!L50>5,データ整理!L50-5,0) -> 1459.34247 | M50: =M51+IF(データ整理!M50>5,データ整理!M50-5,0) -> 1753.49895 | N50: =N51+IF(データ整理!N50>5,データ整理!N50-5,0) -> 1584.80198 | O50: =O51+IF(データ整理!O50>5,データ整理!O50-5,0) -> 1695.9401 | P50: =P51+IF(データ整理!P50>5,データ整理!P50-5,0) -> 1661.12271 | Q50: =Q51+IF(データ整理!Q50>5,データ整理!Q50-5,0) -> 1570.72511 | R50: =R51+IF(データ整理!R50>5,データ整理!R50-5,0) -> 1448.17986 | S50: =S51+IF(データ整理!S50>5,データ整理!S50-5,0) -> 1584.29406 | T50: =T51+IF(データ整理!T50>5,データ整理!T50-5,0) -> 1456.88058 | U50: =U51+IF(データ整理!U50>5,データ整理!U50-5,0) -> 1466.4394 | Y50: 2018-05-19 | Z50: =Z51+IF(データ整理!Z50>5,データ整理!Z50-5,0) -> 1466.4394 | AA50: =AA51+IF(データ整理!AA50>5,データ整理!AA50-5,0) -> 1500.99786
A51: 2014-05-20 | B51: =B52+IF(データ整理!B51>5,データ整理!B51-5,0) -> 1699.76339 | C51: =C52+IF(データ整理!C51>5,データ整理!C51-5,0) -> 1696.96404 | D51: =D52+IF(データ整理!D51>5,データ整理!D51-5,0) -> 1457.10495 | E51: =E52+IF(データ整理!E51>5,データ整理!E51-5,0) -> 1411.9011 | F51: =F52+IF(データ整理!F51>5,データ整理!F51-5,0) -> 1453.07028 | G51: =G52+IF(データ整理!G51>5,データ整理!G51-5,0) -> 1591.16007 | H51: =H52+IF(データ整理!H51>5,データ整理!H51-5,0) -> 1642.46976 | I51: =I52+IF(データ整理!I51>5,データ整理!I51-5,0) -> 1630.9458 | J51: =J52+IF(データ整理!J51>5,データ整理!J51-5,0) -> 1512.94507 | K51: =K52+IF(データ整理!K51>5,データ整理!K51-5,0) -> 1486.38531 | L51: =L52+IF(データ整理!L51>5,データ整理!L51-5,0) -> 1451.61647 | M51: =M52+IF(データ整理!M51>5,データ整理!M51-5,0) -> 1747.49165 | N51: =N52+IF(データ整理!N51>5,データ整理!N51-5,0) -> 1578.97588 | O51: =O52+IF(データ整理!O51>5,データ整理!O51-5,0) -> 1693.83807 | P51: =P52+IF(データ整理!P51>5,データ整理!P51-5,0) -> 1659.02878 | Q51: =Q52+IF(データ整理!Q51>5,データ整理!Q51-5,0) -> 1568.5482 | R51: =R52+IF(データ整理!R51>5,データ整理!R51-5,0) -> 1445.32701 | S51: =S52+IF(データ整理!S51>5,データ整理!S51-5,0) -> 1576.23556 | T51: =T52+IF(データ整理!T51>5,データ整理!T51-5,0) -> 1446.50308 | U51: =U52+IF(データ整理!U51>5,データ整理!U51-5,0) -> 1463.8795 | Y51: 2018-05-20 | Z51: =Z52+IF(データ整理!Z51>5,データ整理!Z51-5,0) -> 1463.8795 | AA51: =AA52+IF(データ整理!AA51>5,データ整理!AA51-5,0) -> 1496.6574
A52: 2014-05-21 | B52: =B53+IF(データ整理!B52>5,データ整理!B52-5,0) -> 1694.08309 | C52: =C53+IF(データ整理!C52>5,データ整理!C52-5,0) -> 1689.00164 | D52: =D53+IF(データ整理!D52>5,データ整理!D52-5,0) -> 1451.54025 | E52: =E53+IF(データ整理!E52>5,データ整理!E52-5,0) -> 1406.0038 | F52: =F53+IF(データ整理!F52>5,データ整理!F52-5,0) -> 1446.82368 | G52: =G53+IF(データ整理!G52>5,データ整理!G52-5,0) -> 1579.87447 | H52: =H53+IF(データ整理!H52>5,データ整理!H52-5,0) -> 1638.32808 | I52: =I53+IF(データ整理!I52>5,データ整理!I52-5,0) -> 1625.1273 | J52: =J53+IF(データ整理!J52>5,データ整理!J52-5,0) -> 1511.95593 | K52: =K53+IF(データ整理!K52>5,データ整理!K52-5,0) -> 1478.74741 | L52: =L53+IF(データ整理!L52>5,データ整理!L52-5,0) -> 1444.66747 | M52: =M53+IF(データ整理!M52>5,データ整理!M52-5,0) -> 1745.11454 | N52: =N53+IF(データ整理!N52>5,データ整理!N52-5,0) -> 1574.58241 | O52: =O53+IF(データ整理!O52>5,データ整理!O52-5,0) -> 1689.40339 | P52: =P53+IF(データ整理!P52>5,データ整理!P52-5,0) -> 1656.2985 | Q52: =Q53+IF(データ整理!Q52>5,データ整理!Q52-5,0) -> 1564.14019 | R52: =R53+IF(データ整理!R52>5,データ整理!R52-5,0) -> 1440.44758 | S52: =S53+IF(データ整理!S52>5,データ整理!S52-5,0) -> 1566.56276 | T52: =T53+IF(データ整理!T52>5,データ整理!T52-5,0) -> 1437.40608 | U52: =U53+IF(データ整理!U52>5,データ整理!U52-5,0) -> 1461.13467 | Y52: 2018-05-21 | Z52: =Z53+IF(データ整理!Z52>5,データ整理!Z52-5,0) -> 1461.13467 | AA52: =AA53+IF(データ整理!AA52>5,データ整理!AA52-5,0) -> 1492.10348
A53: 2014-05-22 | B53: =B54+IF(データ整理!B53>5,データ整理!B53-5,0) -> 1688.97279 | C53: =C54+IF(データ整理!C53>5,データ整理!C53-5,0) -> 1681.61564 | D53: =D54+IF(データ整理!D53>5,データ整理!D53-5,0) -> 1447.04745 | E53: =E54+IF(データ整理!E53>5,データ整理!E53-5,0) -> 1400.9378 | F53: =F54+IF(データ整理!F53>5,データ整理!F53-5,0) -> 1442.90693 | G53: =G54+IF(データ整理!G53>5,データ整理!G53-5,0) -> 1575.17999 | H53: =H54+IF(データ整理!H53>5,データ整理!H53-5,0) -> 1631.46788 | I53: =I54+IF(データ整理!I53>5,データ整理!I53-5,0) -> 1619.6196 | J53: =J54+IF(データ整理!J53>5,データ整理!J53-5,0) -> 1507.14805 | K53: =K54+IF(データ整理!K53>5,データ整理!K53-5,0) -> 1474.56335 | L53: =L54+IF(データ整理!L53>5,データ整理!L53-5,0) -> 1435.54547 | M53: =M54+IF(データ整理!M53>5,データ整理!M53-5,0) -> 1741.00392 | N53: =N54+IF(データ整理!N53>5,データ整理!N53-5,0) -> 1570.00775 | O53: =O54+IF(データ整理!O53>5,データ整理!O53-5,0) -> 1682.99589 | P53: =P54+IF(データ整理!P53>5,データ整理!P53-5,0) -> 1653.19081 | Q53: =Q54+IF(データ整理!Q53>5,データ整理!Q53-5,0) -> 1558.51639 | R53: =R54+IF(データ整理!R53>5,データ整理!R53-5,0) -> 1437.19829 | S53: =S54+IF(データ整理!S53>5,データ整理!S53-5,0) -> 1555.89296 | T53: =T54+IF(データ整理!T53>5,データ整理!T53-5,0) -> 1429.61938 | U53: =U54+IF(データ整理!U53>5,データ整理!U53-5,0) -> 1455.68147 | Y53: 2018-05-22 | Z53: =Z54+IF(データ整理!Z53>5,データ整理!Z53-5,0) -> 1455.68147 | AA53: =AA54+IF(データ整理!AA53>5,データ整理!AA53-5,0) -> 1487.35153
A54: 2014-05-23 | B54: =B55+IF(データ整理!B54>5,データ整理!B54-5,0) -> 1678.18119 | C54: =C55+IF(データ整理!C54>5,データ整理!C54-5,0) -> 1675.54964 | D54: =D55+IF(データ整理!D54>5,データ整理!D54-5,0) -> 1442.10627 | E54: =E55+IF(データ整理!E54>5,データ整理!E54-5,0) -> 1393.902 | F54: =F55+IF(データ整理!F54>5,データ整理!F54-5,0) -> 1439.64851 | G54: =G55+IF(データ整理!G54>5,データ整理!G54-5,0) -> 1571.84472 | H54: =H55+IF(データ整理!H54>5,データ整理!H54-5,0) -> 1624.69918 | I54: =I55+IF(データ整理!I54>5,データ整理!I54-5,0) -> 1614.3566 | J54: =J55+IF(データ整理!J54>5,データ整理!J54-5,0) -> 1496.76825 | K54: =K55+IF(データ整理!K54>5,データ整理!K54-5,0) -> 1467.62075 | L54: =L55+IF(データ整理!L54>5,データ整理!L54-5,0) -> 1426.95097 | M54: =M55+IF(データ整理!M54>5,データ整理!M54-5,0) -> 1735.37772 | N54: =N55+IF(データ整理!N54>5,データ整理!N54-5,0) -> 1568.1876 | O54: =O55+IF(データ整理!O54>5,データ整理!O54-5,0) -> 1673.87609 | P54: =P55+IF(データ整理!P54>5,データ整理!P54-5,0) -> 1650.33752 | Q54: =Q55+IF(データ整理!Q54>5,データ整理!Q54-5,0) -> 1558.4425 | R54: =R55+IF(データ整理!R54>5,データ整理!R54-5,0) -> 1431.44259 | S54: =S55+IF(データ整理!S54>5,データ整理!S54-5,0) -> 1545.58546 | T54: =T55+IF(データ整理!T54>5,データ整理!T54-5,0) -> 1422.95648 | U54: =U55+IF(データ整理!U54>5,データ整理!U54-5,0) -> 1447.26397 | Y54: 2018-05-23 | Z54: =Z55+IF(データ整理!Z54>5,データ整理!Z54-5,0) -> 1447.26397 | AA54: =AA55+IF(データ整理!AA54>5,データ整理!AA54-5,0) -> 1482.41519
A55: 2014-05-24 | B55: =B56+IF(データ整理!B55>5,データ整理!B55-5,0) -> 1671.56799 | C55: =C56+IF(データ整理!C55>5,データ整理!C55-5,0) -> 1667.60174 | D55: =D56+IF(データ整理!D55>5,データ整理!D55-5,0) -> 1437.48448 | E55: =E56+IF(データ整理!E55>5,データ整理!E55-5,0) -> 1386.7577 | F55: =F56+IF(データ整理!F55>5,データ整理!F55-5,0) -> 1434.01891 | G55: =G56+IF(データ整理!G55>5,データ整理!G55-5,0) -> 1565.17712 | H55: =H56+IF(データ整理!H55>5,データ整理!H55-5,0) -> 1621.61384 | I55: =I56+IF(データ整理!I55>5,データ整理!I55-5,0) -> 1609.45933 | J55: =J56+IF(データ整理!J55>5,データ整理!J55-5,0) -> 1492.02808 | K55: =K56+IF(データ整理!K55>5,データ整理!K55-5,0) -> 1462.47405 | L55: =L56+IF(データ整理!L55>5,データ整理!L55-5,0) -> 1419.63667 | M55: =M56+IF(データ整理!M55>5,データ整理!M55-5,0) -> 1727.69982 | N55: =N56+IF(データ整理!N55>5,データ整理!N55-5,0) -> 1568.1876 | O55: =O56+IF(データ整理!O55>5,データ整理!O55-5,0) -> 1666.19519 | P55: =P56+IF(データ整理!P55>5,データ整理!P55-5,0) -> 1650.07148 | Q55: =Q56+IF(データ整理!Q55>5,データ整理!Q55-5,0) -> 1555.24238 | R55: =R56+IF(データ整理!R55>5,データ整理!R55-5,0) -> 1424.33769 | S55: =S56+IF(データ整理!S55>5,データ整理!S55-5,0) -> 1536.78606 | T55: =T56+IF(データ整理!T55>5,データ整理!T55-5,0) -> 1417.46148 | U55: =U56+IF(データ整理!U55>5,データ整理!U55-5,0) -> 1437.81667 | Y55: 2018-05-24 | Z55: =Z56+IF(データ整理!Z55>5,データ整理!Z55-5,0) -> 1437.81667 | AA55: =AA56+IF(データ整理!AA55>5,データ整理!AA55-5,0) -> 1477.30499
A56: 2014-05-25 | B56: =B57+IF(データ整理!B56>5,データ整理!B56-5,0) -> 1666.85154 | C56: =C57+IF(データ整理!C56>5,データ整理!C56-5,0) -> 1660.30454 | D56: =D57+IF(データ整理!D56>5,データ整理!D56-5,0) -> 1430.35798 | E56: =E57+IF(データ整理!E56>5,データ整理!E56-5,0) -> 1380.6293 | F56: =F57+IF(データ整理!F56>5,データ整理!F56-5,0) -> 1426.53041 | G56: =G57+IF(データ整理!G56>5,データ整理!G56-5,0) -> 1558.27362 | H56: =H57+IF(データ整理!H56>5,データ整理!H56-5,0) -> 1620.1516 | I56: =I57+IF(データ整理!I56>5,データ整理!I56-5,0) -> 1608.13512 | J56: =J57+IF(データ整理!J56>5,データ整理!J56-5,0) -> 1490.01013 | K56: =K57+IF(データ整理!K56>5,データ整理!K56-5,0) -> 1454.86245 | L56: =L57+IF(データ整理!L56>5,データ整理!L56-5,0) -> 1414.11977 | M56: =M57+IF(データ整理!M56>5,データ整理!M56-5,0) -> 1720.39852 | N56: =N57+IF(データ整理!N56>5,データ整理!N56-5,0) -> 1564.81474 | O56: =O57+IF(データ整理!O56>5,データ整理!O56-5,0) -> 1657.69229 | P56: =P57+IF(データ整理!P56>5,データ整理!P56-5,0) -> 1647.97917 | Q56: =Q57+IF(データ整理!Q56>5,データ整理!Q56-5,0) -> 1551.07252 | R56: =R57+IF(データ整理!R56>5,データ整理!R56-5,0) -> 1419.53346 | S56: =S57+IF(データ整理!S56>5,データ整理!S56-5,0) -> 1528.02146 | T56: =T57+IF(データ整理!T56>5,データ整理!T56-5,0) -> 1411.88688 | U56: =U57+IF(データ整理!U56>5,データ整理!U56-5,0) -> 1431.37247 | Y56: 2018-05-25 | Z56: =Z57+IF(データ整理!Z56>5,データ整理!Z56-5,0) -> 1431.37247 | AA56: =AA57+IF(データ整理!AA56>5,データ整理!AA56-5,0) -> 1472.02669
A57: 2014-05-26 | B57: =B58+IF(データ整理!B57>5,データ整理!B57-5,0) -> 1662.63072 | C57: =C58+IF(データ整理!C57>5,データ整理!C57-5,0) -> 1651.58274 | D57: =D58+IF(データ整理!D57>5,データ整理!D57-5,0) -> 1424.37698 | E57: =E58+IF(データ整理!E57>5,データ整理!E57-5,0) -> 1377.23257 | F57: =F58+IF(データ整理!F57>5,データ整理!F57-5,0) -> 1419.16411 | G57: =G58+IF(データ整理!G57>5,データ整理!G57-5,0) -> 1553.55085 | H57: =H58+IF(データ整理!H57>5,データ整理!H57-5,0) -> 1618.04313 | I57: =I58+IF(データ整理!I57>5,データ整理!I57-5,0) -> 1605.80881 | J57: =J58+IF(データ整理!J57>5,データ整理!J57-5,0) -> 1487.47147 | K57: =K58+IF(データ整理!K57>5,データ整理!K57-5,0) -> 1447.04195 | L57: =L58+IF(データ整理!L57>5,データ整理!L57-5,0) -> 1410.25204 | M57: =M58+IF(データ整理!M57>5,データ整理!M57-5,0) -> 1716.80525 | N57: =N58+IF(データ整理!N57>5,データ整理!N57-5,0) -> 1559.34174 | O57: =O58+IF(データ整理!O57>5,データ整理!O57-5,0) -> 1648.67829 | P57: =P58+IF(データ整理!P57>5,データ整理!P57-5,0) -> 1644.90911 | Q57: =Q58+IF(データ整理!Q57>5,データ整理!Q57-5,0) -> 1547.85633 | R57: =R58+IF(データ整理!R57>5,データ整理!R57-5,0) -> 1414.47386 | S57: =S58+IF(データ整理!S57>5,データ整理!S57-5,0) -> 1518.88206 | T57: =T58+IF(データ整理!T57>5,データ整理!T57-5,0) -> 1404.33718 | U57: =U58+IF(データ整理!U57>5,データ整理!U57-5,0) -> 1427.40183 | Y57: 2018-05-26 | Z57: =Z58+IF(データ整理!Z57>5,データ整理!Z57-5,0) -> 1427.40183 | AA57: =AA58+IF(データ整理!AA57>5,データ整理!AA57-5,0) -> 1466.58119
A58: 2014-05-27 | B58: =B59+IF(データ整理!B58>5,データ整理!B58-5,0) -> 1657.44512 | C58: =C59+IF(データ整理!C58>5,データ整理!C58-5,0) -> 1641.25184 | D58: =D59+IF(データ整理!D58>5,データ整理!D58-5,0) -> 1419.35018 | E58: =E59+IF(データ整理!E58>5,データ整理!E58-5,0) -> 1374.22073 | F58: =F59+IF(データ整理!F58>5,データ整理!F58-5,0) -> 1411.02151 | G58: =G59+IF(データ整理!G58>5,データ整理!G58-5,0) -> 1545.10305 | H58: =H59+IF(データ整理!H58>5,データ整理!H58-5,0) -> 1615.39556 | I58: =I59+IF(データ整理!I58>5,データ整理!I58-5,0) -> 1599.92031 | J58: =J59+IF(データ整理!J58>5,データ整理!J58-5,0) -> 1484.35772 | K58: =K59+IF(データ整理!K58>5,データ整理!K58-5,0) -> 1440.12945 | L58: =L59+IF(データ整理!L58>5,データ整理!L58-5,0) -> 1404.64484 | M58: =M59+IF(データ整理!M58>5,データ整理!M58-5,0) -> 1715.92507 | N58: =N59+IF(データ整理!N58>5,データ整理!N58-5,0) -> 1553.05924 | O58: =O59+IF(データ整理!O58>5,データ整理!O58-5,0) -> 1644.5439 | P58: =P59+IF(データ整理!P58>5,データ整理!P58-5,0) -> 1638.77921 | Q58: =Q59+IF(データ整理!Q58>5,データ整理!Q58-5,0) -> 1543.12257 | R58: =R59+IF(データ整理!R58>5,データ整理!R58-5,0) -> 1410.09963 | S58: =S59+IF(データ整理!S58>5,データ整理!S58-5,0) -> 1507.93086 | T58: =T59+IF(データ整理!T58>5,データ整理!T58-5,0) -> 1396.56448 | U58: =U59+IF(データ整理!U58>5,データ整理!U58-5,0) -> 1424.82941 | Y58: 2018-05-27 | Z58: =Z59+IF(データ整理!Z58>5,データ整理!Z58-5,0) -> 1424.82941 | AA58: =AA59+IF(データ整理!AA58>5,データ整理!AA58-5,0) -> 1460.96819
A59: 2014-05-28 | B59: =B60+IF(データ整理!B59>5,データ整理!B59-5,0) -> 1652.50893 | C59: =C60+IF(データ整理!C59>5,データ整理!C59-5,0) -> 1628.82324 | D59: =D60+IF(データ整理!D59>5,データ整理!D59-5,0) -> 1414.74631 | E59: =E60+IF(データ整理!E59>5,データ整理!E59-5,0) -> 1368.31483 | F59: =F60+IF(データ整理!F59>5,データ整理!F59-5,0) -> 1404.86931 | G59: =G60+IF(データ整理!G59>5,データ整理!G59-5,0) -> 1533.41815 | H59: =H60+IF(データ整理!H59>5,データ整理!H59-5,0) -> 1612.02867 | I59: =I60+IF(データ整理!I59>5,データ整理!I59-5,0) -> 1589.41811 | J59: =J60+IF(データ整理!J59>5,データ整理!J59-5,0) -> 1484.26949 | K59: =K60+IF(データ整理!K59>5,データ整理!K59-5,0) -> 1437.70453 | L59: =L60+IF(データ整理!L59>5,データ整理!L59-5,0) -> 1399.00644 | M59: =M60+IF(データ整理!M59>5,データ整理!M59-5,0) -> 1715.92507 | N59: =N60+IF(データ整理!N59>5,データ整理!N59-5,0) -> 1545.09984 | O59: =O60+IF(データ整理!O59>5,データ整理!O59-5,0) -> 1643.5201 | P59: =P60+IF(データ整理!P59>5,データ整理!P59-5,0) -> 1628.57891 | Q59: =Q60+IF(データ整理!Q59>5,データ整理!Q59-5,0) -> 1534.20587 | R59: =R60+IF(データ整理!R59>5,データ整理!R59-5,0) -> 1404.98663 | S59: =S60+IF(データ整理!S59>5,データ整理!S59-5,0) -> 1500.37706 | T59: =T60+IF(データ整理!T59>5,データ整理!T59-5,0) -> 1390.62508 | U59: =U60+IF(データ整理!U59>5,データ整理!U59-5,0) -> 1421.01281 | Y59: 2018-05-28 | Z59: =Z60+IF(データ整理!Z59>5,データ整理!Z59-5,0) -> 1421.01281 | AA59: =AA60+IF(データ整理!AA59>5,データ整理!AA59-5,0) -> 1455.18719
A60: 2014-05-29 | B60: =B61+IF(データ整理!B60>5,データ整理!B60-5,0) -> 1647.31103 | C60: =C61+IF(データ整理!C60>5,データ整理!C60-5,0) -> 1619.66714 | D60: =D61+IF(データ整理!D60>5,データ整理!D60-5,0) -> 1408.24901 | E60: =E61+IF(データ整理!E60>5,データ整理!E60-5,0) -> 1359.69593 | F60: =F61+IF(データ整理!F60>5,データ整理!F60-5,0) -> 1395.18801 | G60: =G61+IF(データ整理!G60>5,データ整理!G60-5,0) -> 1520.67985 | H60: =H61+IF(データ整理!H60>5,データ整理!H60-5,0) -> 1604.95877 | I60: =I61+IF(データ整理!I60>5,データ整理!I60-5,0) -> 1581.75501 | J60: =J61+IF(データ整理!J60>5,データ整理!J60-5,0) -> 1481.69841 | K60: =K61+IF(データ整理!K60>5,データ整理!K60-5,0) -> 1434.9807 | L60: =L61+IF(データ整理!L60>5,データ整理!L60-5,0) -> 1394.29107 | M60: =M61+IF(データ整理!M60>5,データ整理!M60-5,0) -> 1715.92507 | N60: =N61+IF(データ整理!N60>5,データ整理!N60-5,0) -> 1536.00574 | O60: =O61+IF(データ整理!O60>5,データ整理!O60-5,0) -> 1639.15957 | P60: =P61+IF(データ整理!P60>5,データ整理!P60-5,0) -> 1617.75401 | Q60: =Q61+IF(データ整理!Q60>5,データ整理!Q60-5,0) -> 1524.20667 | R60: =R61+IF(データ整理!R60>5,データ整理!R60-5,0) -> 1396.93693 | S60: =S61+IF(データ整理!S60>5,データ整理!S60-5,0) -> 1493.88326 | T60: =T61+IF(データ整理!T60>5,データ整理!T60-5,0) -> 1383.68458 | U60: =U61+IF(データ整理!U60>5,データ整理!U60-5,0) -> 1415.93951 | Y60: 2018-05-29 | Z60: =Z61+IF(データ整理!Z60>5,データ整理!Z60-5,0) -> 1415.93951 | AA60: =AA61+IF(データ整理!AA60>5,データ整理!AA60-5,0) -> 1449.23489
A61: 2014-05-30 | B61: =B62+IF(データ整理!B61>5,データ整理!B61-5,0) -> 1643.33646 | C61: =C62+IF(データ整理!C61>5,データ整理!C61-5,0) -> 1610.98334 | D61: =D62+IF(データ整理!D61>5,データ整理!D61-5,0) -> 1398.63161 | E61: =E62+IF(データ整理!E61>5,データ整理!E61-5,0) -> 1350.22143 | F61: =F62+IF(データ整理!F61>5,データ整理!F61-5,0) -> 1384.79151 | G61: =G62+IF(データ整理!G61>5,データ整理!G61-5,0) -> 1510.47565 | H61: =H62+IF(データ整理!H61>5,データ整理!H61-5,0) -> 1596.61237 | I61: =I62+IF(データ整理!I61>5,データ整理!I61-5,0) -> 1574.77741 | J61: =J62+IF(データ整理!J61>5,データ整理!J61-5,0) -> 1476.60341 | K61: =K62+IF(データ整理!K61>5,データ整理!K61-5,0) -> 1431.76652 | L61: =L62+IF(データ整理!L61>5,データ整理!L61-5,0) -> 1387.57097 | M61: =M62+IF(データ整理!M61>5,データ整理!M61-5,0) -> 1713.51123 | N61: =N62+IF(データ整理!N61>5,データ整理!N61-5,0) -> 1529.27684 | O61: =O62+IF(データ整理!O61>5,データ整理!O61-5,0) -> 1633.74817 | P61: =P62+IF(データ整理!P61>5,データ整理!P61-5,0) -> 1606.71231 | Q61: =Q62+IF(データ整理!Q61>5,データ整理!Q61-5,0) -> 1511.21267 | R61: =R62+IF(データ整理!R61>5,データ整理!R61-5,0) -> 1385.69413 | S61: =S62+IF(データ整理!S61>5,データ整理!S61-5,0) -> 1488.44726 | T61: =T62+IF(データ整理!T61>5,データ整理!T61-5,0) -> 1374.40178 | U61: =U62+IF(データ整理!U61>5,データ整理!U61-5,0) -> 1408.78121 | Y61: 2018-05-30 | Z61: =Z62+IF(データ整理!Z61>5,データ整理!Z61-5,0) -> 1408.78121 | AA61: =AA62+IF(データ整理!AA61>5,データ整理!AA61-5,0) -> 1443.10609
A62: 2014-05-31 | B62: =B63+IF(データ整理!B62>5,データ整理!B62-5,0) -> 1637.21796 | C62: =C63+IF(データ整理!C62>5,データ整理!C62-5,0) -> 1603.42244 | D62: =D63+IF(データ整理!D62>5,データ整理!D62-5,0) -> 1388.29061 | E62: =E63+IF(データ整理!E62>5,データ整理!E62-5,0) -> 1339.73333 | F62: =F63+IF(データ整理!F62>5,データ整理!F62-5,0) -> 1371.07861 | G62: =G63+IF(データ整理!G62>5,データ整理!G62-5,0) -> 1501.16145 | H62: =H63+IF(データ整理!H62>5,データ整理!H62-5,0) -> 1586.99507 | I62: =I63+IF(データ整理!I62>5,データ整理!I62-5,0) -> 1566.84491 | J62: =J63+IF(データ整理!J62>5,データ整理!J62-5,0) -> 1469.06451 | K62: =K63+IF(データ整理!K62>5,データ整理!K62-5,0) -> 1429.67032 | L62: =L63+IF(データ整理!L62>5,データ整理!L62-5,0) -> 1379.28977 | M62: =M63+IF(データ整理!M62>5,データ整理!M62-5,0) -> 1709.73146 | N62: =N63+IF(データ整理!N62>5,データ整理!N62-5,0) -> 1524.8798 | O62: =O63+IF(データ整理!O62>5,データ整理!O62-5,0) -> 1627.69917 | P62: =P63+IF(データ整理!P62>5,データ整理!P62-5,0) -> 1596.74321 | Q62: =Q63+IF(データ整理!Q62>5,データ整理!Q62-5,0) -> 1500.07847 | R62: =R63+IF(データ整理!R62>5,データ整理!R62-5,0) -> 1373.34823 | S62: =S63+IF(データ整理!S62>5,データ整理!S62-5,0) -> 1481.43756 | T62: =T63+IF(データ整理!T62>5,データ整理!T62-5,0) -> 1364.66708 | U62: =U63+IF(データ整理!U62>5,データ整理!U62-5,0) -> 1397.90311 | Y62: 2018-05-31 | Z62: =Z63+IF(データ整理!Z62>5,データ整理!Z62-5,0) -> 1397.90311 | AA62: =AA63+IF(データ整理!AA62>5,データ整理!AA62-5,0) -> 1436.79239
A63: 2014-06-01 | B63: =B64+IF(データ整理!B63>5,データ整理!B63-5,0) -> 1626.59286 | C63: =C64+IF(データ整理!C63>5,データ整理!C63-5,0) -> 1596.65344 | D63: =D64+IF(データ整理!D63>5,データ整理!D63-5,0) -> 1381.14381 | E63: =E64+IF(データ整理!E63>5,データ整理!E63-5,0) -> 1332.03653 | F63: =F64+IF(データ整理!F63>5,データ整理!F63-5,0) -> 1361.09931 | G63: =G64+IF(データ整理!G63>5,データ整理!G63-5,0) -> 1494.89745 | H63: =H64+IF(データ整理!H63>5,データ整理!H63-5,0) -> 1576.97027 | I63: =I64+IF(データ整理!I63>5,データ整理!I63-5,0) -> 1562.61726 | J63: =J64+IF(データ整理!J63>5,データ整理!J63-5,0) -> 1462.80521 | K63: =K64+IF(データ整理!K63>5,データ整理!K63-5,0) -> 1425.18362 | L63: =L64+IF(データ整理!L63>5,データ整理!L63-5,0) -> 1373.58627 | M63: =M64+IF(データ整理!M63>5,データ整理!M63-5,0) -> 1703.88866 | N63: =N64+IF(データ整理!N63>5,データ整理!N63-5,0) -> 1521.9835 | O63: =O64+IF(データ整理!O63>5,データ整理!O63-5,0) -> 1621.36997 | P63: =P64+IF(データ整理!P63>5,データ整理!P63-5,0) -> 1586.39411 | Q63: =Q64+IF(データ整理!Q63>5,データ整理!Q63-5,0) -> 1489.03047 | R63: =R64+IF(データ整理!R63>5,データ整理!R63-5,0) -> 1365.77263 | S63: =S64+IF(データ整理!S63>5,データ整理!S63-5,0) -> 1473.34126 | T63: =T64+IF(データ整理!T63>5,データ整理!T63-5,0) -> 1357.29308 | U63: =U64+IF(データ整理!U63>5,データ整理!U63-5,0) -> 1388.84391 | Y63: 2018-06-01 | Z63: =Z64+IF(データ整理!Z63>5,データ整理!Z63-5,0) -> 1388.84391 | AA63: =AA64+IF(データ整理!AA63>5,データ整理!AA63-5,0) -> 1430.28709
A64: 2014-06-02 | B64: =B65+IF(データ整理!B64>5,データ整理!B64-5,0) -> 1616.33416 | C64: =C65+IF(データ整理!C64>5,データ整理!C64-5,0) -> 1590.12224 | D64: =D65+IF(データ整理!D64>5,データ整理!D64-5,0) -> 1375.25971 | E64: =E65+IF(データ整理!E64>5,データ整理!E64-5,0) -> 1323.83433 | F64: =F65+IF(データ整理!F64>5,データ整理!F64-5,0) -> 1352.73711 | G64: =G65+IF(データ整理!G64>5,データ整理!G64-5,0) -> 1486.96785 | H64: =H65+IF(データ整理!H64>5,データ整理!H64-5,0) -> 1569.58277 | I64: =I65+IF(データ整理!I64>5,データ整理!I64-5,0) -> 1558.18336 | J64: =J65+IF(データ整理!J64>5,データ整理!J64-5,0) -> 1456.45641 | K64: =K65+IF(データ整理!K64>5,データ整理!K64-5,0) -> 1421.72682 | L64: =L65+IF(データ整理!L64>5,データ整理!L64-5,0) -> 1367.54647 | M64: =M65+IF(データ整理!M64>5,データ整理!M64-5,0) -> 1699.64441 | N64: =N65+IF(データ整理!N64>5,データ整理!N64-5,0) -> 1517.40305 | O64: =O65+IF(データ整理!O64>5,データ整理!O64-5,0) -> 1614.01757 | P64: =P65+IF(データ整理!P64>5,データ整理!P64-5,0) -> 1575.32911 | Q64: =Q65+IF(データ整理!Q64>5,データ整理!Q64-5,0) -> 1480.00177 | R64: =R65+IF(データ整理!R64>5,データ整理!R64-5,0) -> 1355.73473 | S64: =S65+IF(データ整理!S64>5,データ整理!S64-5,0) -> 1470.88833 | T64: =T65+IF(データ整理!T64>5,データ整理!T64-5,0) -> 1353.07691 | U64: =U65+IF(データ整理!U64>5,データ整理!U64-5,0) -> 1381.93171 | Y64: 2018-06-02 | Z64: =Z65+IF(データ整理!Z64>5,データ整理!Z64-5,0) -> 1381.93171 | AA64: =AA65+IF(データ整理!AA64>5,データ整理!AA64-5,0) -> 1423.58549
A65: 2014-06-03 | B65: =B66+IF(データ整理!B65>5,データ整理!B65-5,0) -> 1606.47386 | C65: =C66+IF(データ整理!C65>5,データ整理!C65-5,0) -> 1585.34237 | D65: =D66+IF(データ整理!D65>5,データ整理!D65-5,0) -> 1369.27771 | E65: =E66+IF(データ整理!E65>5,データ整理!E65-5,0) -> 1319.95282 | F65: =F66+IF(データ整理!F65>5,データ整理!F65-5,0) -> 1347.00871 | G65: =G66+IF(データ整理!G65>5,データ整理!G65-5,0) -> 1480.54885 | H65: =H66+IF(データ整理!H65>5,データ整理!H65-5,0) -> 1557.98607 | I65: =I66+IF(データ整理!I65>5,データ整理!I65-5,0) -> 1554.98525 | J65: =J66+IF(データ整理!J65>5,データ整理!J65-5,0) -> 1449.84351 | K65: =K66+IF(データ整理!K65>5,データ整理!K65-5,0) -> 1415.90472 | L65: =L66+IF(データ整理!L65>5,データ整理!L65-5,0) -> 1362.73612 | M65: =M66+IF(データ整理!M65>5,データ整理!M65-5,0) -> 1694.33381 | N65: =N66+IF(データ整理!N65>5,データ整理!N65-5,0) -> 1512.53539 | O65: =O66+IF(データ整理!O65>5,データ整理!O65-5,0) -> 1607.43197 | P65: =P66+IF(データ整理!P65>5,データ整理!P65-5,0) -> 1568.05861 | Q65: =Q66+IF(データ整理!Q65>5,データ整理!Q65-5,0) -> 1468.57777 | R65: =R66+IF(データ整理!R65>5,データ整理!R65-5,0) -> 1347.43273 | S65: =S66+IF(データ整理!S65>5,データ整理!S65-5,0) -> 1470.14435 | T65: =T66+IF(データ整理!T65>5,データ整理!T65-5,0) -> 1350.86636 | U65: =U66+IF(データ整理!U65>5,データ整理!U65-5,0) -> 1374.03591 | Y65: 2018-06-03 | Z65: =Z66+IF(データ整理!Z65>5,データ整理!Z65-5,0) -> 1374.03591 | AA65: =AA66+IF(データ整理!AA65>5,データ整理!AA65-5,0) -> 1416.68649
A66: 2014-06-04 | B66: =B67+IF(データ整理!B66>5,データ整理!B66-5,0) -> 1598.85116 | C66: =C67+IF(データ整理!C66>5,データ整理!C66-5,0) -> 1580.01607 | D66: =D67+IF(データ整理!D66>5,データ整理!D66-5,0) -> 1363.57711 | E66: =E67+IF(データ整理!E66>5,データ整理!E66-5,0) -> 1314.03972 | F66: =F67+IF(データ整理!F66>5,データ整理!F66-5,0) -> 1336.58751 | G66: =G67+IF(データ整理!G66>5,データ整理!G66-5,0) -> 1473.14675 | H66: =H67+IF(データ整理!H66>5,データ整理!H66-5,0) -> 1549.19607 | I66: =I67+IF(データ整理!I66>5,データ整理!I66-5,0) -> 1550.6477 | J66: =J67+IF(データ整理!J66>5,データ整理!J66-5,0) -> 1441.42591 | K66: =K67+IF(データ整理!K66>5,データ整理!K66-5,0) -> 1408.25152 | L66: =L67+IF(データ整理!L66>5,データ整理!L66-5,0) -> 1353.32612 | M66: =M67+IF(データ整理!M66>5,データ整理!M66-5,0) -> 1690.06894 | N66: =N67+IF(データ整理!N66>5,データ整理!N66-5,0) -> 1505.51529 | O66: =O67+IF(データ整理!O66>5,データ整理!O66-5,0) -> 1599.12317 | P66: =P67+IF(データ整理!P66>5,データ整理!P66-5,0) -> 1564.44552 | Q66: =Q67+IF(データ整理!Q66>5,データ整理!Q66-5,0) -> 1454.36327 | R66: =R67+IF(データ整理!R66>5,データ整理!R66-5,0) -> 1341.30593 | S66: =S67+IF(データ整理!S66>5,データ整理!S66-5,0) -> 1468.75324 | T66: =T67+IF(データ整理!T66>5,データ整理!T66-5,0) -> 1350.86636 | U66: =U67+IF(データ整理!U66>5,データ整理!U66-5,0) -> 1362.71531 | Y66: 2018-06-04 | Z66: =Z67+IF(データ整理!Z66>5,データ整理!Z66-5,0) -> 1362.71531 | AA66: =AA67+IF(データ整理!AA66>5,データ整理!AA66-5,0) -> 1409.59339
A67: 2014-06-05 | B67: =B68+IF(データ整理!B67>5,データ整理!B67-5,0) -> 1588.05596 | C67: =C68+IF(データ整理!C67>5,データ整理!C67-5,0) -> 1574.91207 | D67: =D68+IF(データ整理!D67>5,データ整理!D67-5,0) -> 1356.63061 | E67: =E68+IF(データ整理!E67>5,データ整理!E67-5,0) -> 1307.17002 | F67: =F68+IF(データ整理!F67>5,データ整理!F67-5,0) -> 1331.67304 | G67: =G68+IF(データ整理!G67>5,データ整理!G67-5,0) -> 1463.13895 | H67: =H68+IF(データ整理!H67>5,データ整理!H67-5,0) -> 1541.61527 | I67: =I68+IF(データ整理!I67>5,データ整理!I67-5,0) -> 1543.4478 | J67: =J68+IF(データ整理!J67>5,データ整理!J67-5,0) -> 1431.49391 | K67: =K68+IF(データ整理!K67>5,データ整理!K67-5,0) -> 1398.32902 | L67: =L68+IF(データ整理!L67>5,データ整理!L67-5,0) -> 1343.79892 | M67: =M68+IF(データ整理!M67>5,データ整理!M67-5,0) -> 1684.98794 | N67: =N68+IF(データ整理!N67>5,データ整理!N67-5,0) -> 1497.58239 | O67: =O68+IF(データ整理!O67>5,データ整理!O67-5,0) -> 1589.87857 | P67: =P68+IF(データ整理!P67>5,データ整理!P67-5,0) -> 1558.40992 | Q67: =Q68+IF(データ整理!Q67>5,データ整理!Q67-5,0) -> 1438.99407 | R67: =R68+IF(データ整理!R67>5,データ整理!R67-5,0) -> 1337.52684 | S67: =S68+IF(データ整理!S67>5,データ整理!S67-5,0) -> 1468.67037 | T67: =T68+IF(データ整理!T67>5,データ整理!T67-5,0) -> 1350.83293 | U67: =U68+IF(データ整理!U67>5,データ整理!U67-5,0) -> 1350.55731 | Y67: 2018-06-05 | Z67: =Z68+IF(データ整理!Z67>5,データ整理!Z67-5,0) -> 1350.55731 | AA67: =AA68+IF(データ整理!AA67>5,データ整理!AA67-5,0) -> 1402.30889
A68: 2014-06-06 | B68: =B69+IF(データ整理!B68>5,データ整理!B68-5,0) -> 1579.39496 | C68: =C69+IF(データ整理!C68>5,データ整理!C68-5,0) -> 1567.28067 | D68: =D69+IF(データ整理!D68>5,データ整理!D68-5,0) -> 1345.40971 | E68: =E69+IF(データ整理!E68>5,データ整理!E68-5,0) -> 1300.23942 | F68: =F69+IF(データ整理!F68>5,データ整理!F68-5,0) -> 1326.57624 | G68: =G69+IF(データ整理!G68>5,データ整理!G68-5,0) -> 1456.15635 | H68: =H69+IF(データ整理!H68>5,データ整理!H68-5,0) -> 1535.92617 | I68: =I69+IF(データ整理!I68>5,データ整理!I68-5,0) -> 1535.9391 | J68: =J69+IF(データ整理!J68>5,データ整理!J68-5,0) -> 1420.05981 | K68: =K69+IF(データ整理!K68>5,データ整理!K68-5,0) -> 1387.64152 | L68: =L69+IF(データ整理!L68>5,データ整理!L68-5,0) -> 1334.36132 | M68: =M69+IF(データ整理!M68>5,データ整理!M68-5,0) -> 1678.44224 | N68: =N69+IF(データ整理!N68>5,データ整理!N68-5,0) -> 1489.91309 | O68: =O69+IF(データ整理!O68>5,データ整理!O68-5,0) -> 1580.42977 | P68: =P69+IF(データ整理!P68>5,データ整理!P68-5,0) -> 1551.18632 | Q68: =Q69+IF(データ整理!Q68>5,データ整理!Q68-5,0) -> 1424.18887 | R68: =R69+IF(データ整理!R68>5,データ整理!R68-5,0) -> 1335.9218 | S68: =S69+IF(データ整理!S68>5,データ整理!S68-5,0) -> 1464.92659 | T68: =T69+IF(データ整理!T68>5,データ整理!T68-5,0) -> 1346.81706 | U68: =U69+IF(データ整理!U68>5,データ整理!U68-5,0) -> 1337.67071 | Y68: =Y67+1 -> 2018-06-06 | Z68: =Z69+IF(データ整理!Z68>5,データ整理!Z68-5,0) -> 1337.67071 | AA68: =AA69+IF(データ整理!AA68>5,データ整理!AA68-5,0) -> 1394.83559
A69: 2014-06-07 | B69: =B70+IF(データ整理!B69>5,データ整理!B69-5,0) -> 1572.66086 | C69: =C70+IF(データ整理!C69>5,データ整理!C69-5,0) -> 1559.81427 | D69: =D70+IF(データ整理!D69>5,データ整理!D69-5,0) -> 1331.28011 | E69: =E70+IF(データ整理!E69>5,データ整理!E69-5,0) -> 1290.18852 | F69: =F70+IF(データ整理!F69>5,データ整理!F69-5,0) -> 1319.57064 | G69: =G70+IF(データ整理!G69>5,データ整理!G69-5,0) -> 1446.00305 | H69: =H70+IF(データ整理!H69>5,データ整理!H69-5,0) -> 1530.76667 | I69: =I70+IF(データ整理!I69>5,データ整理!I69-5,0) -> 1528.415 | J69: =J70+IF(データ整理!J69>5,データ整理!J69-5,0) -> 1407.09111 | K69: =K70+IF(データ整理!K69>5,データ整理!K69-5,0) -> 1379.83922 | L69: =L70+IF(データ整理!L69>5,データ整理!L69-5,0) -> 1324.18232 | M69: =M70+IF(データ整理!M69>5,データ整理!M69-5,0) -> 1669.86924 | N69: =N70+IF(データ整理!N69>5,データ整理!N69-5,0) -> 1481.67209 | O69: =O70+IF(データ整理!O69>5,データ整理!O69-5,0) -> 1571.74797 | P69: =P70+IF(データ整理!P69>5,データ整理!P69-5,0) -> 1543.05972 | Q69: =Q70+IF(データ整理!Q69>5,データ整理!Q69-5,0) -> 1412.16317 | R69: =R70+IF(データ整理!R69>5,データ整理!R69-5,0) -> 1334.79845 | S69: =S70+IF(データ整理!S69>5,データ整理!S69-5,0) -> 1458.51469 | T69: =T70+IF(データ整理!T69>5,データ整理!T69-5,0) -> 1340.70896 | U69: =U70+IF(データ整理!U69>5,データ整理!U69-5,0) -> 1324.89751 | Y69: 2018-06-07 | Z69: =Z70+IF(データ整理!Z69>5,データ整理!Z69-5,0) -> 1324.89751 | AA69: =AA70+IF(データ整理!AA69>5,データ整理!AA69-5,0) -> 1387.17659
A70: 2014-06-08 | B70: =B71+IF(データ整理!B70>5,データ整理!B70-5,0) -> 1566.20276 | C70: =C71+IF(データ整理!C70>5,データ整理!C70-5,0) -> 1555.10989 | D70: =D71+IF(データ整理!D70>5,データ整理!D70-5,0) -> 1319.60211 | E70: =E71+IF(データ整理!E70>5,データ整理!E70-5,0) -> 1277.90272 | F70: =F71+IF(データ整理!F70>5,データ整理!F70-5,0) -> 1311.65964 | G70: =G71+IF(データ整理!G70>5,データ整理!G70-5,0) -> 1437.11645 | H70: =H71+IF(データ整理!H70>5,データ整理!H70-5,0) -> 1522.83027 | I70: =I71+IF(データ整理!I70>5,データ整理!I70-5,0) -> 1519.6621 | J70: =J71+IF(データ整理!J70>5,データ整理!J70-5,0) -> 1396.12911 | K70: =K71+IF(データ整理!K70>5,データ整理!K70-5,0) -> 1372.24602 | L70: =L71+IF(データ整理!L70>5,データ整理!L70-5,0) -> 1315.93572 | M70: =M71+IF(データ整理!M70>5,データ整理!M70-5,0) -> 1659.25544 | N70: =N71+IF(データ整理!N70>5,データ整理!N70-5,0) -> 1471.59089 | O70: =O71+IF(データ整理!O70>5,データ整理!O70-5,0) -> 1562.38867 | P70: =P71+IF(データ整理!P70>5,データ整理!P70-5,0) -> 1533.74492 | Q70: =Q71+IF(データ整理!Q70>5,データ整理!Q70-5,0) -> 1400.17857 | R70: =R71+IF(データ整理!R70>5,データ整理!R70-5,0) -> 1331.98949 | S70: =S71+IF(データ整理!S70>5,データ整理!S70-5,0) -> 1449.37659 | T70: =T71+IF(データ整理!T70>5,データ整理!T70-5,0) -> 1333.33076 | U70: =U71+IF(データ整理!U70>5,データ整理!U70-5,0) -> 1313.50221 | Y70: 2018-06-08 | Z70: =Z71+IF(データ整理!Z70>5,データ整理!Z70-5,0) -> 1313.50221 | AA70: =AA71+IF(データ整理!AA70>5,データ整理!AA70-5,0) -> 1379.33739
A71: 2014-06-09 | B71: =B72+IF(データ整理!B71>5,データ整理!B71-5,0) -> 1559.23816 | C71: =C72+IF(データ整理!C71>5,データ整理!C71-5,0) -> 1552.32452 | D71: =D72+IF(データ整理!D71>5,データ整理!D71-5,0) -> 1308.96271 | E71: =E72+IF(データ整理!E71>5,データ整理!E71-5,0) -> 1263.65502 | F71: =F72+IF(データ整理!F71>5,データ整理!F71-5,0) -> 1302.96824 | G71: =G72+IF(データ整理!G71>5,データ整理!G71-5,0) -> 1429.70565 | H71: =H72+IF(データ整理!H71>5,データ整理!H71-5,0) -> 1511.43737 | I71: =I72+IF(データ整理!I71>5,データ整理!I71-5,0) -> 1514.3323 | J71: =J72+IF(データ整理!J71>5,データ整理!J71-5,0) -> 1384.09711 | K71: =K72+IF(データ整理!K71>5,データ整理!K71-5,0) -> 1363.42722 | L71: =L72+IF(データ整理!L71>5,データ整理!L71-5,0) -> 1306.89382 | M71: =M72+IF(データ整理!M71>5,データ整理!M71-5,0) -> 1648.64924 | N71: =N72+IF(データ整理!N71>5,データ整理!N71-5,0) -> 1459.61249 | O71: =O72+IF(データ整理!O71>5,データ整理!O71-5,0) -> 1551.61867 | P71: =P72+IF(データ整理!P71>5,データ整理!P71-5,0) -> 1522.93492 | Q71: =Q72+IF(データ整理!Q71>5,データ整理!Q71-5,0) -> 1389.23407 | R71: =R72+IF(データ整理!R71>5,データ整理!R71-5,0) -> 1324.72249 | S71: =S72+IF(データ整理!S71>5,データ整理!S71-5,0) -> 1442.11169 | T71: =T72+IF(データ整理!T71>5,データ整理!T71-5,0) -> 1325.33336 | U71: =U72+IF(データ整理!U71>5,データ整理!U71-5,0) -> 1309.7164 | Y71: 2018-06-09 | Z71: =Z72+IF(データ整理!Z71>5,データ整理!Z71-5,0) -> 1309.7164 | AA71: =AA72+IF(データ整理!AA71>5,データ整理!AA71-5,0) -> 1371.32839
A72: 2014-06-10 | B72: =B73+IF(データ整理!B72>5,データ整理!B72-5,0) -> 1551.37906 | C72: =C73+IF(データ整理!C72>5,データ整理!C72-5,0) -> 1548.20509 | D72: =D73+IF(データ整理!D72>5,データ整理!D72-5,0) -> 1298.32151 | E72: =E73+IF(データ整理!E72>5,データ整理!E72-5,0) -> 1256.90622 | F72: =F73+IF(データ整理!F72>5,データ整理!F72-5,0) -> 1293.41914 | G72: =G73+IF(データ整理!G72>5,データ整理!G72-5,0) -> 1422.11275 | H72: =H73+IF(データ整理!H72>5,データ整理!H72-5,0) -> 1499.94287 | I72: =I73+IF(データ整理!I72>5,データ整理!I72-5,0) -> 1506.2433 | J72: =J73+IF(データ整理!J72>5,データ整理!J72-5,0) -> 1371.75901 | K72: =K73+IF(データ整理!K72>5,データ整理!K72-5,0) -> 1352.83262 | L72: =L73+IF(データ整理!L72>5,データ整理!L72-5,0) -> 1298.61902 | M72: =M73+IF(データ整理!M72>5,データ整理!M72-5,0) -> 1639.31284 | N72: =N73+IF(データ整理!N72>5,データ整理!N72-5,0) -> 1448.66659 | O72: =O73+IF(データ整理!O72>5,データ整理!O72-5,0) -> 1540.15507 | P72: =P73+IF(データ整理!P72>5,データ整理!P72-5,0) -> 1512.49692 | Q72: =Q73+IF(データ整理!Q72>5,データ整理!Q72-5,0) -> 1377.01627 | R72: =R73+IF(データ整理!R72>5,データ整理!R72-5,0) -> 1316.40829 | S72: =S73+IF(データ整理!S72>5,データ整理!S72-5,0) -> 1432.47659 | T72: =T73+IF(データ整理!T72>5,データ整理!T72-5,0) -> 1314.24806 | U72: =U73+IF(データ整理!U72>5,データ整理!U72-5,0) -> 1308.11321 | Y72: 2018-06-10 | Z72: =Z73+IF(データ整理!Z72>5,データ整理!Z72-5,0) -> 1308.11321 | AA72: =AA73+IF(データ整理!AA72>5,データ整理!AA72-5,0) -> 1363.16179
A73: 2014-06-11 | B73: =B74+IF(データ整理!B73>5,データ整理!B73-5,0) -> 1540.99586 | C73: =C74+IF(データ整理!C73>5,データ整理!C73-5,0) -> 1544.38698 | D73: =D74+IF(データ整理!D73>5,データ整理!D73-5,0) -> 1292.75281 | E73: =E74+IF(データ整理!E73>5,データ整理!E73-5,0) -> 1253.75217 | F73: =F74+IF(データ整理!F73>5,データ整理!F73-5,0) -> 1282.61094 | G73: =G74+IF(データ整理!G73>5,データ整理!G73-5,0) -> 1414.36825 | H73: =H74+IF(データ整理!H73>5,データ整理!H73-5,0) -> 1486.62907 | I73: =I74+IF(データ整理!I73>5,データ整理!I73-5,0) -> 1500.3412 | J73: =J74+IF(データ整理!J73>5,データ整理!J73-5,0) -> 1360.41711 | K73: =K74+IF(データ整理!K73>5,データ整理!K73-5,0) -> 1343.05672 | L73: =L74+IF(データ整理!L73>5,データ整理!L73-5,0) -> 1287.43772 | M73: =M74+IF(データ整理!M73>5,データ整理!M73-5,0) -> 1628.62804 | N73: =N74+IF(データ整理!N73>5,データ整理!N73-5,0) -> 1437.97009 | O73: =O74+IF(データ整理!O73>5,データ整理!O73-5,0) -> 1529.95967 | P73: =P74+IF(データ整理!P73>5,データ整理!P73-5,0) -> 1500.09792 | Q73: =Q74+IF(データ整理!Q73>5,データ整理!Q73-5,0) -> 1363.99717 | R73: =R74+IF(データ整理!R73>5,データ整理!R73-5,0) -> 1309.90169 | S73: =S74+IF(データ整理!S73>5,データ整理!S73-5,0) -> 1425.48389 | T73: =T74+IF(データ整理!T73>5,データ整理!T73-5,0) -> 1306.46276 | U73: =U74+IF(データ整理!U73>5,データ整理!U73-5,0) -> 1303.91487 | Y73: 2018-06-11 | Z73: =Z74+IF(データ整理!Z73>5,データ整理!Z73-5,0) -> 1303.91487 | AA73: =AA74+IF(データ整理!AA73>5,データ整理!AA73-5,0) -> 1354.84789
A74: 2014-06-12 | B74: =B75+IF(データ整理!B74>5,データ整理!B74-5,0) -> 1532.08836 | C74: =C75+IF(データ整理!C74>5,データ整理!C74-5,0) -> 1537.96878 | D74: =D75+IF(データ整理!D74>5,データ整理!D74-5,0) -> 1287.9054 | E74: =E75+IF(データ整理!E74>5,データ整理!E74-5,0) -> 1249.21786 | F74: =F75+IF(データ整理!F74>5,データ整理!F74-5,0) -> 1271.54244 | G74: =G75+IF(データ整理!G74>5,データ整理!G74-5,0) -> 1404.80985 | H74: =H75+IF(データ整理!H74>5,データ整理!H74-5,0) -> 1473.51517 | I74: =I75+IF(データ整理!I74>5,データ整理!I74-5,0) -> 1492.3848 | J74: =J75+IF(データ整理!J74>5,データ整理!J74-5,0) -> 1348.29261 | K74: =K75+IF(データ整理!K74>5,データ整理!K74-5,0) -> 1334.43152 | L74: =L75+IF(データ整理!L74>5,データ整理!L74-5,0) -> 1279.33622 | M74: =M75+IF(データ整理!M74>5,データ整理!M74-5,0) -> 1618.21684 | N74: =N75+IF(データ整理!N74>5,データ整理!N74-5,0) -> 1427.28319 | O74: =O75+IF(データ整理!O74>5,データ整理!O74-5,0) -> 1525.44029 | P74: =P75+IF(データ整理!P74>5,データ整理!P74-5,0) -> 1486.13192 | Q74: =Q75+IF(データ整理!Q74>5,データ整理!Q74-5,0) -> 1350.66507 | R74: =R75+IF(データ整理!R74>5,データ整理!R74-5,0) -> 1303.92089 | S74: =S75+IF(データ整理!S74>5,データ整理!S74-5,0) -> 1417.60119 | T74: =T75+IF(データ整理!T74>5,データ整理!T74-5,0) -> 1304.23622 | U74: =U75+IF(データ整理!U74>5,データ整理!U74-5,0) -> 1296.79907 | Y74: 2018-06-12 | Z74: =Z75+IF(データ整理!Z74>5,データ整理!Z74-5,0) -> 1296.79907 | AA74: =AA75+IF(データ整理!AA74>5,データ整理!AA74-5,0) -> 1346.39529
A75: 2014-06-13 | B75: =B76+IF(データ整理!B75>5,データ整理!B75-5,0) -> 1520.60636 | C75: =C76+IF(データ整理!C75>5,データ整理!C75-5,0) -> 1530.00198 | D75: =D76+IF(データ整理!D75>5,データ整理!D75-5,0) -> 1284.7974 | E75: =E76+IF(データ整理!E75>5,データ整理!E75-5,0) -> 1243.22146 | F75: =F76+IF(データ整理!F75>5,データ整理!F75-5,0) -> 1259.04544 | G75: =G76+IF(データ整理!G75>5,データ整理!G75-5,0) -> 1397.31055 | H75: =H76+IF(データ整理!H75>5,データ整理!H75-5,0) -> 1466.81577 | I75: =I76+IF(データ整理!I75>5,データ整理!I75-5,0) -> 1483.1704 | J75: =J76+IF(データ整理!J75>5,データ整理!J75-5,0) -> 1335.51891 | K75: =K76+IF(データ整理!K75>5,データ整理!K75-5,0) -> 1327.94842 | L75: =L76+IF(データ整理!L75>5,データ整理!L75-5,0) -> 1269.03242 | M75: =M76+IF(データ整理!M75>5,データ整理!M75-5,0) -> 1606.92524 | N75: =N76+IF(データ整理!N75>5,データ整理!N75-5,0) -> 1418.17599 | O75: =O76+IF(データ整理!O75>5,データ整理!O75-5,0) -> 1520.68669 | P75: =P76+IF(データ整理!P75>5,データ整理!P75-5,0) -> 1471.93382 | Q75: =Q76+IF(データ整理!Q75>5,データ整理!Q75-5,0) -> 1338.87857 | R75: =R76+IF(データ整理!R75>5,データ整理!R75-5,0) -> 1295.62819 | S75: =S76+IF(データ整理!S75>5,データ整理!S75-5,0) -> 1407.98719 | T75: =T76+IF(データ整理!T75>5,データ整理!T75-5,0) -> 1301.11566 | U75: =U76+IF(データ整理!U75>5,データ整理!U75-5,0) -> 1293.87385 | Y75: 2018-06-13 | Z75: =Z76+IF(データ整理!Z75>5,データ整理!Z75-5,0) -> 1293.87385 | AA75: =AA76+IF(データ整理!AA75>5,データ整理!AA75-5,0) -> 1337.80909
A76: 2014-06-14 | B76: =B77+IF(データ整理!B76>5,データ整理!B76-5,0) -> 1507.65406 | C76: =C77+IF(データ整理!C76>5,データ整理!C76-5,0) -> 1520.04998 | D76: =D77+IF(データ整理!D76>5,データ整理!D76-5,0) -> 1281.26925 | E76: =E77+IF(データ整理!E76>5,データ整理!E76-5,0) -> 1236.11686 | F76: =F77+IF(データ整理!F76>5,データ整理!F76-5,0) -> 1248.35934 | G76: =G77+IF(データ整理!G76>5,データ整理!G76-5,0) -> 1389.57165 | H76: =H77+IF(データ整理!H76>5,データ整理!H76-5,0) -> 1457.47407 | I76: =I77+IF(データ整理!I76>5,データ整理!I76-5,0) -> 1473.7117 | J76: =J77+IF(データ整理!J76>5,データ整理!J76-5,0) -> 1322.04631 | K76: =K77+IF(データ整理!K76>5,データ整理!K76-5,0) -> 1322.16332 | L76: =L77+IF(データ整理!L76>5,データ整理!L76-5,0) -> 1261.06492 | M76: =M77+IF(データ整理!M76>5,データ整理!M76-5,0) -> 1593.32294 | N76: =N77+IF(データ整理!N76>5,データ整理!N76-5,0) -> 1410.53439 | O76: =O77+IF(データ整理!O76>5,データ整理!O76-5,0) -> 1514.86019 | P76: =P77+IF(データ整理!P76>5,データ整理!P76-5,0) -> 1457.90522 | Q76: =Q77+IF(データ整理!Q76>5,データ整理!Q76-5,0) -> 1328.99847 | R76: =R77+IF(データ整理!R76>5,データ整理!R76-5,0) -> 1286.27259 | S76: =S77+IF(データ整理!S76>5,データ整理!S76-5,0) -> 1399.42679 | T76: =T77+IF(データ整理!T76>5,データ整理!T76-5,0) -> 1295.67176 | U76: =U77+IF(データ整理!U76>5,データ整理!U76-5,0) -> 1292.47998 | Y76: 2018-06-14 | Z76: =Z77+IF(データ整理!Z76>5,データ整理!Z76-5,0) -> 1292.47998 | AA76: =AA77+IF(データ整理!AA76>5,データ整理!AA76-5,0) -> 1329.09329
A77: 2014-06-15 | B77: =B78+IF(データ整理!B77>5,データ整理!B77-5,0) -> 1495.62746 | C77: =C78+IF(データ整理!C77>5,データ整理!C77-5,0) -> 1511.85958 | D77: =D78+IF(データ整理!D77>5,データ整理!D77-5,0) -> 1278.04022 | E77: =E78+IF(データ整理!E77>5,データ整理!E77-5,0) -> 1227.95486 | F77: =F78+IF(データ整理!F77>5,データ整理!F77-5,0) -> 1241.57724 | G77: =G78+IF(データ整理!G77>5,データ整理!G77-5,0) -> 1380.58325 | H77: =H78+IF(データ整理!H77>5,データ整理!H77-5,0) -> 1446.20067 | I77: =I78+IF(データ整理!I77>5,データ整理!I77-5,0) -> 1462.4754 | J77: =J78+IF(データ整理!J77>5,データ整理!J77-5,0) -> 1308.56491 | K77: =K78+IF(データ整理!K77>5,データ整理!K77-5,0) -> 1317.42937 | L77: =L78+IF(データ整理!L77>5,データ整理!L77-5,0) -> 1256.91655 | M77: =M78+IF(データ整理!M77>5,データ整理!M77-5,0) -> 1580.45024 | N77: =N78+IF(データ整理!N77>5,データ整理!N77-5,0) -> 1403.72039 | O77: =O78+IF(データ整理!O77>5,データ整理!O77-5,0) -> 1508.38799 | P77: =P78+IF(データ整理!P77>5,データ整理!P77-5,0) -> 1443.75212 | Q77: =Q78+IF(データ整理!Q77>5,データ整理!Q77-5,0) -> 1322.68667 | R77: =R78+IF(データ整理!R77>5,データ整理!R77-5,0) -> 1277.02769 | S77: =S78+IF(データ整理!S77>5,データ整理!S77-5,0) -> 1391.44249 | T77: =T78+IF(データ整理!T77>5,データ整理!T77-5,0) -> 1287.28806 | U77: =U78+IF(データ整理!U77>5,データ整理!U77-5,0) -> 1291.53374 | Y77: 2018-06-15 | Z77: =Z78+IF(データ整理!Z77>5,データ整理!Z77-5,0) -> 1291.53374 | AA77: =AA78+IF(データ整理!AA77>5,データ整理!AA77-5,0) -> 1320.24949
A78: 2014-06-16 | B78: =B79+IF(データ整理!B78>5,データ整理!B78-5,0) -> 1481.77366 | C78: =C79+IF(データ整理!C78>5,データ整理!C78-5,0) -> 1503.04168 | D78: =D79+IF(データ整理!D78>5,データ整理!D78-5,0) -> 1271.68702 | E78: =E79+IF(データ整理!E78>5,データ整理!E78-5,0) -> 1219.69086 | F78: =F79+IF(データ整理!F78>5,データ整理!F78-5,0) -> 1234.29674 | G78: =G79+IF(データ整理!G78>5,データ整理!G78-5,0) -> 1373.75565 | H78: =H79+IF(データ整理!H78>5,データ整理!H78-5,0) -> 1433.00127 | I78: =I79+IF(データ整理!I78>5,データ整理!I78-5,0) -> 1450.084 | J78: =J79+IF(データ整理!J78>5,データ整理!J78-5,0) -> 1298.09811 | K78: =K79+IF(データ整理!K78>5,データ整理!K78-5,0) -> 1312.37607 | L78: =L79+IF(データ整理!L78>5,データ整理!L78-5,0) -> 1251.88295 | M78: =M79+IF(データ整理!M78>5,データ整理!M78-5,0) -> 1566.78444 | N78: =N79+IF(データ整理!N78>5,データ整理!N78-5,0) -> 1396.66679 | O78: =O79+IF(データ整理!O78>5,データ整理!O78-5,0) -> 1499.46889 | P78: =P79+IF(データ整理!P78>5,データ整理!P78-5,0) -> 1429.55962 | Q78: =Q79+IF(データ整理!Q78>5,データ整理!Q78-5,0) -> 1314.81107 | R78: =R79+IF(データ整理!R78>5,データ整理!R78-5,0) -> 1267.00259 | S78: =S79+IF(データ整理!S78>5,データ整理!S78-5,0) -> 1381.88869 | T78: =T79+IF(データ整理!T78>5,データ整理!T78-5,0) -> 1280.25496 | U78: =U79+IF(データ整理!U78>5,データ整理!U78-5,0) -> 1289.48633 | Y78: 2018-06-16 | Z78: =Z79+IF(データ整理!Z78>5,データ整理!Z78-5,0) -> 1289.48633 | AA78: =AA79+IF(データ整理!AA78>5,データ整理!AA78-5,0) -> 1311.28079
A79: 2014-06-17 | B79: =B80+IF(データ整理!B79>5,データ整理!B79-5,0) -> 1469.03966 | C79: =C80+IF(データ整理!C79>5,データ整理!C79-5,0) -> 1492.38048 | D79: =D80+IF(データ整理!D79>5,データ整理!D79-5,0) -> 1262.90942 | E79: =E80+IF(データ整理!E79>5,データ整理!E79-5,0) -> 1208.66866 | F79: =F80+IF(データ整理!F79>5,データ整理!F79-5,0) -> 1223.80034 | G79: =G80+IF(データ整理!G79>5,データ整理!G79-5,0) -> 1367.03645 | H79: =H80+IF(データ整理!H79>5,データ整理!H79-5,0) -> 1420.27697 | I79: =I80+IF(データ整理!I79>5,データ整理!I79-5,0) -> 1438.0173 | J79: =J80+IF(データ整理!J79>5,データ整理!J79-5,0) -> 1288.40511 | K79: =K80+IF(データ整理!K79>5,データ整理!K79-5,0) -> 1305.79397 | L79: =L80+IF(データ整理!L79>5,データ整理!L79-5,0) -> 1246.35225 | M79: =M80+IF(データ整理!M79>5,データ整理!M79-5,0) -> 1554.84864 | N79: =N80+IF(データ整理!N79>5,データ整理!N79-5,0) -> 1388.46409 | O79: =O80+IF(データ整理!O79>5,データ整理!O79-5,0) -> 1490.40379 | P79: =P80+IF(データ整理!P79>5,データ整理!P79-5,0) -> 1417.10062 | Q79: =Q80+IF(データ整理!Q79>5,データ整理!Q79-5,0) -> 1306.50757 | R79: =R80+IF(データ整理!R79>5,データ整理!R79-5,0) -> 1254.98319 | S79: =S80+IF(データ整理!S79>5,データ整理!S79-5,0) -> 1372.83309 | T79: =T80+IF(データ整理!T79>5,データ整理!T79-5,0) -> 1272.13936 | U79: =U80+IF(データ整理!U79>5,データ整理!U79-5,0) -> 1283.88883 | Y79: 2018-06-17 | Z79: =Z80+IF(データ整理!Z79>5,データ整理!Z79-5,0) -> 1283.88883 | AA79: =AA80+IF(データ整理!AA79>5,データ整理!AA79-5,0) -> 1302.18809
A80: 2014-06-18 | B80: =B81+IF(データ整理!B80>5,データ整理!B80-5,0) -> 1459.18646 | C80: =C81+IF(データ整理!C80>5,データ整理!C80-5,0) -> 1480.58638 | D80: =D81+IF(データ整理!D80>5,データ整理!D80-5,0) -> 1253.06622 | E80: =E81+IF(データ整理!E80>5,データ整理!E80-5,0) -> 1198.88696 | F80: =F81+IF(データ整理!F80>5,データ整理!F80-5,0) -> 1210.79354 | G80: =G81+IF(データ整理!G80>5,データ整理!G80-5,0) -> 1357.76045 | H80: =H81+IF(データ整理!H80>5,データ整理!H80-5,0) -> 1409.16747 | I80: =I81+IF(データ整理!I80>5,データ整理!I80-5,0) -> 1425.7822 | J80: =J81+IF(データ整理!J80>5,データ整理!J80-5,0) -> 1277.61101 | K80: =K81+IF(データ整理!K80>5,データ整理!K80-5,0) -> 1297.10427 | L80: =L81+IF(データ整理!L80>5,データ整理!L80-5,0) -> 1239.96605 | M80: =M81+IF(データ整理!M80>5,データ整理!M80-5,0) -> 1545.20774 | N80: =N81+IF(データ整理!N80>5,データ整理!N80-5,0) -> 1377.71229 | O80: =O81+IF(データ整理!O80>5,データ整理!O80-5,0) -> 1481.13029 | P80: =P81+IF(データ整理!P80>5,データ整理!P80-5,0) -> 1404.62922 | Q80: =Q81+IF(データ整理!Q80>5,データ整理!Q80-5,0) -> 1297.45337 | R80: =R81+IF(データ整理!R80>5,データ整理!R80-5,0) -> 1242.31109 | S80: =S81+IF(データ整理!S80>5,データ整理!S80-5,0) -> 1364.58079 | T80: =T81+IF(データ整理!T80>5,データ整理!T80-5,0) -> 1264.23076 | U80: =U81+IF(データ整理!U80>5,データ整理!U80-5,0) -> 1277.77883 | Y80: 2018-06-18 | Z80: =Z81+IF(データ整理!Z80>5,データ整理!Z80-5,0) -> 1277.77883 | AA80: =AA81+IF(データ整理!AA80>5,データ整理!AA80-5,0) -> 1292.96769
A81: 2014-06-19 | B81: =B82+IF(データ整理!B81>5,データ整理!B81-5,0) -> 1451.14606 | C81: =C82+IF(データ整理!C81>5,データ整理!C81-5,0) -> 1468.76838 | D81: =D82+IF(データ整理!D81>5,データ整理!D81-5,0) -> 1241.47392 | E81: =E82+IF(データ整理!E81>5,データ整理!E81-5,0) -> 1187.62206 | F81: =F82+IF(データ整理!F81>5,データ整理!F81-5,0) -> 1199.12464 | G81: =G82+IF(データ整理!G81>5,データ整理!G81-5,0) -> 1346.22645 | H81: =H82+IF(データ整理!H81>5,データ整理!H81-5,0) -> 1398.62527 | I81: =I82+IF(データ整理!I81>5,データ整理!I81-5,0) -> 1412.3851 | J81: =J82+IF(データ整理!J81>5,データ整理!J81-5,0) -> 1269.65911 | K81: =K82+IF(データ整理!K81>5,データ整理!K81-5,0) -> 1285.63187 | L81: =L82+IF(データ整理!L81>5,データ整理!L81-5,0) -> 1232.22045 | M81: =M82+IF(データ整理!M81>5,データ整理!M81-5,0) -> 1532.43594 | N81: =N82+IF(データ整理!N81>5,データ整理!N81-5,0) -> 1368.03169 | O81: =O82+IF(データ整理!O81>5,データ整理!O81-5,0) -> 1470.85299 | P81: =P82+IF(データ整理!P81>5,データ整理!P81-5,0) -> 1393.84062 | Q81: =Q82+IF(データ整理!Q81>5,データ整理!Q81-5,0) -> 1287.99607 | R81: =R82+IF(データ整理!R81>5,データ整理!R81-5,0) -> 1229.27449 | S81: =S82+IF(データ整理!S81>5,データ整理!S81-5,0) -> 1357.01839 | T81: =T82+IF(データ整理!T81>5,データ整理!T81-5,0) -> 1252.80346 | U81: =U82+IF(データ整理!U81>5,データ整理!U81-5,0) -> 1270.60653 | Y81: 2018-06-19 | Z81: =Z82+IF(データ整理!Z81>5,データ整理!Z81-5,0) -> 1270.60653 | AA81: =AA82+IF(データ整理!AA81>5,データ整理!AA81-5,0) -> 1283.61359
A82: 2014-06-20 | B82: =B83+IF(データ整理!B82>5,データ整理!B82-5,0) -> 1445.51026 | C82: =C83+IF(データ整理!C82>5,データ整理!C82-5,0) -> 1460.90148 | D82: =D83+IF(データ整理!D82>5,データ整理!D82-5,0) -> 1233.33412 | E82: =E83+IF(データ整理!E82>5,データ整理!E82-5,0) -> 1179.42136 | F82: =F83+IF(データ整理!F82>5,データ整理!F82-5,0) -> 1184.95914 | G82: =G83+IF(データ整理!G82>5,データ整理!G82-5,0) -> 1333.27045 | H82: =H83+IF(データ整理!H82>5,データ整理!H82-5,0) -> 1386.70097 | I82: =I83+IF(データ整理!I82>5,データ整理!I82-5,0) -> 1403.4849 | J82: =J83+IF(データ整理!J82>5,データ整理!J82-5,0) -> 1261.79321 | K82: =K83+IF(データ整理!K82>5,データ整理!K82-5,0) -> 1273.32937 | L82: =L83+IF(データ整理!L82>5,データ整理!L82-5,0) -> 1223.95965 | M82: =M83+IF(データ整理!M82>5,データ整理!M82-5,0) -> 1517.83174 | N82: =N83+IF(データ整理!N82>5,データ整理!N82-5,0) -> 1356.77909 | O82: =O83+IF(データ整理!O82>5,データ整理!O82-5,0) -> 1459.43099 | P82: =P83+IF(データ整理!P82>5,データ整理!P82-5,0) -> 1382.42032 | Q82: =Q83+IF(データ整理!Q82>5,データ整理!Q82-5,0) -> 1278.18577 | R82: =R83+IF(データ整理!R82>5,データ整理!R82-5,0) -> 1217.33719 | S82: =S83+IF(データ整理!S82>5,データ整理!S82-5,0) -> 1346.94889 | T82: =T83+IF(データ整理!T82>5,データ整理!T82-5,0) -> 1241.79206 | U82: =U83+IF(データ整理!U82>5,データ整理!U82-5,0) -> 1258.64323 | Y82: 2018-06-20 | Z82: =Z83+IF(データ整理!Z82>5,データ整理!Z82-5,0) -> 1258.64323 | AA82: =AA83+IF(データ整理!AA82>5,データ整理!AA82-5,0) -> 1274.12319
A83: 2014-06-21 | B83: =B84+IF(データ整理!B83>5,データ整理!B83-5,0) -> 1440.28826 | C83: =C84+IF(データ整理!C83>5,データ整理!C83-5,0) -> 1449.16618 | D83: =D84+IF(データ整理!D83>5,データ整理!D83-5,0) -> 1230.17401 | E83: =E84+IF(データ整理!E83>5,データ整理!E83-5,0) -> 1172.58226 | F83: =F84+IF(データ整理!F83>5,データ整理!F83-5,0) -> 1171.02774 | G83: =G84+IF(データ整理!G83>5,データ整理!G83-5,0) -> 1317.63675 | H83: =H84+IF(データ整理!H83>5,データ整理!H83-5,0) -> 1373.93547 | I83: =I84+IF(データ整理!I83>5,データ整理!I83-5,0) -> 1394.557 | J83: =J84+IF(データ整理!J83>5,データ整理!J83-5,0) -> 1252.07091 | K83: =K84+IF(データ整理!K83>5,データ整理!K83-5,0) -> 1263.05287 | L83: =L84+IF(データ整理!L83>5,データ整理!L83-5,0) -> 1215.20555 | M83: =M84+IF(データ整理!M83>5,データ整理!M83-5,0) -> 1504.20664 | N83: =N84+IF(データ整理!N83>5,データ整理!N83-5,0) -> 1346.03749 | O83: =O84+IF(データ整理!O83>5,データ整理!O83-5,0) -> 1451.00949 | P83: =P84+IF(データ整理!P83>5,データ整理!P83-5,0) -> 1374.91972 | Q83: =Q84+IF(データ整理!Q83>5,データ整理!Q83-5,0) -> 1269.64187 | R83: =R84+IF(データ整理!R83>5,データ整理!R83-5,0) -> 1207.28849 | S83: =S84+IF(データ整理!S83>5,データ整理!S83-5,0) -> 1335.63679 | T83: =T84+IF(データ整理!T83>5,データ整理!T83-5,0) -> 1230.98466 | U83: =U84+IF(データ整理!U83>5,データ整理!U83-5,0) -> 1246.57283 | Y83: 2018-06-21 | Z83: =Z84+IF(データ整理!Z83>5,データ整理!Z83-5,0) -> 1246.57283 | AA83: =AA84+IF(データ整理!AA83>5,データ整理!AA83-5,0) -> 1264.49459
A84: 2014-06-22 | B84: =B85+IF(データ整理!B84>5,データ整理!B84-5,0) -> 1432.22456 | C84: =C85+IF(データ整理!C84>5,データ整理!C84-5,0) -> 1437.77428 | D84: =D85+IF(データ整理!D84>5,データ整理!D84-5,0) -> 1227.01887 | E84: =E85+IF(データ整理!E84>5,データ整理!E84-5,0) -> 1170.08113 | F84: =F85+IF(データ整理!F84>5,データ整理!F84-5,0) -> 1157.13244 | G84: =G85+IF(データ整理!G84>5,データ整理!G84-5,0) -> 1302.92415 | H84: =H85+IF(データ整理!H84>5,データ整理!H84-5,0) -> 1359.62947 | I84: =I85+IF(データ整理!I84>5,データ整理!I84-5,0) -> 1385.6881 | J84: =J85+IF(データ整理!J84>5,データ整理!J84-5,0) -> 1240.98071 | K84: =K85+IF(データ整理!K84>5,データ整理!K84-5,0) -> 1257.31377 | L84: =L85+IF(データ整理!L84>5,データ整理!L84-5,0) -> 1203.05725 | M84: =M85+IF(データ整理!M84>5,データ整理!M84-5,0) -> 1490.53764 | N84: =N85+IF(データ整理!N84>5,データ整理!N84-5,0) -> 1332.05499 | O84: =O85+IF(データ整理!O84>5,データ整理!O84-5,0) -> 1445.09489 | P84: =P85+IF(データ整理!P84>5,データ整理!P84-5,0) -> 1366.80742 | Q84: =Q85+IF(データ整理!Q84>5,データ整理!Q84-5,0) -> 1261.73717 | R84: =R85+IF(データ整理!R84>5,データ整理!R84-5,0) -> 1197.01599 | S84: =S85+IF(データ整理!S84>5,データ整理!S84-5,0) -> 1322.23219 | T84: =T85+IF(データ整理!T84>5,データ整理!T84-5,0) -> 1217.98556 | U84: =U85+IF(データ整理!U84>5,データ整理!U84-5,0) -> 1235.06363 | Y84: 2018-06-22 | Z84: =Z85+IF(データ整理!Z84>5,データ整理!Z84-5,0) -> 1235.06363 | AA84: =AA85+IF(データ整理!AA84>5,データ整理!AA84-5,0) -> 1254.72669
A85: 2014-06-23 | B85: =B86+IF(データ整理!B85>5,データ整理!B85-5,0) -> 1419.84746 | C85: =C86+IF(データ整理!C85>5,データ整理!C85-5,0) -> 1425.30018 | D85: =D86+IF(データ整理!D85>5,データ整理!D85-5,0) -> 1221.19567 | E85: =E86+IF(データ整理!E85>5,データ整理!E85-5,0) -> 1166.43581 | F85: =F86+IF(データ整理!F85>5,データ整理!F85-5,0) -> 1143.90434 | G85: =G86+IF(データ整理!G85>5,データ整理!G85-5,0) -> 1291.10365 | H85: =H86+IF(データ整理!H85>5,データ整理!H85-5,0) -> 1343.80217 | I85: =I86+IF(データ整理!I85>5,データ整理!I85-5,0) -> 1375.1276 | J85: =J86+IF(データ整理!J85>5,データ整理!J85-5,0) -> 1227.88801 | K85: =K86+IF(データ整理!K85>5,データ整理!K85-5,0) -> 1248.88847 | L85: =L86+IF(データ整理!L85>5,データ整理!L85-5,0) -> 1189.13515 | M85: =M86+IF(データ整理!M85>5,データ整理!M85-5,0) -> 1475.82584 | N85: =N86+IF(データ整理!N85>5,データ整理!N85-5,0) -> 1320.27679 | O85: =O86+IF(データ整理!O85>5,データ整理!O85-5,0) -> 1438.39319 | P85: =P86+IF(データ整理!P85>5,データ整理!P85-5,0) -> 1358.90242 | Q85: =Q86+IF(データ整理!Q85>5,データ整理!Q85-5,0) -> 1253.41627 | R85: =R86+IF(データ整理!R85>5,データ整理!R85-5,0) -> 1188.27639 | S85: =S86+IF(データ整理!S85>5,データ整理!S85-5,0) -> 1310.37479 | T85: =T86+IF(データ整理!T85>5,データ整理!T85-5,0) -> 1208.27516 | U85: =U86+IF(データ整理!U85>5,データ整理!U85-5,0) -> 1225.52223 | Y85: 2018-06-23 | Z85: =Z86+IF(データ整理!Z85>5,データ整理!Z85-5,0) -> 1225.52223 | AA85: =AA86+IF(データ整理!AA85>5,データ整理!AA85-5,0) -> 1244.81929
A86: 2014-06-24 | B86: =B87+IF(データ整理!B86>5,データ整理!B86-5,0) -> 1407.60956 | C86: =C87+IF(データ整理!C86>5,データ整理!C86-5,0) -> 1413.52288 | D86: =D87+IF(データ整理!D86>5,データ整理!D86-5,0) -> 1212.13867 | E86: =E87+IF(データ整理!E86>5,データ整理!E86-5,0) -> 1163.46255 | F86: =F87+IF(データ整理!F86>5,データ整理!F86-5,0) -> 1130.02784 | G86: =G87+IF(データ整理!G86>5,データ整理!G86-5,0) -> 1280.62045 | H86: =H87+IF(データ整理!H86>5,データ整理!H86-5,0) -> 1327.33977 | I86: =I87+IF(データ整理!I86>5,データ整理!I86-5,0) -> 1365.4418 | J86: =J87+IF(データ整理!J86>5,データ整理!J86-5,0) -> 1217.18151 | K86: =K87+IF(データ整理!K86>5,データ整理!K86-5,0) -> 1240.15257 | L86: =L87+IF(データ整理!L86>5,データ整理!L86-5,0) -> 1176.80915 | M86: =M87+IF(データ整理!M86>5,データ整理!M86-5,0) -> 1461.83814 | N86: =N87+IF(データ整理!N86>5,データ整理!N86-5,0) -> 1313.39509 | O86: =O87+IF(データ整理!O86>5,データ整理!O86-5,0) -> 1430.51989 | P86: =P87+IF(データ整理!P86>5,データ整理!P86-5,0) -> 1348.57122 | Q86: =Q87+IF(データ整理!Q86>5,データ整理!Q86-5,0) -> 1244.82887 | R86: =R87+IF(データ整理!R86>5,データ整理!R86-5,0) -> 1181.85739 | S86: =S87+IF(データ整理!S86>5,データ整理!S86-5,0) -> 1298.67669 | T86: =T87+IF(データ整理!T86>5,データ整理!T86-5,0) -> 1198.70996 | U86: =U87+IF(データ整理!U86>5,データ整理!U86-5,0) -> 1213.58843 | Y86: 2018-06-24 | Z86: =Z87+IF(データ整理!Z86>5,データ整理!Z86-5,0) -> 1213.58843 | AA86: =AA87+IF(データ整理!AA86>5,データ整理!AA86-5,0) -> 1234.77489
A87: 2014-06-25 | B87: =B88+IF(データ整理!B87>5,データ整理!B87-5,0) -> 1398.49126 | C87: =C88+IF(データ整理!C87>5,データ整理!C87-5,0) -> 1402.42858 | D87: =D88+IF(データ整理!D87>5,データ整理!D87-5,0) -> 1201.85637 | E87: =E88+IF(データ整理!E87>5,データ整理!E87-5,0) -> 1161.71709 | F87: =F88+IF(データ整理!F87>5,データ整理!F87-5,0) -> 1116.97024 | G87: =G88+IF(データ整理!G87>5,データ整理!G87-5,0) -> 1268.93855 | H87: =H88+IF(データ整理!H87>5,データ整理!H87-5,0) -> 1314.87317 | I87: =I88+IF(データ整理!I87>5,データ整理!I87-5,0) -> 1355.4267 | J87: =J88+IF(データ整理!J87>5,データ整理!J87-5,0) -> 1207.28491 | K87: =K88+IF(データ整理!K87>5,データ整理!K87-5,0) -> 1231.83007 | L87: =L88+IF(データ整理!L87>5,データ整理!L87-5,0) -> 1164.07775 | M87: =M88+IF(データ整理!M87>5,データ整理!M87-5,0) -> 1450.69674 | N87: =N88+IF(データ整理!N87>5,データ整理!N87-5,0) -> 1310.18554 | O87: =O88+IF(データ整理!O87>5,データ整理!O87-5,0) -> 1420.88139 | P87: =P88+IF(データ整理!P87>5,データ整理!P87-5,0) -> 1338.07402 | Q87: =Q88+IF(データ整理!Q87>5,データ整理!Q87-5,0) -> 1235.20077 | R87: =R88+IF(データ整理!R87>5,データ整理!R87-5,0) -> 1173.23589 | S87: =S88+IF(データ整理!S87>5,データ整理!S87-5,0) -> 1288.25499 | T87: =T88+IF(データ整理!T87>5,データ整理!T87-5,0) -> 1188.52006 | U87: =U88+IF(データ整理!U87>5,データ整理!U87-5,0) -> 1205.44113 | Y87: 2018-06-25 | Z87: =Z88+IF(データ整理!Z87>5,データ整理!Z87-5,0) -> 1205.44113 | AA87: =AA88+IF(データ整理!AA87>5,データ整理!AA87-5,0) -> 1224.59549
A88: 2014-06-26 | B88: =B89+IF(データ整理!B88>5,データ整理!B88-5,0) -> 1390.51606 | C88: =C89+IF(データ整理!C88>5,データ整理!C88-5,0) -> 1391.21088 | D88: =D89+IF(データ整理!D88>5,データ整理!D88-5,0) -> 1188.95627 | E88: =E89+IF(データ整理!E88>5,データ整理!E88-5,0) -> 1158.21975 | F88: =F89+IF(データ整理!F88>5,データ整理!F88-5,0) -> 1105.00894 | G88: =G89+IF(データ整理!G88>5,データ整理!G88-5,0) -> 1257.16075 | H88: =H89+IF(データ整理!H88>5,データ整理!H88-5,0) -> 1302.60467 | I88: =I89+IF(データ整理!I88>5,データ整理!I88-5,0) -> 1345.8916 | J88: =J89+IF(データ整理!J88>5,データ整理!J88-5,0) -> 1197.45841 | K88: =K89+IF(データ整理!K88>5,データ整理!K88-5,0) -> 1224.66047 | L88: =L89+IF(データ整理!L88>5,データ整理!L88-5,0) -> 1149.74515 | M88: =M89+IF(データ整理!M88>5,データ整理!M88-5,0) -> 1437.45034 | N88: =N89+IF(データ整理!N88>5,データ整理!N88-5,0) -> 1306.33255 | O88: =O89+IF(データ整理!O88>5,データ整理!O88-5,0) -> 1411.52429 | P88: =P89+IF(データ整理!P88>5,データ整理!P88-5,0) -> 1326.50992 | Q88: =Q89+IF(データ整理!Q88>5,データ整理!Q88-5,0) -> 1223.31177 | R88: =R89+IF(データ整理!R88>5,データ整理!R88-5,0) -> 1164.55319 | S88: =S89+IF(データ整理!S88>5,データ整理!S88-5,0) -> 1281.99699 | T88: =T89+IF(データ整理!T88>5,データ整理!T88-5,0) -> 1181.02266 | U88: =U89+IF(データ整理!U88>5,データ整理!U88-5,0) -> 1199.61893 | Y88: 2018-06-26 | Z88: =Z89+IF(データ整理!Z88>5,データ整理!Z88-5,0) -> 1199.61893 | AA88: =AA89+IF(データ整理!AA88>5,データ整理!AA88-5,0) -> 1214.28379
A89: 2014-06-27 | B89: =B90+IF(データ整理!B89>5,データ整理!B89-5,0) -> 1380.48916 | C89: =C90+IF(データ整理!C89>5,データ整理!C89-5,0) -> 1379.75628 | D89: =D90+IF(データ整理!D89>5,データ整理!D89-5,0) -> 1174.84557 | E89: =E90+IF(データ整理!E89>5,データ整理!E89-5,0) -> 1151.49845 | F89: =F90+IF(データ整理!F89>5,データ整理!F89-5,0) -> 1092.94964 | G89: =G90+IF(データ整理!G89>5,データ整理!G89-5,0) -> 1244.02655 | H89: =H90+IF(データ整理!H89>5,データ整理!H89-5,0) -> 1288.42567 | I89: =I90+IF(データ整理!I89>5,データ整理!I89-5,0) -> 1333.6368 | J89: =J90+IF(データ整理!J89>5,データ整理!J89-5,0) -> 1186.54071 | K89: =K90+IF(データ整理!K89>5,データ整理!K89-5,0) -> 1216.86127 | L89: =L90+IF(データ整理!L89>5,データ整理!L89-5,0) -> 1135.34775 | M89: =M90+IF(データ整理!M89>5,データ整理!M89-5,0) -> 1423.06204 | N89: =N90+IF(データ整理!N89>5,データ整理!N89-5,0) -> 1299.32875 | O89: =O90+IF(データ整理!O89>5,データ整理!O89-5,0) -> 1400.76959 | P89: =P90+IF(データ整理!P89>5,データ整理!P89-5,0) -> 1318.16912 | Q89: =Q90+IF(データ整理!Q89>5,データ整理!Q89-5,0) -> 1210.75457 | R89: =R90+IF(データ整理!R89>5,データ整理!R89-5,0) -> 1157.38749 | S89: =S90+IF(データ整理!S89>5,データ整理!S89-5,0) -> 1277.024 | T89: =T90+IF(データ整理!T89>5,データ整理!T89-5,0) -> 1176.64501 | U89: =U90+IF(データ整理!U89>5,データ整理!U89-5,0) -> 1191.15233 | Y89: 2018-06-27 | Z89: =Z90+IF(データ整理!Z89>5,データ整理!Z89-5,0) -> 1191.15233 | AA89: =AA90+IF(データ整理!AA89>5,データ整理!AA89-5,0) -> 1203.84359
A90: 2014-06-28 | B90: =B91+IF(データ整理!B90>5,データ整理!B90-5,0) -> 1368.42186 | C90: =C91+IF(データ整理!C90>5,データ整理!C90-5,0) -> 1368.66898 | D90: =D91+IF(データ整理!D90>5,データ整理!D90-5,0) -> 1159.76267 | E90: =E91+IF(データ整理!E90>5,データ整理!E90-5,0) -> 1143.39835 | F90: =F91+IF(データ整理!F90>5,データ整理!F90-5,0) -> 1081.11604 | G90: =G91+IF(データ整理!G90>5,データ整理!G90-5,0) -> 1229.87035 | H90: =H91+IF(データ整理!H90>5,データ整理!H90-5,0) -> 1276.01667 | I90: =I91+IF(データ整理!I90>5,データ整理!I90-5,0) -> 1320.9213 | J90: =J91+IF(データ整理!J90>5,データ整理!J90-5,0) -> 1175.93841 | K90: =K91+IF(データ整理!K90>5,データ整理!K90-5,0) -> 1208.11597 | L90: =L91+IF(データ整理!L90>5,データ整理!L90-5,0) -> 1123.42295 | M90: =M91+IF(データ整理!M90>5,データ整理!M90-5,0) -> 1407.29334 | N90: =N91+IF(データ整理!N90>5,データ整理!N90-5,0) -> 1289.57245 | O90: =O91+IF(データ整理!O90>5,データ整理!O90-5,0) -> 1389.12999 | P90: =P91+IF(データ整理!P90>5,データ整理!P90-5,0) -> 1312.36072 | Q90: =Q91+IF(データ整理!Q90>5,データ整理!Q90-5,0) -> 1196.61287 | R90: =R91+IF(データ整理!R90>5,データ整理!R90-5,0) -> 1152.86983 | S90: =S91+IF(データ整理!S90>5,データ整理!S90-5,0) -> 1269.9643 | T90: =T91+IF(データ整理!T90>5,データ整理!T90-5,0) -> 1170.12961 | U90: =U91+IF(データ整理!U90>5,データ整理!U90-5,0) -> 1181.43863 | Y90: 2018-06-28 | Z90: =Z91+IF(データ整理!Z90>5,データ整理!Z90-5,0) -> 1181.43863 | AA90: =AA91+IF(データ整理!AA90>5,データ整理!AA90-5,0) -> 1193.27769
A91: 2014-06-29 | B91: =B92+IF(データ整理!B91>5,データ整理!B91-5,0) -> 1355.38706 | C91: =C92+IF(データ整理!C91>5,データ整理!C91-5,0) -> 1357.79258 | D91: =D92+IF(データ整理!D91>5,データ整理!D91-5,0) -> 1146.20587 | E91: =E92+IF(データ整理!E91>5,データ整理!E91-5,0) -> 1132.31605 | F91: =F92+IF(データ整理!F91>5,データ整理!F91-5,0) -> 1070.74504 | G91: =G92+IF(データ整理!G91>5,データ整理!G91-5,0) -> 1216.16645 | H91: =H92+IF(データ整理!H91>5,データ整理!H91-5,0) -> 1264.16787 | I91: =I92+IF(データ整理!I91>5,データ整理!I91-5,0) -> 1306.9641 | J91: =J92+IF(データ整理!J91>5,データ整理!J91-5,0) -> 1164.49741 | K91: =K92+IF(データ整理!K91>5,データ整理!K91-5,0) -> 1197.26587 | L91: =L92+IF(データ整理!L91>5,データ整理!L91-5,0) -> 1113.77095 | M91: =M92+IF(データ整理!M91>5,データ整理!M91-5,0) -> 1389.98354 | N91: =N92+IF(データ整理!N91>5,データ整理!N91-5,0) -> 1276.88985 | O91: =O92+IF(データ整理!O91>5,データ整理!O91-5,0) -> 1377.50699 | P91: =P92+IF(データ整理!P91>5,データ整理!P91-5,0) -> 1305.70072 | Q91: =Q92+IF(データ整理!Q91>5,データ整理!Q91-5,0) -> 1181.80557 | R91: =R92+IF(データ整理!R91>5,データ整理!R91-5,0) -> 1146.80883 | S91: =S92+IF(データ整理!S91>5,データ整理!S91-5,0) -> 1258.7135 | T91: =T92+IF(データ整理!T91>5,データ整理!T91-5,0) -> 1160.45841 | U91: =U92+IF(データ整理!U91>5,データ整理!U91-5,0) -> 1171.11343 | Y91: 2018-06-29 | Z91: =Z92+IF(データ整理!Z91>5,データ整理!Z91-5,0) -> 1171.11343 | AA91: =AA92+IF(データ整理!AA91>5,データ整理!AA91-5,0) -> 1182.58379
A92: 2014-06-30 | B92: =B93+IF(データ整理!B92>5,データ整理!B92-5,0) -> 1341.55866 | C92: =C93+IF(データ整理!C92>5,データ整理!C92-5,0) -> 1347.46128 | D92: =D93+IF(データ整理!D92>5,データ整理!D92-5,0) -> 1133.06067 | E92: =E93+IF(データ整理!E92>5,データ整理!E92-5,0) -> 1120.26335 | F92: =F93+IF(データ整理!F92>5,データ整理!F92-5,0) -> 1064.72114 | G92: =G93+IF(データ整理!G92>5,データ整理!G92-5,0) -> 1202.32345 | H92: =H93+IF(データ整理!H92>5,データ整理!H92-5,0) -> 1253.67347 | I92: =I93+IF(データ整理!I92>5,データ整理!I92-5,0) -> 1297.6659 | J92: =J93+IF(データ整理!J92>5,データ整理!J92-5,0) -> 1155.93381 | K92: =K93+IF(データ整理!K92>5,データ整理!K92-5,0) -> 1188.33727 | L92: =L93+IF(データ整理!L92>5,データ整理!L92-5,0) -> 1100.25675 | M92: =M93+IF(データ整理!M92>5,データ整理!M92-5,0) -> 1372.11814 | N92: =N93+IF(データ整理!N92>5,データ整理!N92-5,0) -> 1264.35755 | O92: =O93+IF(データ整理!O92>5,データ整理!O92-5,0) -> 1364.33469 | P92: =P93+IF(データ整理!P92>5,データ整理!P92-5,0) -> 1296.54612 | Q92: =Q93+IF(データ整理!Q92>5,データ整理!Q92-5,0) -> 1167.55077 | R92: =R93+IF(データ整理!R92>5,データ整理!R92-5,0) -> 1139.36503 | S92: =S93+IF(データ整理!S92>5,データ整理!S92-5,0) -> 1246.941 | T92: =T93+IF(データ整理!T92>5,データ整理!T92-5,0) -> 1150.59491 | U92: =U93+IF(データ整理!U92>5,データ整理!U92-5,0) -> 1157.79743 | Y92: 2018-06-30 | Z92: =Z93+IF(データ整理!Z92>5,データ整理!Z92-5,0) -> 1157.79743 | AA92: =AA93+IF(データ整理!AA92>5,データ整理!AA92-5,0) -> 1171.76059
A93: 2014-07-01 | B93: =B94+IF(データ整理!B93>5,データ整理!B93-5,0) -> 1329.02956 | C93: =C94+IF(データ整理!C93>5,データ整理!C93-5,0) -> 1334.02868 | D93: =D94+IF(データ整理!D93>5,データ整理!D93-5,0) -> 1121.00107 | E93: =E94+IF(データ整理!E93>5,データ整理!E93-5,0) -> 1107.27655 | F93: =F94+IF(データ整理!F93>5,データ整理!F93-5,0) -> 1058.89384 | G93: =G94+IF(データ整理!G93>5,データ整理!G93-5,0) -> 1191.05075 | H93: =H94+IF(データ整理!H93>5,データ整理!H93-5,0) -> 1245.47107 | I93: =I94+IF(データ整理!I93>5,データ整理!I93-5,0) -> 1286.8361 | J93: =J94+IF(データ整理!J93>5,データ整理!J93-5,0) -> 1149.48101 | K93: =K94+IF(データ整理!K93>5,データ整理!K93-5,0) -> 1179.25137 | L93: =L94+IF(データ整理!L93>5,データ整理!L93-5,0) -> 1089.06855 | M93: =M94+IF(データ整理!M93>5,データ整理!M93-5,0) -> 1355.44184 | N93: =N94+IF(データ整理!N93>5,データ整理!N93-5,0) -> 1252.35125 | O93: =O94+IF(データ整理!O93>5,データ整理!O93-5,0) -> 1349.70319 | P93: =P94+IF(データ整理!P93>5,データ整理!P93-5,0) -> 1285.97422 | Q93: =Q94+IF(データ整理!Q93>5,データ整理!Q93-5,0) -> 1154.57147 | R93: =R94+IF(データ整理!R93>5,データ整理!R93-5,0) -> 1130.50563 | S93: =S94+IF(データ整理!S93>5,データ整理!S93-5,0) -> 1234.0566 | T93: =T94+IF(データ整理!T93>5,データ整理!T93-5,0) -> 1137.13431 | U93: =U94+IF(データ整理!U93>5,データ整理!U93-5,0) -> 1144.32323 | Y93: 2018-07-01 | Z93: =Z94+IF(データ整理!Z93>5,データ整理!Z93-5,0) -> 1144.32323 | AA93: =AA94+IF(データ整理!AA93>5,データ整理!AA93-5,0) -> 1160.80929
A94: 2014-07-02 | B94: =B95+IF(データ整理!B94>5,データ整理!B94-5,0) -> 1321.65266 | C94: =C95+IF(データ整理!C94>5,データ整理!C94-5,0) -> 1320.53368 | D94: =D95+IF(データ整理!D94>5,データ整理!D94-5,0) -> 1111.84717 | E94: =E95+IF(データ整理!E94>5,データ整理!E94-5,0) -> 1093.41205 | F94: =F95+IF(データ整理!F94>5,データ整理!F94-5,0) -> 1050.07994 | G94: =G95+IF(データ整理!G94>5,データ整理!G94-5,0) -> 1184.25385 | H94: =H95+IF(データ整理!H94>5,データ整理!H94-5,0) -> 1234.68217 | I94: =I95+IF(データ整理!I94>5,データ整理!I94-5,0) -> 1275.7763 | J94: =J95+IF(データ整理!J94>5,データ整理!J94-5,0) -> 1142.44751 | K94: =K95+IF(データ整理!K94>5,データ整理!K94-5,0) -> 1169.24977 | L94: =L95+IF(データ整理!L94>5,データ整理!L94-5,0) -> 1078.25265 | M94: =M95+IF(データ整理!M94>5,データ整理!M94-5,0) -> 1339.54464 | N94: =N95+IF(データ整理!N94>5,データ整理!N94-5,0) -> 1238.81525 | O94: =O95+IF(データ整理!O94>5,データ整理!O94-5,0) -> 1335.05799 | P94: =P95+IF(データ整理!P94>5,データ整理!P94-5,0) -> 1272.72502 | Q94: =Q95+IF(データ整理!Q94>5,データ整理!Q94-5,0) -> 1142.10907 | R94: =R95+IF(データ整理!R94>5,データ整理!R94-5,0) -> 1120.73073 | S94: =S95+IF(データ整理!S94>5,データ整理!S94-5,0) -> 1221.0056 | T94: =T95+IF(データ整理!T94>5,データ整理!T94-5,0) -> 1123.89661 | U94: =U95+IF(データ整理!U94>5,データ整理!U94-5,0) -> 1130.31313 | Y94: 2018-07-02 | Z94: =Z95+IF(データ整理!Z94>5,データ整理!Z94-5,0) -> 1130.31313 | AA94: =AA95+IF(データ整理!AA94>5,データ整理!AA94-5,0) -> 1149.73269
A95: 2014-07-03 | B95: =B96+IF(データ整理!B95>5,データ整理!B95-5,0) -> 1311.18176 | C95: =C96+IF(データ整理!C95>5,データ整理!C95-5,0) -> 1306.27948 | D95: =D96+IF(データ整理!D95>5,データ整理!D95-5,0) -> 1102.38227 | E95: =E96+IF(データ整理!E95>5,データ整理!E95-5,0) -> 1079.30125 | F95: =F96+IF(データ整理!F95>5,データ整理!F95-5,0) -> 1040.27794 | G95: =G96+IF(データ整理!G95>5,データ整理!G95-5,0) -> 1174.10035 | H95: =H96+IF(データ整理!H95>5,データ整理!H95-5,0) -> 1221.39497 | I95: =I96+IF(データ整理!I95>5,データ整理!I95-5,0) -> 1263.2551 | J95: =J96+IF(データ整理!J95>5,データ整理!J95-5,0) -> 1132.66731 | K95: =K96+IF(データ整理!K95>5,データ整理!K95-5,0) -> 1157.95167 | L95: =L96+IF(データ整理!L95>5,データ整理!L95-5,0) -> 1066.09195 | M95: =M96+IF(データ整理!M95>5,データ整理!M95-5,0) -> 1322.72724 | N95: =N96+IF(データ整理!N95>5,データ整理!N95-5,0) -> 1225.31605 | O95: =O96+IF(データ整理!O95>5,データ整理!O95-5,0) -> 1322.60399 | P95: =P96+IF(データ整理!P95>5,データ整理!P95-5,0) -> 1256.95912 | Q95: =Q96+IF(データ整理!Q95>5,データ整理!Q95-5,0) -> 1128.24447 | R95: =R96+IF(データ整理!R95>5,データ整理!R95-5,0) -> 1110.45043 | S95: =S96+IF(データ整理!S95>5,データ整理!S95-5,0) -> 1208.5483 | T95: =T96+IF(データ整理!T95>5,データ整理!T95-5,0) -> 1111.87231 | U95: =U96+IF(データ整理!U95>5,データ整理!U95-5,0) -> 1115.52083 | Y95: 2018-07-03 | Z95: =Z96+IF(データ整理!Z95>5,データ整理!Z95-5,0) -> 1115.52083 | AA95: =AA96+IF(データ整理!AA95>5,データ整理!AA95-5,0) -> 1138.53289
A96: 2014-07-04 | B96: =B97+IF(データ整理!B96>5,データ整理!B96-5,0) -> 1298.52216 | C96: =C97+IF(データ整理!C96>5,データ整理!C96-5,0) -> 1292.69808 | D96: =D97+IF(データ整理!D96>5,データ整理!D96-5,0) -> 1091.36707 | E96: =E97+IF(データ整理!E96>5,データ整理!E96-5,0) -> 1065.33025 | F96: =F97+IF(データ整理!F96>5,データ整理!F96-5,0) -> 1029.05124 | G96: =G97+IF(データ整理!G96>5,データ整理!G96-5,0) -> 1162.65155 | H96: =H97+IF(データ整理!H96>5,データ整理!H96-5,0) -> 1208.72347 | I96: =I97+IF(データ整理!I96>5,データ整理!I96-5,0) -> 1249.7383 | J96: =J97+IF(データ整理!J96>5,データ整理!J96-5,0) -> 1119.87971 | K96: =K97+IF(データ整理!K96>5,データ整理!K96-5,0) -> 1144.59147 | L96: =L97+IF(データ整理!L96>5,データ整理!L96-5,0) -> 1055.02435 | M96: =M97+IF(データ整理!M96>5,データ整理!M96-5,0) -> 1306.82064 | N96: =N97+IF(データ整理!N96>5,データ整理!N96-5,0) -> 1210.75945 | O96: =O97+IF(データ整理!O96>5,データ整理!O96-5,0) -> 1308.06349 | P96: =P97+IF(データ整理!P96>5,データ整理!P96-5,0) -> 1243.06382 | Q96: =Q97+IF(データ整理!Q96>5,データ整理!Q96-5,0) -> 1113.58257 | R96: =R97+IF(データ整理!R96>5,データ整理!R96-5,0) -> 1101.81783 | S96: =S97+IF(データ整理!S96>5,データ整理!S96-5,0) -> 1197.6641 | T96: =T97+IF(データ整理!T96>5,データ整理!T96-5,0) -> 1100.72251 | U96: =U97+IF(データ整理!U96>5,データ整理!U96-5,0) -> 1102.01433 | Y96: 2018-07-04 | Z96: =Z97+IF(データ整理!Z96>5,データ整理!Z96-5,0) -> 1102.01433 | AA96: =AA97+IF(データ整理!AA96>5,データ整理!AA96-5,0) -> 1127.21109
A97: 2014-07-05 | B97: =B98+IF(データ整理!B97>5,データ整理!B97-5,0) -> 1289.42976 | C97: =C98+IF(データ整理!C97>5,データ整理!C97-5,0) -> 1278.80088 | D97: =D98+IF(データ整理!D97>5,データ整理!D97-5,0) -> 1077.47627 | E97: =E98+IF(データ整理!E97>5,データ整理!E97-5,0) -> 1051.00405 | F97: =F98+IF(データ整理!F97>5,データ整理!F97-5,0) -> 1018.07804 | G97: =G98+IF(データ整理!G97>5,データ整理!G97-5,0) -> 1151.78815 | H97: =H98+IF(データ整理!H97>5,データ整理!H97-5,0) -> 1195.59867 | I97: =I98+IF(データ整理!I97>5,データ整理!I97-5,0) -> 1236.5214 | J97: =J98+IF(データ整理!J97>5,データ整理!J97-5,0) -> 1105.91841 | K97: =K98+IF(データ整理!K97>5,データ整理!K97-5,0) -> 1129.97857 | L97: =L98+IF(データ整理!L97>5,データ整理!L97-5,0) -> 1043.45605 | M97: =M98+IF(データ整理!M97>5,データ整理!M97-5,0) -> 1290.87584 | N97: =N98+IF(データ整理!N97>5,データ整理!N97-5,0) -> 1197.35925 | O97: =O98+IF(データ整理!O97>5,データ整理!O97-5,0) -> 1294.18349 | P97: =P98+IF(データ整理!P97>5,データ整理!P97-5,0) -> 1227.56622 | Q97: =Q98+IF(データ整理!Q97>5,データ整理!Q97-5,0) -> 1101.59637 | R97: =R98+IF(データ整理!R97>5,データ整理!R97-5,0) -> 1094.15113 | S97: =S98+IF(データ整理!S97>5,データ整理!S97-5,0) -> 1191.5525 | T97: =T98+IF(データ整理!T97>5,データ整理!T97-5,0) -> 1087.79881 | U97: =U98+IF(データ整理!U97>5,データ整理!U97-5,0) -> 1094.87703 | Y97: 2018-07-05 | Z97: =Z98+IF(データ整理!Z97>5,データ整理!Z97-5,0) -> 1094.87703 | AA97: =AA98+IF(データ整理!AA97>5,データ整理!AA97-5,0) -> 1115.76779
A98: 2014-07-06 | B98: =B99+IF(データ整理!B98>5,データ整理!B98-5,0) -> 1279.67176 | C98: =C99+IF(データ整理!C98>5,データ整理!C98-5,0) -> 1265.69578 | D98: =D99+IF(データ整理!D98>5,データ整理!D98-5,0) -> 1064.29687 | E98: =E99+IF(データ整理!E98>5,データ整理!E98-5,0) -> 1038.17935 | F98: =F99+IF(データ整理!F98>5,データ整理!F98-5,0) -> 1005.50584 | G98: =G99+IF(データ整理!G98>5,データ整理!G98-5,0) -> 1142.11775 | H98: =H99+IF(データ整理!H98>5,データ整理!H98-5,0) -> 1185.32347 | I98: =I99+IF(データ整理!I98>5,データ整理!I98-5,0) -> 1222.2925 | J98: =J99+IF(データ整理!J98>5,データ整理!J98-5,0) -> 1092.74171 | K98: =K99+IF(データ整理!K98>5,データ整理!K98-5,0) -> 1113.61047 | L98: =L99+IF(データ整理!L98>5,データ整理!L98-5,0) -> 1031.05855 | M98: =M99+IF(データ整理!M98>5,データ整理!M98-5,0) -> 1275.81724 | N98: =N99+IF(データ整理!N98>5,データ整理!N98-5,0) -> 1185.70795 | O98: =O99+IF(データ整理!O98>5,データ整理!O98-5,0) -> 1280.24489 | P98: =P99+IF(データ整理!P98>5,データ整理!P98-5,0) -> 1211.71612 | Q98: =Q99+IF(データ整理!Q98>5,データ整理!Q98-5,0) -> 1090.59827 | R98: =R99+IF(データ整理!R98>5,データ整理!R98-5,0) -> 1085.86153 | S98: =S99+IF(データ整理!S98>5,データ整理!S98-5,0) -> 1182.1612 | T98: =T99+IF(データ整理!T98>5,データ整理!T98-5,0) -> 1074.28801 | U98: =U99+IF(データ整理!U98>5,データ整理!U98-5,0) -> 1091.76442 | Y98: 2018-07-06 | Z98: =Z99+IF(データ整理!Z98>5,データ整理!Z98-5,0) -> 1091.76442 | AA98: =AA99+IF(データ整理!AA98>5,データ整理!AA98-5,0) -> 1104.20479
A99: 2014-07-07 | B99: =B100+IF(データ整理!B99>5,データ整理!B99-5,0) -> 1268.73036 | C99: =C100+IF(データ整理!C99>5,データ整理!C99-5,0) -> 1252.21018 | D99: =D100+IF(データ整理!D99>5,データ整理!D99-5,0) -> 1056.12887 | E99: =E100+IF(データ整理!E99>5,データ整理!E99-5,0) -> 1025.87515 | F99: =F100+IF(データ整理!F99>5,データ整理!F99-5,0) -> 994.20314 | G99: =G100+IF(データ整理!G99>5,データ整理!G99-5,0) -> 1131.56415 | H99: =H100+IF(データ整理!H99>5,データ整理!H99-5,0) -> 1177.62237 | I99: =I100+IF(データ整理!I99>5,データ整理!I99-5,0) -> 1210.2358 | J99: =J100+IF(データ整理!J99>5,データ整理!J99-5,0) -> 1081.64901 | K99: =K100+IF(データ整理!K99>5,データ整理!K99-5,0) -> 1096.17607 | L99: =L100+IF(データ整理!L99>5,データ整理!L99-5,0) -> 1018.55155 | M99: =M100+IF(データ整理!M99>5,データ整理!M99-5,0) -> 1262.72844 | N99: =N100+IF(データ整理!N99>5,データ整理!N99-5,0) -> 1173.54455 | O99: =O100+IF(データ整理!O99>5,データ整理!O99-5,0) -> 1266.80179 | P99: =P100+IF(データ整理!P99>5,データ整理!P99-5,0) -> 1195.47862 | Q99: =Q100+IF(データ整理!Q99>5,データ整理!Q99-5,0) -> 1080.24217 | R99: =R100+IF(データ整理!R99>5,データ整理!R99-5,0) -> 1074.47403 | S99: =S100+IF(データ整理!S99>5,データ整理!S99-5,0) -> 1170.9098 | T99: =T100+IF(データ整理!T99>5,データ整理!T99-5,0) -> 1060.61841 | U99: =U100+IF(データ整理!U99>5,データ整理!U99-5,0) -> 1086.82784 | Y99: 2018-07-07 | Z99: =Z100+IF(データ整理!Z99>5,データ整理!Z99-5,0) -> 1086.82784 | AA99: =AA100+IF(データ整理!AA99>5,データ整理!AA99-5,0) -> 1092.52719
A100: 2014-07-08 | B100: =B101+IF(データ整理!B100>5,データ整理!B100-5,0) -> 1255.40116 | C100: =C101+IF(データ整理!C100>5,データ整理!C100-5,0) -> 1238.36258 | D100: =D101+IF(データ整理!D100>5,データ整理!D100-5,0) -> 1047.14167 | E100: =E101+IF(データ整理!E100>5,データ整理!E100-5,0) -> 1013.63855 | F100: =F101+IF(データ整理!F100>5,データ整理!F100-5,0) -> 981.58404 | G100: =G101+IF(データ整理!G100>5,データ整理!G100-5,0) -> 1119.79745 | H100: =H101+IF(データ整理!H100>5,データ整理!H100-5,0) -> 1169.88917 | I100: =I101+IF(データ整理!I100>5,データ整理!I100-5,0) -> 1197.3028 | J100: =J101+IF(データ整理!J100>5,データ整理!J100-5,0) -> 1070.07931 | K100: =K101+IF(データ整理!K100>5,データ整理!K100-5,0) -> 1079.91237 | L100: =L101+IF(データ整理!L100>5,データ整理!L100-5,0) -> 1004.16025 | M100: =M101+IF(データ整理!M100>5,データ整理!M100-5,0) -> 1249.36914 | N100: =N101+IF(データ整理!N100>5,データ整理!N100-5,0) -> 1158.17695 | O100: =O101+IF(データ整理!O100>5,データ整理!O100-5,0) -> 1254.11799 | P100: =P101+IF(データ整理!P100>5,データ整理!P100-5,0) -> 1181.13642 | Q100: =Q101+IF(データ整理!Q100>5,データ整理!Q100-5,0) -> 1066.24937 | R100: =R101+IF(データ整理!R100>5,データ整理!R100-5,0) -> 1067.13053 | S100: =S101+IF(データ整理!S100>5,データ整理!S100-5,0) -> 1159.8831 | T100: =T101+IF(データ整理!T100>5,データ整理!T100-5,0) -> 1045.05811 | U100: =U101+IF(データ整理!U100>5,データ整理!U100-5,0) -> 1081.17174 | Y100: 2018-07-08 | Z100: =Z101+IF(データ整理!Z100>5,データ整理!Z100-5,0) -> 1081.17174 | AA100: =AA101+IF(データ整理!AA100>5,データ整理!AA100-5,0) -> 1080.74339
A101: 2014-07-09 | B101: =B102+IF(データ整理!B101>5,データ整理!B101-5,0) -> 1242.51226 | C101: =C102+IF(データ整理!C101>5,データ整理!C101-5,0) -> 1224.51088 | D101: =D102+IF(データ整理!D101>5,データ整理!D101-5,0) -> 1038.45927 | E101: =E102+IF(データ整理!E101>5,データ整理!E101-5,0) -> 1002.42385 | F101: =F102+IF(データ整理!F101>5,データ整理!F101-5,0) -> 969.14114 | G101: =G102+IF(データ整理!G101>5,データ整理!G101-5,0) -> 1105.76305 | H101: =H102+IF(データ整理!H101>5,データ整理!H101-5,0) -> 1160.88067 | I101: =I102+IF(データ整理!I101>5,データ整理!I101-5,0) -> 1182.8105 | J101: =J102+IF(データ整理!J101>5,データ整理!J101-5,0) -> 1058.79141 | K101: =K102+IF(データ整理!K101>5,データ整理!K101-5,0) -> 1063.44427 | L101: =L102+IF(データ整理!L101>5,データ整理!L101-5,0) -> 992.16185 | M101: =M102+IF(データ整理!M101>5,データ整理!M101-5,0) -> 1237.32164 | N101: =N102+IF(データ整理!N101>5,データ整理!N101-5,0) -> 1143.59815 | O101: =O102+IF(データ整理!O101>5,データ整理!O101-5,0) -> 1241.90499 | P101: =P102+IF(データ整理!P101>5,データ整理!P101-5,0) -> 1164.42372 | Q101: =Q102+IF(データ整理!Q101>5,データ整理!Q101-5,0) -> 1052.83127 | R101: =R102+IF(データ整理!R101>5,データ整理!R101-5,0) -> 1060.67613 | S101: =S102+IF(データ整理!S101>5,データ整理!S101-5,0) -> 1147.7069 | T101: =T102+IF(データ整理!T101>5,データ整理!T101-5,0) -> 1030.06501 | U101: =U102+IF(データ整理!U101>5,データ整理!U101-5,0) -> 1071.03124 | Y101: 2018-07-09 | Z101: =Z102+IF(データ整理!Z101>5,データ整理!Z101-5,0) -> 1071.03124 | AA101: =AA102+IF(データ整理!AA101>5,データ整理!AA101-5,0) -> 1068.85939
A102: 2014-07-10 | B102: =B103+IF(データ整理!B102>5,データ整理!B102-5,0) -> 1229.81326 | C102: =C103+IF(データ整理!C102>5,データ整理!C102-5,0) -> 1212.62618 | D102: =D103+IF(データ整理!D102>5,データ整理!D102-5,0) -> 1025.82837 | E102: =E103+IF(データ整理!E102>5,データ整理!E102-5,0) -> 992.04425 | F102: =F103+IF(データ整理!F102>5,データ整理!F102-5,0) -> 956.57264 | G102: =G103+IF(データ整理!G102>5,データ整理!G102-5,0) -> 1093.65465 | H102: =H103+IF(データ整理!H102>5,データ整理!H102-5,0) -> 1150.08997 | I102: =I103+IF(データ整理!I102>5,データ整理!I102-5,0) -> 1167.7523 | J102: =J103+IF(データ整理!J102>5,データ整理!J102-5,0) -> 1049.76651 | K102: =K103+IF(データ整理!K102>5,データ整理!K102-5,0) -> 1049.22077 | L102: =L103+IF(データ整理!L102>5,データ整理!L102-5,0) -> 980.03775 | M102: =M103+IF(データ整理!M102>5,データ整理!M102-5,0) -> 1223.50054 | N102: =N103+IF(データ整理!N102>5,データ整理!N102-5,0) -> 1128.68655 | O102: =O103+IF(データ整理!O102>5,データ整理!O102-5,0) -> 1230.81529 | P102: =P103+IF(データ整理!P102>5,データ整理!P102-5,0) -> 1147.89182 | Q102: =Q103+IF(データ整理!Q102>5,データ整理!Q102-5,0) -> 1038.50397 | R102: =R103+IF(データ整理!R102>5,データ整理!R102-5,0) -> 1052.35973 | S102: =S103+IF(データ整理!S102>5,データ整理!S102-5,0) -> 1135.2845 | T102: =T103+IF(データ整理!T102>5,データ整理!T102-5,0) -> 1013.28751 | U102: =U103+IF(データ整理!U102>5,データ整理!U102-5,0) -> 1059.40894 | Y102: 2018-07-10 | Z102: =Z103+IF(データ整理!Z102>5,データ整理!Z102-5,0) -> 1059.40894 | AA102: =AA103+IF(データ整理!AA102>5,データ整理!AA102-5,0) -> 1056.87699
A103: 2014-07-11 | B103: =B104+IF(データ整理!B103>5,データ整理!B103-5,0) -> 1217.16286 | C103: =C104+IF(データ整理!C103>5,データ整理!C103-5,0) -> 1200.72498 | D103: =D104+IF(データ整理!D103>5,データ整理!D103-5,0) -> 1011.94337 | E103: =E104+IF(データ整理!E103>5,データ整理!E103-5,0) -> 982.23415 | F103: =F104+IF(データ整理!F103>5,データ整理!F103-5,0) -> 946.35774 | G103: =G104+IF(データ整理!G103>5,データ整理!G103-5,0) -> 1082.75105 | H103: =H104+IF(データ整理!H103>5,データ整理!H103-5,0) -> 1138.57507 | I103: =I104+IF(データ整理!I103>5,データ整理!I103-5,0) -> 1153.2512 | J103: =J104+IF(データ整理!J103>5,データ整理!J103-5,0) -> 1042.24881 | K103: =K104+IF(データ整理!K103>5,データ整理!K103-5,0) -> 1034.94927 | L103: =L104+IF(データ整理!L103>5,データ整理!L103-5,0) -> 973.87135 | M103: =M104+IF(データ整理!M103>5,データ整理!M103-5,0) -> 1210.69894 | N103: =N104+IF(データ整理!N103>5,データ整理!N103-5,0) -> 1114.34465 | O103: =O104+IF(データ整理!O103>5,データ整理!O103-5,0) -> 1219.43469 | P103: =P104+IF(データ整理!P103>5,データ整理!P103-5,0) -> 1133.25992 | Q103: =Q104+IF(データ整理!Q103>5,データ整理!Q103-5,0) -> 1026.34497 | R103: =R104+IF(データ整理!R103>5,データ整理!R103-5,0) -> 1041.64603 | S103: =S104+IF(データ整理!S103>5,データ整理!S103-5,0) -> 1123.9848 | T103: =T104+IF(データ整理!T103>5,データ整理!T103-5,0) -> 995.20381 | U103: =U104+IF(データ整理!U103>5,データ整理!U103-5,0) -> 1045.72454 | Y103: 2018-07-11 | Z103: =Z104+IF(データ整理!Z103>5,データ整理!Z103-5,0) -> 1045.72454 | AA103: =AA104+IF(データ整理!AA103>5,データ整理!AA103-5,0) -> 1044.79559
A104: 2014-07-12 | B104: =B105+IF(データ整理!B104>5,データ整理!B104-5,0) -> 1203.67936 | C104: =C105+IF(データ整理!C104>5,データ整理!C104-5,0) -> 1186.30058 | D104: =D105+IF(データ整理!D104>5,データ整理!D104-5,0) -> 996.26047 | E104: =E105+IF(データ整理!E104>5,データ整理!E104-5,0) -> 973.97865 | F104: =F105+IF(データ整理!F104>5,データ整理!F104-5,0) -> 933.19024 | G104: =G105+IF(データ整理!G104>5,データ整理!G104-5,0) -> 1074.77555 | H104: =H105+IF(データ整理!H104>5,データ整理!H104-5,0) -> 1127.85347 | I104: =I105+IF(データ整理!I104>5,データ整理!I104-5,0) -> 1136.675 | J104: =J105+IF(データ整理!J104>5,データ整理!J104-5,0) -> 1035.05101 | K104: =K105+IF(データ整理!K104>5,データ整理!K104-5,0) -> 1022.38347 | L104: =L105+IF(データ整理!L104>5,データ整理!L104-5,0) -> 966.15535 | M104: =M105+IF(データ整理!M104>5,データ整理!M104-5,0) -> 1197.12994 | N104: =N105+IF(データ整理!N104>5,データ整理!N104-5,0) -> 1098.49835 | O104: =O105+IF(データ整理!O104>5,データ整理!O104-5,0) -> 1207.69249 | P104: =P105+IF(データ整理!P104>5,データ整理!P104-5,0) -> 1118.51472 | Q104: =Q105+IF(データ整理!Q104>5,データ整理!Q104-5,0) -> 1012.48577 | R104: =R105+IF(データ整理!R104>5,データ整理!R104-5,0) -> 1027.25213 | S104: =S105+IF(データ整理!S104>5,データ整理!S104-5,0) -> 1113.0254 | T104: =T105+IF(データ整理!T104>5,データ整理!T104-5,0) -> 977.64521 | U104: =U105+IF(データ整理!U104>5,データ整理!U104-5,0) -> 1032.95194 | Y104: 2018-07-12 | Z104: =Z105+IF(データ整理!Z104>5,データ整理!Z104-5,0) -> 1032.95194 | AA104: =AA105+IF(データ整理!AA104>5,データ整理!AA104-5,0) -> 1032.61419
A105: 2014-07-13 | B105: =B106+IF(データ整理!B105>5,データ整理!B105-5,0) -> 1188.77756 | C105: =C106+IF(データ整理!C105>5,データ整理!C105-5,0) -> 1169.95628 | D105: =D106+IF(データ整理!D105>5,データ整理!D105-5,0) -> 979.64457 | E105: =E106+IF(データ整理!E105>5,データ整理!E105-5,0) -> 965.07145 | F105: =F106+IF(データ整理!F105>5,データ整理!F105-5,0) -> 919.47854 | G105: =G106+IF(データ整理!G105>5,データ整理!G105-5,0) -> 1065.59805 | H105: =H106+IF(データ整理!H105>5,データ整理!H105-5,0) -> 1115.13077 | I105: =I106+IF(データ整理!I105>5,データ整理!I105-5,0) -> 1122.735 | J105: =J106+IF(データ整理!J105>5,データ整理!J105-5,0) -> 1027.81361 | K105: =K106+IF(データ整理!K105>5,データ整理!K105-5,0) -> 1010.01207 | L105: =L106+IF(データ整理!L105>5,データ整理!L105-5,0) -> 954.67165 | M105: =M106+IF(データ整理!M105>5,データ整理!M105-5,0) -> 1188.85504 | N105: =N106+IF(データ整理!N105>5,データ整理!N105-5,0) -> 1083.30935 | O105: =O106+IF(データ整理!O105>5,データ整理!O105-5,0) -> 1198.56709 | P105: =P106+IF(データ整理!P105>5,データ整理!P105-5,0) -> 1104.17552 | Q105: =Q106+IF(データ整理!Q105>5,データ整理!Q105-5,0) -> 1001.49647 | R105: =R106+IF(データ整理!R105>5,データ整理!R105-5,0) -> 1012.65803 | S105: =S106+IF(データ整理!S105>5,データ整理!S105-5,0) -> 1100.791 | T105: =T106+IF(データ整理!T105>5,データ整理!T105-5,0) -> 961.56251 | U105: =U106+IF(データ整理!U105>5,データ整理!U105-5,0) -> 1019.95914 | Y105: 2018-07-13 | Z105: =Z106+IF(データ整理!Z105>5,データ整理!Z105-5,0) -> 1019.95914 | AA105: =AA106+IF(データ整理!AA105>5,データ整理!AA105-5,0) -> 1020.33169
A106: 2014-07-14 | B106: =B107+IF(データ整理!B106>5,データ整理!B106-5,0) -> 1172.98986 | C106: =C107+IF(データ整理!C106>5,データ整理!C106-5,0) -> 1154.91398 | D106: =D107+IF(データ整理!D106>5,データ整理!D106-5,0) -> 963.23717 | E106: =E107+IF(データ整理!E106>5,データ整理!E106-5,0) -> 950.91045 | F106: =F107+IF(データ整理!F106>5,データ整理!F106-5,0) -> 910.44654 | G106: =G107+IF(データ整理!G106>5,データ整理!G106-5,0) -> 1054.40365 | H106: =H107+IF(データ整理!H106>5,データ整理!H106-5,0) -> 1101.62017 | I106: =I107+IF(データ整理!I106>5,データ整理!I106-5,0) -> 1107.1063 | J106: =J107+IF(データ整理!J106>5,データ整理!J106-5,0) -> 1018.30931 | K106: =K107+IF(データ整理!K106>5,データ整理!K106-5,0) -> 998.24337 | L106: =L107+IF(データ整理!L106>5,データ整理!L106-5,0) -> 944.37525 | M106: =M107+IF(データ整理!M106>5,データ整理!M106-5,0) -> 1178.93034 | N106: =N107+IF(データ整理!N106>5,データ整理!N106-5,0) -> 1068.05585 | O106: =O107+IF(データ整理!O106>5,データ整理!O106-5,0) -> 1191.43039 | P106: =P107+IF(データ整理!P106>5,データ整理!P106-5,0) -> 1090.51702 | Q106: =Q107+IF(データ整理!Q106>5,データ整理!Q106-5,0) -> 987.87667 | R106: =R107+IF(データ整理!R106>5,データ整理!R106-5,0) -> 999.99043 | S106: =S107+IF(データ整理!S106>5,データ整理!S106-5,0) -> 1086.9598 | T106: =T107+IF(データ整理!T106>5,データ整理!T106-5,0) -> 945.05021 | U106: =U107+IF(データ整理!U106>5,データ整理!U106-5,0) -> 1005.90124 | Y106: 2018-07-14 | Z106: =Z107+IF(データ整理!Z106>5,データ整理!Z106-5,0) -> 1005.90124 | AA106: =AA107+IF(データ整理!AA106>5,データ整理!AA106-5,0) -> 1007.94729
A107: 2014-07-15 | B107: =B108+IF(データ整理!B107>5,データ整理!B107-5,0) -> 1157.82576 | C107: =C108+IF(データ整理!C107>5,データ整理!C107-5,0) -> 1137.71488 | D107: =D108+IF(データ整理!D107>5,データ整理!D107-5,0) -> 947.44277 | E107: =E108+IF(データ整理!E107>5,データ整理!E107-5,0) -> 935.26505 | F107: =F108+IF(データ整理!F107>5,データ整理!F107-5,0) -> 903.43574 | G107: =G108+IF(データ整理!G107>5,データ整理!G107-5,0) -> 1042.42945 | H107: =H108+IF(データ整理!H107>5,データ整理!H107-5,0) -> 1087.28877 | I107: =I108+IF(データ整理!I107>5,データ整理!I107-5,0) -> 1092.0368 | J107: =J108+IF(データ整理!J107>5,データ整理!J107-5,0) -> 1007.45831 | K107: =K108+IF(データ整理!K107>5,データ整理!K107-5,0) -> 984.06057 | L107: =L108+IF(データ整理!L107>5,データ整理!L107-5,0) -> 932.63915 | M107: =M108+IF(データ整理!M107>5,データ整理!M107-5,0) -> 1166.62814 | N107: =N108+IF(データ整理!N107>5,データ整理!N107-5,0) -> 1056.61935 | O107: =O108+IF(データ整理!O107>5,データ整理!O107-5,0) -> 1183.55639 | P107: =P108+IF(データ整理!P107>5,データ整理!P107-5,0) -> 1076.64252 | Q107: =Q108+IF(データ整理!Q107>5,データ整理!Q107-5,0) -> 973.26597 | R107: =R108+IF(データ整理!R107>5,データ整理!R107-5,0) -> 983.79043 | S107: =S108+IF(データ整理!S107>5,データ整理!S107-5,0) -> 1072.9333 | T107: =T108+IF(データ整理!T107>5,データ整理!T107-5,0) -> 928.22501 | U107: =U108+IF(データ整理!U107>5,データ整理!U107-5,0) -> 990.36984 | Y107: 2018-07-15 | Z107: =Z108+IF(データ整理!Z107>5,データ整理!Z107-5,0) -> 990.36984 | AA107: =AA108+IF(データ整理!AA107>5,データ整理!AA107-5,0) -> 995.45869
A108: 2014-07-16 | B108: =B109+IF(データ整理!B108>5,データ整理!B108-5,0) -> 1139.66406 | C108: =C109+IF(データ整理!C108>5,データ整理!C108-5,0) -> 1123.09188 | D108: =D109+IF(データ整理!D108>5,データ整理!D108-5,0) -> 932.05397 | E108: =E109+IF(データ整理!E108>5,データ整理!E108-5,0) -> 922.25165 | F108: =F109+IF(データ整理!F108>5,データ整理!F108-5,0) -> 895.78124 | G108: =G109+IF(データ整理!G108>5,データ整理!G108-5,0) -> 1028.78965 | H108: =H109+IF(データ整理!H108>5,データ整理!H108-5,0) -> 1073.89027 | I108: =I109+IF(データ整理!I108>5,データ整理!I108-5,0) -> 1078.3712 | J108: =J109+IF(データ整理!J108>5,データ整理!J108-5,0) -> 994.63481 | K108: =K109+IF(データ整理!K108>5,データ整理!K108-5,0) -> 970.07267 | L108: =L109+IF(データ整理!L108>5,データ整理!L108-5,0) -> 920.00345 | M108: =M109+IF(データ整理!M108>5,データ整理!M108-5,0) -> 1153.04104 | N108: =N109+IF(データ整理!N108>5,データ整理!N108-5,0) -> 1045.98805 | O108: =O109+IF(データ整理!O108>5,データ整理!O108-5,0) -> 1173.98719 | P108: =P109+IF(データ整理!P108>5,データ整理!P108-5,0) -> 1061.66042 | Q108: =Q109+IF(データ整理!Q108>5,データ整理!Q108-5,0) -> 957.99527 | R108: =R109+IF(データ整理!R108>5,データ整理!R108-5,0) -> 975.62743 | S108: =S109+IF(データ整理!S108>5,データ整理!S108-5,0) -> 1060.7187 | T108: =T109+IF(データ整理!T108>5,データ整理!T108-5,0) -> 910.89071 | U108: =U109+IF(データ整理!U108>5,データ整理!U108-5,0) -> 977.36304 | Y108: 2018-07-16 | Z108: =Z109+IF(データ整理!Z108>5,データ整理!Z108-5,0) -> 977.36304 | AA108: =AA109+IF(データ整理!AA108>5,データ整理!AA108-5,0) -> 982.86009
A109: 2014-07-17 | B109: =B110+IF(データ整理!B109>5,データ整理!B109-5,0) -> 1121.01066 | C109: =C110+IF(データ整理!C109>5,データ整理!C109-5,0) -> 1108.55968 | D109: =D110+IF(データ整理!D109>5,データ整理!D109-5,0) -> 919.06857 | E109: =E110+IF(データ整理!E109>5,データ整理!E109-5,0) -> 908.69655 | F109: =F110+IF(データ整理!F109>5,データ整理!F109-5,0) -> 887.33254 | G109: =G110+IF(データ整理!G109>5,データ整理!G109-5,0) -> 1013.09575 | H109: =H110+IF(データ整理!H109>5,データ整理!H109-5,0) -> 1059.07867 | I109: =I110+IF(データ整理!I109>5,データ整理!I109-5,0) -> 1063.9658 | J109: =J110+IF(データ整理!J109>5,データ整理!J109-5,0) -> 980.94381 | K109: =K110+IF(データ整理!K109>5,データ整理!K109-5,0) -> 957.22637 | L109: =L110+IF(データ整理!L109>5,データ整理!L109-5,0) -> 910.97175 | M109: =M110+IF(データ整理!M109>5,データ整理!M109-5,0) -> 1137.25984 | N109: =N110+IF(データ整理!N109>5,データ整理!N109-5,0) -> 1033.27825 | O109: =O110+IF(データ整理!O109>5,データ整理!O109-5,0) -> 1162.15329 | P109: =P110+IF(データ整理!P109>5,データ整理!P109-5,0) -> 1047.40202 | Q109: =Q110+IF(データ整理!Q109>5,データ整理!Q109-5,0) -> 941.56117 | R109: =R110+IF(データ整理!R109>5,データ整理!R109-5,0) -> 968.47643 | S109: =S110+IF(データ整理!S109>5,データ整理!S109-5,0) -> 1048.3953 | T109: =T110+IF(データ整理!T109>5,データ整理!T109-5,0) -> 895.27311 | U109: =U110+IF(データ整理!U109>5,データ整理!U109-5,0) -> 966.49424 | Y109: 2018-07-17 | Z109: =Z110+IF(データ整理!Z109>5,データ整理!Z109-5,0) -> 966.49424 | AA109: =AA110+IF(データ整理!AA109>5,データ整理!AA109-5,0) -> 970.14379
A110: 2014-07-18 | B110: =B111+IF(データ整理!B110>5,データ整理!B110-5,0) -> 1107.20756 | C110: =C111+IF(データ整理!C110>5,データ整理!C110-5,0) -> 1094.68968 | D110: =D111+IF(データ整理!D110>5,データ整理!D110-5,0) -> 905.92157 | E110: =E111+IF(データ整理!E110>5,データ整理!E110-5,0) -> 896.25225 | F110: =F111+IF(データ整理!F110>5,データ整理!F110-5,0) -> 877.49244 | G110: =G111+IF(データ整理!G110>5,データ整理!G110-5,0) -> 996.92195 | H110: =H111+IF(データ整理!H110>5,データ整理!H110-5,0) -> 1043.84237 | I110: =I111+IF(データ整理!I110>5,データ整理!I110-5,0) -> 1050.5033 | J110: =J111+IF(データ整理!J110>5,データ整理!J110-5,0) -> 969.22521 | K110: =K111+IF(データ整理!K110>5,データ整理!K110-5,0) -> 947.12717 | L110: =L111+IF(データ整理!L110>5,データ整理!L110-5,0) -> 902.47735 | M110: =M111+IF(データ整理!M110>5,データ整理!M110-5,0) -> 1121.27024 | N110: =N111+IF(データ整理!N110>5,データ整理!N110-5,0) -> 1019.65425 | O110: =O111+IF(データ整理!O110>5,データ整理!O110-5,0) -> 1149.79969 | P110: =P111+IF(データ整理!P110>5,データ整理!P110-5,0) -> 1033.76502 | Q110: =Q111+IF(データ整理!Q110>5,データ整理!Q110-5,0) -> 925.59637 | R110: =R111+IF(データ整理!R110>5,データ整理!R110-5,0) -> 958.17613 | S110: =S111+IF(データ整理!S110>5,データ整理!S110-5,0) -> 1034.8492 | T110: =T111+IF(データ整理!T110>5,データ整理!T110-5,0) -> 885.17771 | U110: =U111+IF(データ整理!U110>5,データ整理!U110-5,0) -> 955.18224 | Y110: 2018-07-18 | Z110: =Z111+IF(データ整理!Z110>5,データ整理!Z110-5,0) -> 955.18224 | AA110: =AA111+IF(データ整理!AA110>5,データ整理!AA110-5,0) -> 957.30339
A111: 2014-07-19 | B111: =B112+IF(データ整理!B111>5,データ整理!B111-5,0) -> 1096.04176 | C111: =C112+IF(データ整理!C111>5,データ整理!C111-5,0) -> 1085.21138 | D111: =D112+IF(データ整理!D111>5,データ整理!D111-5,0) -> 892.07767 | E111: =E112+IF(データ整理!E111>5,データ整理!E111-5,0) -> 881.21345 | F111: =F112+IF(データ整理!F111>5,データ整理!F111-5,0) -> 865.72834 | G111: =G112+IF(データ整理!G111>5,データ整理!G111-5,0) -> 982.80165 | H111: =H112+IF(データ整理!H111>5,データ整理!H111-5,0) -> 1029.10047 | I111: =I112+IF(データ整理!I111>5,データ整理!I111-5,0) -> 1038.1556 | J111: =J112+IF(データ整理!J111>5,データ整理!J111-5,0) -> 956.78391 | K111: =K112+IF(データ整理!K111>5,データ整理!K111-5,0) -> 936.73857 | L111: =L112+IF(データ整理!L111>5,データ整理!L111-5,0) -> 891.81375 | M111: =M112+IF(データ整理!M111>5,データ整理!M111-5,0) -> 1105.22694 | N111: =N112+IF(データ整理!N111>5,データ整理!N111-5,0) -> 1005.02475 | O111: =O112+IF(データ整理!O111>5,データ整理!O111-5,0) -> 1136.31439 | P111: =P112+IF(データ整理!P111>5,データ整理!P111-5,0) -> 1020.34222 | Q111: =Q112+IF(データ整理!Q111>5,データ整理!Q111-5,0) -> 910.14587 | R111: =R112+IF(データ整理!R111>5,データ整理!R111-5,0) -> 945.13943 | S111: =S112+IF(データ整理!S111>5,データ整理!S111-5,0) -> 1022.1511 | T111: =T112+IF(データ整理!T111>5,データ整理!T111-5,0) -> 874.29741 | U111: =U112+IF(データ整理!U111>5,データ整理!U111-5,0) -> 942.77754 | Y111: 2018-07-19 | Z111: =Z112+IF(データ整理!Z111>5,データ整理!Z111-5,0) -> 942.77754 | AA111: =AA112+IF(データ整理!AA111>5,データ整理!AA111-5,0) -> 944.33409
A112: 2014-07-20 | B112: =B113+IF(データ整理!B112>5,データ整理!B112-5,0) -> 1081.62486 | C112: =C113+IF(データ整理!C112>5,データ整理!C112-5,0) -> 1074.85288 | D112: =D113+IF(データ整理!D112>5,データ整理!D112-5,0) -> 877.93737 | E112: =E113+IF(データ整理!E112>5,データ整理!E112-5,0) -> 864.22915 | F112: =F113+IF(データ整理!F112>5,データ整理!F112-5,0) -> 855.17494 | G112: =G113+IF(データ整理!G112>5,データ整理!G112-5,0) -> 968.02325 | H112: =H113+IF(データ整理!H112>5,データ整理!H112-5,0) -> 1016.61457 | I112: =I113+IF(データ整理!I112>5,データ整理!I112-5,0) -> 1024.8781 | J112: =J113+IF(データ整理!J112>5,データ整理!J112-5,0) -> 944.00491 | K112: =K113+IF(データ整理!K112>5,データ整理!K112-5,0) -> 925.03267 | L112: =L113+IF(データ整理!L112>5,データ整理!L112-5,0) -> 883.96025 | M112: =M113+IF(データ整理!M112>5,データ整理!M112-5,0) -> 1089.65454 | N112: =N113+IF(データ整理!N112>5,データ整理!N112-5,0) -> 991.21805 | O112: =O113+IF(データ整理!O112>5,データ整理!O112-5,0) -> 1128.26309 | P112: =P113+IF(データ整理!P112>5,データ整理!P112-5,0) -> 1007.44012 | Q112: =Q113+IF(データ整理!Q112>5,データ整理!Q112-5,0) -> 894.72337 | R112: =R113+IF(データ整理!R112>5,データ整理!R112-5,0) -> 930.26503 | S112: =S113+IF(データ整理!S112>5,データ整理!S112-5,0) -> 1010.7144 | T112: =T113+IF(データ整理!T112>5,データ整理!T112-5,0) -> 860.53531 | U112: =U113+IF(データ整理!U112>5,データ整理!U112-5,0) -> 928.29224 | Y112: 2018-07-20 | Z112: =Z113+IF(データ整理!Z112>5,データ整理!Z112-5,0) -> 928.29224 | AA112: =AA113+IF(データ整理!AA112>5,データ整理!AA112-5,0) -> 931.23129
A113: 2014-07-21 | B113: =B114+IF(データ整理!B113>5,データ整理!B113-5,0) -> 1066.69536 | C113: =C114+IF(データ整理!C113>5,データ整理!C113-5,0) -> 1061.34168 | D113: =D114+IF(データ整理!D113>5,データ整理!D113-5,0) -> 865.05197 | E113: =E114+IF(データ整理!E113>5,データ整理!E113-5,0) -> 849.76545 | F113: =F114+IF(データ整理!F113>5,データ整理!F113-5,0) -> 843.84954 | G113: =G114+IF(データ整理!G113>5,データ整理!G113-5,0) -> 953.07475 | H113: =H114+IF(データ整理!H113>5,データ整理!H113-5,0) -> 1005.01007 | I113: =I114+IF(データ整理!I113>5,データ整理!I113-5,0) -> 1012.4293 | J113: =J114+IF(データ整理!J113>5,データ整理!J113-5,0) -> 930.78361 | K113: =K114+IF(データ整理!K113>5,データ整理!K113-5,0) -> 913.13607 | L113: =L114+IF(データ整理!L113>5,データ整理!L113-5,0) -> 876.38935 | M113: =M114+IF(データ整理!M113>5,データ整理!M113-5,0) -> 1074.19644 | N113: =N114+IF(データ整理!N113>5,データ整理!N113-5,0) -> 982.58215 | O113: =O114+IF(データ整理!O113>5,データ整理!O113-5,0) -> 1119.06019 | P113: =P114+IF(データ整理!P113>5,データ整理!P113-5,0) -> 994.10112 | Q113: =Q114+IF(データ整理!Q113>5,データ整理!Q113-5,0) -> 880.21957 | R113: =R114+IF(データ整理!R113>5,データ整理!R113-5,0) -> 915.98023 | S113: =S114+IF(データ整理!S113>5,データ整理!S113-5,0) -> 998.483 | T113: =T114+IF(データ整理!T113>5,データ整理!T113-5,0) -> 846.08901 | U113: =U114+IF(データ整理!U113>5,データ整理!U113-5,0) -> 911.65624 | Y113: 2018-07-21 | Z113: =Z114+IF(データ整理!Z113>5,データ整理!Z113-5,0) -> 911.65624 | AA113: =AA114+IF(データ整理!AA113>5,データ整理!AA113-5,0) -> 917.98959
A114: 2014-07-22 | B114: =B115+IF(データ整理!B114>5,データ整理!B114-5,0) -> 1051.73836 | C114: =C115+IF(データ整理!C114>5,データ整理!C114-5,0) -> 1047.93958 | D114: =D115+IF(データ整理!D114>5,データ整理!D114-5,0) -> 850.23357 | E114: =E115+IF(データ整理!E114>5,データ整理!E114-5,0) -> 835.05455 | F114: =F115+IF(データ整理!F114>5,データ整理!F114-5,0) -> 833.04154 | G114: =G115+IF(データ整理!G114>5,データ整理!G114-5,0) -> 941.18115 | H114: =H115+IF(データ整理!H114>5,データ整理!H114-5,0) -> 991.65917 | I114: =I115+IF(データ整理!I114>5,データ整理!I114-5,0) -> 1000.4876 | J114: =J115+IF(データ整理!J114>5,データ整理!J114-5,0) -> 916.13891 | K114: =K115+IF(データ整理!K114>5,データ整理!K114-5,0) -> 900.54267 | L114: =L115+IF(データ整理!L114>5,データ整理!L114-5,0) -> 867.24845 | M114: =M115+IF(データ整理!M114>5,データ整理!M114-5,0) -> 1058.07734 | N114: =N115+IF(データ整理!N114>5,データ整理!N114-5,0) -> 972.88075 | O114: =O115+IF(データ整理!O114>5,データ整理!O114-5,0) -> 1108.41229 | P114: =P115+IF(データ整理!P114>5,データ整理!P114-5,0) -> 979.99042 | Q114: =Q115+IF(データ整理!Q114>5,データ整理!Q114-5,0) -> 865.73077 | R114: =R115+IF(データ整理!R114>5,データ整理!R114-5,0) -> 901.03083 | S114: =S115+IF(データ整理!S114>5,データ整理!S114-5,0) -> 985.0683 | T114: =T115+IF(データ整理!T114>5,データ整理!T114-5,0) -> 827.33601 | U114: =U115+IF(データ整理!U114>5,データ整理!U114-5,0) -> 896.53444 | Y114: 2018-07-22 | Z114: =Z115+IF(データ整理!Z114>5,データ整理!Z114-5,0) -> 896.53444 | AA114: =AA115+IF(データ整理!AA114>5,データ整理!AA114-5,0) -> 904.60659
A115: 2014-07-23 | B115: =B116+IF(データ整理!B115>5,データ整理!B115-5,0) -> 1035.86946 | C115: =C116+IF(データ整理!C115>5,データ整理!C115-5,0) -> 1030.01518 | D115: =D116+IF(データ整理!D115>5,データ整理!D115-5,0) -> 833.65717 | E115: =E116+IF(データ整理!E115>5,データ整理!E115-5,0) -> 822.57245 | F115: =F116+IF(データ整理!F115>5,データ整理!F115-5,0) -> 822.55124 | G115: =G116+IF(データ整理!G115>5,データ整理!G115-5,0) -> 929.92555 | H115: =H116+IF(データ整理!H115>5,データ整理!H115-5,0) -> 977.99097 | I115: =I116+IF(データ整理!I115>5,データ整理!I115-5,0) -> 989.1977 | J115: =J116+IF(データ整理!J115>5,データ整理!J115-5,0) -> 900.41721 | K115: =K116+IF(データ整理!K115>5,データ整理!K115-5,0) -> 888.00137 | L115: =L116+IF(データ整理!L115>5,データ整理!L115-5,0) -> 858.79685 | M115: =M116+IF(データ整理!M115>5,データ整理!M115-5,0) -> 1042.86124 | N115: =N116+IF(データ整理!N115>5,データ整理!N115-5,0) -> 960.58105 | O115: =O116+IF(データ整理!O115>5,データ整理!O115-5,0) -> 1096.59679 | P115: =P116+IF(データ整理!P115>5,データ整理!P115-5,0) -> 965.11792 | Q115: =Q116+IF(データ整理!Q115>5,データ整理!Q115-5,0) -> 850.18797 | R115: =R116+IF(データ整理!R115>5,データ整理!R115-5,0) -> 886.16243 | S115: =S116+IF(データ整理!S115>5,データ整理!S115-5,0) -> 971.3998 | T115: =T116+IF(データ整理!T115>5,データ整理!T115-5,0) -> 811.36441 | U115: =U116+IF(データ整理!U115>5,データ整理!U115-5,0) -> 883.52694 | Y115: 2018-07-23 | Z115: =Z116+IF(データ整理!Z115>5,データ整理!Z115-5,0) -> 883.52694 | AA115: =AA116+IF(データ整理!AA115>5,データ整理!AA115-5,0) -> 891.08029
A116: 2014-07-24 | B116: =B117+IF(データ整理!B116>5,データ整理!B116-5,0) -> 1018.84536 | C116: =C117+IF(データ整理!C116>5,データ整理!C116-5,0) -> 1013.25618 | D116: =D117+IF(データ整理!D116>5,データ整理!D116-5,0) -> 818.79057 | E116: =E117+IF(データ整理!E116>5,データ整理!E116-5,0) -> 812.44295 | F116: =F117+IF(データ整理!F116>5,データ整理!F116-5,0) -> 810.60134 | G116: =G117+IF(データ整理!G116>5,データ整理!G116-5,0) -> 913.91585 | H116: =H117+IF(データ整理!H116>5,データ整理!H116-5,0) -> 965.97707 | I116: =I117+IF(データ整理!I116>5,データ整理!I116-5,0) -> 977.1458 | J116: =J117+IF(データ整理!J116>5,データ整理!J116-5,0) -> 886.80821 | K116: =K117+IF(データ整理!K116>5,データ整理!K116-5,0) -> 874.69077 | L116: =L117+IF(データ整理!L116>5,データ整理!L116-5,0) -> 847.26025 | M116: =M117+IF(データ整理!M116>5,データ整理!M116-5,0) -> 1028.79554 | N116: =N117+IF(データ整理!N116>5,データ整理!N116-5,0) -> 948.26635 | O116: =O117+IF(データ整理!O116>5,データ整理!O116-5,0) -> 1083.38859 | P116: =P117+IF(データ整理!P116>5,データ整理!P116-5,0) -> 948.50642 | Q116: =Q117+IF(データ整理!Q116>5,データ整理!Q116-5,0) -> 834.71207 | R116: =R117+IF(データ整理!R116>5,データ整理!R116-5,0) -> 869.28433 | S116: =S117+IF(データ整理!S116>5,データ整理!S116-5,0) -> 956.9107 | T116: =T117+IF(データ整理!T116>5,データ整理!T116-5,0) -> 797.16101 | U116: =U117+IF(データ整理!U116>5,データ整理!U116-5,0) -> 871.51294 | Y116: 2018-07-24 | Z116: =Z117+IF(データ整理!Z116>5,データ整理!Z116-5,0) -> 871.51294 | AA116: =AA117+IF(データ整理!AA116>5,データ整理!AA116-5,0) -> 877.41109
A117: 2014-07-25 | B117: =B118+IF(データ整理!B117>5,データ整理!B117-5,0) -> 1002.48926 | C117: =C118+IF(データ整理!C117>5,データ整理!C117-5,0) -> 995.34128 | D117: =D118+IF(データ整理!D117>5,データ整理!D117-5,0) -> 804.08687 | E117: =E118+IF(データ整理!E117>5,データ整理!E117-5,0) -> 801.51755 | F117: =F118+IF(データ整理!F117>5,データ整理!F117-5,0) -> 800.02614 | G117: =G118+IF(データ整理!G117>5,データ整理!G117-5,0) -> 893.83625 | H117: =H118+IF(データ整理!H117>5,データ整理!H117-5,0) -> 952.01027 | I117: =I118+IF(データ整理!I117>5,データ整理!I117-5,0) -> 963.9161 | J117: =J118+IF(データ整理!J117>5,データ整理!J117-5,0) -> 874.19791 | K117: =K118+IF(データ整理!K117>5,データ整理!K117-5,0) -> 859.98437 | L117: =L118+IF(データ整理!L117>5,データ整理!L117-5,0) -> 832.20855 | M117: =M118+IF(データ整理!M117>5,データ整理!M117-5,0) -> 1015.01964 | N117: =N118+IF(データ整理!N117>5,データ整理!N117-5,0) -> 933.80425 | O117: =O118+IF(データ整理!O117>5,データ整理!O117-5,0) -> 1069.06839 | P117: =P118+IF(データ整理!P117>5,データ整理!P117-5,0) -> 931.19272 | Q117: =Q118+IF(データ整理!Q117>5,データ整理!Q117-5,0) -> 818.29297 | R117: =R118+IF(データ整理!R117>5,データ整理!R117-5,0) -> 853.07443 | S117: =S118+IF(データ整理!S117>5,データ整理!S117-5,0) -> 941.7086 | T117: =T118+IF(データ整理!T117>5,データ整理!T117-5,0) -> 784.22651 | U117: =U118+IF(データ整理!U117>5,データ整理!U117-5,0) -> 858.27044 | Y117: 2018-07-25 | Z117: =Z118+IF(データ整理!Z117>5,データ整理!Z117-5,0) -> 858.27044 | AA117: =AA118+IF(データ整理!AA117>5,データ整理!AA117-5,0) -> 863.60239
A118: 2014-07-26 | B118: =B119+IF(データ整理!B118>5,データ整理!B118-5,0) -> 987.22356 | C118: =C119+IF(データ整理!C118>5,データ整理!C118-5,0) -> 979.90228 | D118: =D119+IF(データ整理!D118>5,データ整理!D118-5,0) -> 790.59627 | E118: =E119+IF(データ整理!E118>5,データ整理!E118-5,0) -> 787.75515 | F118: =F119+IF(データ整理!F118>5,データ整理!F118-5,0) -> 790.05704 | G118: =G119+IF(データ整理!G118>5,データ整理!G118-5,0) -> 877.44045 | H118: =H119+IF(データ整理!H118>5,データ整理!H118-5,0) -> 937.85097 | I118: =I119+IF(データ整理!I118>5,データ整理!I118-5,0) -> 951.5374 | J118: =J119+IF(データ整理!J118>5,データ整理!J118-5,0) -> 861.15091 | K118: =K119+IF(データ整理!K118>5,データ整理!K118-5,0) -> 847.10317 | L118: =L119+IF(データ整理!L118>5,データ整理!L118-5,0) -> 818.06005 | M118: =M119+IF(データ整理!M118>5,データ整理!M118-5,0) -> 1001.37314 | N118: =N119+IF(データ整理!N118>5,データ整理!N118-5,0) -> 919.72185 | O118: =O119+IF(データ整理!O118>5,データ整理!O118-5,0) -> 1054.01999 | P118: =P119+IF(データ整理!P118>5,データ整理!P118-5,0) -> 917.53172 | Q118: =Q119+IF(データ整理!Q118>5,データ整理!Q118-5,0) -> 803.11307 | R118: =R119+IF(データ整理!R118>5,データ整理!R118-5,0) -> 836.81383 | S118: =S119+IF(データ整理!S118>5,データ整理!S118-5,0) -> 927.6525 | T118: =T119+IF(データ整理!T118>5,データ整理!T118-5,0) -> 771.57361 | U118: =U119+IF(データ整理!U118>5,データ整理!U118-5,0) -> 842.75894 | Y118: 2018-07-26 | Z118: =Z119+IF(データ整理!Z118>5,データ整理!Z118-5,0) -> 842.75894 | AA118: =AA119+IF(データ整理!AA118>5,データ整理!AA118-5,0) -> 849.66009
A119: 2014-07-27 | B119: =B120+IF(データ整理!B119>5,データ整理!B119-5,0) -> 971.86016 | C119: =C120+IF(データ整理!C119>5,データ整理!C119-5,0) -> 964.20838 | D119: =D120+IF(データ整理!D119>5,データ整理!D119-5,0) -> 777.35627 | E119: =E120+IF(データ整理!E119>5,データ整理!E119-5,0) -> 772.88455 | F119: =F120+IF(データ整理!F119>5,データ整理!F119-5,0) -> 779.66144 | G119: =G120+IF(データ整理!G119>5,データ整理!G119-5,0) -> 860.12795 | H119: =H120+IF(データ整理!H119>5,データ整理!H119-5,0) -> 921.97327 | I119: =I120+IF(データ整理!I119>5,データ整理!I119-5,0) -> 938.6595 | J119: =J120+IF(データ整理!J119>5,データ整理!J119-5,0) -> 847.82931 | K119: =K120+IF(データ整理!K119>5,データ整理!K119-5,0) -> 835.92587 | L119: =L120+IF(データ整理!L119>5,データ整理!L119-5,0) -> 803.50155 | M119: =M120+IF(データ整理!M119>5,データ整理!M119-5,0) -> 988.13824 | N119: =N120+IF(データ整理!N119>5,データ整理!N119-5,0) -> 905.37175 | O119: =O120+IF(データ整理!O119>5,データ整理!O119-5,0) -> 1036.82039 | P119: =P120+IF(データ整理!P119>5,データ整理!P119-5,0) -> 903.29542 | Q119: =Q120+IF(データ整理!Q119>5,データ整理!Q119-5,0) -> 790.85187 | R119: =R120+IF(データ整理!R119>5,データ整理!R119-5,0) -> 820.37943 | S119: =S120+IF(データ整理!S119>5,データ整理!S119-5,0) -> 912.7957 | T119: =T120+IF(データ整理!T119>5,データ整理!T119-5,0) -> 759.48361 | U119: =U120+IF(データ整理!U119>5,データ整理!U119-5,0) -> 824.79344 | Y119: 2018-07-27 | Z119: =Z120+IF(データ整理!Z119>5,データ整理!Z119-5,0) -> 824.79344 | AA119: =AA120+IF(データ整理!AA119>5,データ整理!AA119-5,0) -> 835.59019
A120: 2014-07-28 | B120: =B121+IF(データ整理!B120>5,データ整理!B120-5,0) -> 954.71696 | C120: =C121+IF(データ整理!C120>5,データ整理!C120-5,0) -> 948.61338 | D120: =D121+IF(データ整理!D120>5,データ整理!D120-5,0) -> 764.26357 | E120: =E121+IF(データ整理!E120>5,データ整理!E120-5,0) -> 761.44485 | F120: =F121+IF(データ整理!F120>5,データ整理!F120-5,0) -> 771.39864 | G120: =G121+IF(データ整理!G120>5,データ整理!G120-5,0) -> 845.33935 | H120: =H121+IF(データ整理!H120>5,データ整理!H120-5,0) -> 910.00237 | I120: =I121+IF(データ整理!I120>5,データ整理!I120-5,0) -> 924.7159 | J120: =J121+IF(データ整理!J120>5,データ整理!J120-5,0) -> 834.16761 | K120: =K121+IF(データ整理!K120>5,データ整理!K120-5,0) -> 823.75397 | L120: =L121+IF(データ整理!L120>5,データ整理!L120-5,0) -> 790.38195 | M120: =M121+IF(データ整理!M120>5,データ整理!M120-5,0) -> 972.41424 | N120: =N121+IF(データ整理!N120>5,データ整理!N120-5,0) -> 890.75935 | O120: =O121+IF(データ整理!O120>5,データ整理!O120-5,0) -> 1018.95519 | P120: =P121+IF(データ整理!P120>5,データ整理!P120-5,0) -> 888.67602 | Q120: =Q121+IF(データ整理!Q120>5,データ整理!Q120-5,0) -> 780.46967 | R120: =R121+IF(データ整理!R120>5,データ整理!R120-5,0) -> 803.42033 | S120: =S121+IF(データ整理!S120>5,データ整理!S120-5,0) -> 899.8941 | T120: =T121+IF(データ整理!T120>5,データ整理!T120-5,0) -> 747.63591 | U120: =U121+IF(データ整理!U120>5,データ整理!U120-5,0) -> 806.85294 | Y120: 2018-07-28 | Z120: =Z121+IF(データ整理!Z120>5,データ整理!Z120-5,0) -> 806.85294 | AA120: =AA121+IF(データ整理!AA120>5,データ整理!AA120-5,0) -> 821.40079
A121: 2014-07-29 | B121: =B122+IF(データ整理!B121>5,データ整理!B121-5,0) -> 936.87546 | C121: =C122+IF(データ整理!C121>5,データ整理!C121-5,0) -> 932.58568 | D121: =D122+IF(データ整理!D121>5,データ整理!D121-5,0) -> 751.59967 | E121: =E122+IF(データ整理!E121>5,データ整理!E121-5,0) -> 749.17225 | F121: =F122+IF(データ整理!F121>5,データ整理!F121-5,0) -> 761.56464 | G121: =G122+IF(データ整理!G121>5,データ整理!G121-5,0) -> 829.87945 | H121: =H122+IF(データ整理!H121>5,データ整理!H121-5,0) -> 897.76267 | I121: =I122+IF(データ整理!I121>5,データ整理!I121-5,0) -> 910.5405 | J121: =J122+IF(データ整理!J121>5,データ整理!J121-5,0) -> 822.79151 | K121: =K122+IF(データ整理!K121>5,データ整理!K121-5,0) -> 809.30357 | L121: =L122+IF(データ整理!L121>5,データ整理!L121-5,0) -> 776.75455 | M121: =M122+IF(データ整理!M121>5,データ整理!M121-5,0) -> 955.16294 | N121: =N122+IF(データ整理!N121>5,データ整理!N121-5,0) -> 874.28495 | O121: =O122+IF(データ整理!O121>5,データ整理!O121-5,0) -> 1001.39729 | P121: =P122+IF(データ整理!P121>5,データ整理!P121-5,0) -> 872.87162 | Q121: =Q122+IF(データ整理!Q121>5,データ整理!Q121-5,0) -> 768.24107 | R121: =R122+IF(データ整理!R121>5,データ整理!R121-5,0) -> 785.62373 | S121: =S122+IF(データ整理!S121>5,データ整理!S121-5,0) -> 884.9466 | T121: =T122+IF(データ整理!T121>5,データ整理!T121-5,0) -> 735.63971 | U121: =U122+IF(データ整理!U121>5,データ整理!U121-5,0) -> 788.37514 | Y121: 2018-07-29 | Z121: =Z122+IF(データ整理!Z121>5,データ整理!Z121-5,0) -> 788.37514 | AA121: =AA122+IF(データ整理!AA121>5,データ整理!AA121-5,0) -> 807.10269
A122: 2014-07-30 | B122: =B123+IF(データ整理!B122>5,データ整理!B122-5,0) -> 925.75566 | C122: =C123+IF(データ整理!C122>5,データ整理!C122-5,0) -> 917.23828 | D122: =D123+IF(データ整理!D122>5,データ整理!D122-5,0) -> 738.86317 | E122: =E123+IF(データ整理!E122>5,データ整理!E122-5,0) -> 734.48785 | F122: =F123+IF(データ整理!F122>5,データ整理!F122-5,0) -> 750.99614 | G122: =G123+IF(データ整理!G122>5,データ整理!G122-5,0) -> 812.00855 | H122: =H123+IF(データ整理!H122>5,データ整理!H122-5,0) -> 885.77747 | I122: =I123+IF(データ整理!I122>5,データ整理!I122-5,0) -> 895.8954 | J122: =J123+IF(データ整理!J122>5,データ整理!J122-5,0) -> 813.84971 | K122: =K123+IF(データ整理!K122>5,データ整理!K122-5,0) -> 794.70517 | L122: =L123+IF(データ整理!L122>5,データ整理!L122-5,0) -> 762.53785 | M122: =M123+IF(データ整理!M122>5,データ整理!M122-5,0) -> 940.12704 | N122: =N123+IF(データ整理!N122>5,データ整理!N122-5,0) -> 857.43055 | O122: =O123+IF(データ整理!O122>5,データ整理!O122-5,0) -> 985.42959 | P122: =P123+IF(データ整理!P122>5,データ整理!P122-5,0) -> 856.46262 | Q122: =Q123+IF(データ整理!Q122>5,データ整理!Q122-5,0) -> 754.69667 | R122: =R123+IF(データ整理!R122>5,データ整理!R122-5,0) -> 768.35923 | S122: =S123+IF(データ整理!S122>5,データ整理!S122-5,0) -> 868.144 | T122: =T123+IF(データ整理!T122>5,データ整理!T122-5,0) -> 723.24111 | U122: =U123+IF(データ整理!U122>5,データ整理!U122-5,0) -> 767.89824 | Y122: 2018-07-30 | Z122: =Z123+IF(データ整理!Z122>5,データ整理!Z122-5,0) -> 767.89824 | AA122: =AA123+IF(データ整理!AA122>5,データ整理!AA122-5,0) -> 792.70919
A123: 2014-07-31 | B123: =B124+IF(データ整理!B123>5,データ整理!B123-5,0) -> 912.33526 | C123: =C124+IF(データ整理!C123>5,データ整理!C123-5,0) -> 899.14048 | D123: =D124+IF(データ整理!D123>5,データ整理!D123-5,0) -> 727.54567 | E123: =E124+IF(データ整理!E123>5,データ整理!E123-5,0) -> 718.65555 | F123: =F124+IF(データ整理!F123>5,データ整理!F123-5,0) -> 742.01334 | G123: =G124+IF(データ整理!G123>5,データ整理!G123-5,0) -> 792.85125 | H123: =H124+IF(データ整理!H123>5,データ整理!H123-5,0) -> 868.97587 | I123: =I124+IF(データ整理!I123>5,データ整理!I123-5,0) -> 881.2667 | J123: =J124+IF(データ整理!J123>5,データ整理!J123-5,0) -> 802.81251 | K123: =K124+IF(データ整理!K123>5,データ整理!K123-5,0) -> 779.58457 | L123: =L124+IF(データ整理!L123>5,データ整理!L123-5,0) -> 748.82865 | M123: =M124+IF(データ整理!M123>5,データ整理!M123-5,0) -> 924.49494 | N123: =N124+IF(データ整理!N123>5,データ整理!N123-5,0) -> 844.64965 | O123: =O124+IF(データ整理!O123>5,データ整理!O123-5,0) -> 968.24429 | P123: =P124+IF(データ整理!P123>5,データ整理!P123-5,0) -> 840.23922 | Q123: =Q124+IF(データ整理!Q123>5,データ整理!Q123-5,0) -> 740.29907 | R123: =R124+IF(データ整理!R123>5,データ整理!R123-5,0) -> 752.36303 | S123: =S124+IF(データ整理!S123>5,データ整理!S123-5,0) -> 850.6754 | T123: =T124+IF(データ整理!T123>5,データ整理!T123-5,0) -> 709.38801 | U123: =U124+IF(データ整理!U123>5,データ整理!U123-5,0) -> 748.35354 | Y123: 2018-07-31 | Z123: =Z124+IF(データ整理!Z123>5,データ整理!Z123-5,0) -> 748.35354 | AA123: =AA124+IF(データ整理!AA123>5,データ整理!AA123-5,0) -> 778.23249
A124: 2014-08-01 | B124: =B125+IF(データ整理!B124>5,データ整理!B124-5,0) -> 894.90256 | C124: =C125+IF(データ整理!C124>5,データ整理!C124-5,0) -> 879.35518 | D124: =D125+IF(データ整理!D124>5,データ整理!D124-5,0) -> 714.95217 | E124: =E125+IF(データ整理!E124>5,データ整理!E124-5,0) -> 703.07775 | F124: =F125+IF(データ整理!F124>5,データ整理!F124-5,0) -> 731.92654 | G124: =G125+IF(データ整理!G124>5,データ整理!G124-5,0) -> 773.00805 | H124: =H125+IF(データ整理!H124>5,データ整理!H124-5,0) -> 852.44547 | I124: =I125+IF(データ整理!I124>5,データ整理!I124-5,0) -> 867.2785 | J124: =J125+IF(データ整理!J124>5,データ整理!J124-5,0) -> 790.23451 | K124: =K125+IF(データ整理!K124>5,データ整理!K124-5,0) -> 765.55867 | L124: =L125+IF(データ整理!L124>5,データ整理!L124-5,0) -> 734.69035 | M124: =M125+IF(データ整理!M124>5,データ整理!M124-5,0) -> 907.67574 | N124: =N125+IF(データ整理!N124>5,データ整理!N124-5,0) -> 831.38455 | O124: =O125+IF(データ整理!O124>5,データ整理!O124-5,0) -> 952.13879 | P124: =P125+IF(データ整理!P124>5,データ整理!P124-5,0) -> 824.11562 | Q124: =Q125+IF(データ整理!Q124>5,データ整理!Q124-5,0) -> 726.21117 | R124: =R125+IF(データ整理!R124>5,データ整理!R124-5,0) -> 736.55543 | S124: =S125+IF(データ整理!S124>5,データ整理!S124-5,0) -> 832.4894 | T124: =T125+IF(データ整理!T124>5,データ整理!T124-5,0) -> 695.22641 | U124: =U125+IF(データ整理!U124>5,データ整理!U124-5,0) -> 728.55994 | Y124: 2018-08-01 | Z124: =Z125+IF(データ整理!Z124>5,データ整理!Z124-5,0) -> 728.55994 | AA124: =AA125+IF(データ整理!AA124>5,データ整理!AA124-5,0) -> 763.68629
A125: 2014-08-02 | B125: =B126+IF(データ整理!B125>5,データ整理!B125-5,0) -> 876.98946 | C125: =C126+IF(データ整理!C125>5,データ整理!C125-5,0) -> 859.07708 | D125: =D126+IF(データ整理!D125>5,データ整理!D125-5,0) -> 703.47037 | E125: =E126+IF(データ整理!E125>5,データ整理!E125-5,0) -> 688.04385 | F125: =F126+IF(データ整理!F125>5,データ整理!F125-5,0) -> 719.99314 | G125: =G126+IF(データ整理!G125>5,データ整理!G125-5,0) -> 754.34805 | H125: =H126+IF(データ整理!H125>5,データ整理!H125-5,0) -> 834.30397 | I125: =I126+IF(データ整理!I125>5,データ整理!I125-5,0) -> 852.0676 | J125: =J126+IF(データ整理!J125>5,データ整理!J125-5,0) -> 776.76261 | K125: =K126+IF(データ整理!K125>5,データ整理!K125-5,0) -> 749.23557 | L125: =L126+IF(データ整理!L125>5,データ整理!L125-5,0) -> 719.93285 | M125: =M126+IF(データ整理!M125>5,データ整理!M125-5,0) -> 892.45644 | N125: =N126+IF(データ整理!N125>5,データ整理!N125-5,0) -> 817.58615 | O125: =O126+IF(データ整理!O125>5,データ整理!O125-5,0) -> 938.57149 | P125: =P126+IF(データ整理!P125>5,データ整理!P125-5,0) -> 811.60742 | Q125: =Q126+IF(データ整理!Q125>5,データ整理!Q125-5,0) -> 709.33647 | R125: =R126+IF(データ整理!R125>5,データ整理!R125-5,0) -> 721.31453 | S125: =S126+IF(データ整理!S125>5,データ整理!S125-5,0) -> 815.7531 | T125: =T126+IF(データ整理!T125>5,データ整理!T125-5,0) -> 680.78741 | U125: =U126+IF(データ整理!U125>5,データ整理!U125-5,0) -> 712.56204 | Y125: 2018-08-02 | Z125: =Z126+IF(データ整理!Z125>5,データ整理!Z125-5,0) -> 712.56204 | AA125: =AA126+IF(データ整理!AA125>5,データ整理!AA125-5,0) -> 749.08399
A126: 2014-08-03 | B126: =B127+IF(データ整理!B126>5,データ整理!B126-5,0) -> 861.30786 | C126: =C127+IF(データ整理!C126>5,データ整理!C126-5,0) -> 841.93768 | D126: =D127+IF(データ整理!D126>5,データ整理!D126-5,0) -> 691.19327 | E126: =E127+IF(データ整理!E126>5,データ整理!E126-5,0) -> 676.15345 | F126: =F127+IF(データ整理!F126>5,データ整理!F126-5,0) -> 706.79694 | G126: =G127+IF(データ整理!G126>5,データ整理!G126-5,0) -> 736.80955 | H126: =H127+IF(データ整理!H126>5,データ整理!H126-5,0) -> 816.33807 | I126: =I127+IF(データ整理!I126>5,データ整理!I126-5,0) -> 836.9691 | J126: =J127+IF(データ整理!J126>5,データ整理!J126-5,0) -> 761.53671 | K126: =K127+IF(データ整理!K126>5,データ整理!K126-5,0) -> 734.38987 | L126: =L127+IF(データ整理!L126>5,データ整理!L126-5,0) -> 707.66085 | M126: =M127+IF(データ整理!M126>5,データ整理!M126-5,0) -> 877.73044 | N126: =N127+IF(データ整理!N126>5,データ整理!N126-5,0) -> 803.78225 | O126: =O127+IF(データ整理!O126>5,データ整理!O126-5,0) -> 927.06949 | P126: =P127+IF(データ整理!P126>5,データ整理!P126-5,0) -> 800.29392 | Q126: =Q127+IF(データ整理!Q126>5,データ整理!Q126-5,0) -> 693.50307 | R126: =R127+IF(データ整理!R126>5,データ整理!R126-5,0) -> 707.15063 | S126: =S127+IF(データ整理!S126>5,データ整理!S126-5,0) -> 798.7358 | T126: =T127+IF(データ整理!T126>5,データ整理!T126-5,0) -> 666.82261 | U126: =U127+IF(データ整理!U126>5,データ整理!U126-5,0) -> 698.21904 | Y126: 2018-08-03 | Z126: =Z127+IF(データ整理!Z126>5,データ整理!Z126-5,0) -> 698.21904 | AA126: =AA127+IF(データ整理!AA126>5,データ整理!AA126-5,0) -> 734.43799
A127: 2014-08-04 | B127: =B128+IF(データ整理!B127>5,データ整理!B127-5,0) -> 842.61376 | C127: =C128+IF(データ整理!C127>5,データ整理!C127-5,0) -> 826.37588 | D127: =D128+IF(データ整理!D127>5,データ整理!D127-5,0) -> 680.75397 | E127: =E128+IF(データ整理!E127>5,データ整理!E127-5,0) -> 665.45965 | F127: =F128+IF(データ整理!F127>5,データ整理!F127-5,0) -> 693.28194 | G127: =G128+IF(データ整理!G127>5,データ整理!G127-5,0) -> 719.05475 | H127: =H128+IF(データ整理!H127>5,データ整理!H127-5,0) -> 798.84207 | I127: =I128+IF(データ整理!I127>5,データ整理!I127-5,0) -> 819.8743 | J127: =J128+IF(データ整理!J127>5,データ整理!J127-5,0) -> 746.97591 | K127: =K128+IF(データ整理!K127>5,データ整理!K127-5,0) -> 719.45757 | L127: =L128+IF(データ整理!L127>5,データ整理!L127-5,0) -> 694.94295 | M127: =M128+IF(データ整理!M127>5,データ整理!M127-5,0) -> 863.10274 | N127: =N128+IF(データ整理!N127>5,データ整理!N127-5,0) -> 789.44665 | O127: =O128+IF(データ整理!O127>5,データ整理!O127-5,0) -> 913.99529 | P127: =P128+IF(データ整理!P127>5,データ整理!P127-5,0) -> 788.36332 | Q127: =Q128+IF(データ整理!Q127>5,データ整理!Q127-5,0) -> 676.96627 | R127: =R128+IF(データ整理!R127>5,データ整理!R127-5,0) -> 692.07403 | S127: =S128+IF(データ整理!S127>5,データ整理!S127-5,0) -> 781.2562 | T127: =T128+IF(データ整理!T127>5,データ整理!T127-5,0) -> 652.68561 | U127: =U128+IF(データ整理!U127>5,データ整理!U127-5,0) -> 685.23974 | Y127: 2018-08-04 | Z127: =Z128+IF(データ整理!Z127>5,データ整理!Z127-5,0) -> 685.23974 | AA127: =AA128+IF(データ整理!AA127>5,データ整理!AA127-5,0) -> 719.76109
A128: 2014-08-05 | B128: =B129+IF(データ整理!B128>5,データ整理!B128-5,0) -> 822.99576 | C128: =C129+IF(データ整理!C128>5,データ整理!C128-5,0) -> 809.77298 | D128: =D129+IF(データ整理!D128>5,データ整理!D128-5,0) -> 669.91437 | E128: =E129+IF(データ整理!E128>5,データ整理!E128-5,0) -> 650.48705 | F128: =F129+IF(データ整理!F128>5,データ整理!F128-5,0) -> 678.26344 | G128: =G129+IF(データ整理!G128>5,データ整理!G128-5,0) -> 701.36455 | H128: =H129+IF(データ整理!H128>5,データ整理!H128-5,0) -> 780.12697 | I128: =I129+IF(データ整理!I128>5,データ整理!I128-5,0) -> 804.906 | J128: =J129+IF(データ整理!J128>5,データ整理!J128-5,0) -> 732.42671 | K128: =K129+IF(データ整理!K128>5,データ整理!K128-5,0) -> 705.68497 | L128: =L129+IF(データ整理!L128>5,データ整理!L128-5,0) -> 681.02955 | M128: =M129+IF(データ整理!M128>5,データ整理!M128-5,0) -> 848.08204 | N128: =N129+IF(データ整理!N128>5,データ整理!N128-5,0) -> 773.49835 | O128: =O129+IF(データ整理!O128>5,データ整理!O128-5,0) -> 900.00979 | P128: =P129+IF(データ整理!P128>5,データ整理!P128-5,0) -> 774.70512 | Q128: =Q129+IF(データ整理!Q128>5,データ整理!Q128-5,0) -> 658.64117 | R128: =R129+IF(データ整理!R128>5,データ整理!R128-5,0) -> 673.71153 | S128: =S129+IF(データ整理!S128>5,データ整理!S128-5,0) -> 765.5275 | T128: =T129+IF(データ整理!T128>5,データ整理!T128-5,0) -> 638.31151 | U128: =U129+IF(データ整理!U128>5,データ整理!U128-5,0) -> 673.80564 | Y128: 2018-08-05 | Z128: =Z129+IF(データ整理!Z128>5,データ整理!Z128-5,0) -> 673.80564 | AA128: =AA129+IF(データ整理!AA128>5,データ整理!AA128-5,0) -> 705.06859
A129: 2014-08-06 | B129: =B130+IF(データ整理!B129>5,データ整理!B129-5,0) -> 804.13066 | C129: =C130+IF(データ整理!C129>5,データ整理!C129-5,0) -> 794.40418 | D129: =D130+IF(データ整理!D129>5,データ整理!D129-5,0) -> 659.16927 | E129: =E130+IF(データ整理!E129>5,データ整理!E129-5,0) -> 634.70425 | F129: =F130+IF(データ整理!F129>5,データ整理!F129-5,0) -> 662.82504 | G129: =G130+IF(データ整理!G129>5,データ整理!G129-5,0) -> 683.14575 | H129: =H130+IF(データ整理!H129>5,データ整理!H129-5,0) -> 762.51567 | I129: =I130+IF(データ整理!I129>5,データ整理!I129-5,0) -> 789.0914 | J129: =J130+IF(データ整理!J129>5,データ整理!J129-5,0) -> 718.31841 | K129: =K130+IF(データ整理!K129>5,データ整理!K129-5,0) -> 691.65617 | L129: =L130+IF(データ整理!L129>5,データ整理!L129-5,0) -> 666.02165 | M129: =M130+IF(データ整理!M129>5,データ整理!M129-5,0) -> 831.24934 | N129: =N130+IF(データ整理!N129>5,データ整理!N129-5,0) -> 756.47295 | O129: =O130+IF(データ整理!O129>5,データ整理!O129-5,0) -> 886.57509 | P129: =P130+IF(データ整理!P129>5,データ整理!P129-5,0) -> 759.27892 | Q129: =Q130+IF(データ整理!Q129>5,データ整理!Q129-5,0) -> 642.02857 | R129: =R130+IF(データ整理!R129>5,データ整理!R129-5,0) -> 656.85023 | S129: =S130+IF(データ整理!S129>5,データ整理!S129-5,0) -> 751.511 | T129: =T130+IF(データ整理!T129>5,データ整理!T129-5,0) -> 623.80321 | U129: =U130+IF(データ整理!U129>5,データ整理!U129-5,0) -> 662.66684 | Y129: 2018-08-06 | Z129: =Z130+IF(データ整理!Z129>5,データ整理!Z129-5,0) -> 662.66684 | AA129: =AA130+IF(データ整理!AA129>5,データ整理!AA129-5,0) -> 690.37579
A130: 2014-08-07 | B130: =B131+IF(データ整理!B130>5,データ整理!B130-5,0) -> 788.08356 | C130: =C131+IF(データ整理!C130>5,データ整理!C130-5,0) -> 777.39578 | D130: =D131+IF(データ整理!D130>5,データ整理!D130-5,0) -> 647.65797 | E130: =E131+IF(データ整理!E130>5,データ整理!E130-5,0) -> 620.92925 | F130: =F131+IF(データ整理!F130>5,データ整理!F130-5,0) -> 648.22314 | G130: =G131+IF(データ整理!G130>5,データ整理!G130-5,0) -> 664.39215 | H130: =H131+IF(データ整理!H130>5,データ整理!H130-5,0) -> 745.89257 | I130: =I131+IF(データ整理!I130>5,データ整理!I130-5,0) -> 771.7283 | J130: =J131+IF(データ整理!J130>5,データ整理!J130-5,0) -> 703.83941 | K130: =K131+IF(データ整理!K130>5,データ整理!K130-5,0) -> 677.02067 | L130: =L131+IF(データ整理!L130>5,データ整理!L130-5,0) -> 651.00215 | M130: =M131+IF(データ整理!M130>5,データ整理!M130-5,0) -> 809.85904 | N130: =N131+IF(データ整理!N130>5,データ整理!N130-5,0) -> 738.25185 | O130: =O131+IF(データ整理!O130>5,データ整理!O130-5,0) -> 874.68519 | P130: =P131+IF(データ整理!P130>5,データ整理!P130-5,0) -> 741.44592 | Q130: =Q131+IF(データ整理!Q130>5,データ整理!Q130-5,0) -> 626.37247 | R130: =R131+IF(データ整理!R130>5,データ整理!R130-5,0) -> 641.01463 | S130: =S131+IF(データ整理!S130>5,データ整理!S130-5,0) -> 738.5072 | T130: =T131+IF(データ整理!T130>5,データ整理!T130-5,0) -> 608.08121 | U130: =U131+IF(データ整理!U130>5,データ整理!U130-5,0) -> 651.18524 | Y130: 2018-08-07 | Z130: =Z131+IF(データ整理!Z130>5,データ整理!Z130-5,0) -> 651.18524 | AA130: =AA131+IF(データ整理!AA130>5,データ整理!AA130-5,0) -> 675.69689
A131: 2014-08-08 | B131: =B132+IF(データ整理!B131>5,データ整理!B131-5,0) -> 769.66886 | C131: =C132+IF(データ整理!C131>5,データ整理!C131-5,0) -> 760.79138 | D131: =D132+IF(データ整理!D131>5,データ整理!D131-5,0) -> 634.99087 | E131: =E132+IF(データ整理!E131>5,データ整理!E131-5,0) -> 608.34035 | F131: =F132+IF(データ整理!F131>5,データ整理!F131-5,0) -> 632.35084 | G131: =G132+IF(データ整理!G131>5,データ整理!G131-5,0) -> 646.66405 | H131: =H132+IF(データ整理!H131>5,データ整理!H131-5,0) -> 730.83347 | I131: =I132+IF(データ整理!I131>5,データ整理!I131-5,0) -> 754.5257 | J131: =J132+IF(データ整理!J131>5,データ整理!J131-5,0) -> 686.98171 | K131: =K132+IF(データ整理!K131>5,データ整理!K131-5,0) -> 662.03437 | L131: =L132+IF(データ整理!L131>5,データ整理!L131-5,0) -> 635.72585 | M131: =M132+IF(データ整理!M131>5,データ整理!M131-5,0) -> 791.83554 | N131: =N132+IF(データ整理!N131>5,データ整理!N131-5,0) -> 720.26445 | O131: =O132+IF(データ整理!O131>5,データ整理!O131-5,0) -> 864.81319 | P131: =P132+IF(データ整理!P131>5,データ整理!P131-5,0) -> 723.36652 | Q131: =Q132+IF(データ整理!Q131>5,データ整理!Q131-5,0) -> 611.87387 | R131: =R132+IF(データ整理!R131>5,データ整理!R131-5,0) -> 626.27113 | S131: =S132+IF(データ整理!S131>5,データ整理!S131-5,0) -> 722.4887 | T131: =T132+IF(データ整理!T131>5,データ整理!T131-5,0) -> 593.54741 | U131: =U132+IF(データ整理!U131>5,データ整理!U131-5,0) -> 639.27714 | Y131: 2018-08-08 | Z131: =Z132+IF(データ整理!Z131>5,データ整理!Z131-5,0) -> 639.27714 | AA131: =AA132+IF(データ整理!AA131>5,データ整理!AA131-5,0) -> 661.04449
A132: 2014-08-09 | B132: =B133+IF(データ整理!B132>5,データ整理!B132-5,0) -> 749.84726 | C132: =C133+IF(データ整理!C132>5,データ整理!C132-5,0) -> 743.79898 | D132: =D133+IF(データ整理!D132>5,データ整理!D132-5,0) -> 622.47927 | E132: =E133+IF(データ整理!E132>5,データ整理!E132-5,0) -> 600.28345 | F132: =F133+IF(データ整理!F132>5,データ整理!F132-5,0) -> 617.44444 | G132: =G133+IF(データ整理!G132>5,データ整理!G132-5,0) -> 627.67175 | H132: =H133+IF(データ整理!H132>5,データ整理!H132-5,0) -> 715.84607 | I132: =I133+IF(データ整理!I132>5,データ整理!I132-5,0) -> 735.9936 | J132: =J133+IF(データ整理!J132>5,データ整理!J132-5,0) -> 669.93471 | K132: =K133+IF(データ整理!K132>5,データ整理!K132-5,0) -> 648.74877 | L132: =L133+IF(データ整理!L132>5,データ整理!L132-5,0) -> 620.31465 | M132: =M133+IF(データ整理!M132>5,データ整理!M132-5,0) -> 774.12044 | N132: =N133+IF(データ整理!N132>5,データ整理!N132-5,0) -> 702.84665 | O132: =O133+IF(データ整理!O132>5,データ整理!O132-5,0) -> 853.72569 | P132: =P133+IF(データ整理!P132>5,データ整理!P132-5,0) -> 705.96762 | Q132: =Q133+IF(データ整理!Q132>5,データ整理!Q132-5,0) -> 597.56897 | R132: =R133+IF(データ整理!R132>5,データ整理!R132-5,0) -> 610.84483 | S132: =S133+IF(データ整理!S132>5,データ整理!S132-5,0) -> 704.5888 | T132: =T133+IF(データ整理!T132>5,データ整理!T132-5,0) -> 580.38521 | U132: =U133+IF(データ整理!U132>5,データ整理!U132-5,0) -> 625.91764 | Y132: =Y131+1 -> 2018-08-09 | Z132: =Z133+IF(データ整理!Z132>5,データ整理!Z132-5,0) -> 625.91764 | AA132: =AA133+IF(データ整理!AA132>5,データ整理!AA132-5,0) -> 646.43059
A133: 2014-08-10 | B133: =B134+IF(データ整理!B133>5,データ整理!B133-5,0) -> 730.05656 | C133: =C134+IF(データ整理!C133>5,データ整理!C133-5,0) -> 727.98128 | D133: =D134+IF(データ整理!D133>5,データ整理!D133-5,0) -> 609.79157 | E133: =E134+IF(データ整理!E133>5,データ整理!E133-5,0) -> 591.32105 | F133: =F134+IF(データ整理!F133>5,データ整理!F133-5,0) -> 603.10754 | G133: =G134+IF(データ整理!G133>5,データ整理!G133-5,0) -> 610.18805 | H133: =H134+IF(データ整理!H133>5,データ整理!H133-5,0) -> 701.05527 | I133: =I134+IF(データ整理!I133>5,データ整理!I133-5,0) -> 717.3046 | J133: =J134+IF(データ整理!J133>5,データ整理!J133-5,0) -> 652.90121 | K133: =K134+IF(データ整理!K133>5,データ整理!K133-5,0) -> 638.07457 | L133: =L134+IF(データ整理!L133>5,データ整理!L133-5,0) -> 604.83115 | M133: =M134+IF(データ整理!M133>5,データ整理!M133-5,0) -> 755.91464 | N133: =N134+IF(データ整理!N133>5,データ整理!N133-5,0) -> 685.16115 | O133: =O134+IF(データ整理!O133>5,データ整理!O133-5,0) -> 839.21069 | P133: =P134+IF(データ整理!P133>5,データ整理!P133-5,0) -> 690.02972 | Q133: =Q134+IF(データ整理!Q133>5,データ整理!Q133-5,0) -> 583.46377 | R133: =R134+IF(データ整理!R133>5,データ整理!R133-5,0) -> 595.00233 | S133: =S134+IF(データ整理!S133>5,データ整理!S133-5,0) -> 690.9767 | T133: =T134+IF(データ整理!T133>5,データ整理!T133-5,0) -> 568.49081 | U133: =U134+IF(データ整理!U133>5,データ整理!U133-5,0) -> 612.74164 | Y133: 2018-08-10 | Z133: =Z134+IF(データ整理!Z133>5,データ整理!Z133-5,0) -> 612.74164 | AA133: =AA134+IF(データ整理!AA133>5,データ整理!AA133-5,0) -> 631.86449
A134: 2014-08-11 | B134: =B135+IF(データ整理!B134>5,データ整理!B134-5,0) -> 710.95636 | C134: =C135+IF(データ整理!C134>5,データ整理!C134-5,0) -> 711.83448 | D134: =D135+IF(データ整理!D134>5,データ整理!D134-5,0) -> 595.76807 | E134: =E135+IF(データ整理!E134>5,データ整理!E134-5,0) -> 581.81485 | F134: =F135+IF(データ整理!F134>5,データ整理!F134-5,0) -> 590.33204 | G134: =G135+IF(データ整理!G134>5,データ整理!G134-5,0) -> 595.39165 | H134: =H135+IF(データ整理!H134>5,データ整理!H134-5,0) -> 685.35567 | I134: =I135+IF(データ整理!I134>5,データ整理!I134-5,0) -> 698.7704 | J134: =J135+IF(データ整理!J134>5,データ整理!J134-5,0) -> 636.79121 | K134: =K135+IF(データ整理!K134>5,データ整理!K134-5,0) -> 627.65567 | L134: =L135+IF(データ整理!L134>5,データ整理!L134-5,0) -> 588.52375 | M134: =M135+IF(データ整理!M134>5,データ整理!M134-5,0) -> 737.39234 | N134: =N135+IF(データ整理!N134>5,データ整理!N134-5,0) -> 666.39005 | O134: =O135+IF(データ整理!O134>5,データ整理!O134-5,0) -> 822.84559 | P134: =P135+IF(データ整理!P134>5,データ整理!P134-5,0) -> 674.56622 | Q134: =Q135+IF(データ整理!Q134>5,データ整理!Q134-5,0) -> 569.13117 | R134: =R135+IF(データ整理!R134>5,データ整理!R134-5,0) -> 578.47643 | S134: =S135+IF(データ整理!S134>5,データ整理!S134-5,0) -> 678.925 | T134: =T135+IF(データ整理!T134>5,データ整理!T134-5,0) -> 556.73971 | U134: =U135+IF(データ整理!U134>5,データ整理!U134-5,0) -> 598.70644 | Y134: 2018-08-11 | Z134: =Z135+IF(データ整理!Z134>5,データ整理!Z134-5,0) -> 598.70644 | AA134: =AA135+IF(データ整理!AA134>5,データ整理!AA134-5,0) -> 617.35449
A135: 2014-08-12 | B135: =B136+IF(データ整理!B135>5,データ整理!B135-5,0) -> 692.32596 | C135: =C136+IF(データ整理!C135>5,データ整理!C135-5,0) -> 696.95138 | D135: =D136+IF(データ整理!D135>5,データ整理!D135-5,0) -> 582.98147 | E135: =E136+IF(データ整理!E135>5,データ整理!E135-5,0) -> 571.43465 | F135: =F136+IF(データ整理!F135>5,データ整理!F135-5,0) -> 576.08834 | G135: =G136+IF(データ整理!G135>5,データ整理!G135-5,0) -> 581.79055 | H135: =H136+IF(データ整理!H135>5,データ整理!H135-5,0) -> 667.95357 | I135: =I136+IF(データ整理!I135>5,データ整理!I135-5,0) -> 681.0912 | J135: =J136+IF(データ整理!J135>5,データ整理!J135-5,0) -> 619.71461 | K135: =K136+IF(データ整理!K135>5,データ整理!K135-5,0) -> 614.89017 | L135: =L136+IF(データ整理!L135>5,データ整理!L135-5,0) -> 571.51675 | M135: =M136+IF(データ整理!M135>5,データ整理!M135-5,0) -> 721.52154 | N135: =N136+IF(データ整理!N135>5,データ整理!N135-5,0) -> 648.04845 | O135: =O136+IF(データ整理!O135>5,データ整理!O135-5,0) -> 807.78919 | P135: =P136+IF(データ整理!P135>5,データ整理!P135-5,0) -> 659.27112 | Q135: =Q136+IF(データ整理!Q135>5,データ整理!Q135-5,0) -> 553.77257 | R135: =R136+IF(データ整理!R135>5,データ整理!R135-5,0) -> 563.06543 | S135: =S136+IF(データ整理!S135>5,データ整理!S135-5,0) -> 665.0135 | T135: =T136+IF(データ整理!T135>5,データ整理!T135-5,0) -> 544.98881 | U135: =U136+IF(データ整理!U135>5,データ整理!U135-5,0) -> 585.79694 | Y135: 2018-08-12 | Z135: =Z136+IF(データ整理!Z135>5,データ整理!Z135-5,0) -> 585.79694 | AA135: =AA136+IF(データ整理!AA135>5,データ整理!AA135-5,0) -> 602.91039
A136: 2014-08-13 | B136: =B137+IF(データ整理!B136>5,データ整理!B136-5,0) -> 675.17756 | C136: =C137+IF(データ整理!C136>5,データ整理!C136-5,0) -> 683.79068 | D136: =D137+IF(データ整理!D136>5,データ整理!D136-5,0) -> 570.57447 | E136: =E137+IF(データ整理!E136>5,データ整理!E136-5,0) -> 561.36915 | F136: =F137+IF(データ整理!F136>5,データ整理!F136-5,0) -> 562.07984 | G136: =G137+IF(データ整理!G136>5,データ整理!G136-5,0) -> 567.85225 | H136: =H137+IF(データ整理!H136>5,データ整理!H136-5,0) -> 650.52557 | I136: =I137+IF(データ整理!I136>5,データ整理!I136-5,0) -> 663.769 | J136: =J137+IF(データ整理!J136>5,データ整理!J136-5,0) -> 601.05631 | K136: =K137+IF(データ整理!K136>5,データ整理!K136-5,0) -> 599.78387 | L136: =L137+IF(データ整理!L136>5,データ整理!L136-5,0) -> 556.50155 | M136: =M137+IF(データ整理!M136>5,データ整理!M136-5,0) -> 705.62804 | N136: =N137+IF(データ整理!N136>5,データ整理!N136-5,0) -> 633.25025 | O136: =O137+IF(データ整理!O136>5,データ整理!O136-5,0) -> 792.24549 | P136: =P137+IF(データ整理!P136>5,データ整理!P136-5,0) -> 643.64522 | Q136: =Q137+IF(データ整理!Q136>5,データ整理!Q136-5,0) -> 538.04587 | R136: =R137+IF(データ整理!R136>5,データ整理!R136-5,0) -> 548.67323 | S136: =S137+IF(データ整理!S136>5,データ整理!S136-5,0) -> 650.6303 | T136: =T137+IF(データ整理!T136>5,データ整理!T136-5,0) -> 535.58871 | U136: =U137+IF(データ整理!U136>5,データ整理!U136-5,0) -> 571.93494 | Y136: 2018-08-13 | Z136: =Z137+IF(データ整理!Z136>5,データ整理!Z136-5,0) -> 571.93494 | AA136: =AA137+IF(データ整理!AA136>5,データ整理!AA136-5,0) -> 588.54249
A137: 2014-08-14 | B137: =B138+IF(データ整理!B137>5,データ整理!B137-5,0) -> 658.59496 | C137: =C138+IF(データ整理!C137>5,データ整理!C137-5,0) -> 669.89378 | D137: =D138+IF(データ整理!D137>5,データ整理!D137-5,0) -> 557.56417 | E137: =E138+IF(データ整理!E137>5,データ整理!E137-5,0) -> 551.28795 | F137: =F138+IF(データ整理!F137>5,データ整理!F137-5,0) -> 549.91254 | G137: =G138+IF(データ整理!G137>5,データ整理!G137-5,0) -> 557.14195 | H137: =H138+IF(データ整理!H137>5,データ整理!H137-5,0) -> 633.01227 | I137: =I138+IF(データ整理!I137>5,データ整理!I137-5,0) -> 646.5063 | J137: =J138+IF(データ整理!J137>5,データ整理!J137-5,0) -> 583.22291 | K137: =K138+IF(データ整理!K137>5,データ整理!K137-5,0) -> 583.59287 | L137: =L138+IF(データ整理!L137>5,データ整理!L137-5,0) -> 542.27355 | M137: =M138+IF(データ整理!M137>5,データ整理!M137-5,0) -> 689.42704 | N137: =N138+IF(データ整理!N137>5,データ整理!N137-5,0) -> 619.27255 | O137: =O138+IF(データ整理!O137>5,データ整理!O137-5,0) -> 778.25989 | P137: =P138+IF(データ整理!P137>5,データ整理!P137-5,0) -> 628.45832 | Q137: =Q138+IF(データ整理!Q137>5,データ整理!Q137-5,0) -> 525.54817 | R137: =R138+IF(データ整理!R137>5,データ整理!R137-5,0) -> 533.70253 | S137: =S138+IF(データ整理!S137>5,データ整理!S137-5,0) -> 635.3726 | T137: =T138+IF(データ整理!T137>5,データ整理!T137-5,0) -> 525.25271 | U137: =U138+IF(データ整理!U137>5,データ整理!U137-5,0) -> 557.16174 | Y137: 2018-08-14 | Z137: =Z138+IF(データ整理!Z137>5,データ整理!Z137-5,0) -> 557.16174 | AA137: =AA138+IF(データ整理!AA137>5,データ整理!AA137-5,0) -> 574.25809
A138: 2014-08-15 | B138: =B139+IF(データ整理!B138>5,データ整理!B138-5,0) -> 640.73876 | C138: =C139+IF(データ整理!C138>5,データ整理!C138-5,0) -> 654.31058 | D138: =D139+IF(データ整理!D138>5,データ整理!D138-5,0) -> 543.57397 | E138: =E139+IF(データ整理!E138>5,データ整理!E138-5,0) -> 538.47105 | F138: =F139+IF(データ整理!F138>5,データ整理!F138-5,0) -> 538.10244 | G138: =G139+IF(データ整理!G138>5,データ整理!G138-5,0) -> 545.43715 | H138: =H139+IF(データ整理!H138>5,データ整理!H138-5,0) -> 615.61507 | I138: =I139+IF(データ整理!I138>5,データ整理!I138-5,0) -> 629.8664 | J138: =J139+IF(データ整理!J138>5,データ整理!J138-5,0) -> 564.53431 | K138: =K139+IF(データ整理!K138>5,データ整理!K138-5,0) -> 568.19377 | L138: =L139+IF(データ整理!L138>5,データ整理!L138-5,0) -> 528.42005 | M138: =M139+IF(データ整理!M138>5,データ整理!M138-5,0) -> 673.64204 | N138: =N139+IF(データ整理!N138>5,データ整理!N138-5,0) -> 604.10585 | O138: =O139+IF(データ整理!O138>5,データ整理!O138-5,0) -> 765.41319 | P138: =P139+IF(データ整理!P138>5,データ整理!P138-5,0) -> 612.97732 | Q138: =Q139+IF(データ整理!Q138>5,データ整理!Q138-5,0) -> 513.49977 | R138: =R139+IF(データ整理!R138>5,データ整理!R138-5,0) -> 518.93623 | S138: =S139+IF(データ整理!S138>5,データ整理!S138-5,0) -> 618.9144 | T138: =T139+IF(データ整理!T138>5,データ整理!T138-5,0) -> 512.90011 | U138: =U139+IF(データ整理!U138>5,データ整理!U138-5,0) -> 543.88764 | Y138: 2018-08-15 | Z138: =Z139+IF(データ整理!Z138>5,データ整理!Z138-5,0) -> 543.88764 | AA138: =AA139+IF(データ整理!AA138>5,データ整理!AA138-5,0) -> 560.06319
A139: 2014-08-16 | B139: =B140+IF(データ整理!B139>5,データ整理!B139-5,0) -> 624.43776 | C139: =C140+IF(データ整理!C139>5,データ整理!C139-5,0) -> 638.85568 | D139: =D140+IF(データ整理!D139>5,データ整理!D139-5,0) -> 527.98517 | E139: =E140+IF(データ整理!E139>5,データ整理!E139-5,0) -> 526.17605 | F139: =F140+IF(データ整理!F139>5,データ整理!F139-5,0) -> 524.56804 | G139: =G140+IF(データ整理!G139>5,データ整理!G139-5,0) -> 535.76695 | H139: =H140+IF(データ整理!H139>5,データ整理!H139-5,0) -> 599.29217 | I139: =I140+IF(データ整理!I139>5,データ整理!I139-5,0) -> 612.331 | J139: =J140+IF(データ整理!J139>5,データ整理!J139-5,0) -> 545.73991 | K139: =K140+IF(データ整理!K139>5,データ整理!K139-5,0) -> 554.34947 | L139: =L140+IF(データ整理!L139>5,データ整理!L139-5,0) -> 514.62965 | M139: =M140+IF(データ整理!M139>5,データ整理!M139-5,0) -> 658.22654 | N139: =N140+IF(データ整理!N139>5,データ整理!N139-5,0) -> 589.10525 | O139: =O140+IF(データ整理!O139>5,データ整理!O139-5,0) -> 753.08179 | P139: =P140+IF(データ整理!P139>5,データ整理!P139-5,0) -> 594.45992 | Q139: =Q140+IF(データ整理!Q139>5,データ整理!Q139-5,0) -> 501.87577 | R139: =R140+IF(データ整理!R139>5,データ整理!R139-5,0) -> 504.19823 | S139: =S140+IF(データ整理!S139>5,データ整理!S139-5,0) -> 602.6615 | T139: =T140+IF(データ整理!T139>5,データ整理!T139-5,0) -> 500.19461 | U139: =U140+IF(データ整理!U139>5,データ整理!U139-5,0) -> 532.57094 | Y139: 2018-08-16 | Z139: =Z140+IF(データ整理!Z139>5,データ整理!Z139-5,0) -> 532.57094 | AA139: =AA140+IF(データ整理!AA139>5,データ整理!AA139-5,0) -> 545.96319
A140: 2014-08-17 | B140: =B141+IF(データ整理!B140>5,データ整理!B140-5,0) -> 606.75656 | C140: =C141+IF(データ整理!C140>5,データ整理!C140-5,0) -> 621.45848 | D140: =D141+IF(データ整理!D140>5,データ整理!D140-5,0) -> 511.42987 | E140: =E141+IF(データ整理!E140>5,データ整理!E140-5,0) -> 513.43205 | F140: =F141+IF(データ整理!F140>5,データ整理!F140-5,0) -> 511.16814 | G140: =G141+IF(データ整理!G140>5,データ整理!G140-5,0) -> 526.62805 | H140: =H141+IF(データ整理!H140>5,データ整理!H140-5,0) -> 585.94277 | I140: =I141+IF(データ整理!I140>5,データ整理!I140-5,0) -> 594.8389 | J140: =J141+IF(データ整理!J140>5,データ整理!J140-5,0) -> 534.51781 | K140: =K141+IF(データ整理!K140>5,データ整理!K140-5,0) -> 543.14457 | L140: =L141+IF(データ整理!L140>5,データ整理!L140-5,0) -> 500.53455 | M140: =M141+IF(データ整理!M140>5,データ整理!M140-5,0) -> 640.80734 | N140: =N141+IF(データ整理!N140>5,データ整理!N140-5,0) -> 576.15065 | O140: =O141+IF(データ整理!O140>5,データ整理!O140-5,0) -> 738.88209 | P140: =P141+IF(データ整理!P140>5,データ整理!P140-5,0) -> 576.63802 | Q140: =Q141+IF(データ整理!Q140>5,データ整理!Q140-5,0) -> 488.37947 | R140: =R141+IF(データ整理!R140>5,データ整理!R140-5,0) -> 490.01403 | S140: =S141+IF(データ整理!S140>5,データ整理!S140-5,0) -> 585.7239 | T140: =T141+IF(データ整理!T140>5,データ整理!T140-5,0) -> 488.40291 | U140: =U141+IF(データ整理!U140>5,データ整理!U140-5,0) -> 524.57474 | Y140: 2018-08-17 | Z140: =Z141+IF(データ整理!Z140>5,データ整理!Z140-5,0) -> 524.57474 | AA140: =AA141+IF(データ整理!AA140>5,データ整理!AA140-5,0) -> 531.96399
A141: 2014-08-18 | B141: =B142+IF(データ整理!B141>5,データ整理!B141-5,0) -> 587.49826 | C141: =C142+IF(データ整理!C141>5,データ整理!C141-5,0) -> 605.06108 | D141: =D142+IF(データ整理!D141>5,データ整理!D141-5,0) -> 497.44417 | E141: =E142+IF(データ整理!E141>5,データ整理!E141-5,0) -> 501.89625 | F141: =F142+IF(データ整理!F141>5,データ整理!F141-5,0) -> 497.75784 | G141: =G142+IF(データ整理!G141>5,データ整理!G141-5,0) -> 516.98655 | H141: =H142+IF(データ整理!H141>5,データ整理!H141-5,0) -> 571.12367 | I141: =I142+IF(データ整理!I141>5,データ整理!I141-5,0) -> 575.7461 | J141: =J142+IF(データ整理!J141>5,データ整理!J141-5,0) -> 523.39171 | K141: =K142+IF(データ整理!K141>5,データ整理!K141-5,0) -> 533.94307 | L141: =L142+IF(データ整理!L141>5,データ整理!L141-5,0) -> 488.28485 | M141: =M142+IF(データ整理!M141>5,データ整理!M141-5,0) -> 625.73474 | N141: =N142+IF(データ整理!N141>5,データ整理!N141-5,0) -> 562.77895 | O141: =O142+IF(データ整理!O141>5,データ整理!O141-5,0) -> 725.39139 | P141: =P142+IF(データ整理!P141>5,データ整理!P141-5,0) -> 559.14622 | Q141: =Q142+IF(データ整理!Q141>5,データ整理!Q141-5,0) -> 474.24157 | R141: =R142+IF(データ整理!R141>5,データ整理!R141-5,0) -> 477.17363 | S141: =S142+IF(データ整理!S141>5,データ整理!S141-5,0) -> 571.1386 | T141: =T142+IF(データ整理!T141>5,データ整理!T141-5,0) -> 475.96621 | U141: =U142+IF(データ整理!U141>5,データ整理!U141-5,0) -> 517.57524 | Y141: 2018-08-18 | Z141: =Z142+IF(データ整理!Z141>5,データ整理!Z141-5,0) -> 517.57524 | AA141: =AA142+IF(データ整理!AA141>5,データ整理!AA141-5,0) -> 518.07129
A142: 2014-08-19 | B142: =B143+IF(データ整理!B142>5,データ整理!B142-5,0) -> 574.47936 | C142: =C143+IF(データ整理!C142>5,データ整理!C142-5,0) -> 590.62358 | D142: =D143+IF(データ整理!D142>5,データ整理!D142-5,0) -> 486.39087 | E142: =E143+IF(データ整理!E142>5,データ整理!E142-5,0) -> 488.60285 | F142: =F143+IF(データ整理!F142>5,データ整理!F142-5,0) -> 484.26884 | G142: =G143+IF(データ整理!G142>5,データ整理!G142-5,0) -> 504.26535 | H142: =H143+IF(データ整理!H142>5,データ整理!H142-5,0) -> 554.54047 | I142: =I143+IF(データ整理!I142>5,データ整理!I142-5,0) -> 559.6068 | J142: =J143+IF(データ整理!J142>5,データ整理!J142-5,0) -> 511.21081 | K142: =K143+IF(データ整理!K142>5,データ整理!K142-5,0) -> 522.97897 | L142: =L143+IF(データ整理!L142>5,データ整理!L142-5,0) -> 474.80265 | M142: =M143+IF(データ整理!M142>5,データ整理!M142-5,0) -> 611.65624 | N142: =N143+IF(データ整理!N142>5,データ整理!N142-5,0) -> 550.26335 | O142: =O143+IF(データ整理!O142>5,データ整理!O142-5,0) -> 710.87709 | P142: =P143+IF(データ整理!P142>5,データ整理!P142-5,0) -> 540.71072 | Q142: =Q143+IF(データ整理!Q142>5,データ整理!Q142-5,0) -> 458.95427 | R142: =R143+IF(データ整理!R142>5,データ整理!R142-5,0) -> 466.99693 | S142: =S143+IF(データ整理!S142>5,データ整理!S142-5,0) -> 555.0302 | T142: =T143+IF(データ整理!T142>5,データ整理!T142-5,0) -> 462.63131 | U142: =U143+IF(データ整理!U142>5,データ整理!U142-5,0) -> 509.11574 | Y142: 2018-08-19 | Z142: =Z143+IF(データ整理!Z142>5,データ整理!Z142-5,0) -> 509.11574 | AA142: =AA143+IF(データ整理!AA142>5,データ整理!AA142-5,0) -> 504.29149
A143: 2014-08-20 | B143: =B144+IF(データ整理!B143>5,データ整理!B143-5,0) -> 559.05036 | C143: =C144+IF(データ整理!C143>5,データ整理!C143-5,0) -> 575.59028 | D143: =D144+IF(データ整理!D143>5,データ整理!D143-5,0) -> 474.11067 | E143: =E144+IF(データ整理!E143>5,データ整理!E143-5,0) -> 476.35535 | F143: =F144+IF(データ整理!F143>5,データ整理!F143-5,0) -> 471.49894 | G143: =G144+IF(データ整理!G143>5,データ整理!G143-5,0) -> 490.21815 | H143: =H144+IF(データ整理!H143>5,データ整理!H143-5,0) -> 538.40227 | I143: =I144+IF(データ整理!I143>5,データ整理!I143-5,0) -> 545.1218 | J143: =J144+IF(データ整理!J143>5,データ整理!J143-5,0) -> 498.36311 | K143: =K144+IF(データ整理!K143>5,データ整理!K143-5,0) -> 512.28127 | L143: =L144+IF(データ整理!L143>5,データ整理!L143-5,0) -> 462.45065 | M143: =M144+IF(データ整理!M143>5,データ整理!M143-5,0) -> 597.67574 | N143: =N144+IF(データ整理!N143>5,データ整理!N143-5,0) -> 537.19605 | O143: =O144+IF(データ整理!O143>5,データ整理!O143-5,0) -> 694.51179 | P143: =P144+IF(データ整理!P143>5,データ整理!P143-5,0) -> 523.49982 | Q143: =Q144+IF(データ整理!Q143>5,データ整理!Q143-5,0) -> 445.48447 | R143: =R144+IF(データ整理!R143>5,データ整理!R143-5,0) -> 457.31543 | S143: =S144+IF(データ整理!S143>5,データ整理!S143-5,0) -> 539.5436 | T143: =T144+IF(データ整理!T143>5,データ整理!T143-5,0) -> 449.05121 | U143: =U144+IF(データ整理!U143>5,データ整理!U143-5,0) -> 498.91044 | Y143: 2018-08-20 | Z143: =Z144+IF(データ整理!Z143>5,データ整理!Z143-5,0) -> 498.91044 | AA143: =AA144+IF(データ整理!AA143>5,データ整理!AA143-5,0) -> 490.62979
A144: 2014-08-21 | B144: =B145+IF(データ整理!B144>5,データ整理!B144-5,0) -> 541.43916 | C144: =C145+IF(データ整理!C144>5,データ整理!C144-5,0) -> 560.83088 | D144: =D145+IF(データ整理!D144>5,データ整理!D144-5,0) -> 462.13737 | E144: =E145+IF(データ整理!E144>5,データ整理!E144-5,0) -> 466.91415 | F144: =F145+IF(データ整理!F144>5,データ整理!F144-5,0) -> 458.57684 | G144: =G145+IF(データ整理!G144>5,データ整理!G144-5,0) -> 481.66205 | H144: =H145+IF(データ整理!H144>5,データ整理!H144-5,0) -> 525.19337 | I144: =I145+IF(データ整理!I144>5,データ整理!I144-5,0) -> 529.3504 | J144: =J145+IF(データ整理!J144>5,データ整理!J144-5,0) -> 482.63691 | K144: =K145+IF(データ整理!K144>5,データ整理!K144-5,0) -> 503.38227 | L144: =L145+IF(データ整理!L144>5,データ整理!L144-5,0) -> 448.24225 | M144: =M145+IF(データ整理!M144>5,データ整理!M144-5,0) -> 582.41494 | N144: =N145+IF(データ整理!N144>5,データ整理!N144-5,0) -> 525.18135 | O144: =O145+IF(データ整理!O144>5,データ整理!O144-5,0) -> 677.33409 | P144: =P145+IF(データ整理!P144>5,データ整理!P144-5,0) -> 508.64422 | Q144: =Q145+IF(データ整理!Q144>5,データ整理!Q144-5,0) -> 431.83217 | R144: =R145+IF(データ整理!R144>5,データ整理!R144-5,0) -> 446.39373 | S144: =S145+IF(データ整理!S144>5,データ整理!S144-5,0) -> 524.7561 | T144: =T145+IF(データ整理!T144>5,データ整理!T144-5,0) -> 436.12591 | U144: =U145+IF(データ整理!U144>5,データ整理!U144-5,0) -> 484.30424 | Y144: 2018-08-21 | Z144: =Z145+IF(データ整理!Z144>5,データ整理!Z144-5,0) -> 484.30424 | AA144: =AA145+IF(データ整理!AA144>5,データ整理!AA144-5,0) -> 477.08659
A145: 2014-08-22 | B145: =B146+IF(データ整理!B145>5,データ整理!B145-5,0) -> 523.77546 | C145: =C146+IF(データ整理!C145>5,データ整理!C145-5,0) -> 544.04888 | D145: =D146+IF(データ整理!D145>5,データ整理!D145-5,0) -> 449.14767 | E145: =E146+IF(データ整理!E145>5,データ整理!E145-5,0) -> 460.14905 | F145: =F146+IF(データ整理!F145>5,データ整理!F145-5,0) -> 443.92454 | G145: =G146+IF(データ整理!G145>5,データ整理!G145-5,0) -> 475.21835 | H145: =H146+IF(データ整理!H145>5,データ整理!H145-5,0) -> 512.93857 | I145: =I146+IF(データ整理!I145>5,データ整理!I145-5,0) -> 509.9504 | J145: =J146+IF(データ整理!J145>5,データ整理!J145-5,0) -> 466.30221 | K145: =K146+IF(データ整理!K145>5,データ整理!K145-5,0) -> 496.23237 | L145: =L146+IF(データ整理!L145>5,データ整理!L145-5,0) -> 432.87535 | M145: =M146+IF(データ整理!M145>5,データ整理!M145-5,0) -> 566.12384 | N145: =N146+IF(データ整理!N145>5,データ整理!N145-5,0) -> 512.31655 | O145: =O146+IF(データ整理!O145>5,データ整理!O145-5,0) -> 658.30669 | P145: =P146+IF(データ整理!P145>5,データ整理!P145-5,0) -> 494.62932 | Q145: =Q146+IF(データ整理!Q145>5,データ整理!Q145-5,0) -> 417.63637 | R145: =R146+IF(データ整理!R145>5,データ整理!R145-5,0) -> 433.83813 | S145: =S146+IF(データ整理!S145>5,データ整理!S145-5,0) -> 508.3861 | T145: =T146+IF(データ整理!T145>5,データ整理!T145-5,0) -> 421.30021 | U145: =U146+IF(データ整理!U145>5,データ整理!U145-5,0) -> 470.58024 | Y145: 2018-08-22 | Z145: =Z146+IF(データ整理!Z145>5,データ整理!Z145-5,0) -> 470.58024 | AA145: =AA146+IF(データ整理!AA145>5,データ整理!AA145-5,0) -> 463.65869
A146: 2014-08-23 | B146: =B147+IF(データ整理!B146>5,データ整理!B146-5,0) -> 506.36016 | C146: =C147+IF(データ整理!C146>5,データ整理!C146-5,0) -> 527.00818 | D146: =D147+IF(データ整理!D146>5,データ整理!D146-5,0) -> 435.86397 | E146: =E147+IF(データ整理!E146>5,データ整理!E146-5,0) -> 452.75555 | F146: =F147+IF(データ整理!F146>5,データ整理!F146-5,0) -> 428.69884 | G146: =G147+IF(データ整理!G146>5,データ整理!G146-5,0) -> 465.66625 | H146: =H147+IF(データ整理!H146>5,データ整理!H146-5,0) -> 500.46527 | I146: =I147+IF(データ整理!I146>5,データ整理!I146-5,0) -> 493.1343 | J146: =J147+IF(データ整理!J146>5,データ整理!J146-5,0) -> 452.07841 | K146: =K147+IF(データ整理!K146>5,データ整理!K146-5,0) -> 489.77237 | L146: =L147+IF(データ整理!L146>5,データ整理!L146-5,0) -> 419.23105 | M146: =M147+IF(データ整理!M146>5,データ整理!M146-5,0) -> 549.47094 | N146: =N147+IF(データ整理!N146>5,データ整理!N146-5,0) -> 499.03695 | O146: =O147+IF(データ整理!O146>5,データ整理!O146-5,0) -> 639.22279 | P146: =P147+IF(データ整理!P146>5,データ整理!P146-5,0) -> 480.46542 | Q146: =Q147+IF(データ整理!Q146>5,データ整理!Q146-5,0) -> 402.61287 | R146: =R147+IF(データ整理!R146>5,データ整理!R146-5,0) -> 421.97603 | S146: =S147+IF(データ整理!S146>5,データ整理!S146-5,0) -> 492.3325 | T146: =T147+IF(データ整理!T146>5,データ整理!T146-5,0) -> 407.60891 | U146: =U147+IF(データ整理!U146>5,データ整理!U146-5,0) -> 453.62704 | Y146: 2018-08-23 | Z146: =Z147+IF(データ整理!Z146>5,データ整理!Z146-5,0) -> 453.62704 | AA146: =AA147+IF(データ整理!AA146>5,データ整理!AA146-5,0) -> 450.34339
A147: 2014-08-24 | B147: =B148+IF(データ整理!B147>5,データ整理!B147-5,0) -> 491.16956 | C147: =C148+IF(データ整理!C147>5,データ整理!C147-5,0) -> 509.69848 | D147: =D148+IF(データ整理!D147>5,データ整理!D147-5,0) -> 421.02177 | E147: =E148+IF(データ整理!E147>5,データ整理!E147-5,0) -> 443.37205 | F147: =F148+IF(データ整理!F147>5,データ整理!F147-5,0) -> 415.65524 | G147: =G148+IF(データ整理!G147>5,データ整理!G147-5,0) -> 454.91295 | H147: =H148+IF(データ整理!H147>5,データ整理!H147-5,0) -> 489.38597 | I147: =I148+IF(データ整理!I147>5,データ整理!I147-5,0) -> 477.0797 | J147: =J148+IF(データ整理!J147>5,データ整理!J147-5,0) -> 440.00841 | K147: =K148+IF(データ整理!K147>5,データ整理!K147-5,0) -> 481.97667 | L147: =L148+IF(データ整理!L147>5,データ整理!L147-5,0) -> 408.29355 | M147: =M148+IF(データ整理!M147>5,データ整理!M147-5,0) -> 535.97614 | N147: =N148+IF(データ整理!N147>5,データ整理!N147-5,0) -> 487.16975 | O147: =O148+IF(データ整理!O147>5,データ整理!O147-5,0) -> 624.24659 | P147: =P148+IF(データ整理!P147>5,データ整理!P147-5,0) -> 466.45692 | Q147: =Q148+IF(データ整理!Q147>5,データ整理!Q147-5,0) -> 387.14267 | R147: =R148+IF(データ整理!R147>5,データ整理!R147-5,0) -> 411.84563 | S147: =S148+IF(データ整理!S147>5,データ整理!S147-5,0) -> 477.617 | T147: =T148+IF(データ整理!T147>5,データ整理!T147-5,0) -> 391.75591 | U147: =U148+IF(データ整理!U147>5,データ整理!U147-5,0) -> 439.52884 | Y147: 2018-08-24 | Z147: =Z148+IF(データ整理!Z147>5,データ整理!Z147-5,0) -> 439.52884 | AA147: =AA148+IF(データ整理!AA147>5,データ整理!AA147-5,0) -> 437.13919
A148: 2014-08-25 | B148: =B149+IF(データ整理!B148>5,データ整理!B148-5,0) -> 478.77956 | C148: =C149+IF(データ整理!C148>5,データ整理!C148-5,0) -> 492.65398 | D148: =D149+IF(データ整理!D148>5,データ整理!D148-5,0) -> 405.54747 | E148: =E149+IF(データ整理!E148>5,データ整理!E148-5,0) -> 432.86255 | F148: =F149+IF(データ整理!F148>5,データ整理!F148-5,0) -> 405.21064 | G148: =G149+IF(データ整理!G148>5,データ整理!G148-5,0) -> 442.28805 | H148: =H149+IF(データ整理!H148>5,データ整理!H148-5,0) -> 478.54397 | I148: =I149+IF(データ整理!I148>5,データ整理!I148-5,0) -> 462.462 | J148: =J149+IF(データ整理!J148>5,データ整理!J148-5,0) -> 428.63931 | K148: =K149+IF(データ整理!K148>5,データ整理!K148-5,0) -> 475.07437 | L148: =L149+IF(データ整理!L148>5,データ整理!L148-5,0) -> 398.28925 | M148: =M149+IF(データ整理!M148>5,データ整理!M148-5,0) -> 521.16574 | N148: =N149+IF(データ整理!N148>5,データ整理!N148-5,0) -> 473.82845 | O148: =O149+IF(データ整理!O148>5,データ整理!O148-5,0) -> 610.24659 | P148: =P149+IF(データ整理!P148>5,データ整理!P148-5,0) -> 453.06352 | Q148: =Q149+IF(データ整理!Q148>5,データ整理!Q148-5,0) -> 373.57867 | R148: =R149+IF(データ整理!R148>5,データ整理!R148-5,0) -> 402.94133 | S148: =S149+IF(データ整理!S148>5,データ整理!S148-5,0) -> 463.6979 | T148: =T149+IF(データ整理!T148>5,データ整理!T148-5,0) -> 376.92031 | U148: =U149+IF(データ整理!U148>5,データ整理!U148-5,0) -> 426.76084 | Y148: 2018-08-25 | Z148: =Z149+IF(データ整理!Z148>5,データ整理!Z148-5,0) -> 426.76084 | AA148: =AA149+IF(データ整理!AA148>5,データ整理!AA148-5,0) -> 424.04559
A149: 2014-08-26 | B149: =B150+IF(データ整理!B149>5,データ整理!B149-5,0) -> 466.35306 | C149: =C150+IF(データ整理!C149>5,データ整理!C149-5,0) -> 476.23268 | D149: =D150+IF(データ整理!D149>5,データ整理!D149-5,0) -> 390.16977 | E149: =E150+IF(データ整理!E149>5,データ整理!E149-5,0) -> 421.80205 | F149: =F150+IF(データ整理!F149>5,データ整理!F149-5,0) -> 393.73124 | G149: =G150+IF(データ整理!G149>5,データ整理!G149-5,0) -> 433.46775 | H149: =H150+IF(データ整理!H149>5,データ整理!H149-5,0) -> 468.16197 | I149: =I150+IF(データ整理!I149>5,データ整理!I149-5,0) -> 448.828 | J149: =J150+IF(データ整理!J149>5,データ整理!J149-5,0) -> 414.75091 | K149: =K150+IF(データ整理!K149>5,データ整理!K149-5,0) -> 464.09557 | L149: =L150+IF(データ整理!L149>5,データ整理!L149-5,0) -> 388.35805 | M149: =M150+IF(データ整理!M149>5,データ整理!M149-5,0) -> 506.62204 | N149: =N150+IF(データ整理!N149>5,データ整理!N149-5,0) -> 461.37665 | O149: =O150+IF(データ整理!O149>5,データ整理!O149-5,0) -> 593.84179 | P149: =P150+IF(データ整理!P149>5,データ整理!P149-5,0) -> 440.51252 | Q149: =Q150+IF(データ整理!Q149>5,データ整理!Q149-5,0) -> 364.54137 | R149: =R150+IF(データ整理!R149>5,データ整理!R149-5,0) -> 394.63663 | S149: =S150+IF(データ整理!S149>5,データ整理!S149-5,0) -> 448.1336 | T149: =T150+IF(データ整理!T149>5,データ整理!T149-5,0) -> 362.95361 | U149: =U150+IF(データ整理!U149>5,データ整理!U149-5,0) -> 416.29934 | Y149: 2018-08-26 | Z149: =Z150+IF(データ整理!Z149>5,データ整理!Z149-5,0) -> 416.29934 | AA149: =AA150+IF(データ整理!AA149>5,データ整理!AA149-5,0) -> 411.06149
A150: 2014-08-27 | B150: =B151+IF(データ整理!B150>5,データ整理!B150-5,0) -> 453.65456 | C150: =C151+IF(データ整理!C150>5,データ整理!C150-5,0) -> 462.11108 | D150: =D151+IF(データ整理!D150>5,データ整理!D150-5,0) -> 374.58387 | E150: =E151+IF(データ整理!E150>5,データ整理!E150-5,0) -> 411.03835 | F150: =F151+IF(データ整理!F150>5,データ整理!F150-5,0) -> 381.76484 | G150: =G151+IF(データ整理!G150>5,データ整理!G150-5,0) -> 425.16845 | H150: =H151+IF(データ整理!H150>5,データ整理!H150-5,0) -> 457.75297 | I150: =I151+IF(データ整理!I150>5,データ整理!I150-5,0) -> 434.9859 | J150: =J151+IF(データ整理!J150>5,データ整理!J150-5,0) -> 399.81941 | K150: =K151+IF(データ整理!K150>5,データ整理!K150-5,0) -> 450.90407 | L150: =L151+IF(データ整理!L150>5,データ整理!L150-5,0) -> 378.34555 | M150: =M151+IF(データ整理!M150>5,データ整理!M150-5,0) -> 494.07164 | N150: =N151+IF(データ整理!N150>5,データ整理!N150-5,0) -> 449.20925 | O150: =O151+IF(データ整理!O150>5,データ整理!O150-5,0) -> 577.35999 | P150: =P151+IF(データ整理!P150>5,データ整理!P150-5,0) -> 428.62462 | Q150: =Q151+IF(データ整理!Q150>5,データ整理!Q150-5,0) -> 356.83767 | R150: =R151+IF(データ整理!R150>5,データ整理!R150-5,0) -> 385.70963 | S150: =S151+IF(データ整理!S150>5,データ整理!S150-5,0) -> 436.3275 | T150: =T151+IF(データ整理!T150>5,データ整理!T150-5,0) -> 350.66461 | U150: =U151+IF(データ整理!U150>5,データ整理!U150-5,0) -> 404.53824 | Y150: 2018-08-27 | Z150: =Z151+IF(データ整理!Z150>5,データ整理!Z150-5,0) -> 404.53824 | AA150: =AA151+IF(データ整理!AA150>5,データ整理!AA150-5,0) -> 398.18629
A151: 2014-08-28 | B151: =B152+IF(データ整理!B151>5,データ整理!B151-5,0) -> 440.19706 | C151: =C152+IF(データ整理!C151>5,データ整理!C151-5,0) -> 448.68188 | D151: =D152+IF(データ整理!D151>5,データ整理!D151-5,0) -> 364.18297 | E151: =E152+IF(データ整理!E151>5,データ整理!E151-5,0) -> 397.69635 | F151: =F152+IF(データ整理!F151>5,データ整理!F151-5,0) -> 370.93344 | G151: =G152+IF(データ整理!G151>5,データ整理!G151-5,0) -> 416.05585 | H151: =H152+IF(データ整理!H151>5,データ整理!H151-5,0) -> 443.51127 | I151: =I152+IF(データ整理!I151>5,データ整理!I151-5,0) -> 420.6587 | J151: =J152+IF(データ整理!J151>5,データ整理!J151-5,0) -> 386.97001 | K151: =K152+IF(データ整理!K151>5,データ整理!K151-5,0) -> 440.34637 | L151: =L152+IF(データ整理!L151>5,データ整理!L151-5,0) -> 366.00565 | M151: =M152+IF(データ整理!M151>5,データ整理!M151-5,0) -> 482.23984 | N151: =N152+IF(データ整理!N151>5,データ整理!N151-5,0) -> 436.16455 | O151: =O152+IF(データ整理!O151>5,データ整理!O151-5,0) -> 561.10469 | P151: =P152+IF(データ整理!P151>5,データ整理!P151-5,0) -> 416.13542 | Q151: =Q152+IF(データ整理!Q151>5,データ整理!Q151-5,0) -> 348.65447 | R151: =R152+IF(データ整理!R151>5,データ整理!R151-5,0) -> 374.77393 | S151: =S152+IF(データ整理!S151>5,データ整理!S151-5,0) -> 427.2031 | T151: =T152+IF(データ整理!T151>5,データ整理!T151-5,0) -> 338.75351 | U151: =U152+IF(データ整理!U151>5,データ整理!U151-5,0) -> 394.04394 | Y151: 2018-08-28 | Z151: =Z152+IF(データ整理!Z151>5,データ整理!Z151-5,0) -> 394.04394 | AA151: =AA152+IF(データ整理!AA151>5,データ整理!AA151-5,0) -> 385.42149
A152: 2014-08-29 | B152: =B153+IF(データ整理!B152>5,データ整理!B152-5,0) -> 425.85196 | C152: =C153+IF(データ整理!C152>5,データ整理!C152-5,0) -> 435.90928 | D152: =D153+IF(データ整理!D152>5,データ整理!D152-5,0) -> 356.14757 | E152: =E153+IF(データ整理!E152>5,データ整理!E152-5,0) -> 381.08025 | F152: =F153+IF(データ整理!F152>5,データ整理!F152-5,0) -> 359.77854 | G152: =G153+IF(データ整理!G152>5,データ整理!G152-5,0) -> 407.77195 | H152: =H153+IF(データ整理!H152>5,データ整理!H152-5,0) -> 429.73917 | I152: =I153+IF(データ整理!I152>5,データ整理!I152-5,0) -> 406.2909 | J152: =J153+IF(データ整理!J152>5,データ整理!J152-5,0) -> 374.77911 | K152: =K153+IF(データ整理!K152>5,データ整理!K152-5,0) -> 426.35067 | L152: =L153+IF(データ整理!L152>5,データ整理!L152-5,0) -> 352.05985 | M152: =M153+IF(データ整理!M152>5,データ整理!M152-5,0) -> 467.90424 | N152: =N153+IF(データ整理!N152>5,データ整理!N152-5,0) -> 421.68215 | O152: =O153+IF(データ整理!O152>5,データ整理!O152-5,0) -> 545.13319 | P152: =P153+IF(データ整理!P152>5,データ整理!P152-5,0) -> 405.94102 | Q152: =Q153+IF(データ整理!Q152>5,データ整理!Q152-5,0) -> 338.82837 | R152: =R153+IF(データ整理!R152>5,データ整理!R152-5,0) -> 364.50503 | S152: =S153+IF(データ整理!S152>5,データ整理!S152-5,0) -> 417.5611 | T152: =T153+IF(データ整理!T152>5,データ整理!T152-5,0) -> 327.98611 | U152: =U153+IF(データ整理!U152>5,データ整理!U152-5,0) -> 384.19964 | Y152: 2018-08-29 | Z152: =Z153+IF(データ整理!Z152>5,データ整理!Z152-5,0) -> 384.19964 | AA152: =AA153+IF(データ整理!AA152>5,データ整理!AA152-5,0) -> 372.77269
A153: 2014-08-30 | B153: =B154+IF(データ整理!B153>5,データ整理!B153-5,0) -> 414.67596 | C153: =C154+IF(データ整理!C153>5,データ整理!C153-5,0) -> 422.55748 | D153: =D154+IF(データ整理!D153>5,データ整理!D153-5,0) -> 345.56247 | E153: =E154+IF(データ整理!E153>5,データ整理!E153-5,0) -> 367.44315 | F153: =F154+IF(データ整理!F153>5,データ整理!F153-5,0) -> 347.99824 | G153: =G154+IF(データ整理!G153>5,データ整理!G153-5,0) -> 398.14145 | H153: =H154+IF(データ整理!H153>5,データ整理!H153-5,0) -> 416.87107 | I153: =I154+IF(データ整理!I153>5,データ整理!I153-5,0) -> 390.2415 | J153: =J154+IF(データ整理!J153>5,データ整理!J153-5,0) -> 362.30361 | K153: =K154+IF(データ整理!K153>5,データ整理!K153-5,0) -> 411.72507 | L153: =L154+IF(データ整理!L153>5,データ整理!L153-5,0) -> 340.94015 | M153: =M154+IF(データ整理!M153>5,データ整理!M153-5,0) -> 453.44964 | N153: =N154+IF(データ整理!N153>5,データ整理!N153-5,0) -> 407.57335 | O153: =O154+IF(データ整理!O153>5,データ整理!O153-5,0) -> 526.97529 | P153: =P154+IF(データ整理!P153>5,データ整理!P153-5,0) -> 395.32032 | Q153: =Q154+IF(データ整理!Q153>5,データ整理!Q153-5,0) -> 327.68717 | R153: =R154+IF(データ整理!R153>5,データ整理!R153-5,0) -> 353.89873 | S153: =S154+IF(データ整理!S153>5,データ整理!S153-5,0) -> 401.4888 | T153: =T154+IF(データ整理!T153>5,データ整理!T153-5,0) -> 318.01451 | U153: =U154+IF(データ整理!U153>5,データ整理!U153-5,0) -> 373.47704 | Y153: 2018-08-30 | Z153: =Z154+IF(データ整理!Z153>5,データ整理!Z153-5,0) -> 373.47704 | AA153: =AA154+IF(データ整理!AA153>5,データ整理!AA153-5,0) -> 360.25109
A154: 2014-08-31 | B154: =B155+IF(データ整理!B154>5,データ整理!B154-5,0) -> 401.89186 | C154: =C155+IF(データ整理!C154>5,データ整理!C154-5,0) -> 408.46178 | D154: =D155+IF(データ整理!D154>5,データ整理!D154-5,0) -> 333.25407 | E154: =E155+IF(データ整理!E154>5,データ整理!E154-5,0) -> 354.66585 | F154: =F155+IF(データ整理!F154>5,データ整理!F154-5,0) -> 337.81654 | G154: =G155+IF(データ整理!G154>5,データ整理!G154-5,0) -> 387.88545 | H154: =H155+IF(データ整理!H154>5,データ整理!H154-5,0) -> 401.86617 | I154: =I155+IF(データ整理!I154>5,データ整理!I154-5,0) -> 375.8933 | J154: =J155+IF(データ整理!J154>5,データ整理!J154-5,0) -> 350.54421 | K154: =K155+IF(データ整理!K154>5,データ整理!K154-5,0) -> 397.43087 | L154: =L155+IF(データ整理!L154>5,データ整理!L154-5,0) -> 332.41165 | M154: =M155+IF(データ整理!M154>5,データ整理!M154-5,0) -> 434.20394 | N154: =N155+IF(データ整理!N154>5,データ整理!N154-5,0) -> 393.12835 | O154: =O155+IF(データ整理!O154>5,データ整理!O154-5,0) -> 508.60109 | P154: =P155+IF(データ整理!P154>5,データ整理!P154-5,0) -> 385.83592 | Q154: =Q155+IF(データ整理!Q154>5,データ整理!Q154-5,0) -> 316.21317 | R154: =R155+IF(データ整理!R154>5,データ整理!R154-5,0) -> 342.11693 | S154: =S155+IF(データ整理!S154>5,データ整理!S154-5,0) -> 383.9649 | T154: =T155+IF(データ整理!T154>5,データ整理!T154-5,0) -> 309.90121 | U154: =U155+IF(データ整理!U154>5,データ整理!U154-5,0) -> 363.06374 | Y154: 2018-08-31 | Z154: =Z155+IF(データ整理!Z154>5,データ整理!Z154-5,0) -> 363.06374 | AA154: =AA155+IF(データ整理!AA154>5,データ整理!AA154-5,0) -> 347.87129
A155: 2014-09-01 | B155: =B156+IF(データ整理!B155>5,データ整理!B155-5,0) -> 389.75576 | C155: =C156+IF(データ整理!C155>5,データ整理!C155-5,0) -> 393.90968 | D155: =D156+IF(データ整理!D155>5,データ整理!D155-5,0) -> 320.92217 | E155: =E156+IF(データ整理!E155>5,データ整理!E155-5,0) -> 340.82935 | F155: =F156+IF(データ整理!F155>5,データ整理!F155-5,0) -> 324.96374 | G155: =G156+IF(データ整理!G155>5,データ整理!G155-5,0) -> 374.78875 | H155: =H156+IF(データ整理!H155>5,データ整理!H155-5,0) -> 388.04457 | I155: =I156+IF(データ整理!I155>5,データ整理!I155-5,0) -> 363.2499 | J155: =J156+IF(データ整理!J155>5,データ整理!J155-5,0) -> 340.52531 | K155: =K156+IF(データ整理!K155>5,データ整理!K155-5,0) -> 385.12637 | L155: =L156+IF(データ整理!L155>5,データ整理!L155-5,0) -> 323.13585 | M155: =M156+IF(データ整理!M155>5,データ整理!M155-5,0) -> 415.15484 | N155: =N156+IF(データ整理!N155>5,データ整理!N155-5,0) -> 377.79545 | O155: =O156+IF(データ整理!O155>5,データ整理!O155-5,0) -> 492.89069 | P155: =P156+IF(データ整理!P155>5,データ整理!P155-5,0) -> 376.92612 | Q155: =Q156+IF(データ整理!Q155>5,データ整理!Q155-5,0) -> 305.16207 | R155: =R156+IF(データ整理!R155>5,データ整理!R155-5,0) -> 328.67013 | S155: =S156+IF(データ整理!S155>5,データ整理!S155-5,0) -> 366.828 | T155: =T156+IF(データ整理!T155>5,データ整理!T155-5,0) -> 301.22491 | U155: =U156+IF(データ整理!U155>5,データ整理!U155-5,0) -> 349.74304 | Y155: 2018-09-01 | Z155: =Z156+IF(データ整理!Z155>5,データ整理!Z155-5,0) -> 349.74304 | AA155: =AA156+IF(データ整理!AA155>5,データ整理!AA155-5,0) -> 335.64659
A156: 2014-09-02 | B156: =B157+IF(データ整理!B156>5,データ整理!B156-5,0) -> 376.33536 | C156: =C157+IF(データ整理!C156>5,データ整理!C156-5,0) -> 379.04818 | D156: =D157+IF(データ整理!D156>5,データ整理!D156-5,0) -> 309.06727 | E156: =E157+IF(データ整理!E156>5,データ整理!E156-5,0) -> 325.98935 | F156: =F157+IF(データ整理!F156>5,データ整理!F156-5,0) -> 312.14344 | G156: =G157+IF(データ整理!G156>5,データ整理!G156-5,0) -> 360.58555 | H156: =H157+IF(データ整理!H156>5,データ整理!H156-5,0) -> 373.71957 | I156: =I157+IF(データ整理!I156>5,データ整理!I156-5,0) -> 351.4584 | J156: =J157+IF(データ整理!J156>5,データ整理!J156-5,0) -> 329.74411 | K156: =K157+IF(データ整理!K156>5,データ整理!K156-5,0) -> 370.53507 | L156: =L157+IF(データ整理!L156>5,データ整理!L156-5,0) -> 314.74655 | M156: =M157+IF(データ整理!M156>5,データ整理!M156-5,0) -> 397.04394 | N156: =N157+IF(データ整理!N156>5,データ整理!N156-5,0) -> 360.65015 | O156: =O157+IF(データ整理!O156>5,データ整理!O156-5,0) -> 479.17689 | P156: =P157+IF(データ整理!P156>5,データ整理!P156-5,0) -> 366.16822 | Q156: =Q157+IF(データ整理!Q156>5,データ整理!Q156-5,0) -> 294.06317 | R156: =R157+IF(データ整理!R156>5,データ整理!R156-5,0) -> 315.73833 | S156: =S157+IF(データ整理!S156>5,データ整理!S156-5,0) -> 350.6175 | T156: =T157+IF(データ整理!T156>5,データ整理!T156-5,0) -> 292.08331 | U156: =U157+IF(データ整理!U156>5,データ整理!U156-5,0) -> 339.92884 | Y156: 2018-09-02 | Z156: =Z157+IF(データ整理!Z156>5,データ整理!Z156-5,0) -> 339.92884 | AA156: =AA157+IF(データ整理!AA156>5,データ整理!AA156-5,0) -> 323.58809
A157: 2014-09-03 | B157: =B158+IF(データ整理!B157>5,データ整理!B157-5,0) -> 366.68416 | C157: =C158+IF(データ整理!C157>5,データ整理!C157-5,0) -> 367.01038 | D157: =D158+IF(データ整理!D157>5,データ整理!D157-5,0) -> 300.59307 | E157: =E158+IF(データ整理!E157>5,データ整理!E157-5,0) -> 307.77725 | F157: =F158+IF(データ整理!F157>5,データ整理!F157-5,0) -> 299.87154 | G157: =G158+IF(データ整理!G157>5,データ整理!G157-5,0) -> 346.91005 | H157: =H158+IF(データ整理!H157>5,データ整理!H157-5,0) -> 358.75417 | I157: =I158+IF(データ整理!I157>5,データ整理!I157-5,0) -> 340.1583 | J157: =J158+IF(データ整理!J157>5,データ整理!J157-5,0) -> 317.72281 | K157: =K158+IF(データ整理!K157>5,データ整理!K157-5,0) -> 354.77327 | L157: =L158+IF(データ整理!L157>5,データ整理!L157-5,0) -> 306.12365 | M157: =M158+IF(データ整理!M157>5,データ整理!M157-5,0) -> 380.85734 | N157: =N158+IF(データ整理!N157>5,データ整理!N157-5,0) -> 346.38095 | O157: =O158+IF(データ整理!O157>5,データ整理!O157-5,0) -> 462.57319 | P157: =P158+IF(データ整理!P157>5,データ整理!P157-5,0) -> 353.83172 | Q157: =Q158+IF(データ整理!Q157>5,データ整理!Q157-5,0) -> 282.11457 | R157: =R158+IF(データ整理!R157>5,データ整理!R157-5,0) -> 304.47363 | S157: =S158+IF(データ整理!S157>5,データ整理!S157-5,0) -> 334.6792 | T157: =T158+IF(データ整理!T157>5,データ整理!T157-5,0) -> 284.40791 | U157: =U158+IF(データ整理!U157>5,データ整理!U157-5,0) -> 332.06034 | Y157: 2018-09-03 | Z157: =Z158+IF(データ整理!Z157>5,データ整理!Z157-5,0) -> 332.06034 | AA157: =AA158+IF(データ整理!AA157>5,データ整理!AA157-5,0) -> 311.70569
A158: 2014-09-04 | B158: =B159+IF(データ整理!B158>5,データ整理!B158-5,0) -> 354.89576 | C158: =C159+IF(データ整理!C158>5,データ整理!C158-5,0) -> 356.25838 | D158: =D159+IF(データ整理!D158>5,データ整理!D158-5,0) -> 293.54417 | E158: =E159+IF(データ整理!E158>5,データ整理!E158-5,0) -> 293.41105 | F158: =F159+IF(データ整理!F158>5,データ整理!F158-5,0) -> 287.38684 | G158: =G159+IF(データ整理!G158>5,データ整理!G158-5,0) -> 335.31285 | H158: =H159+IF(データ整理!H158>5,データ整理!H158-5,0) -> 349.59517 | I158: =I159+IF(データ整理!I158>5,データ整理!I158-5,0) -> 327.9204 | J158: =J159+IF(データ整理!J158>5,データ整理!J158-5,0) -> 307.35711 | K158: =K159+IF(データ整理!K158>5,データ整理!K158-5,0) -> 340.10327 | L158: =L159+IF(データ整理!L158>5,データ整理!L158-5,0) -> 295.69265 | M158: =M159+IF(データ整理!M158>5,データ整理!M158-5,0) -> 367.30874 | N158: =N159+IF(データ整理!N158>5,データ整理!N158-5,0) -> 331.08095 | O158: =O159+IF(データ整理!O158>5,データ整理!O158-5,0) -> 445.64439 | P158: =P159+IF(データ整理!P158>5,データ整理!P158-5,0) -> 341.43452 | Q158: =Q159+IF(データ整理!Q158>5,データ整理!Q158-5,0) -> 270.57967 | R158: =R159+IF(データ整理!R158>5,データ整理!R158-5,0) -> 291.37303 | S158: =S159+IF(データ整理!S158>5,データ整理!S158-5,0) -> 319.4368 | T158: =T159+IF(データ整理!T158>5,データ整理!T158-5,0) -> 278.78641 | U158: =U159+IF(データ整理!U158>5,データ整理!U158-5,0) -> 321.23994 | Y158: 2018-09-04 | Z158: =Z159+IF(データ整理!Z158>5,データ整理!Z158-5,0) -> 321.23994 | AA158: =AA159+IF(データ整理!AA158>5,データ整理!AA158-5,0) -> 300.01069
A159: 2014-09-05 | B159: =B160+IF(データ整理!B159>5,データ整理!B159-5,0) -> 339.93386 | C159: =C160+IF(データ整理!C159>5,データ整理!C159-5,0) -> 344.83108 | D159: =D160+IF(データ整理!D159>5,データ整理!D159-5,0) -> 284.90877 | E159: =E160+IF(データ整理!E159>5,データ整理!E159-5,0) -> 283.88165 | F159: =F160+IF(データ整理!F159>5,データ整理!F159-5,0) -> 276.83914 | G159: =G160+IF(データ整理!G159>5,データ整理!G159-5,0) -> 324.98555 | H159: =H160+IF(データ整理!H159>5,データ整理!H159-5,0) -> 342.61667 | I159: =I160+IF(データ整理!I159>5,データ整理!I159-5,0) -> 314.9292 | J159: =J160+IF(データ整理!J159>5,データ整理!J159-5,0) -> 293.73871 | K159: =K160+IF(データ整理!K159>5,データ整理!K159-5,0) -> 326.07607 | L159: =L160+IF(データ整理!L159>5,データ整理!L159-5,0) -> 287.33945 | M159: =M160+IF(データ整理!M159>5,データ整理!M159-5,0) -> 353.18574 | N159: =N160+IF(データ整理!N159>5,データ整理!N159-5,0) -> 317.26975 | O159: =O160+IF(データ整理!O159>5,データ整理!O159-5,0) -> 429.53489 | P159: =P160+IF(データ整理!P159>5,データ整理!P159-5,0) -> 329.54732 | Q159: =Q160+IF(データ整理!Q159>5,データ整理!Q159-5,0) -> 260.63497 | R159: =R160+IF(データ整理!R159>5,データ整理!R159-5,0) -> 280.01733 | S159: =S160+IF(データ整理!S159>5,データ整理!S159-5,0) -> 304.4368 | T159: =T160+IF(データ整理!T159>5,データ整理!T159-5,0) -> 270.57771 | U159: =U160+IF(データ整理!U159>5,データ整理!U159-5,0) -> 306.60694 | Y159: 2018-09-05 | Z159: =Z160+IF(データ整理!Z159>5,データ整理!Z159-5,0) -> 306.60694 | AA159: =AA160+IF(データ整理!AA159>5,データ整理!AA159-5,0) -> 288.51499
A160: 2014-09-06 | B160: =B161+IF(データ整理!B160>5,データ整理!B160-5,0) -> 324.11526 | C160: =C161+IF(データ整理!C160>5,データ整理!C160-5,0) -> 333.38898 | D160: =D161+IF(データ整理!D160>5,データ整理!D160-5,0) -> 274.88997 | E160: =E161+IF(データ整理!E160>5,データ整理!E160-5,0) -> 275.04065 | F160: =F161+IF(データ整理!F160>5,データ整理!F160-5,0) -> 268.61914 | G160: =G161+IF(データ整理!G160>5,データ整理!G160-5,0) -> 315.23355 | H160: =H161+IF(データ整理!H160>5,データ整理!H160-5,0) -> 334.79267 | I160: =I161+IF(データ整理!I160>5,データ整理!I160-5,0) -> 306.054 | J160: =J161+IF(データ整理!J160>5,データ整理!J160-5,0) -> 281.86091 | K160: =K161+IF(データ整理!K160>5,データ整理!K160-5,0) -> 312.10747 | L160: =L161+IF(データ整理!L160>5,データ整理!L160-5,0) -> 275.70205 | M160: =M161+IF(データ整理!M160>5,データ整理!M160-5,0) -> 338.34644 | N160: =N161+IF(データ整理!N160>5,データ整理!N160-5,0) -> 303.05045 | O160: =O161+IF(データ整理!O160>5,データ整理!O160-5,0) -> 413.01999 | P160: =P161+IF(データ整理!P160>5,データ整理!P160-5,0) -> 317.81102 | Q160: =Q161+IF(データ整理!Q160>5,データ整理!Q160-5,0) -> 247.56397 | R160: =R161+IF(データ整理!R160>5,データ整理!R160-5,0) -> 272.77943 | S160: =S161+IF(データ整理!S160>5,データ整理!S160-5,0) -> 288.2004 | T160: =T161+IF(データ整理!T160>5,データ整理!T160-5,0) -> 258.65901 | U160: =U161+IF(データ整理!U160>5,データ整理!U160-5,0) -> 290.71294 | Y160: 2018-09-06 | Z160: =Z161+IF(データ整理!Z160>5,データ整理!Z160-5,0) -> 290.71294 | AA160: =AA161+IF(データ整理!AA160>5,データ整理!AA160-5,0) -> 277.22839
A161: 2014-09-07 | B161: =B162+IF(データ整理!B161>5,データ整理!B161-5,0) -> 307.88586 | C161: =C162+IF(データ整理!C161>5,データ整理!C161-5,0) -> 323.34218 | D161: =D162+IF(データ整理!D161>5,データ整理!D161-5,0) -> 266.28587 | E161: =E162+IF(データ整理!E161>5,データ整理!E161-5,0) -> 265.56285 | F161: =F162+IF(データ整理!F161>5,データ整理!F161-5,0) -> 260.04554 | G161: =G162+IF(データ整理!G161>5,データ整理!G161-5,0) -> 304.88265 | H161: =H162+IF(データ整理!H161>5,データ整理!H161-5,0) -> 326.26757 | I161: =I162+IF(データ整理!I161>5,データ整理!I161-5,0) -> 297.3774 | J161: =J162+IF(データ整理!J161>5,データ整理!J161-5,0) -> 271.29061 | K161: =K162+IF(データ整理!K161>5,データ整理!K161-5,0) -> 296.49707 | L161: =L162+IF(データ整理!L161>5,データ整理!L161-5,0) -> 262.85995 | M161: =M162+IF(データ整理!M161>5,データ整理!M161-5,0) -> 321.25274 | N161: =N162+IF(データ整理!N161>5,データ整理!N161-5,0) -> 289.64835 | O161: =O162+IF(データ整理!O161>5,データ整理!O161-5,0) -> 397.80579 | P161: =P162+IF(データ整理!P161>5,データ整理!P161-5,0) -> 308.67672 | Q161: =Q162+IF(データ整理!Q161>5,データ整理!Q161-5,0) -> 235.66187 | R161: =R162+IF(データ整理!R161>5,データ整理!R161-5,0) -> 265.92753 | S161: =S162+IF(データ整理!S161>5,データ整理!S161-5,0) -> 273.1792 | T161: =T162+IF(データ整理!T161>5,データ整理!T161-5,0) -> 247.89351 | U161: =U162+IF(データ整理!U161>5,データ整理!U161-5,0) -> 275.80554 | Y161: 2018-09-07 | Z161: =Z162+IF(データ整理!Z161>5,データ整理!Z161-5,0) -> 275.80554 | AA161: =AA162+IF(データ整理!AA161>5,データ整理!AA161-5,0) -> 266.15699
A162: 2014-09-08 | B162: =B163+IF(データ整理!B162>5,データ整理!B162-5,0) -> 293.39786 | C162: =C163+IF(データ整理!C162>5,データ整理!C162-5,0) -> 310.85468 | D162: =D163+IF(データ整理!D162>5,データ整理!D162-5,0) -> 257.11967 | E162: =E163+IF(データ整理!E162>5,データ整理!E162-5,0) -> 255.24845 | F162: =F163+IF(データ整理!F162>5,データ整理!F162-5,0) -> 251.34624 | G162: =G163+IF(データ整理!G162>5,データ整理!G162-5,0) -> 293.02225 | H162: =H163+IF(データ整理!H162>5,データ整理!H162-5,0) -> 316.20267 | I162: =I163+IF(データ整理!I162>5,データ整理!I162-5,0) -> 287.259 | J162: =J163+IF(データ整理!J162>5,データ整理!J162-5,0) -> 260.88801 | K162: =K163+IF(データ整理!K162>5,データ整理!K162-5,0) -> 282.50937 | L162: =L163+IF(データ整理!L162>5,データ整理!L162-5,0) -> 250.86735 | M162: =M163+IF(データ整理!M162>5,データ整理!M162-5,0) -> 307.82084 | N162: =N163+IF(データ整理!N162>5,データ整理!N162-5,0) -> 278.04625 | O162: =O163+IF(データ整理!O162>5,データ整理!O162-5,0) -> 383.71089 | P162: =P163+IF(データ整理!P162>5,データ整理!P162-5,0) -> 299.37952 | Q162: =Q163+IF(データ整理!Q162>5,データ整理!Q162-5,0) -> 224.96077 | R162: =R163+IF(データ整理!R162>5,データ整理!R162-5,0) -> 257.76753 | S162: =S163+IF(データ整理!S162>5,データ整理!S162-5,0) -> 260.8919 | T162: =T163+IF(データ整理!T162>5,データ整理!T162-5,0) -> 235.66501 | U162: =U163+IF(データ整理!U162>5,データ整理!U162-5,0) -> 262.16874 | Y162: 2018-09-08 | Z162: =Z163+IF(データ整理!Z162>5,データ整理!Z162-5,0) -> 262.16874 | AA162: =AA163+IF(データ整理!AA162>5,データ整理!AA162-5,0) -> 255.30279
A163: 2014-09-09 | B163: =B164+IF(データ整理!B163>5,データ整理!B163-5,0) -> 277.76866 | C163: =C164+IF(データ整理!C163>5,データ整理!C163-5,0) -> 300.19318 | D163: =D164+IF(データ整理!D163>5,データ整理!D163-5,0) -> 246.50407 | E163: =E164+IF(データ整理!E163>5,データ整理!E163-5,0) -> 244.10665 | F163: =F164+IF(データ整理!F163>5,データ整理!F163-5,0) -> 242.88564 | G163: =G164+IF(データ整理!G163>5,データ整理!G163-5,0) -> 280.33135 | H163: =H164+IF(データ整理!H163>5,データ整理!H163-5,0) -> 304.30867 | I163: =I164+IF(データ整理!I163>5,データ整理!I163-5,0) -> 275.0511 | J163: =J164+IF(データ整理!J163>5,データ整理!J163-5,0) -> 250.60651 | K163: =K164+IF(データ整理!K163>5,データ整理!K163-5,0) -> 270.57057 | L163: =L164+IF(データ整理!L163>5,データ整理!L163-5,0) -> 241.93215 | M163: =M164+IF(データ整理!M163>5,データ整理!M163-5,0) -> 298.54174 | N163: =N164+IF(データ整理!N163>5,データ整理!N163-5,0) -> 264.52725 | O163: =O164+IF(データ整理!O163>5,データ整理!O163-5,0) -> 370.82109 | P163: =P164+IF(データ整理!P163>5,データ整理!P163-5,0) -> 287.84032 | Q163: =Q164+IF(データ整理!Q163>5,データ整理!Q163-5,0) -> 214.51587 | R163: =R164+IF(データ整理!R163>5,データ整理!R163-5,0) -> 249.19763 | S163: =S164+IF(データ整理!S163>5,データ整理!S163-5,0) -> 251.9146 | T163: =T164+IF(データ整理!T163>5,データ整理!T163-5,0) -> 224.33671 | U163: =U164+IF(データ整理!U163>5,データ整理!U163-5,0) -> 250.13344 | Y163: 2018-09-09 | Z163: =Z164+IF(データ整理!Z163>5,データ整理!Z163-5,0) -> 250.13344 | AA163: =AA164+IF(データ整理!AA163>5,データ整理!AA163-5,0) -> 244.66709
A164: 2014-09-10 | B164: =B165+IF(データ整理!B164>5,データ整理!B164-5,0) -> 261.93596 | C164: =C165+IF(データ整理!C164>5,データ整理!C164-5,0) -> 290.68858 | D164: =D165+IF(データ整理!D164>5,データ整理!D164-5,0) -> 235.16757 | E164: =E165+IF(データ整理!E164>5,データ整理!E164-5,0) -> 232.92445 | F164: =F165+IF(データ整理!F164>5,データ整理!F164-5,0) -> 232.69804 | G164: =G165+IF(データ整理!G164>5,データ整理!G164-5,0) -> 269.82075 | H164: =H165+IF(データ整理!H164>5,データ整理!H164-5,0) -> 291.84667 | I164: =I165+IF(データ整理!I164>5,データ整理!I164-5,0) -> 261.7019 | J164: =J165+IF(データ整理!J164>5,データ整理!J164-5,0) -> 238.45181 | K164: =K165+IF(データ整理!K164>5,データ整理!K164-5,0) -> 260.34207 | L164: =L165+IF(データ整理!L164>5,データ整理!L164-5,0) -> 234.58635 | M164: =M165+IF(データ整理!M164>5,データ整理!M164-5,0) -> 289.60344 | N164: =N165+IF(データ整理!N164>5,データ整理!N164-5,0) -> 252.41145 | O164: =O165+IF(データ整理!O164>5,データ整理!O164-5,0) -> 358.57999 | P164: =P165+IF(データ整理!P164>5,データ整理!P164-5,0) -> 277.76952 | Q164: =Q165+IF(データ整理!Q164>5,データ整理!Q164-5,0) -> 202.97147 | R164: =R165+IF(データ整理!R164>5,データ整理!R164-5,0) -> 239.48663 | S164: =S165+IF(データ整理!S164>5,データ整理!S164-5,0) -> 242.0171 | T164: =T165+IF(データ整理!T164>5,データ整理!T164-5,0) -> 213.38321 | U164: =U165+IF(データ整理!U164>5,データ整理!U164-5,0) -> 240.99014 | Y164: 2018-09-10 | Z164: =Z165+IF(データ整理!Z164>5,データ整理!Z164-5,0) -> 240.99014 | AA164: =AA165+IF(データ整理!AA164>5,データ整理!AA164-5,0) -> 234.25289
A165: 2014-09-11 | B165: =B166+IF(データ整理!B165>5,データ整理!B165-5,0) -> 248.12526 | C165: =C166+IF(データ整理!C165>5,データ整理!C165-5,0) -> 280.04008 | D165: =D166+IF(データ整理!D165>5,データ整理!D165-5,0) -> 223.47077 | E165: =E166+IF(データ整理!E165>5,データ整理!E165-5,0) -> 224.39035 | F165: =F166+IF(データ整理!F165>5,データ整理!F165-5,0) -> 222.28804 | G165: =G166+IF(データ整理!G165>5,データ整理!G165-5,0) -> 262.75415 | H165: =H166+IF(データ整理!H165>5,データ整理!H165-5,0) -> 280.73677 | I165: =I166+IF(データ整理!I165>5,データ整理!I165-5,0) -> 247.0171 | J165: =J166+IF(データ整理!J165>5,データ整理!J165-5,0) -> 228.63891 | K165: =K166+IF(データ整理!K165>5,データ整理!K165-5,0) -> 250.66877 | L165: =L166+IF(データ整理!L165>5,データ整理!L165-5,0) -> 227.44675 | M165: =M166+IF(データ整理!M165>5,データ整理!M165-5,0) -> 276.91404 | N165: =N166+IF(データ整理!N165>5,データ整理!N165-5,0) -> 241.71475 | O165: =O166+IF(データ整理!O165>5,データ整理!O165-5,0) -> 343.93829 | P165: =P166+IF(データ整理!P165>5,データ整理!P165-5,0) -> 267.58882 | Q165: =Q166+IF(データ整理!Q165>5,データ整理!Q165-5,0) -> 192.02627 | R165: =R166+IF(データ整理!R165>5,データ整理!R165-5,0) -> 228.74843 | S165: =S166+IF(データ整理!S165>5,データ整理!S165-5,0) -> 232.733 | T165: =T166+IF(データ整理!T165>5,データ整理!T165-5,0) -> 205.91511 | U165: =U166+IF(データ整理!U165>5,データ整理!U165-5,0) -> 235.43644 | Y165: 2018-09-11 | Z165: =Z166+IF(データ整理!Z165>5,データ整理!Z165-5,0) -> 235.43644 | AA165: =AA166+IF(データ整理!AA165>5,データ整理!AA165-5,0) -> 224.06479
A166: 2014-09-12 | B166: =B167+IF(データ整理!B166>5,データ整理!B166-5,0) -> 232.73106 | C166: =C167+IF(データ整理!C166>5,データ整理!C166-5,0) -> 268.32598 | D166: =D167+IF(データ整理!D166>5,データ整理!D166-5,0) -> 215.10007 | E166: =E167+IF(データ整理!E166>5,データ整理!E166-5,0) -> 212.67565 | F166: =F167+IF(データ整理!F166>5,データ整理!F166-5,0) -> 208.73454 | G166: =G167+IF(データ整理!G166>5,データ整理!G166-5,0) -> 254.59645 | H166: =H167+IF(データ整理!H166>5,データ整理!H166-5,0) -> 267.98697 | I166: =I167+IF(データ整理!I166>5,データ整理!I166-5,0) -> 238.1129 | J166: =J167+IF(データ整理!J166>5,データ整理!J166-5,0) -> 216.28941 | K166: =K167+IF(データ整理!K166>5,データ整理!K166-5,0) -> 240.46807 | L166: =L167+IF(データ整理!L166>5,データ整理!L166-5,0) -> 219.04555 | M166: =M167+IF(データ整理!M166>5,データ整理!M166-5,0) -> 264.11544 | N166: =N167+IF(データ整理!N166>5,データ整理!N166-5,0) -> 232.93785 | O166: =O167+IF(データ整理!O166>5,データ整理!O166-5,0) -> 329.76749 | P166: =P167+IF(データ整理!P166>5,データ整理!P166-5,0) -> 255.48322 | Q166: =Q167+IF(データ整理!Q166>5,データ整理!Q166-5,0) -> 182.29317 | R166: =R167+IF(データ整理!R166>5,データ整理!R166-5,0) -> 216.93903 | S166: =S167+IF(データ整理!S166>5,データ整理!S166-5,0) -> 224.5543 | T166: =T167+IF(データ整理!T166>5,データ整理!T166-5,0) -> 198.55721 | U166: =U167+IF(データ整理!U166>5,データ整理!U166-5,0) -> 230.82026 | Y166: 2018-09-12 | Z166: =Z167+IF(データ整理!Z166>5,データ整理!Z166-5,0) -> 230.82026 | AA166: =AA167+IF(データ整理!AA166>5,データ整理!AA166-5,0) -> 214.10719
A167: 2014-09-13 | B167: =B168+IF(データ整理!B167>5,データ整理!B167-5,0) -> 218.35336 | C167: =C168+IF(データ整理!C167>5,データ整理!C167-5,0) -> 256.85858 | D167: =D168+IF(データ整理!D167>5,データ整理!D167-5,0) -> 207.07807 | E167: =E168+IF(データ整理!E167>5,データ整理!E167-5,0) -> 204.90185 | F167: =F168+IF(データ整理!F167>5,データ整理!F167-5,0) -> 196.05854 | G167: =G168+IF(データ整理!G167>5,データ整理!G167-5,0) -> 244.89515 | H167: =H168+IF(データ整理!H167>5,データ整理!H167-5,0) -> 253.43637 | I167: =I168+IF(データ整理!I167>5,データ整理!I167-5,0) -> 230.9038 | J167: =J168+IF(データ整理!J167>5,データ整理!J167-5,0) -> 204.45751 | K167: =K168+IF(データ整理!K167>5,データ整理!K167-5,0) -> 230.14557 | L167: =L168+IF(データ整理!L167>5,データ整理!L167-5,0) -> 208.97865 | M167: =M168+IF(データ整理!M167>5,データ整理!M167-5,0) -> 252.26184 | N167: =N168+IF(データ整理!N167>5,データ整理!N167-5,0) -> 222.44645 | O167: =O168+IF(データ整理!O167>5,データ整理!O167-5,0) -> 314.89749 | P167: =P168+IF(データ整理!P167>5,データ整理!P167-5,0) -> 243.20182 | Q167: =Q168+IF(データ整理!Q167>5,データ整理!Q167-5,0) -> 172.51507 | R167: =R168+IF(データ整理!R167>5,データ整理!R167-5,0) -> 206.18523 | S167: =S168+IF(データ整理!S167>5,データ整理!S167-5,0) -> 217.3909 | T167: =T168+IF(データ整理!T167>5,データ整理!T167-5,0) -> 190.31611 | U167: =U168+IF(データ整理!U167>5,データ整理!U167-5,0) -> 224.41776 | Y167: 2018-09-13 | Z167: =Z168+IF(データ整理!Z167>5,データ整理!Z167-5,0) -> 224.41776 | AA167: =AA168+IF(データ整理!AA167>5,データ整理!AA167-5,0) -> 204.38169
A168: 2014-09-14 | B168: =B169+IF(データ整理!B168>5,データ整理!B168-5,0) -> 205.41356 | C168: =C169+IF(データ整理!C168>5,データ整理!C168-5,0) -> 247.32848 | D168: =D169+IF(データ整理!D168>5,データ整理!D168-5,0) -> 197.16237 | E168: =E169+IF(データ整理!E168>5,データ整理!E168-5,0) -> 198.65365 | F168: =F169+IF(データ整理!F168>5,データ整理!F168-5,0) -> 185.22724 | G168: =G169+IF(データ整理!G168>5,データ整理!G168-5,0) -> 237.57845 | H168: =H169+IF(データ整理!H168>5,データ整理!H168-5,0) -> 242.72967 | I168: =I169+IF(データ整理!I168>5,データ整理!I168-5,0) -> 224.074 | J168: =J169+IF(データ整理!J168>5,データ整理!J168-5,0) -> 191.96231 | K168: =K169+IF(データ整理!K168>5,データ整理!K168-5,0) -> 217.55807 | L168: =L169+IF(データ整理!L168>5,データ整理!L168-5,0) -> 200.44525 | M168: =M169+IF(データ整理!M168>5,データ整理!M168-5,0) -> 240.31614 | N168: =N169+IF(データ整理!N168>5,データ整理!N168-5,0) -> 211.95675 | O168: =O169+IF(データ整理!O168>5,データ整理!O168-5,0) -> 300.05409 | P168: =P169+IF(データ整理!P168>5,データ整理!P168-5,0) -> 230.97242 | Q168: =Q169+IF(データ整理!Q168>5,データ整理!Q168-5,0) -> 165.18277 | R168: =R169+IF(データ整理!R168>5,データ整理!R168-5,0) -> 198.09433 | S168: =S169+IF(データ整理!S168>5,データ整理!S168-5,0) -> 208.4986 | T168: =T169+IF(データ整理!T168>5,データ整理!T168-5,0) -> 181.07981 | U168: =U169+IF(データ整理!U168>5,データ整理!U168-5,0) -> 215.29366 | Y168: 2018-09-14 | Z168: =Z169+IF(データ整理!Z168>5,データ整理!Z168-5,0) -> 215.29366 | AA168: =AA169+IF(データ整理!AA168>5,データ整理!AA168-5,0) -> 194.88789
A169: 2014-09-15 | B169: =B170+IF(データ整理!B169>5,データ整理!B169-5,0) -> 193.98136 | C169: =C170+IF(データ整理!C169>5,データ整理!C169-5,0) -> 237.93418 | D169: =D170+IF(データ整理!D169>5,データ整理!D169-5,0) -> 185.67487 | E169: =E170+IF(データ整理!E169>5,データ整理!E169-5,0) -> 192.45785 | F169: =F170+IF(データ整理!F169>5,データ整理!F169-5,0) -> 173.18234 | G169: =G170+IF(データ整理!G169>5,データ整理!G169-5,0) -> 229.39165 | H169: =H170+IF(データ整理!H169>5,データ整理!H169-5,0) -> 238.18813 | I169: =I170+IF(データ整理!I169>5,データ整理!I169-5,0) -> 215.0641 | J169: =J170+IF(データ整理!J169>5,データ整理!J169-5,0) -> 178.72021 | K169: =K170+IF(データ整理!K169>5,データ整理!K169-5,0) -> 207.84567 | L169: =L170+IF(データ整理!L169>5,データ整理!L169-5,0) -> 191.03725 | M169: =M170+IF(データ整理!M169>5,データ整理!M169-5,0) -> 228.79574 | N169: =N170+IF(データ整理!N169>5,データ整理!N169-5,0) -> 200.42475 | O169: =O170+IF(データ整理!O169>5,データ整理!O169-5,0) -> 284.32179 | P169: =P170+IF(データ整理!P169>5,データ整理!P169-5,0) -> 217.61242 | Q169: =Q170+IF(データ整理!Q169>5,データ整理!Q169-5,0) -> 159.12357 | R169: =R170+IF(データ整理!R169>5,データ整理!R169-5,0) -> 190.67233 | S169: =S170+IF(データ整理!S169>5,データ整理!S169-5,0) -> 198.0396 | T169: =T170+IF(データ整理!T169>5,データ整理!T169-5,0) -> 172.37421 | U169: =U170+IF(データ整理!U169>5,データ整理!U169-5,0) -> 203.79026 | Y169: 2018-09-15 | Z169: =Z170+IF(データ整理!Z169>5,データ整理!Z169-5,0) -> 203.79026 | AA169: =AA170+IF(データ整理!AA169>5,データ整理!AA169-5,0) -> 185.62539
A170: 2014-09-16 | B170: =B171+IF(データ整理!B170>5,データ整理!B170-5,0) -> 185.27156 | C170: =C171+IF(データ整理!C170>5,データ整理!C170-5,0) -> 227.65168 | D170: =D171+IF(データ整理!D170>5,データ整理!D170-5,0) -> 174.06127 | E170: =E171+IF(データ整理!E170>5,データ整理!E170-5,0) -> 187.32885 | F170: =F171+IF(データ整理!F170>5,データ整理!F170-5,0) -> 166.80164 | G170: =G171+IF(データ整理!G170>5,データ整理!G170-5,0) -> 223.96425 | H170: =H171+IF(データ整理!H170>5,データ整理!H170-5,0) -> 230.36533 | I170: =I171+IF(データ整理!I170>5,データ整理!I170-5,0) -> 205.9715 | J170: =J171+IF(データ整理!J170>5,データ整理!J170-5,0) -> 167.83811 | K170: =K171+IF(データ整理!K170>5,データ整理!K170-5,0) -> 200.21927 | L170: =L171+IF(データ整理!L170>5,データ整理!L170-5,0) -> 182.22175 | M170: =M171+IF(データ整理!M170>5,データ整理!M170-5,0) -> 216.15654 | N170: =N171+IF(データ整理!N170>5,データ整理!N170-5,0) -> 187.26015 | O170: =O171+IF(データ整理!O170>5,データ整理!O170-5,0) -> 268.04149 | P170: =P171+IF(データ整理!P170>5,データ整理!P170-5,0) -> 204.27752 | Q170: =Q171+IF(データ整理!Q170>5,データ整理!Q170-5,0) -> 151.76647 | R170: =R171+IF(データ整理!R170>5,データ整理!R170-5,0) -> 183.69443 | S170: =S171+IF(データ整理!S170>5,データ整理!S170-5,0) -> 186.3992 | T170: =T171+IF(データ整理!T170>5,データ整理!T170-5,0) -> 166.09151 | U170: =U171+IF(データ整理!U170>5,データ整理!U170-5,0) -> 192.55616 | Y170: 2018-09-16 | Z170: =Z171+IF(データ整理!Z170>5,データ整理!Z170-5,0) -> 192.55616 | AA170: =AA171+IF(データ整理!AA170>5,データ整理!AA170-5,0) -> 176.59649
A171: 2014-09-17 | B171: =B172+IF(データ整理!B171>5,データ整理!B171-5,0) -> 178.69726 | C171: =C172+IF(データ整理!C171>5,データ整理!C171-5,0) -> 212.61668 | D171: =D172+IF(データ整理!D171>5,データ整理!D171-5,0) -> 163.30237 | E171: =E172+IF(データ整理!E171>5,データ整理!E171-5,0) -> 182.11275 | F171: =F172+IF(データ整理!F171>5,データ整理!F171-5,0) -> 160.21914 | G171: =G172+IF(データ整理!G171>5,データ整理!G171-5,0) -> 216.55145 | H171: =H172+IF(データ整理!H171>5,データ整理!H171-5,0) -> 218.66003 | I171: =I172+IF(データ整理!I171>5,データ整理!I171-5,0) -> 195.9058 | J171: =J172+IF(データ整理!J171>5,データ整理!J171-5,0) -> 157.35591 | K171: =K172+IF(データ整理!K171>5,データ整理!K171-5,0) -> 190.59567 | L171: =L172+IF(データ整理!L171>5,データ整理!L171-5,0) -> 173.14135 | M171: =M172+IF(データ整理!M171>5,データ整理!M171-5,0) -> 204.15444 | N171: =N172+IF(データ整理!N171>5,データ整理!N171-5,0) -> 173.01305 | O171: =O172+IF(データ整理!O171>5,データ整理!O171-5,0) -> 255.44209 | P171: =P172+IF(データ整理!P171>5,データ整理!P171-5,0) -> 193.52112 | Q171: =Q172+IF(データ整理!Q171>5,データ整理!Q171-5,0) -> 144.76147 | R171: =R172+IF(データ整理!R171>5,データ整理!R171-5,0) -> 175.97263 | S171: =S172+IF(データ整理!S171>5,データ整理!S171-5,0) -> 174.8611 | T171: =T172+IF(データ整理!T171>5,データ整理!T171-5,0) -> 161.6045 | U171: =U172+IF(データ整理!U171>5,データ整理!U171-5,0) -> 180.84116 | Y171: 2018-09-17 | Z171: =Z172+IF(データ整理!Z171>5,データ整理!Z171-5,0) -> 180.84116 | AA171: =AA172+IF(データ整理!AA171>5,データ整理!AA171-5,0) -> 167.80669
A172: 2014-09-18 | B172: =B173+IF(データ整理!B172>5,データ整理!B172-5,0) -> 172.28206 | C172: =C173+IF(データ整理!C172>5,データ整理!C172-5,0) -> 196.65938 | D172: =D173+IF(データ整理!D172>5,データ整理!D172-5,0) -> 152.70537 | E172: =E173+IF(データ整理!E172>5,データ整理!E172-5,0) -> 175.75045 | F172: =F173+IF(データ整理!F172>5,データ整理!F172-5,0) -> 149.10774 | G172: =G173+IF(データ整理!G172>5,データ整理!G172-5,0) -> 208.80495 | H172: =H173+IF(データ整理!H172>5,データ整理!H172-5,0) -> 208.46633 | I172: =I173+IF(データ整理!I172>5,データ整理!I172-5,0) -> 186.2349 | J172: =J173+IF(データ整理!J172>5,データ整理!J172-5,0) -> 148.59241 | K172: =K173+IF(データ整理!K172>5,データ整理!K172-5,0) -> 180.35337 | L172: =L173+IF(データ整理!L172>5,データ整理!L172-5,0) -> 165.50105 | M172: =M173+IF(データ整理!M172>5,データ整理!M172-5,0) -> 192.86874 | N172: =N173+IF(データ整理!N172>5,データ整理!N172-5,0) -> 160.85595 | O172: =O173+IF(データ整理!O172>5,データ整理!O172-5,0) -> 242.24689 | P172: =P173+IF(データ整理!P172>5,データ整理!P172-5,0) -> 185.71262 | Q172: =Q173+IF(データ整理!Q172>5,データ整理!Q172-5,0) -> 140.16754 | R172: =R173+IF(データ整理!R172>5,データ整理!R172-5,0) -> 168.47913 | S172: =S173+IF(データ整理!S172>5,データ整理!S172-5,0) -> 167.4762 | T172: =T173+IF(データ整理!T172>5,データ整理!T172-5,0) -> 154.4813 | U172: =U173+IF(データ整理!U172>5,データ整理!U172-5,0) -> 169.29736 | Y172: 2018-09-18 | Z172: =Z173+IF(データ整理!Z172>5,データ整理!Z172-5,0) -> 169.29736 | AA172: =AA173+IF(データ整理!AA172>5,データ整理!AA172-5,0) -> 159.26009
A173: 2014-09-19 | B173: =B174+IF(データ整理!B173>5,データ整理!B173-5,0) -> 166.78336 | C173: =C174+IF(データ整理!C173>5,データ整理!C173-5,0) -> 183.40658 | D173: =D174+IF(データ整理!D173>5,データ整理!D173-5,0) -> 143.53777 | E173: =E174+IF(データ整理!E173>5,データ整理!E173-5,0) -> 168.46065 | F173: =F174+IF(データ整理!F173>5,データ整理!F173-5,0) -> 137.41914 | G173: =G174+IF(データ整理!G173>5,データ整理!G173-5,0) -> 196.55035 | H173: =H174+IF(データ整理!H173>5,データ整理!H173-5,0) -> 195.64193 | I173: =I174+IF(データ整理!I173>5,データ整理!I173-5,0) -> 176.8241 | J173: =J174+IF(データ整理!J173>5,データ整理!J173-5,0) -> 139.73561 | K173: =K174+IF(データ整理!K173>5,データ整理!K173-5,0) -> 169.47207 | L173: =L174+IF(データ整理!L173>5,データ整理!L173-5,0) -> 157.94825 | M173: =M174+IF(データ整理!M173>5,データ整理!M173-5,0) -> 184.18684 | N173: =N174+IF(データ整理!N173>5,データ整理!N173-5,0) -> 152.64225 | O173: =O174+IF(データ整理!O173>5,データ整理!O173-5,0) -> 224.78889 | P173: =P174+IF(データ整理!P173>5,データ整理!P173-5,0) -> 179.21662 | Q173: =Q174+IF(データ整理!Q173>5,データ整理!Q173-5,0) -> 135.70192 | R173: =R174+IF(データ整理!R173>5,データ整理!R173-5,0) -> 161.10573 | S173: =S174+IF(データ整理!S173>5,データ整理!S173-5,0) -> 162.2708 | T173: =T174+IF(データ整理!T173>5,データ整理!T173-5,0) -> 146.6813 | U173: =U174+IF(データ整理!U173>5,データ整理!U173-5,0) -> 161.70256 | Y173: 2018-09-19 | Z173: =Z174+IF(データ整理!Z173>5,データ整理!Z173-5,0) -> 161.70256 | AA173: =AA174+IF(データ整理!AA173>5,データ整理!AA173-5,0) -> 150.95809
A174: 2014-09-20 | B174: =B175+IF(データ整理!B174>5,データ整理!B174-5,0) -> 160.44366 | C174: =C175+IF(データ整理!C174>5,データ整理!C174-5,0) -> 172.72618 | D174: =D175+IF(データ整理!D174>5,データ整理!D174-5,0) -> 136.57067 | E174: =E175+IF(データ整理!E174>5,データ整理!E174-5,0) -> 159.14925 | F174: =F175+IF(データ整理!F174>5,データ整理!F174-5,0) -> 132.47246 | G174: =G175+IF(データ整理!G174>5,データ整理!G174-5,0) -> 185.06175 | H174: =H175+IF(データ整理!H174>5,データ整理!H174-5,0) -> 183.74133 | I174: =I175+IF(データ整理!I174>5,データ整理!I174-5,0) -> 165.7544 | J174: =J175+IF(データ整理!J174>5,データ整理!J174-5,0) -> 129.86321 | K174: =K175+IF(データ整理!K174>5,データ整理!K174-5,0) -> 160.28757 | L174: =L175+IF(データ整理!L174>5,データ整理!L174-5,0) -> 150.47105 | M174: =M175+IF(データ整理!M174>5,データ整理!M174-5,0) -> 175.24194 | N174: =N175+IF(データ整理!N174>5,データ整理!N174-5,0) -> 147.47375 | O174: =O175+IF(データ整理!O174>5,データ整理!O174-5,0) -> 208.37549 | P174: =P175+IF(データ整理!P174>5,データ整理!P174-5,0) -> 172.50572 | Q174: =Q175+IF(データ整理!Q174>5,データ整理!Q174-5,0) -> 129.67762 | R174: =R175+IF(データ整理!R174>5,データ整理!R174-5,0) -> 152.58083 | S174: =S175+IF(データ整理!S174>5,データ整理!S174-5,0) -> 157.71032 | T174: =T175+IF(データ整理!T174>5,データ整理!T174-5,0) -> 136.3105 | U174: =U175+IF(データ整理!U174>5,データ整理!U174-5,0) -> 154.99766 | Y174: 2018-09-20 | Z174: =Z175+IF(データ整理!Z174>5,データ整理!Z174-5,0) -> 154.99766 | AA174: =AA175+IF(データ整理!AA174>5,データ整理!AA174-5,0) -> 142.90009
